Workbook

Sheet Function (hidden)
E1: =H114 -> UTAH | F1: =+H114 -> UTAH | G1: =C109 -> 2020 PROTOCOL | R1: UNADJUSTED RESULTS OF OPERATIONS
R2: =Variables!AE27 -> 2020 PROTOCOL
E3: Function | F3: Description | I3: Production | J3: Transmission | K3: Distribution | L3: Poles & Wires | M3: Customer | N3: Misc | O3: Total | R3: =Variables!AE28 ->  | AN3: JAMLINKjars
E4: ACCMDIT | F4: Deferred Income Tax - Balance | I4: =T61 ->  | O4: =SUM(I4:K4) ->  | P4: =K4-L4-M4-N4 ->  | AN4: =+I4 ->  | AT4: =Report!P192 -> 977656998.8
E5: BOOKDEPR | F5: Book Depreciation | I5: 0.5333088308 | J5: 0.1666185282 | K5: =L5+M5+N5 -> 0.300072641 | L5: 0.296637073 | M5: 0.003435567996 | N5: 0 | O5: 1 | P5: -1.734723476e-17 | U5: PACIFICORP | V5: PACIFICORP | AN5: 0.5333088308 | AO5: 0.1666185282 | AP5: 0.300072641 | AQ5: 0.296637073 | AR5: 0.003435567996 | AS5: 0 | AT5: =Report!P193 -> 0
C6: N/A | E6: COM_EQ | F6: Communication Equipment Acct 397 | I6: 0 | J6: 0 | K6: =L6+M6+N6 -> 0 | L6: 0 | M6: 0 | N6: 0 | O6: 0 | P6: 0 | R6: FERC | S6: DESCRIPTION | U6: LABOR | V6: O&M | AN6: 0 | AO6: 0 | AP6: 0 | AQ6: 0 | AR6: 0 | AS6: 0 | AT6: =Report!P194 -> 977656998.8
E7: CUST | F7: Distribution Retail | I7: 0 | J7: 0 | K7: =L7+M7+N7 -> 1 | L7: 0 | M7: 1 | N7: 0 | O7: 1 | P7: 0 | R7: ACCT | U7: ONLY | V7: TOTAL | W7: =Variables!X24 -> UTAH | AN7: 0 | AO7: 0 | AP7: 1 | AQ7: 0 | AR7: 1 | AS7: 0 | AT7: =Report!P195 -> 0
E8: CWC | F8: Cash Working Capital | I8: =T58/$S58 -> 0.7130573727 | J8: =U58/$S58 -> 0.1221487636 | K8: =SUM(L8:N8) -> 0.1647938637 | L8: =W58/$S58 -> 0.1307045837 | M8: =X58/$S58 -> 0.03691184811 | N8: =Y58/$S58 -> -0.002822568143 | O8: 1 | P8: 6.071532166e-18 | AN8: 0.7130573727 | AO8: 0.1221487636 | AP8: 0.1647938637 | AQ8: 0.1307045837 | AR8: 0.03691184811 | AS8: -0.002822568143 | AT8: =Report!P196 -> 0
E9: DDS2 | F9: Deferred Debits - Situs | I9: 0.8654170763 | J9: 0.01134440937 | K9: =L9+M9+N9 -> 0.1232385143 | L9: 0.007189450857 | M9: 0.1453915654 | N9: -0.02934250188 | O9: 1 | P9: 0 | AN9: 0.8654170763 | AO9: 0.01134440937 | AP9: 0.1232385143 | AQ9: 0.007189450857 | AR9: 0.1453915654 | AS9: -0.02934250188 | AT9: =Report!P197 -> 1397952874
E10: DDS6 | F10: Deferred Debits - Situs | I10: 0 | J10: 0 | K10: =L10+M10+N10 -> 0 | L10: 0 | M10: 0 | N10: 0 | O10: 0 | P10: 0 | R10: NET PRODUCTION EXPENSE | U10: 90698845 | V10: =URO!I657 -> 3224443723 | W10: =IF(Variables!AO3=12,URO!N657+URO!Q657,CHOOSE(Variables!AO3,URO!J657,URO!K657,URO!L657,URO!M657,URO!N657,URO!O657,URO!P657,URO!Q657,URO!R657,URO!S657,URO!T657)) -> 1323983586 | AN10: 0 | AO10: 0 | AP10: 0 | AQ10: 0 | AR10: 0 | AS10: 0 | AT10: =Report!P198 -> 0
E11: DDSO2 | F11: Deferred Debits - System Overhead | I11: 0.1117746861 | J11: 0.03725822871 | K11: =L11+M11+N11 -> 0.8509670852 | L11: 0.2235493722 | M11: 0 | N11: 0.6274177129 | O11: 1 | P11: 0 | R11: NET TRANSMISSION EXPENSE | U11: 10748429 | V11: =URO!I757 -> 289030035.7 | W11: =IF(Variables!AO3=12,URO!N757+URO!Q757,CHOOSE(Variables!AO3,URO!J757,URO!K757,URO!L757,URO!M757,URO!N757,URO!O757,URO!P757,URO!Q757,URO!R757,URO!S757,URO!T757)) -> 130168586.4 | AN11: 0.1117746861 | AO11: 0.03725822871 | AP11: 0.8509670852 | AQ11: 0.2235493722 | AR11: 0 | AS11: 0.6274177129 | AT11: =Report!P199 -> 0
E12: DDSO6 | F12: Deferred Debits - System Overhead | I12: 0 | J12: 0 | K12: =L12+M12+N12 -> 0 | L12: 0 | M12: 0 | N12: 0 | O12: 0 | P12: 0 | R12: TOTAL DISTRIBUTION EXPENSE | U12: =U18 -> 82047328 | V12: =V18 -> 687014856.2 | W12: =W18 -> 163777175.9 | AN12: 0 | AO12: 0 | AP12: 0 | AQ12: 0 | AR12: 0 | AS12: 0 | AT12: =Report!P200 -> 0
E13: DEFSG | F13: Deferred Debit - System Generation | I13: 0.6346481617 | J13: 0.3653518383 | K13: =L13+M13+N13 -> 0 | L13: 0 | M13: 0 | N13: 0 | O13: 1 | P13: 0 | R13: TOTAL | U13: =SUM(U10:U12) -> 183494602 | V13: =SUM(V10:V12) -> 4200488615 | W13: =SUM(W10:W12) -> 1617929348 | AN13: 0.6346481617 | AO13: 0.3653518383 | AP13: 0 | AQ13: 0 | AR13: 0 | AS13: 0 | AT13: =Report!P201 -> 0
C14: N/A | E14: DITEXP | F14: Deferred Income Tax - Expense | I14: 0 | J14: 0 | K14: 0 | L14: 0 | M14: 0 | N14: 0 | O14: 0 | P14: 0 | AN14: 0 | AO14: 0 | AP14: 0 | AQ14: 0 | AR14: 0 | AS14: 0 | AT14: =Report!P202 -> 1397952874
E15: DMSC | F15: Distribution Miscellaneous | I15: 0 | J15: 0 | K15: =L15+M15+N15 -> 1 | L15: 0 | M15: 0 | N15: 1 | O15: =SUM(I15:K15) -> 1 | P15: 0 | R15: POLES & WIRES | U15: 45597212 | V15: =URO!I859 -> 353945370.9 | W15: =IF(Variables!AO3=12,URO!N859+URO!Q859,CHOOSE(Variables!AO3,URO!J859,URO!K859,URO!L859,URO!M859,URO!N859,URO!O859,URO!P859,URO!Q859,URO!R859,URO!S859,URO!T859)) -> 118438362.8 | AN15: 0 | AO15: 0 | AP15: 1 | AQ15: 0 | AR15: 0 | AS15: 1 | AT15: =Report!P203 -> 0
E16: DPW | F16: Distribution Poles & Wires | I16: 0 | J16: 0 | K16: =L16+M16+N16 -> 1 | L16: 1 | M16: 0 | N16: 0 | O16: 1 | P16: 0 | R16: Customers | U16: 36450116 | V16: =URO!I894+URO!I963 -> 333069485.3 | W16: =IF(Variables!AO3=12,URO!N894+URO!N963+URO!Q894+URO!Q963,CHOOSE(Variables!AO3,URO!J894+URO!J963,URO!K894+URO!K963,URO!L894+URO!L963,URO!M894+URO!M963,URO!N894+URO!N963,URO!O894+URO!O963,URO!P894+URO!P963,URO!Q894+URO!Q963,URO!R894+URO!R963,URO!S894+URO!S963,URO!T894+URO!T963)) -> 45338813.12 | AN16: 0 | AO16: 0 | AP16: 1 | AQ16: 1 | AR16: 0 | AS16: 0 | AT16: =Report!P204 -> 0
E17: ESD | F17: Environmental Services Department | I17: 0.3 | J17: 0.1 | K17: =L17+M17+N17 -> 0.6 | L17: 0.6 | M17: 0 | N17: 0 | O17: 1 | P17: 0 | R17: MISC | U17: 0 | V17: 0 | W17: 0 | AN17: 0.3 | AO17: 0.1 | AP17: 0.6 | AQ17: 0.6 | AR17: 0 | AS17: 0 | AT17: =Report!P205 -> 5971963.13
E18: FERC | F18: FERC Fees | I18: 0.5372886628 | J18: 0.4627113372 | K18: =L18+M18+N18 -> 0 | L18: 0 | M18: 0 | N18: 0 | O18: 1 | P18: 0 | R18: TOTAL DISTRIBUTION | U18: =SUM(U15:U17) -> 82047328 | V18: =SUM(V15:V17) -> 687014856.2 | W18: =SUM(W15:W17) -> 163777175.9 | AN18: 0.5372886628 | AO18: 0.4627113372 | AP18: 0 | AQ18: 0 | AR18: 0 | AS18: 0 | AT18: =Report!P206 -> 0
E19: FIT | F19: Federal Income Taxes | I19: =I1445/$H1445 -> 1.726711915 | J19: =J1445/$H1445 -> 0.1868895113 | K19: =SUM(L19:N19) -> 0.05303041948 | L19: =L1445/$H1445 -> 0.0511728767 | M19: =M1445/$H1445 -> -0.06347292049 | N19: =N1445/$H1445 -> 0.06533046327 | O19: 1.966631846 | P19: 0 | AN19: 1.726711915 | AO19: 0.1868895113 | AP19: 0.05303041948 | AQ19: 0.0511728767 | AR19: -0.06347292049 | AS19: 0.06533046327 | AT19: =Report!P207 -> 5971963.13
E20: G | F20: General Plant | I20: 0.2328424472 | J20: 0.2990202444 | K20: =L20+M20+N20 -> 0.4681373084 | L20: 0.4419311617 | M20: 0.02620614672 | N20: 0 | O20: 1 | P20: 3.469446952e-18 | AN20: =+I20 -> 0.2328424472 | AO20: 0.2990202444 | AP20: 0.4681373084 | AQ20: 0.4419311617 | AR20: 0.02620614672 | AS20: 0 | AT20: =Report!P208 -> 0
E21: G-DGP | F21: General Plant - DGP Factor | I21: 0.6855986064 | J21: 0.3144013936 | K21: =L21+M21+N21 -> 0 | L21: 0 | M21: 0 | N21: 0 | O21: 1 | P21: 0 | R21: LABOR/O&M | AN21: 0.6855986064 | AO21: 0.3144013936 | AP21: 0 | AQ21: 0 | AR21: 0 | AS21: 0 | AT21: =Report!P209 -> 0
E22: G-DGU | F22: General Plant - DGU Factor | I22: 0.6855986064 | J22: 0.3144013936 | K22: =L22+M22+N22 -> 0 | L22: 0 | M22: 0 | N22: 0 | O22: 1 | P22: 0 | R22: NET PRODUCTION EXPENSE | U22: =U10/U$13 -> 0.4942861752 | V22: 0.7676353917 | W22: =W10/W$13 -> 0.8183197786 | AN22: 0.6855986064 | AO22: 0.3144013936 | AP22: 0 | AQ22: 0 | AR22: 0 | AS22: 0 | AT22: =Report!P210 -> 0
E23: GP | F23: Total Plant | I23: 0.5092664563 | J23: 0.2157600698 | K23: 0.2749734739 | L23: 0.268675091 | M23: 0.006298382938 | N23: 0 | O23: 1 | P23: 2.255140519e-17 | R23: NET TRANSMISSION EXPENSE | U23: 0.05857626809 | V23: 0.06880867018 | W23: =W11/W$13 -> 0.08045381371 | AN23: 0.5092664563 | AO23: 0.2157600698 | AP23: 0.2749734739 | AQ23: 0.268675091 | AR23: 0.006298382938 | AS23: 0 | AT23: =Report!P211 -> 0
E24: G-SG | F24: General Plant - SG Factor | I24: 0.4715666024 | J24: 0.5284333976 | K24: 0 | L24: 0 | M24: 0 | N24: 0 | O24: =SUM(I24:K24) -> 1 | P24: 0 | R24: TOTAL DISTRIBUTION EXPENSE | U24: 0.4471375567 | V24: 0.1635559382 | W24: =W12/W$13 -> 0.1012264077 | AN24: 0.4715666024 | AO24: 0.5284333976 | AP24: 0 | AQ24: 0 | AR24: 0 | AS24: 0 | AT24: =Report!P212 -> 0
E25: G-SITUS | F25: General Plant - SITUS Factor | I25: 0 | J25: 0.2571292981 | K25: 0.7428707019 | L25: 0.7428707019 | M25: 0 | N25: 0 | O25: 1 | P25: 0 | R25: TOTAL | U25: 1 | V25: 1 | W25: =W13/W$13 -> 1 | AN25: 0 | AO25: 0.2571292981 | AP25: 0.7428707019 | AQ25: 0.7428707019 | AR25: 0 | AS25: 0 | AT25: =Report!P213 -> 0
E26: I | F26: Intangible Plant | I26: 0.5565693786 | J26: 0.1476908877 | K26: 0.2957397337 | L26: 0.1412390394 | M26: 0.1545006943 | N26: 0 | O26: 1 | P26: 0 | AN26: 0.5565693786 | AO26: 0.1476908877 | AP26: 0.2957397337 | AQ26: 0.1412390394 | AR26: 0.1545006943 | AS26: 0 | AT26: =Report!P214 -> 0
E27: IBT | F27: Income Before Taxes | I27: =I1430/$H1430 -> 2.500651744 | J27: =J1430/$H1430 -> 0.4107296628 | K27: =SUM(L27:N27) -> 0.116545686 | L27: =L1430/$H1430 -> 0.1124633386 | M27: =M1430/$H1430 -> -0.1394953149 | N27: =N1430/$H1430 -> 0.1435776623 | O27: 3.027927093 | P27: 0 | R27: POLES & WIRES | U27: =U15/U$13 -> 0.2484934788 | V27: 0.08426290446 | W27: =W15/W$13 -> 0.07320366795 | AN27: 2.500651744 | AO27: 0.4107296628 | AP27: 0.116545686 | AQ27: 0.1124633386 | AR27: -0.1394953149 | AS27: 0.1435776623 | AT27: =Report!P215 -> 0
E28: I-DGP | F28: Intangible Plant - DGP Factor | I28: 1 | J28: 0 | K28: =L28+M28+N28 -> 0 | L28: 0 | M28: 0 | N28: 0 | O28: 1 | P28: 0 | R28: RETAIL | U28: 0.1986440778 | V28: 0.0792930337 | W28: =W16/W$13 -> 0.02802273979 | AN28: 1 | AO28: 0 | AP28: 0 | AQ28: 0 | AR28: 0 | AS28: 0 | AT28: =Report!P216 -> 0
E29: I-DGU | F29: Intangible Plant - DGU Factor | I29: 1 | J29: 0 | K29: 0 | L29: 0 | M29: 0 | N29: 0 | O29: 1 | P29: 0 | R29: MISC | U29: 0 | V29: 0 | W29: =W17/W$13 -> 0 | AN29: 1 | AO29: 0 | AP29: 0 | AQ29: 0 | AR29: 0 | AS29: 0 | AT29: =Report!P217 -> 0
E30: I-SG | F30: Intangible Plant - SG Factor | I30: 0.8545976251 | J30: 0.1454023749 | K30: 0 | L30: 0 | M30: 0 | N30: 0 | O30: 1 | P30: 0 | R30: TOTAL DISTRIBUTION | U30: =U18/U13 -> 0.4471375567 | V30: =V18/V13 -> 0.1635559382 | W30: =W18/W13 -> 0.1012264077 | AN30: 0.8545976251 | AO30: 0.1454023749 | AP30: 0 | AQ30: 0 | AR30: 0 | AS30: 0 | AT30: =Report!P218 -> 0
E31: I-SITUS | F31: Intangible Plant - SITUS Factor | I31: 0.0276342919 | J31: 0.4679663045 | K31: 0.5043994036 | L31: 0.5043994036 | M31: 0 | N31: 0 | O31: 1 | P31: 0 | AN31: 0.0276342919 | AO31: 0.4679663045 | AP31: 0.5043994036 | AQ31: 0.5043994036 | AR31: 0 | AS31: 0 | AT31: =Report!P219 -> 2381581836
E32: LABOR | F32: Direct Labor Expense | I32: 0.4271290455 | J32: 0.06855059318 | K32: 0.5043203613 | L32: 0.3553382213 | M32: 0.14898214 | N32: 0 | O32: 1 | P32: 5.551115123e-17 | AN32: 0.4271290455 | AO32: 0.06855059318 | AP32: 0.5043203613 | AQ32: 0.3553382213 | AR32: 0.14898214 | AS32: 0 | AT32: =Report!P220 -> 0
E33: MSS | F33: Materials & Supplies | I33: 0.8430955205 | J33: 0.00648440484 | K33: 0.1504200747 | L33: 0.1504200747 | M33: 0 | N33: 0 | O33: 1 | P33: 0 | R33: TOTAL PRODUCTION PLANT | V33: =URO!I1711 -> 1.40598177e+10 | W33: =IF(Variables!AO3=12,URO!N1711+URO!Q1711,CHOOSE(Variables!AO3,URO!J1711,URO!K1711,URO!L1711,URO!M1711,URO!N1711,URO!O1711,URO!P1711,URO!Q1711,URO!R1711,URO!S1711,URO!T1711)) -> 6333290204 | AN33: 0.8430955205 | AO33: 0.00648440484 | AP33: 0.1504200747 | AQ33: 0.1504200747 | AR33: 0 | AS33: 0 | AT33: =Report!P221 -> 0
E34: NONE | F34: Not Functionalized | I34: 0 | J34: 0 | K34: =L34+M34+N34 -> 0 | L34: 0 | M34: 0 | N34: 0 | O34: 0 | P34: 0 | R34: TOTAL TRANSMISSION PLANT | V34: =URO!I1775 -> 1.016565925e+10 | W34: =IF(Variables!AO3=12,URO!N1775+URO!Q1775,CHOOSE(Variables!AO3,URO!J1775,URO!K1775,URO!L1775,URO!M1775,URO!N1775,URO!O1775,URO!P1775,URO!Q1775,URO!R1775,URO!S1775,URO!T1775)) -> 4579167074 | AN34: 0 | AO34: 0 | AP34: 0 | AQ34: 0 | AR34: 0 | AS34: 0 | AT34: =Report!P222 -> 0
E35: NUTIL | F35: Non-Regulated | I35: 0 | J35: 0 | K35: =L35+M35+N35 -> 0 | L35: 0 | M35: 0 | N35: 0 | O35: 0 | P35: 0 | R35: TOTAL DISTRIBUTION PLANT | V35: =URO!I1849 -> 9851950094 | W35: =IF(Variables!AO3=12,URO!N1849+URO!Q1849,CHOOSE(Variables!AO3,URO!J1849,URO!K1849,URO!L1849,URO!M1849,URO!N1849,URO!O1849,URO!P1849,URO!Q1849,URO!R1849,URO!S1849,URO!T1849)) -> 4221134020 | AN35: 0 | AO35: 0 | AP35: 0 | AQ35: 0 | AR35: 0 | AS35: 0 | AT35: =Report!P223 -> 0
E36: OTHDGP | F36: Other Revenues - DGP Factor | I36: 0.6577867594 | J36: 0.3422132406 | K36: =L36+M36+N36 -> 0 | L36: 0 | M36: 0 | N36: 0 | O36: 1 | P36: 0 | R36: TOTAL | V36: =SUM(V33:V35) -> 3.407742705e+10 | W36: =SUM(W33:W35) -> 1.51335913e+10 | AN36: 0.6577867594 | AO36: 0.3422132406 | AP36: 0 | AQ36: 0 | AR36: 0 | AS36: 0 | AT36: =Report!P224 -> 16620284.72
E37: OTHDGU | F37: Other Revenues - DGU Factor | I37: 0.6577867594 | J37: 0.3422132406 | K37: 0 | L37: 0 | M37: 0 | N37: 0 | O37: 1 | P37: 0 | AN37: 0.6577867594 | AO37: 0.3422132406 | AP37: 0 | AQ37: 0 | AR37: 0 | AS37: 0 | AT37: =Report!P225 -> 16620284.72
E38: OTHSE | F38: Other Revenues - SE Factor | I38: 0 | J38: 1 | K38: 0 | L38: 0 | M38: 0 | N38: 0 | O38: 1 | P38: 0 | R38: PTD | AN38: 0 | AO38: 1 | AP38: 0 | AQ38: 0 | AR38: 0 | AS38: 0 | AT38: =Report!P226 -> 0
E39: OTHSG | F39: Other Revenues - SG Factor | I39: 0.6577867594 | J39: 0.3422132406 | K39: 0 | L39: 0 | M39: 0 | N39: 0 | O39: 1 | P39: 0 | R39: TOTAL PRODUCTION PLANT | V39: =V33/V$36 -> 0.4125844853 | W39: 0.418492219 | AN39: 0.6577867594 | AO39: 0.3422132406 | AP39: 0 | AQ39: 0 | AR39: 0 | AS39: 0 | AT39: =Report!P227 -> 0
E40: OTHSGR | F40: Other Revenues - Rolled-In SG Factor | I40: 0.6577867594 | J40: 0.3422132406 | K40: 0 | L40: 0 | M40: 0 | N40: 0 | O40: 1 | P40: 0 | R40: TOTAL TRANSMISSION PLANT | V40: 0.2983106453 | W40: 0.3025829748 | AN40: 0.6577867594 | AO40: 0.3422132406 | AP40: 0 | AQ40: 0 | AR40: 0 | AS40: 0 | AT40: =Report!P228 -> 56254777.81
E41: OTHSITUS | F41: Other Revenues - Situs | I41: 0 | J41: 0 | K41: 1 | L41: 0 | M41: 0 | N41: 1 | O41: 1 | P41: 0 | R41: TOTAL DISTRIBUTION PLANT | V41: 0.2891048694 | W41: 0.2789248062 | AN41: 0 | AO41: 0 | AP41: 1 | AQ41: 0 | AR41: 0 | AS41: 1 | AT41: =Report!P229 -> -677319.0204
E42: OTHSO | F42: Other Revenues - SO Factor | I42: 0 | J42: 0 | K42: 1 | L42: 0 | M42: 0 | N42: 1 | O42: 1 | P42: 0 | R42: TOTAL | V42: =SUM(V39:V41) -> 1 | W42: =W36/W$36 -> 1 | AN42: 0 | AO42: 0 | AP42: 1 | AQ42: 0 | AR42: 0 | AS42: 1 | AT42: =Report!P230 -> 0
E43: P | F43: Production | I43: 1 | J43: 0 | K43: 0 | L43: 0 | M43: 0 | N43: 0 | O43: 1 | P43: 0 | AN43: 1 | AO43: 0 | AP43: 0 | AQ43: 0 | AR43: 0 | AS43: 0 | AT43: =Report!P231 -> 55577458.79
E44: PT | F44: Production / Transmission | I44: =IF(Variables!Y23=1,Function!V45,Function!W45) -> 0.5803725085 | J44: =IF(Variables!Y23=1,Function!V46,Function!W46) -> 0.4196274915 | K44: =SUM(L44:N44) -> 0 | L44: 0 | M44: 0 | N44: 0 | O44: 1 | P44: 0 | R44: PT | AN44: 0.5803725085 | AO44: 0.4196274915 | AP44: 0 | AQ44: 0 | AR44: 0 | AS44: 0 | AT44: =Report!P232 -> 0
E45: PTD | F45: Prod, Trans, Dist Plant | I45: =IF(Variables!Y23=1,Function!V39,Function!W39) -> 0.418492219 | J45: =IF(Variables!Y23=1,Function!V40,Function!W40) -> 0.3025829748 | K45: =SUM(L45:N45) -> 0.2789248062 | L45: =IF(Variables!Y23=1,Function!V41,Function!W41) -> 0.2789248062 | M45: 0 | N45: 0 | O45: 1 | P45: 0 | R45: TOTAL PRODUCTION PLANT | V45: =V33/(V$33+V$34) -> 0.5803732049 | W45: =W33/(W$33+W$34) -> 0.5803725085 | AN45: 0.418492219 | AO45: 0.3025829748 | AP45: 0.2789248062 | AQ45: 0.2789248062 | AR45: 0 | AS45: 0 | AT45: =Report!P233 -> 72197743.51
E46: REVREQ | F46: Revenue Requirement | I46: =+I122/$H$122 -> 0.4312159383 | J46: =+J122/$H$122 -> 0.1017386343 | K46: =SUM(L46:N46) -> 0.1541135263 | L46: =+L122/$H$122 -> 0.1294284211 | M46: =+M122/$H$122 -> 0.04283504721 | N46: =+N122/$H$122 -> -0.01814994203 | O46: 0.6870680989 | P46: 0 | R46: TOTAL TRANSMISSION PLANT | V46: =V34/(V$33+V$34) -> 0.4196267951 | W46: =W34/(W$33+W$34) -> 0.4196274915 | AN46: 0.4312159383 | AO46: 0.1017386343 | AP46: 0.1541135263 | AQ46: 0.1294284211 | AR46: 0.04283504721 | AS46: -0.01814994203 | AT46: =Report!P234 -> 0
E47: SCHMA | F47: Schedule M Additions | I47: 0.5259273579 | J47: 0.1774923045 | K47: =L47+M47+N47 -> 0.2965803376 | L47: 0.2797551698 | M47: 0.01209048408 | N47: 0.004734683748 | O47: 1 | P47: 1.387778781e-17 | R47: TOTAL | V47: =SUM(V45:V46) -> 1 | W47: =SUM(W45:W46) -> 1 | AN47: 0.5259273579 | AO47: 0.1774923045 | AP47: 0.2965803376 | AQ47: 0.2797551698 | AR47: 0.01209048408 | AS47: 0.004734683748 | AT47: =Report!P235 -> 0
E48: SCHMAF | F48: Schedule M Additions - Flow Through | I48: 1 | J48: 0 | K48: 0 | L48: 0 | M48: 0 | N48: 0 | O48: 1 | P48: 0 | AN48: 1 | AO48: 0 | AP48: 0 | AQ48: 0 | AR48: 0 | AS48: 0 | AT48: =Report!P236 -> 0
E49: SCHMAP | F49: Schedule M Additions - Permanent | I49: 0.4395609841 | J49: 0.07868996996 | K49: 0.4817490459 | L49: 0.345274554 | M49: 0.136474492 | N49: 0 | O49: 1 | P49: 0 | R49: TD | AN49: 0.4395609841 | AO49: 0.07868996996 | AP49: 0.4817490459 | AQ49: 0.345274554 | AR49: 0.136474492 | AS49: 0 | AT49: =Report!P237 -> 0
E50: SCHMAP-SO | F50: Schedule M Additions - Permanent-SO | I50: 0.4328192325 | J50: 0.0791881397 | K50: 0.4879926278 | L50: 0.3495187311 | M50: 0.1384738967 | N50: 0 | O50: 1 | P50: 0 | R50: TOTAL TRANSMISSION PLANT | V50: =V34/(V$34+V$35) -> 0.5078358298 | W50: =W34/(W$34+W$35) -> 0.5203420912 | AN50: 0.4328192325 | AO50: 0.0791881397 | AP50: 0.4879926278 | AQ50: 0.3495187311 | AR50: 0.1384738967 | AS50: 0 | AT50: =Report!P238 -> 0
E51: SCHMAT | F51: Schedule M Additions - Temporary | I51: 0.5274051795 | J51: 0.1791829187 | K51: 0.2934119019 | L51: 0.2786340627 | M51: 0.009962139945 | N51: 0.004815699279 | O51: 1 | P51: -3.816391647e-17 | R51: TOTAL DISTRIBUTION PLANT | V51: =V35/(V$34+V$35) -> 0.4921641702 | W51: =W35/(W$34+W$35) -> 0.4796579088 | AN51: 0.5274051795 | AO51: 0.1791829187 | AP51: 0.2934119019 | AQ51: 0.2786340627 | AR51: 0.009962139945 | AS51: 0.004815699279 | AT51: =Report!P239 -> 0
E52: SCHMAT-GPS | F52: Schedule M Additions - Temporary-GPS | I52: 0 | J52: 0 | K52: 0 | L52: 0 | M52: 0 | N52: 0 | O52: 0 | P52: 0 | R52: TOTAL | V52: =SUM(V50:V51) -> 1 | W52: =SUM(W50:W51) -> 1 | AN52: 0 | AO52: 0 | AP52: 0 | AQ52: 0 | AR52: 0 | AS52: 0 | AT52: =Report!P240 -> 0
E53: SCHMAT-SE | F53: Schedule M Additions - Temporary-SE | I53: 0.9997027317 | J53: 3.557156631e-05 | K53: 0.0002616967169 | L53: 0.0001843884424 | M53: 7.730827448e-05 | N53: 0 | O53: 1 | P53: 2.710505431e-20 | AN53: 0.9997027317 | AO53: 3.557156631e-05 | AP53: 0.0002616967169 | AQ53: 0.0001843884424 | AR53: 7.730827448e-05 | AS53: 0 | AT53: =Report!P241 -> 0
E54: SCHMAT-SITUS | F54: Schedule M Additions - Temporary-SITUS | I54: 0.5617108356 | J54: 0.04522194091 | K54: 0.3930672234 | L54: 0.2292405844 | M54: 0.03586322665 | N54: 0.1279634124 | O54: 1 | P54: 0 | AN54: 0.5617108356 | AO54: 0.04522194091 | AP54: 0.3930672234 | AQ54: 0.2292405844 | AR54: 0.03586322665 | AS54: 0.1279634124 | AT54: =Report!P242 -> 2453779579
E55: SCHMAT-SNP | F55: Schedule M Additions - Temporary-SNP | I55: 0.5078698338 | J55: 0.219200088 | K55: 0.2729300782 | L55: 0.2726403702 | M55: 0.0002897079667 | N55: 0 | O55: 1 | P55: 1.864827737e-17 | T55: Prod | U55: Trans | V55: Dist | W55: DPW | X55: CUST | Y55: DMSC | AN55: 0.5078698338 | AO55: 0.219200088 | AP55: 0.2729300782 | AQ55: 0.2726403702 | AR55: 0.0002897079667 | AS55: 0 | AT55: =Report!P243 -> 0
E56: SCHMAT-SO | F56: Schedule M Additions - Temporary-SO | I56: 0.4795353426 | J56: 0.166521788 | K56: 0.3539428695 | L56: 0.301741049 | M56: 0.05220182049 | N56: 0 | O56: =SUM(I56:K56) -> 1 | P56: -2.775557562e-17 | R56: (O&M + Taxes) / 365 | T56: =((I1048+I1236+I1412+I1445)/365) -> 3104274.23 | U56: 531771.0379 | V56: 717425.2226 | W56: 569018.5482 | X56: 160694.6415 | Y56: -12287.96712 | AN56: 0.4795353426 | AO56: 0.166521788 | AP56: 0.3539428695 | AQ56: 0.301741049 | AR56: 0.05220182049 | AS56: 0 | AT56: =Report!P244 -> 5024398.55
E57: SCHMD | F57: Schedule M Deductions | I57: 0.588862778 | J57: 0.1828931507 | K57: 0.2282440713 | L57: 0.2068982353 | M57: 0.005299510458 | N57: 0.01604632562 | O57: 1 | P57: 0 | R57: Net LAG Days | T57: =IF(Variables!$AO$3=12,Variables!$J20,IF(Variables!$Y23=2,CHOOSE(Variables!$AO3,Variables!$F20,Variables!$G20,Variables!$H20,Variables!$I20,Variables!$J20,Variables!$K20,Variables!$L20,Variables!$M20,Variables!$N20),Variables!$O20)) -> 7.718740438 | U57: =IF(Variables!$AO$3=12,Variables!$J20,IF(Variables!$Y23=2,CHOOSE(Variables!$AO3,Variables!$F20,Variables!$G20,Variables!$H20,Variables!$I20,Variables!$J20,Variables!$K20,Variables!$L20,Variables!$M20,Variables!$N20),Variables!$O20)) -> 7.718740438 | V57: =IF(Variables!$AO$3=12,Variables!$J20,IF(Variables!$Y23=2,CHOOSE(Variables!$AO3,Variables!$F20,Variables!$G20,Variables!$H20,Variables!$I20,Variables!$J20,Variables!$K20,Variables!$L20,Variables!$M20,Variables!$N20),Variables!$O20)) -> 7.718740438 | W57: =IF(Variables!$AO$3=12,Variables!$J20,IF(Variables!$Y23=2,CHOOSE(Variables!$AO3,Variables!$F20,Variables!$G20,Variables!$H20,Variables!$I20,Variables!$J20,Variables!$K20,Variables!$L20,Variables!$M20,Variables!$N20),Variables!$O20)) -> 7.718740438 | X57: =IF(Variables!$AO$3=12,Variables!$J20,IF(Variables!$Y23=2,CHOOSE(Variables!$AO3,Variables!$F20,Variables!$G20,Variables!$H20,Variables!$I20,Variables!$J20,Variables!$K20,Variables!$L20,Variables!$M20,Variables!$N20),Variables!$O20)) -> 7.718740438 | Y57: =IF(Variables!$AO$3=12,Variables!$J20,IF(Variables!$Y23=2,CHOOSE(Variables!$AO3,Variables!$F20,Variables!$G20,Variables!$H20,Variables!$I20,Variables!$J20,Variables!$K20,Variables!$L20,Variables!$M20,Variables!$N20),Variables!$O20)) -> 7.718740438 | AN57: 0.588862778 | AO57: 0.1828931507 | AP57: 0.2282440713 | AQ57: 0.2068982353 | AR57: 0.005299510458 | AS57: 0.01604632562 | AT57: =Report!P245 -> 0
E58: SCHMDF | F58: Schedule M Deductions - Flow Through | I58: 1 | J58: 0 | K58: 0 | L58: 0 | M58: 0 | N58: 0 | O58: 1 | P58: 0 | R58: CWC | S58: =SUM(T58:V58) -> 33603308.72 | T58: =T56*T57 -> 23961087.03 | U58: 4104602.614 | V58: 5537619.077 | W58: 4392106.478 | X58: 1240360.227 | Y58: -94847.62868 | AN58: 1 | AO58: 0 | AP58: 0 | AQ58: 0 | AR58: 0 | AS58: 0 | AT58: =Report!P246 -> 5024398.55
E59: SCHMDP | F59: Schedule M Deductions - Permanent | I59: 0.443506747 | J59: 0.06924130981 | K59: 0.4872519432 | L59: 0.3446432613 | M59: 0.1426086819 | N59: 0 | O59: 1 | P59: 0 | AN59: 0.443506747 | AO59: 0.06924130981 | AP59: 0.4872519432 | AQ59: 0.3446432613 | AR59: 0.1426086819 | AS59: 0 | AT59: =Report!P247 -> 0
E60: SCHMDP-SO | F60: Schedule M Deductions - Permanent- SO | I60: 0.4271290455 | J60: 0.06855059318 | K60: 0.5043203613 | L60: 0.3553382213 | M60: 0.14898214 | N60: 0 | O60: 1 | P60: 5.551115123e-17 | AN60: 0.4271290455 | AO60: 0.06855059318 | AP60: 0.5043203613 | AQ60: 0.3553382213 | AR60: 0.14898214 | AS60: 0 | AT60: =Report!P248 -> 0
E61: SCHMDT | F61: Schedule M Deductions - Temporary | I61: 0.5898361662 | J61: 0.1836542292 | K61: 0.2265096046 | L61: 0.2059758148 | M61: 0.004380008739 | N61: 0.0161537811 | O61: 1 | P61: 0 | R61: ACCUMDIT | S61: =Variables!AE27 -> 2020 PROTOCOL | T61: =IF(Variables!$AD$24=2,Function!V98,Function!AG98) ->  | U61: =IF(Variables!$AD$24=2,Function!W98,Function!AH98) ->  | V61: =IF(Variables!$AD$24=2,Function!X98,Function!AI98) ->  | W61: =IF(Variables!$AD$24=2,Function!Y98,Function!AJ98) ->  | X61: =IF(Variables!$AD$24=2,Function!Z98,Function!AK98) ->  | Y61: =IF(Variables!$AD$24=2,Function!AA98,Function!AL98) ->  | AN61: 0.5898361662 | AO61: 0.1836542292 | AP61: 0.2265096046 | AQ61: 0.2059758148 | AR61: 0.004380008739 | AS61: 0.0161537811 | AT61: =Report!P249 -> 7445970.84
E62: SCHMDT-GPS | F62: Schedule M Deductions - Temporary-GPS | I62: 0.5079072977 | J62: 0.2191078108 | K62: 0.2729848916 | L62: 0.2725340031 | M62: 0.0004508884824 | N62: 0 | O62: 1 | P62: 2.32561366e-17 | R62: DITEXP | S62: =Variables!AE27 -> 2020 PROTOCOL | T62: =IF(Variables!$AD$24=2,Function!V133,Function!AG133) ->  | U62: =IF(Variables!$AD$24=2,Function!W133,Function!AH133) ->  | V62: =IF(Variables!$AD$24=2,Function!X133,Function!AI133) ->  | W62: =IF(Variables!$AD$24=2,Function!Y133,Function!AJ133) ->  | X62: =IF(Variables!$AD$24=2,Function!Z133,Function!AK133) ->  | Y62: =IF(Variables!$AD$24=2,Function!AA133,Function!AL133) ->  | AN62: 0.5079072977 | AO62: 0.2191078108 | AP62: 0.2729848916 | AQ62: =+L62 -> 0.2725340031 | AR62: 0.0004508884824 | AS62: 0 | AT62: =Report!P250 -> 0
E63: SCHMDT-SG | F63: Schedule M Deductions - Temporary-SG | I63: 1 | J63: 0 | K63: 0 | L63: 0 | M63: 0 | N63: 0 | O63: 1 | P63: 0 | AN63: =+I63 -> 1 | AO63: 0 | AP63: 0 | AQ63: 0 | AR63: 0 | AS63: 0 | AT63: =Report!P251 -> 30132.90632
E64: SCHMDT-SITUS | F64: Schedule M Deductions - Temporary-SITUS | I64: 0.8344666423 | J64: 0.01183861175 | K64: 0.1536947459 | L64: 0.06331607949 | M64: 0.02943826634 | N64: 0.06094040008 | O64: 1 | P64: 0 | AN64: 0.8344666423 | AO64: 0.01183861175 | AP64: 0.1536947459 | AQ64: 0.06331607949 | AR64: 0.02943826634 | AS64: 0.06094040008 | AT64: =Report!P252 -> 7476103.746
E65: SCHMDT-SNP | F65: Schedule M Deductions - Temporary-SNP | I65: 0.5078024957 | J65: 0.2193659483 | K65: 0.272831556 | L65: 0.272831556 | M65: 0 | N65: 0 | O65: 1 | P65: 0 | R65: DITBALRL | AC65: DITBALMA | AN65: 0.5078024957 | AO65: 0.2193659483 | AP65: 0.272831556 | AQ65: 0.272831556 | AR65: 0 | AS65: 0 | AT65: =Report!P253 -> 0
E66: SCHMDT-SO | F66: Schedule M Deductions - Temporary-SO | I66: 0.4477732506 | J66: 0.1816132325 | K66: 0.3706135169 | L66: 0.365968925 | M66: 0.004644591842 | N66: 0 | O66: 1 | P66: -2.341876693e-17 | R66: Pacific Division | T66: Total | U66: =Variables!X24 -> UTAH | V66: Production | W66: Transmission | X66: Distribution | Y66: DPW | Z66: CUST | AA66: DMSC | AC66: Pacific Division | AE66: Total | AF66: =Variables!X24 -> UTAH | AG66: Production | AH66: Transmission | AI66: Distribution | AJ66: DPW | AK66: CUST | AL66: DMSC | AN66: =+I66 -> 0.4477732506 | AO66: 0.1816132325 | AP66: 0.3706135169 | AQ66: 0.365968925 | AR66: 0.004644591842 | AS66: 0 | AT66: =Report!P254 -> 0
E67: SIT | F67: State Income Tax | I67: =+I1412/$H$1412 -> 0.8258626008 | J67: =+J1412/$H$1412 -> 0.1356471442 | K67: 0.03849025504 | L67: =+L1412/$H$1412 -> 0.03714202329 | M67: =+M1412/$H$1412 -> -0.0460695752 | N67: =+N1412/$H$1412 -> 0.04741780695 | O67: 1 | P67: 0 | R67: Pacific Division | AC67: Pacific Division | AN67: 0.8258626008 | AO67: 0.1356471442 | AP67: 0.03849025504 | AQ67: 0.03714202329 | AR67: -0.0460695752 | AS67: 0.04741780695 | AT67: =Report!P255 -> 2655.429346
E68: T | F68: Transmission | I68: 0 | J68: 1 | K68: 0 | L68: 0 | M68: 0 | N68: 0 | O68: 1 | P68: =K68-L68-M68-N68 -> 0 | R68: Production | S68: P | T68: =Factors!#REF! ->  | U68: =IF(Variables!$AO$3=12,Factors!#REF!+Factors!#REF!,CHOOSE(Variables!AO$3,Factors!#REF!,Factors!#REF!,Factors!#REF!,Factors!#REF!,Factors!#REF!,Factors!#REF!,Factors!#REF!,Factors!#REF!,Factors!#REF!,Factors!#REF!,Factors!#REF!)) ->  | V68: =VLOOKUP($S68,$E$4:$O$71,5,FALSE)*IF(Variables!$Y$23=1,$T68,$U68) ->  | W68: =VLOOKUP($S68,$E$4:$O$71,6,FALSE)*IF(Variables!$Y$23=1,$T68,$U68) ->  | X68: =VLOOKUP($S68,$E$4:$O$71,7,FALSE)*IF(Variables!$Y$23=1,$T68,$U68) ->  | Y68: =VLOOKUP($S68,$E$4:$O$71,8,FALSE)*IF(Variables!$Y$23=1,$T68,$U68) ->  | Z68: =VLOOKUP($S68,$E$4:$O$71,9,FALSE)*IF(Variables!$Y$23=1,$T68,$U68) ->  | AA68: =VLOOKUP($S68,$E$4:$O$71,10,FALSE)*IF(Variables!$Y$23=1,$T68,$U68) ->  | AC68: Production | AD68: P | AE68: =T68 ->  | AG68: =VLOOKUP($AD68,$E$4:$O$71,5,FALSE)*IF(Variables!$Y$23=1,$AE68,$AF68) ->  | AH68: =VLOOKUP($AD68,$E$4:$O$71,6,FALSE)*IF(Variables!$Y$23=1,$AE68,$AF68) ->  | AI68: =VLOOKUP($AD68,$E$4:$O$71,7,FALSE)*IF(Variables!$Y$23=1,$AE68,$AF68) ->  | AJ68: =VLOOKUP($AD68,$E$4:$O$71,8,FALSE)*IF(Variables!$Y$23=1,$AE68,$AF68) ->  | AK68: =VLOOKUP($AD68,$E$4:$O$71,9,FALSE)*IF(Variables!$Y$23=1,$AE68,$AF68) ->  | AL68: =VLOOKUP($AD68,$E$4:$O$71,10,FALSE)*IF(Variables!$Y$23=1,$AE68,$AF68) ->  | AN68: 0 | AO68: 1 | AP68: 0 | AQ68: 0 | AR68: 0 | AS68: 0 | AT68: =Report!P256 -> 2655.429346
E69: TAXDEPR | F69: Tax Depreciation | I69: 0.5835074932 | J69: 0.19492994 | K69: =L69+M69+N69 -> 0.2215625668 | L69: 0.2170587656 | M69: 0.00450380126 | N69: 0 | O69: =SUM(I69:K69) -> 1 | P69: =K69-L69-M69-N69 -> 1.127570259e-17 | R69: Transmission | S69: T | T69: =Factors!#REF! ->  | U69: =IF(Variables!$AO$3=12,Factors!#REF!+Factors!#REF!,CHOOSE(Variables!AO$3,Factors!#REF!,Factors!#REF!,Factors!#REF!,Factors!#REF!,Factors!#REF!,Factors!#REF!,Factors!#REF!,Factors!#REF!,Factors!#REF!,Factors!#REF!,Factors!#REF!)) ->  | V69: =VLOOKUP($S69,$E$4:$O$71,5,FALSE)*IF(Variables!$Y$23=1,$T69,$U69) ->  | W69: =VLOOKUP($S69,$E$4:$O$71,6,FALSE)*IF(Variables!$Y$23=1,$T69,$U69) ->  | X69: =VLOOKUP($S69,$E$4:$O$71,7,FALSE)*IF(Variables!$Y$23=1,$T69,$U69) ->  | Y69: =VLOOKUP($S69,$E$4:$O$71,8,FALSE)*IF(Variables!$Y$23=1,$T69,$U69) ->  | Z69: =VLOOKUP($S69,$E$4:$O$71,9,FALSE)*IF(Variables!$Y$23=1,$T69,$U69) ->  | AA69: =VLOOKUP($S69,$E$4:$O$71,10,FALSE)*IF(Variables!$Y$23=1,$T69,$U69) ->  | AC69: Transmission | AD69: T | AG69: =VLOOKUP($AD69,$E$4:$O$71,5,FALSE)*IF(Variables!$Y$23=1,$AE69,$AF69) ->  | AH69: =VLOOKUP($AD69,$E$4:$O$71,6,FALSE)*IF(Variables!$Y$23=1,$AE69,$AF69) ->  | AI69: =VLOOKUP($AD69,$E$4:$O$71,7,FALSE)*IF(Variables!$Y$23=1,$AE69,$AF69) ->  | AJ69: =VLOOKUP($AD69,$E$4:$O$71,8,FALSE)*IF(Variables!$Y$23=1,$AE69,$AF69) ->  | AK69: =VLOOKUP($AD69,$E$4:$O$71,9,FALSE)*IF(Variables!$Y$23=1,$AE69,$AF69) ->  | AL69: =VLOOKUP($AD69,$E$4:$O$71,10,FALSE)*IF(Variables!$Y$23=1,$AE69,$AF69) ->  | AN69: 0.5835074932 | AO69: 0.19492994 | AP69: 0.2215625668 | AQ69: 0.2170587656 | AR69: 0.00450380126 | AS69: 0 | AT69: =Report!P257 -> 0
E70: TD | F70: Transmission / Distribution | I70: 0 | J70: 0.4456868359 | K70: =SUM(L70:N70) -> 0.5543131641 | L70: 0.5543131641 | M70: 0 | N70: 0 | O70: =SUM(I70:K70) -> 1 | P70: =K69-L69-M69-N69 -> 1.127570259e-17 | R70: Distribution | S70: DPW | T70: =Factors!#REF! ->  | U70: =IF(Variables!$AO$3=12,Factors!#REF!+Factors!#REF!,CHOOSE(Variables!AO$3,Factors!#REF!,Factors!#REF!,Factors!#REF!,Factors!#REF!,Factors!#REF!,Factors!#REF!,Factors!#REF!,Factors!#REF!,Factors!#REF!,Factors!#REF!,Factors!#REF!)) ->  | V70: =VLOOKUP($S70,$E$4:$O$71,5,FALSE)*IF(Variables!$Y$23=1,$T70,$U70) ->  | W70: =VLOOKUP($S70,$E$4:$O$71,6,FALSE)*IF(Variables!$Y$23=1,$T70,$U70) ->  | X70: =VLOOKUP($S70,$E$4:$O$71,7,FALSE)*IF(Variables!$Y$23=1,$T70,$U70) ->  | Y70: =VLOOKUP($S70,$E$4:$O$71,8,FALSE)*IF(Variables!$Y$23=1,$T70,$U70) ->  | Z70: =VLOOKUP($S70,$E$4:$O$71,9,FALSE)*IF(Variables!$Y$23=1,$T70,$U70) ->  | AA70: =VLOOKUP($S70,$E$4:$O$71,10,FALSE)*IF(Variables!$Y$23=1,$T70,$U70) ->  | AC70: Distribution | AD70: DPW | AG70: =VLOOKUP($AD70,$E$4:$O$71,5,FALSE)*IF(Variables!$Y$23=1,$AE70,$AF70) ->  | AH70: =VLOOKUP($AD70,$E$4:$O$71,6,FALSE)*IF(Variables!$Y$23=1,$AE70,$AF70) ->  | AI70: =VLOOKUP($AD70,$E$4:$O$71,7,FALSE)*IF(Variables!$Y$23=1,$AE70,$AF70) ->  | AJ70: =VLOOKUP($AD70,$E$4:$O$71,8,FALSE)*IF(Variables!$Y$23=1,$AE70,$AF70) ->  | AK70: =VLOOKUP($AD70,$E$4:$O$71,9,FALSE)*IF(Variables!$Y$23=1,$AE70,$AF70) ->  | AL70: =VLOOKUP($AD70,$E$4:$O$71,10,FALSE)*IF(Variables!$Y$23=1,$AE70,$AF70) ->  | AN70: 0 | AO70: 0.4456868359 | AP70: 0.5543131641 | AQ70: 0.5543131641 | AR70: 0 | AS70: 0 | AT70: =Report!P258 -> 0
P71: =K70-L70-M70-N70 -> 0 | R71: General | S71: G | T71: =Factors!#REF! ->  | U71: =IF(Variables!$AO$3=12,Factors!#REF!+Factors!#REF!,CHOOSE(Variables!AO$3,Factors!#REF!,Factors!#REF!,Factors!#REF!,Factors!#REF!,Factors!#REF!,Factors!#REF!,Factors!#REF!,Factors!#REF!,Factors!#REF!,Factors!#REF!,Factors!#REF!)) ->  | V71: =VLOOKUP($S71,$E$4:$O$71,5,FALSE)*IF(Variables!$Y$23=1,$T71,$U71) ->  | W71: =VLOOKUP($S71,$E$4:$O$71,6,FALSE)*IF(Variables!$Y$23=1,$T71,$U71) ->  | X71: =VLOOKUP($S71,$E$4:$O$71,7,FALSE)*IF(Variables!$Y$23=1,$T71,$U71) ->  | Y71: =VLOOKUP($S71,$E$4:$O$71,8,FALSE)*IF(Variables!$Y$23=1,$T71,$U71) ->  | Z71: =VLOOKUP($S71,$E$4:$O$71,9,FALSE)*IF(Variables!$Y$23=1,$T71,$U71) ->  | AA71: =VLOOKUP($S71,$E$4:$O$71,10,FALSE)*IF(Variables!$Y$23=1,$T71,$U71) ->  | AC71: General | AD71: G | AG71: =VLOOKUP($AD71,$E$4:$O$71,5,FALSE)*IF(Variables!$Y$23=1,$AE71,$AF71) ->  | AH71: =VLOOKUP($AD71,$E$4:$O$71,6,FALSE)*IF(Variables!$Y$23=1,$AE71,$AF71) ->  | AI71: =VLOOKUP($AD71,$E$4:$O$71,7,FALSE)*IF(Variables!$Y$23=1,$AE71,$AF71) ->  | AJ71: =VLOOKUP($AD71,$E$4:$O$71,8,FALSE)*IF(Variables!$Y$23=1,$AE71,$AF71) ->  | AK71: =VLOOKUP($AD71,$E$4:$O$71,9,FALSE)*IF(Variables!$Y$23=1,$AE71,$AF71) ->  | AL71: =VLOOKUP($AD71,$E$4:$O$71,10,FALSE)*IF(Variables!$Y$23=1,$AE71,$AF71) ->  | AN71: 0 | AO71: 0 | AP71: 0 | AQ71: 0 | AR71: 0 | AS71: 0 | AT71: =Report!P259 -> 4563708.61
P72: =K71-L71-M71-N71 -> 0 | R72: Mining Plant | S72: P | T72: =Factors!#REF! ->  | U72: =IF(Variables!$AO$3=12,Factors!#REF!+Factors!#REF!,CHOOSE(Variables!AO$3,Factors!#REF!,Factors!#REF!,Factors!#REF!,Factors!#REF!,Factors!#REF!,Factors!#REF!,Factors!#REF!,Factors!#REF!,Factors!#REF!,Factors!#REF!,Factors!#REF!)) ->  | V72: =VLOOKUP($S72,$E$4:$O$71,5,FALSE)*IF(Variables!$Y$23=1,$T72,$U72) ->  | W72: =VLOOKUP($S72,$E$4:$O$71,6,FALSE)*IF(Variables!$Y$23=1,$T72,$U72) ->  | X72: =VLOOKUP($S72,$E$4:$O$71,7,FALSE)*IF(Variables!$Y$23=1,$T72,$U72) ->  | Y72: =VLOOKUP($S72,$E$4:$O$71,8,FALSE)*IF(Variables!$Y$23=1,$T72,$U72) ->  | Z72: =VLOOKUP($S72,$E$4:$O$71,9,FALSE)*IF(Variables!$Y$23=1,$T72,$U72) ->  | AA72: =VLOOKUP($S72,$E$4:$O$71,10,FALSE)*IF(Variables!$Y$23=1,$T72,$U72) ->  | AC72: Mining Plant | AD72: P | AG72: =VLOOKUP($AD72,$E$4:$O$71,5,FALSE)*IF(Variables!$Y$23=1,$AE72,$AF72) ->  | AH72: =VLOOKUP($AD72,$E$4:$O$71,6,FALSE)*IF(Variables!$Y$23=1,$AE72,$AF72) ->  | AI72: =VLOOKUP($AD72,$E$4:$O$71,7,FALSE)*IF(Variables!$Y$23=1,$AE72,$AF72) ->  | AJ72: =VLOOKUP($AD72,$E$4:$O$71,8,FALSE)*IF(Variables!$Y$23=1,$AE72,$AF72) ->  | AK72: =VLOOKUP($AD72,$E$4:$O$71,9,FALSE)*IF(Variables!$Y$23=1,$AE72,$AF72) ->  | AL72: =VLOOKUP($AD72,$E$4:$O$71,10,FALSE)*IF(Variables!$Y$23=1,$AE72,$AF72) ->  | AT72: =Report!P260 -> 999774.3381
AT73: =Report!P262 -> 1653878.875
R74: Total Pacific Division | T74: =SUM(T68:T73) ->  | AC74: Total Pacific Division | AE74: =SUM(AE68:AE73) ->  | AT74: =Report!P263 -> 7217361.823
AT75: =Report!P264 -> 0
R76: Utah Division | AC76: Utah Division | AT76: =Report!P265 -> 0
R77: Production | S77: P | T77: =Factors!#REF! ->  | U77: =IF(Variables!$AO$3=12,Factors!#REF!+Factors!#REF!,CHOOSE(Variables!AO$3,Factors!#REF!,Factors!#REF!,Factors!#REF!,Factors!#REF!,Factors!#REF!,Factors!#REF!,Factors!#REF!,Factors!#REF!,Factors!#REF!,Factors!#REF!,Factors!#REF!)) ->  | V77: =VLOOKUP($S77,$E$4:$O$71,5,FALSE)*IF(Variables!$Y$23=1,$T77,$U77) ->  | W77: =VLOOKUP($S77,$E$4:$O$71,6,FALSE)*IF(Variables!$Y$23=1,$T77,$U77) ->  | X77: =VLOOKUP($S77,$E$4:$O$71,7,FALSE)*IF(Variables!$Y$23=1,$T77,$U77) ->  | Y77: =VLOOKUP($S77,$E$4:$O$71,8,FALSE)*IF(Variables!$Y$23=1,$T77,$U77) ->  | Z77: =VLOOKUP($S77,$E$4:$O$71,9,FALSE)*IF(Variables!$Y$23=1,$T77,$U77) ->  | AA77: =VLOOKUP($S77,$E$4:$O$71,10,FALSE)*IF(Variables!$Y$23=1,$T77,$U77) ->  | AC77: Production | AD77: P | AE77: =T77 ->  | AG77: =VLOOKUP($AD77,$E$4:$O$71,5,FALSE)*IF(Variables!$Y$23=1,$AE77,$AF77) ->  | AH77: =VLOOKUP($AD77,$E$4:$O$71,6,FALSE)*IF(Variables!$Y$23=1,$AE77,$AF77) ->  | AI77: =VLOOKUP($AD77,$E$4:$O$71,7,FALSE)*IF(Variables!$Y$23=1,$AE77,$AF77) ->  | AJ77: =VLOOKUP($AD77,$E$4:$O$71,8,FALSE)*IF(Variables!$Y$23=1,$AE77,$AF77) ->  | AK77: =VLOOKUP($AD77,$E$4:$O$71,9,FALSE)*IF(Variables!$Y$23=1,$AE77,$AF77) ->  | AL77: =VLOOKUP($AD77,$E$4:$O$71,10,FALSE)*IF(Variables!$Y$23=1,$AE77,$AF77) ->  | AT77: =Report!P266 -> 0
R78: Transmission | S78: T | T78: =Factors!#REF! ->  | U78: =IF(Variables!$AO$3=12,Factors!#REF!+Factors!#REF!,CHOOSE(Variables!AO$3,Factors!#REF!,Factors!#REF!,Factors!#REF!,Factors!#REF!,Factors!#REF!,Factors!#REF!,Factors!#REF!,Factors!#REF!,Factors!#REF!,Factors!#REF!,Factors!#REF!)) ->  | V78: =VLOOKUP($S78,$E$4:$O$71,5,FALSE)*IF(Variables!$Y$23=1,$T78,$U78) ->  | W78: =VLOOKUP($S78,$E$4:$O$71,6,FALSE)*IF(Variables!$Y$23=1,$T78,$U78) ->  | X78: =VLOOKUP($S78,$E$4:$O$71,7,FALSE)*IF(Variables!$Y$23=1,$T78,$U78) ->  | Y78: =VLOOKUP($S78,$E$4:$O$71,8,FALSE)*IF(Variables!$Y$23=1,$T78,$U78) ->  | Z78: =VLOOKUP($S78,$E$4:$O$71,9,FALSE)*IF(Variables!$Y$23=1,$T78,$U78) ->  | AA78: =VLOOKUP($S78,$E$4:$O$71,10,FALSE)*IF(Variables!$Y$23=1,$T78,$U78) ->  | AC78: Transmission | AD78: T | AG78: =VLOOKUP($AD78,$E$4:$O$71,5,FALSE)*IF(Variables!$Y$23=1,$AE78,$AF78) ->  | AH78: =VLOOKUP($AD78,$E$4:$O$71,6,FALSE)*IF(Variables!$Y$23=1,$AE78,$AF78) ->  | AI78: =VLOOKUP($AD78,$E$4:$O$71,7,FALSE)*IF(Variables!$Y$23=1,$AE78,$AF78) ->  | AJ78: =VLOOKUP($AD78,$E$4:$O$71,8,FALSE)*IF(Variables!$Y$23=1,$AE78,$AF78) ->  | AK78: =VLOOKUP($AD78,$E$4:$O$71,9,FALSE)*IF(Variables!$Y$23=1,$AE78,$AF78) ->  | AL78: =VLOOKUP($AD78,$E$4:$O$71,10,FALSE)*IF(Variables!$Y$23=1,$AE78,$AF78) ->  | AN78: JAM Factors | AT78: =Report!P267 -> 0
R79: Distribution | S79: DPW | T79: =Factors!#REF! ->  | U79: =IF(Variables!$AO$3=12,Factors!#REF!+Factors!#REF!,CHOOSE(Variables!AO$3,Factors!#REF!,Factors!#REF!,Factors!#REF!,Factors!#REF!,Factors!#REF!,Factors!#REF!,Factors!#REF!,Factors!#REF!,Factors!#REF!,Factors!#REF!,Factors!#REF!)) ->  | V79: =VLOOKUP($S79,$E$4:$O$71,5,FALSE)*IF(Variables!$Y$23=1,$T79,$U79) ->  | W79: =VLOOKUP($S79,$E$4:$O$71,6,FALSE)*IF(Variables!$Y$23=1,$T79,$U79) ->  | X79: =VLOOKUP($S79,$E$4:$O$71,7,FALSE)*IF(Variables!$Y$23=1,$T79,$U79) ->  | Y79: =VLOOKUP($S79,$E$4:$O$71,8,FALSE)*IF(Variables!$Y$23=1,$T79,$U79) ->  | Z79: =VLOOKUP($S79,$E$4:$O$71,9,FALSE)*IF(Variables!$Y$23=1,$T79,$U79) ->  | AA79: =VLOOKUP($S79,$E$4:$O$71,10,FALSE)*IF(Variables!$Y$23=1,$T79,$U79) ->  | AC79: Distribution | AD79: DPW | AG79: =VLOOKUP($AD79,$E$4:$O$71,5,FALSE)*IF(Variables!$Y$23=1,$AE79,$AF79) ->  | AH79: =VLOOKUP($AD79,$E$4:$O$71,6,FALSE)*IF(Variables!$Y$23=1,$AE79,$AF79) ->  | AI79: =VLOOKUP($AD79,$E$4:$O$71,7,FALSE)*IF(Variables!$Y$23=1,$AE79,$AF79) ->  | AJ79: =VLOOKUP($AD79,$E$4:$O$71,8,FALSE)*IF(Variables!$Y$23=1,$AE79,$AF79) ->  | AK79: =VLOOKUP($AD79,$E$4:$O$71,9,FALSE)*IF(Variables!$Y$23=1,$AE79,$AF79) ->  | AL79: =VLOOKUP($AD79,$E$4:$O$71,10,FALSE)*IF(Variables!$Y$23=1,$AE79,$AF79) ->  | AN79: SG | AO79: =+Factors!H4 -> 0.4504545116 | AT79: =Report!P268 -> -584009.4762
R80: General | S80: G | T80: =Factors!#REF! ->  | U80: =IF(Variables!$AO$3=12,Factors!#REF!+Factors!#REF!,CHOOSE(Variables!AO$3,Factors!#REF!,Factors!#REF!,Factors!#REF!,Factors!#REF!,Factors!#REF!,Factors!#REF!,Factors!#REF!,Factors!#REF!,Factors!#REF!,Factors!#REF!,Factors!#REF!)) ->  | V80: =VLOOKUP($S80,$E$4:$O$71,5,FALSE)*IF(Variables!$Y$23=1,$T80,$U80) ->  | W80: =VLOOKUP($S80,$E$4:$O$71,6,FALSE)*IF(Variables!$Y$23=1,$T80,$U80) ->  | X80: =VLOOKUP($S80,$E$4:$O$71,7,FALSE)*IF(Variables!$Y$23=1,$T80,$U80) ->  | Y80: =VLOOKUP($S80,$E$4:$O$71,8,FALSE)*IF(Variables!$Y$23=1,$T80,$U80) ->  | Z80: =VLOOKUP($S80,$E$4:$O$71,9,FALSE)*IF(Variables!$Y$23=1,$T80,$U80) ->  | AA80: =VLOOKUP($S80,$E$4:$O$71,10,FALSE)*IF(Variables!$Y$23=1,$T80,$U80) ->  | AC80: General | AD80: G | AG80: =VLOOKUP($AD80,$E$4:$O$71,5,FALSE)*IF(Variables!$Y$23=1,$AE80,$AF80) ->  | AH80: =VLOOKUP($AD80,$E$4:$O$71,6,FALSE)*IF(Variables!$Y$23=1,$AE80,$AF80) ->  | AI80: =VLOOKUP($AD80,$E$4:$O$71,7,FALSE)*IF(Variables!$Y$23=1,$AE80,$AF80) ->  | AJ80: =VLOOKUP($AD80,$E$4:$O$71,8,FALSE)*IF(Variables!$Y$23=1,$AE80,$AF80) ->  | AK80: =VLOOKUP($AD80,$E$4:$O$71,9,FALSE)*IF(Variables!$Y$23=1,$AE80,$AF80) ->  | AL80: =VLOOKUP($AD80,$E$4:$O$71,10,FALSE)*IF(Variables!$Y$23=1,$AE80,$AF80) ->  | AN80: SE | AO80: =+Factors!H10 -> 0.4494561056 | AT80: =Report!P269 -> 0
R81: Mining Plant | S81: P | T81: =Factors!#REF! ->  | U81: =IF(Variables!$AO$3=12,Factors!#REF!+Factors!#REF!,CHOOSE(Variables!AO$3,Factors!#REF!,Factors!#REF!,Factors!#REF!,Factors!#REF!,Factors!#REF!,Factors!#REF!,Factors!#REF!,Factors!#REF!,Factors!#REF!,Factors!#REF!,Factors!#REF!)) ->  | V81: =VLOOKUP($S81,$E$4:$O$71,5,FALSE)*IF(Variables!$Y$23=1,$T81,$U81) ->  | W81: =VLOOKUP($S81,$E$4:$O$71,6,FALSE)*IF(Variables!$Y$23=1,$T81,$U81) ->  | X81: =VLOOKUP($S81,$E$4:$O$71,7,FALSE)*IF(Variables!$Y$23=1,$T81,$U81) ->  | Y81: =VLOOKUP($S81,$E$4:$O$71,8,FALSE)*IF(Variables!$Y$23=1,$T81,$U81) ->  | Z81: =VLOOKUP($S81,$E$4:$O$71,9,FALSE)*IF(Variables!$Y$23=1,$T81,$U81) ->  | AA81: =VLOOKUP($S81,$E$4:$O$71,10,FALSE)*IF(Variables!$Y$23=1,$T81,$U81) ->  | AC81: Mining Plant | AD81: P | AG81: =VLOOKUP($AD81,$E$4:$O$71,5,FALSE)*IF(Variables!$Y$23=1,$AE81,$AF81) ->  | AH81: =VLOOKUP($AD81,$E$4:$O$71,6,FALSE)*IF(Variables!$Y$23=1,$AE81,$AF81) ->  | AI81: =VLOOKUP($AD81,$E$4:$O$71,7,FALSE)*IF(Variables!$Y$23=1,$AE81,$AF81) ->  | AJ81: =VLOOKUP($AD81,$E$4:$O$71,8,FALSE)*IF(Variables!$Y$23=1,$AE81,$AF81) ->  | AK81: =VLOOKUP($AD81,$E$4:$O$71,9,FALSE)*IF(Variables!$Y$23=1,$AE81,$AF81) ->  | AL81: =VLOOKUP($AD81,$E$4:$O$71,10,FALSE)*IF(Variables!$Y$23=1,$AE81,$AF81) ->  | AN81: SSGC | AO81: =+Factors!H31 -> 0 | AT81: =Report!P270 -> 12332521.4
AN82: SSECH | AO82: =+Factors!H27 -> 0 | AT82: =Report!P271 -> 6485.666171
R83: Total Utah Division | T83: =SUM(T77:T82) ->  | AC83: Total Utah Division | AE83: =SUM(AE77:AE82) ->  | AN83: SSECT | AO83: =+Factors!H25 -> 0 | AT83: =Report!P272 -> 94677817.26
AT84: =Report!P273 -> 0
R85: PACIFICORP | AC85: PACIFICORP | AT85: =Report!P274 -> 0
R86: Production | S86: P | T86: =Factors!#REF! ->  | U86: =IF(Variables!$AO$3=12,Factors!#REF!+Factors!#REF!,CHOOSE(Variables!AO$3,Factors!#REF!,Factors!#REF!,Factors!#REF!,Factors!#REF!,Factors!#REF!,Factors!#REF!,Factors!#REF!,Factors!#REF!,Factors!#REF!,Factors!#REF!,Factors!#REF!)) ->  | V86: =VLOOKUP($S86,$E$4:$O$71,5,FALSE)*IF(Variables!$Y$23=1,$T86,$U86) ->  | W86: =VLOOKUP($S86,$E$4:$O$71,6,FALSE)*IF(Variables!$Y$23=1,$T86,$U86) ->  | X86: =VLOOKUP($S86,$E$4:$O$71,7,FALSE)*IF(Variables!$Y$23=1,$T86,$U86) ->  | Y86: =VLOOKUP($S86,$E$4:$O$71,8,FALSE)*IF(Variables!$Y$23=1,$T86,$U86) ->  | Z86: =VLOOKUP($S86,$E$4:$O$71,9,FALSE)*IF(Variables!$Y$23=1,$T86,$U86) ->  | AA86: =VLOOKUP($S86,$E$4:$O$71,10,FALSE)*IF(Variables!$Y$23=1,$T86,$U86) ->  | AC86: Production | AD86: P | AE86: =T86 ->  | AF86: =U86 ->  | AG86: =VLOOKUP($AD86,$E$4:$O$71,5,FALSE)*IF(Variables!$Y$23=1,$AE86,$AF86) ->  | AH86: =VLOOKUP($AD86,$E$4:$O$71,6,FALSE)*IF(Variables!$Y$23=1,$AE86,$AF86) ->  | AI86: =VLOOKUP($AD86,$E$4:$O$71,7,FALSE)*IF(Variables!$Y$23=1,$AE86,$AF86) ->  | AJ86: =VLOOKUP($AD86,$E$4:$O$71,8,FALSE)*IF(Variables!$Y$23=1,$AE86,$AF86) ->  | AK86: =VLOOKUP($AD86,$E$4:$O$71,9,FALSE)*IF(Variables!$Y$23=1,$AE86,$AF86) ->  | AL86: =VLOOKUP($AD86,$E$4:$O$71,10,FALSE)*IF(Variables!$Y$23=1,$AE86,$AF86) ->  | AT86: =Report!P275 -> 106432814.9
R87: Hydro - P | S87: P | T87: =Factors!#REF! ->  | U87: =IF(Variables!$AO$3=12,Factors!#REF!+Factors!#REF!,CHOOSE(Variables!AO$3,Factors!#REF!,Factors!#REF!,Factors!#REF!,Factors!#REF!,Factors!#REF!,Factors!#REF!,Factors!#REF!,Factors!#REF!,Factors!#REF!,Factors!#REF!,Factors!#REF!)) ->  | V87: =VLOOKUP($S87,$E$4:$O$71,5,FALSE)*IF(Variables!$Y$23=1,$T87,$U87) ->  | W87: =VLOOKUP($S87,$E$4:$O$71,6,FALSE)*IF(Variables!$Y$23=1,$T87,$U87) ->  | X87: =VLOOKUP($S87,$E$4:$O$71,7,FALSE)*IF(Variables!$Y$23=1,$T87,$U87) ->  | Y87: =VLOOKUP($S87,$E$4:$O$71,8,FALSE)*IF(Variables!$Y$23=1,$T87,$U87) ->  | Z87: =VLOOKUP($S87,$E$4:$O$71,9,FALSE)*IF(Variables!$Y$23=1,$T87,$U87) ->  | AA87: =VLOOKUP($S87,$E$4:$O$71,10,FALSE)*IF(Variables!$Y$23=1,$T87,$U87) ->  | AC87: Hydro - P | AD87: P | AG87: =VLOOKUP($AD87,$E$4:$O$71,5,FALSE)*IF(Variables!$Y$23=1,$AE87,$AF87) ->  | AH87: =VLOOKUP($AD87,$E$4:$O$71,6,FALSE)*IF(Variables!$Y$23=1,$AE87,$AF87) ->  | AI87: =VLOOKUP($AD87,$E$4:$O$71,7,FALSE)*IF(Variables!$Y$23=1,$AE87,$AF87) ->  | AJ87: =VLOOKUP($AD87,$E$4:$O$71,8,FALSE)*IF(Variables!$Y$23=1,$AE87,$AF87) ->  | AK87: =VLOOKUP($AD87,$E$4:$O$71,9,FALSE)*IF(Variables!$Y$23=1,$AE87,$AF87) ->  | AL87: =VLOOKUP($AD87,$E$4:$O$71,10,FALSE)*IF(Variables!$Y$23=1,$AE87,$AF87) ->  | AT87: =Report!P276 -> 0
R88: Hydro - U | S88: P | T88: =Factors!#REF! ->  | U88: =IF(Variables!$AO$3=12,Factors!#REF!+Factors!#REF!,CHOOSE(Variables!AO$3,Factors!#REF!,Factors!#REF!,Factors!#REF!,Factors!#REF!,Factors!#REF!,Factors!#REF!,Factors!#REF!,Factors!#REF!,Factors!#REF!,Factors!#REF!,Factors!#REF!)) ->  | V88: =VLOOKUP($S88,$E$4:$O$71,5,FALSE)*IF(Variables!$Y$23=1,$T88,$U88) ->  | W88: =VLOOKUP($S88,$E$4:$O$71,6,FALSE)*IF(Variables!$Y$23=1,$T88,$U88) ->  | X88: =VLOOKUP($S88,$E$4:$O$71,7,FALSE)*IF(Variables!$Y$23=1,$T88,$U88) ->  | Y88: =VLOOKUP($S88,$E$4:$O$71,8,FALSE)*IF(Variables!$Y$23=1,$T88,$U88) ->  | Z88: =VLOOKUP($S88,$E$4:$O$71,9,FALSE)*IF(Variables!$Y$23=1,$T88,$U88) ->  | AA88: =VLOOKUP($S88,$E$4:$O$71,10,FALSE)*IF(Variables!$Y$23=1,$T88,$U88) ->  | AC88: Hydro - U | AD88: P | AG88: =VLOOKUP($AD88,$E$4:$O$71,5,FALSE)*IF(Variables!$Y$23=1,$AE88,$AF88) ->  | AH88: =VLOOKUP($AD88,$E$4:$O$71,6,FALSE)*IF(Variables!$Y$23=1,$AE88,$AF88) ->  | AI88: =VLOOKUP($AD88,$E$4:$O$71,7,FALSE)*IF(Variables!$Y$23=1,$AE88,$AF88) ->  | AJ88: =VLOOKUP($AD88,$E$4:$O$71,8,FALSE)*IF(Variables!$Y$23=1,$AE88,$AF88) ->  | AK88: =VLOOKUP($AD88,$E$4:$O$71,9,FALSE)*IF(Variables!$Y$23=1,$AE88,$AF88) ->  | AL88: =VLOOKUP($AD88,$E$4:$O$71,10,FALSE)*IF(Variables!$Y$23=1,$AE88,$AF88) ->  | AT88: =Report!P277 -> 126153334.4
R89: Transmission | S89: T | T89: =Factors!C453 -> 1933598787 | U89: =IF(Variables!$AO$3=12,Factors!H453+Factors!K453,CHOOSE(Variables!AO$3,Factors!D453,Factors!E453,Factors!F453,Factors!G453,Factors!H453,Factors!I453,Factors!J453,Factors!K453,Factors!L453,Factors!M453,Factors!N453)) -> 857022517.1 | V89: =VLOOKUP($S89,$E$4:$O$71,5,FALSE)*IF(Variables!$Y$23=1,$T89,$U89) -> 0 | W89: =VLOOKUP($S89,$E$4:$O$71,6,FALSE)*IF(Variables!$Y$23=1,$T89,$U89) -> 857022517.1 | X89: =VLOOKUP($S89,$E$4:$O$71,7,FALSE)*IF(Variables!$Y$23=1,$T89,$U89) -> 0 | Y89: =VLOOKUP($S89,$E$4:$O$71,8,FALSE)*IF(Variables!$Y$23=1,$T89,$U89) -> 0 | Z89: =VLOOKUP($S89,$E$4:$O$71,9,FALSE)*IF(Variables!$Y$23=1,$T89,$U89) -> 0 | AA89: =VLOOKUP($S89,$E$4:$O$71,10,FALSE)*IF(Variables!$Y$23=1,$T89,$U89) -> 0 | AC89: Transmission | AD89: T | AE89: 1933598787 | AF89: 857022517.1 | AG89: =VLOOKUP($AD89,$E$4:$O$71,5,FALSE)*IF(Variables!$Y$23=1,$AE89,$AF89) -> 0 | AH89: =VLOOKUP($AD89,$E$4:$O$71,6,FALSE)*IF(Variables!$Y$23=1,$AE89,$AF89) -> 857022517.1 | AI89: =VLOOKUP($AD89,$E$4:$O$71,7,FALSE)*IF(Variables!$Y$23=1,$AE89,$AF89) -> 0 | AJ89: =VLOOKUP($AD89,$E$4:$O$71,8,FALSE)*IF(Variables!$Y$23=1,$AE89,$AF89) -> 0 | AK89: =VLOOKUP($AD89,$E$4:$O$71,9,FALSE)*IF(Variables!$Y$23=1,$AE89,$AF89) -> 0 | AL89: =VLOOKUP($AD89,$E$4:$O$71,10,FALSE)*IF(Variables!$Y$23=1,$AE89,$AF89) -> 0 | AT89: =Report!P278 -> 0
R90: Distribution | S90: DPW | T90: =Factors!C454 -> 516416349.6 | U90: =IF(Variables!$AO$3=12,Factors!H454+Factors!K454,CHOOSE(Variables!AO$3,Factors!D454,Factors!E454,Factors!F454,Factors!G454,Factors!H454,Factors!I454,Factors!J454,Factors!K454,Factors!L454,Factors!M454,Factors!N454)) -> 228889489.8 | V90: =VLOOKUP($S90,$E$4:$O$71,5,FALSE)*IF(Variables!$Y$23=1,$T90,$U90) -> 0 | W90: =VLOOKUP($S90,$E$4:$O$71,6,FALSE)*IF(Variables!$Y$23=1,$T90,$U90) -> 0 | X90: =VLOOKUP($S90,$E$4:$O$71,7,FALSE)*IF(Variables!$Y$23=1,$T90,$U90) -> 228889489.8 | Y90: =VLOOKUP($S90,$E$4:$O$71,8,FALSE)*IF(Variables!$Y$23=1,$T90,$U90) -> 228889489.8 | Z90: =VLOOKUP($S90,$E$4:$O$71,9,FALSE)*IF(Variables!$Y$23=1,$T90,$U90) -> 0 | AA90: =VLOOKUP($S90,$E$4:$O$71,10,FALSE)*IF(Variables!$Y$23=1,$T90,$U90) -> 0 | AC90: Distribution | AD90: DPW | AE90: 516416349.6 | AF90: 228889489.8 | AG90: =VLOOKUP($AD90,$E$4:$O$71,5,FALSE)*IF(Variables!$Y$23=1,$AE90,$AF90) -> 0 | AH90: =VLOOKUP($AD90,$E$4:$O$71,6,FALSE)*IF(Variables!$Y$23=1,$AE90,$AF90) -> 0 | AI90: =VLOOKUP($AD90,$E$4:$O$71,7,FALSE)*IF(Variables!$Y$23=1,$AE90,$AF90) -> 228889489.8 | AJ90: =VLOOKUP($AD90,$E$4:$O$71,8,FALSE)*IF(Variables!$Y$23=1,$AE90,$AF90) -> 228889489.8 | AK90: =VLOOKUP($AD90,$E$4:$O$71,9,FALSE)*IF(Variables!$Y$23=1,$AE90,$AF90) -> 0 | AL90: =VLOOKUP($AD90,$E$4:$O$71,10,FALSE)*IF(Variables!$Y$23=1,$AE90,$AF90) -> 0 | AT90: =Report!P279 -> 2579932914
R91: General | S91: G | T91: =Factors!C455 -> 156800171.5 | U91: =IF(Variables!$AO$3=12,Factors!H455+Factors!K455,CHOOSE(Variables!AO$3,Factors!D455,Factors!E455,Factors!F455,Factors!G455,Factors!H455,Factors!I455,Factors!J455,Factors!K455,Factors!L455,Factors!M455,Factors!N455)) -> 69498015.06 | V91: =VLOOKUP($S91,$E$4:$O$71,5,FALSE)*IF(Variables!$Y$23=1,$T91,$U91) -> 16182087.9 | W91: =VLOOKUP($S91,$E$4:$O$71,6,FALSE)*IF(Variables!$Y$23=1,$T91,$U91) -> 20781313.45 | X91: =VLOOKUP($S91,$E$4:$O$71,7,FALSE)*IF(Variables!$Y$23=1,$T91,$U91) -> 32534613.71 | Y91: =VLOOKUP($S91,$E$4:$O$71,8,FALSE)*IF(Variables!$Y$23=1,$T91,$U91) -> 30713338.53 | Z91: =VLOOKUP($S91,$E$4:$O$71,9,FALSE)*IF(Variables!$Y$23=1,$T91,$U91) -> 1821275.179 | AA91: =VLOOKUP($S91,$E$4:$O$71,10,FALSE)*IF(Variables!$Y$23=1,$T91,$U91) -> 0 | AC91: General | AD91: G | AE91: 156800171.5 | AF91: 69498015.06 | AG91: =VLOOKUP($AD91,$E$4:$O$71,5,FALSE)*IF(Variables!$Y$23=1,$AE91,$AF91) -> 16182087.9 | AH91: =VLOOKUP($AD91,$E$4:$O$71,6,FALSE)*IF(Variables!$Y$23=1,$AE91,$AF91) -> 20781313.45 | AI91: =VLOOKUP($AD91,$E$4:$O$71,7,FALSE)*IF(Variables!$Y$23=1,$AE91,$AF91) -> 32534613.71 | AJ91: =VLOOKUP($AD91,$E$4:$O$71,8,FALSE)*IF(Variables!$Y$23=1,$AE91,$AF91) -> 30713338.53 | AK91: =VLOOKUP($AD91,$E$4:$O$71,9,FALSE)*IF(Variables!$Y$23=1,$AE91,$AF91) -> 1821275.179 | AL91: =VLOOKUP($AD91,$E$4:$O$71,10,FALSE)*IF(Variables!$Y$23=1,$AE91,$AF91) -> 0 | AT91: =Report!P280 -> 0
R92: Mining Plant | S92: P | T92: =Factors!C456 -> 164591163.1 | U92: =IF(Variables!$AO$3=12,Factors!H456+Factors!K456,CHOOSE(Variables!AO$3,Factors!D456,Factors!E456,Factors!F456,Factors!G456,Factors!H456,Factors!I456,Factors!J456,Factors!K456,Factors!L456,Factors!M456,Factors!N456)) -> 71986897.46 | V92: =VLOOKUP($S92,$E$4:$O$71,5,FALSE)*IF(Variables!$Y$23=1,$T92,$U92) -> 71986897.46 | W92: =VLOOKUP($S92,$E$4:$O$71,6,FALSE)*IF(Variables!$Y$23=1,$T92,$U92) -> 0 | X92: =VLOOKUP($S92,$E$4:$O$71,7,FALSE)*IF(Variables!$Y$23=1,$T92,$U92) -> 0 | Y92: =VLOOKUP($S92,$E$4:$O$71,8,FALSE)*IF(Variables!$Y$23=1,$T92,$U92) -> 0 | Z92: =VLOOKUP($S92,$E$4:$O$71,9,FALSE)*IF(Variables!$Y$23=1,$T92,$U92) -> 0 | AA92: =VLOOKUP($S92,$E$4:$O$71,10,FALSE)*IF(Variables!$Y$23=1,$T92,$U92) -> 0 | AC92: Mining Plant | AD92: P | AE92: 164591163.1 | AF92: 71986897.46 | AG92: =VLOOKUP($AD92,$E$4:$O$71,5,FALSE)*IF(Variables!$Y$23=1,$AE92,$AF92) -> 71986897.46 | AH92: =VLOOKUP($AD92,$E$4:$O$71,6,FALSE)*IF(Variables!$Y$23=1,$AE92,$AF92) -> 0 | AI92: =VLOOKUP($AD92,$E$4:$O$71,7,FALSE)*IF(Variables!$Y$23=1,$AE92,$AF92) -> 0 | AJ92: =VLOOKUP($AD92,$E$4:$O$71,8,FALSE)*IF(Variables!$Y$23=1,$AE92,$AF92) -> 0 | AK92: =VLOOKUP($AD92,$E$4:$O$71,9,FALSE)*IF(Variables!$Y$23=1,$AE92,$AF92) -> 0 | AL92: =VLOOKUP($AD92,$E$4:$O$71,10,FALSE)*IF(Variables!$Y$23=1,$AE92,$AF92) -> 0 | AT92: =Report!P281 -> 0
AT93: =Report!P282 -> 2414652189
R94: Total PC (Post Merger) | T94: =SUM(T86:T93) ->  | AC94: Total PC (Post Merger) | AE94: =SUM(AE86:AE93) ->  | AT94: =Report!P283 -> 0
AT95: =Report!P284 -> 11655202.38
R96: Total Deferred Taxes | T96: =T74+T83+T94 ->  | AC96: Total Deferred Taxes | AE96: =AE74+AE83+AE94 ->  | AT96: =Report!P285 -> 1690497.447
AT97: =Report!P286 -> 151935024.8
R98: ACCMDITRL FACTOR | T98: =T96/$T96 ->  | U98: =U96/$U96 ->  | V98: =V96/IF(Variables!$Y$23=2,$U96,$T96) ->  | W98: =W96/IF(Variables!$Y23=2,$U96,$T96) ->  | X98: =X96/IF(Variables!$Y23=2,$U96,$T96) ->  | Y98: =Y96/IF(Variables!$Y23=2,$U96,$T96) ->  | Z98: =Z96/IF(Variables!$Y23=2,$U96,$T96) ->  | AA98: =AA96/IF(Variables!$Y23=2,$U96,$T96) ->  | AC98: ACCMDITMA FACTOR | AE98: =AE96/$AE96 ->  | AF98: =AF96/$AF96 ->  | AG98: =AG96/IF(Variables!$Y23=2,$AF96,$AE96) ->  | AH98: =AH96/IF(Variables!$Y23=2,$AF96,$AE96) ->  | AI98: =AI96/IF(Variables!$Y23=2,$AF96,$AE96) ->  | AJ98: =AJ96/IF(Variables!$Y23=2,$AF96,$AE96) ->  | AK98: =AK96/IF(Variables!$Y23=2,$AF96,$AE96) ->  | AL98: =AL96/IF(Variables!$Y23=2,$AF96,$AE96) ->  | AT98: =Report!P287 -> 0
AT99: =Report!P288 -> 0
AT100: =Report!P289 -> 2579932914
AT101: =Report!P290 -> 0
R102: DITEXPRL | AC102: DITEXPMA | AT102: =Report!P291 -> 0
R103: Pacific Division | T103: Total | U103: =Variables!X24 -> UTAH | V103: Production | W103: Transmission | X103: Distribution | Y103: DPW | Z103: CUST | AA103: DMSC | AC103: Pacific Division | AE103: Total | AF103: =Variables!X24 -> UTAH | AG103: Production | AH103: Transmission | AI103: Distribution | AJ103: DPW | AK103: CUST | AL103: DMSC | AT103: =Report!P292 -> 0
R104: Pacific Division | AC104: Pacific Division | AT104: =Report!P293 -> 0
R105: Production | S105: P | T105: =Factors!C383 -> 0 | U105: =IF(Variables!$AO$3=12,Factors!H383+Factors!K383,CHOOSE(Variables!AO$3,Factors!D383,Factors!E383,Factors!F383,Factors!G383,Factors!H383,Factors!I383,Factors!J383,Factors!K383,Factors!L383,Factors!M383,Factors!N383)) -> 0 | V105: =VLOOKUP($S105,$E$4:$O$71,5,FALSE)*IF(Variables!$Y$23=1,$T105,$U105) -> 0 | W105: =VLOOKUP($S105,$E$4:$O$71,6,FALSE)*IF(Variables!$Y$23=1,$T105,$U105) -> 0 | X105: =VLOOKUP($S105,$E$4:$O$71,7,FALSE)*IF(Variables!$Y$23=1,$T105,$U105) -> 0 | Y105: =VLOOKUP($S105,$E$4:$O$71,8,FALSE)*IF(Variables!$Y$23=1,$T105,$U105) -> 0 | Z105: =VLOOKUP($S105,$E$4:$O$71,9,FALSE)*IF(Variables!$Y$23=1,$T105,$U105) -> 0 | AA105: =VLOOKUP($S105,$E$4:$O$71,10,FALSE)*IF(Variables!$Y$23=1,$T105,$U105) -> 0 | AB105: 0 | AC105: Production | AD105: P | AE105: =T105 -> 0 | AF105: 0 | AG105: =VLOOKUP($AD105,$E$4:$O$71,5,FALSE)*IF(Variables!$Y$23=1,$AE105,$AF105) -> 0 | AH105: =VLOOKUP($AD105,$E$4:$O$71,6,FALSE)*IF(Variables!$Y$23=1,$AE105,$AF105) -> 0 | AI105: =VLOOKUP($AD105,$E$4:$O$71,7,FALSE)*IF(Variables!$Y$23=1,$AE105,$AF105) -> 0 | AJ105: =VLOOKUP($AD105,$E$4:$O$71,8,FALSE)*IF(Variables!$Y$23=1,$AE105,$AF105) -> 0 | AK105: =VLOOKUP($AD105,$E$4:$O$71,9,FALSE)*IF(Variables!$Y$23=1,$AE105,$AF105) -> 0 | AL105: =VLOOKUP($AD105,$E$4:$O$71,10,FALSE)*IF(Variables!$Y$23=1,$AE105,$AF105) -> 0 | AT105: =Report!P294 -> 0
R106: Transmission | S106: T | T106: =Factors!C384 -> 0 | U106: =IF(Variables!$AO$3=12,Factors!H384+Factors!K384,CHOOSE(Variables!AO$3,Factors!D384,Factors!E384,Factors!F384,Factors!G384,Factors!H384,Factors!I384,Factors!J384,Factors!K384,Factors!L384,Factors!M384,Factors!N384)) -> 0 | V106: =VLOOKUP($S106,$E$4:$O$71,5,FALSE)*IF(Variables!$Y$23=1,$T106,$U106) -> 0 | W106: =VLOOKUP($S106,$E$4:$O$71,6,FALSE)*IF(Variables!$Y$23=1,$T106,$U106) -> 0 | X106: =VLOOKUP($S106,$E$4:$O$71,7,FALSE)*IF(Variables!$Y$23=1,$T106,$U106) -> 0 | Y106: =VLOOKUP($S106,$E$4:$O$71,8,FALSE)*IF(Variables!$Y$23=1,$T106,$U106) -> 0 | Z106: =VLOOKUP($S106,$E$4:$O$71,9,FALSE)*IF(Variables!$Y$23=1,$T106,$U106) -> 0 | AA106: =VLOOKUP($S106,$E$4:$O$71,10,FALSE)*IF(Variables!$Y$23=1,$T106,$U106) -> 0 | AC106: Transmission | AD106: T | AE106: 0 | AF106: 0 | AG106: =VLOOKUP($AD106,$E$4:$O$71,5,FALSE)*IF(Variables!$Y$23=1,$AE106,$AF106) -> 0 | AH106: =VLOOKUP($AD106,$E$4:$O$71,6,FALSE)*IF(Variables!$Y$23=1,$AE106,$AF106) -> 0 | AI106: =VLOOKUP($AD106,$E$4:$O$71,7,FALSE)*IF(Variables!$Y$23=1,$AE106,$AF106) -> 0 | AJ106: =VLOOKUP($AD106,$E$4:$O$71,8,FALSE)*IF(Variables!$Y$23=1,$AE106,$AF106) -> 0 | AK106: =VLOOKUP($AD106,$E$4:$O$71,9,FALSE)*IF(Variables!$Y$23=1,$AE106,$AF106) -> 0 | AL106: =VLOOKUP($AD106,$E$4:$O$71,10,FALSE)*IF(Variables!$Y$23=1,$AE106,$AF106) -> 0 | AT106: =Report!P295 -> 0
R107: Distribution | S107: DPW | T107: =Factors!C385 -> 0 | U107: =IF(Variables!$AO$3=12,Factors!H385+Factors!K385,CHOOSE(Variables!AO$3,Factors!D385,Factors!E385,Factors!F385,Factors!G385,Factors!H385,Factors!I385,Factors!J385,Factors!K385,Factors!L385,Factors!M385,Factors!N385)) -> 0 | V107: =VLOOKUP($S107,$E$4:$O$71,5,FALSE)*IF(Variables!$Y$23=1,$T107,$U107) -> 0 | W107: =VLOOKUP($S107,$E$4:$O$71,6,FALSE)*IF(Variables!$Y$23=1,$T107,$U107) -> 0 | X107: =VLOOKUP($S107,$E$4:$O$71,7,FALSE)*IF(Variables!$Y$23=1,$T107,$U107) -> 0 | Y107: =VLOOKUP($S107,$E$4:$O$71,8,FALSE)*IF(Variables!$Y$23=1,$T107,$U107) -> 0 | Z107: =VLOOKUP($S107,$E$4:$O$71,9,FALSE)*IF(Variables!$Y$23=1,$T107,$U107) -> 0 | AA107: =VLOOKUP($S107,$E$4:$O$71,10,FALSE)*IF(Variables!$Y$23=1,$T107,$U107) -> 0 | AC107: Distribution | AD107: DPW | AE107: 0 | AF107: 0 | AG107: =VLOOKUP($AD107,$E$4:$O$71,5,FALSE)*IF(Variables!$Y$23=1,$AE107,$AF107) -> 0 | AH107: =VLOOKUP($AD107,$E$4:$O$71,6,FALSE)*IF(Variables!$Y$23=1,$AE107,$AF107) -> 0 | AI107: =VLOOKUP($AD107,$E$4:$O$71,7,FALSE)*IF(Variables!$Y$23=1,$AE107,$AF107) -> 0 | AJ107: =VLOOKUP($AD107,$E$4:$O$71,8,FALSE)*IF(Variables!$Y$23=1,$AE107,$AF107) -> 0 | AK107: =VLOOKUP($AD107,$E$4:$O$71,9,FALSE)*IF(Variables!$Y$23=1,$AE107,$AF107) -> 0 | AL107: =VLOOKUP($AD107,$E$4:$O$71,10,FALSE)*IF(Variables!$Y$23=1,$AE107,$AF107) -> 0 | AT107: =Report!P296 -> 0
R108: General | S108: G | T108: =Factors!C386 -> 0 | U108: =IF(Variables!$AO$3=12,Factors!H386+Factors!K386,CHOOSE(Variables!AO$3,Factors!D386,Factors!E386,Factors!F386,Factors!G386,Factors!H386,Factors!I386,Factors!J386,Factors!K386,Factors!L386,Factors!M386,Factors!N386)) -> 0 | V108: =VLOOKUP($S108,$E$4:$O$71,5,FALSE)*IF(Variables!$Y$23=1,$T108,$U108) -> 0 | W108: =VLOOKUP($S108,$E$4:$O$71,6,FALSE)*IF(Variables!$Y$23=1,$T108,$U108) -> 0 | X108: =VLOOKUP($S108,$E$4:$O$71,7,FALSE)*IF(Variables!$Y$23=1,$T108,$U108) -> 0 | Y108: =VLOOKUP($S108,$E$4:$O$71,8,FALSE)*IF(Variables!$Y$23=1,$T108,$U108) -> 0 | Z108: =VLOOKUP($S108,$E$4:$O$71,9,FALSE)*IF(Variables!$Y$23=1,$T108,$U108) -> 0 | AA108: =VLOOKUP($S108,$E$4:$O$71,10,FALSE)*IF(Variables!$Y$23=1,$T108,$U108) -> 0 | AC108: General | AD108: G | AE108: 0 | AF108: 0 | AG108: =VLOOKUP($AD108,$E$4:$O$71,5,FALSE)*IF(Variables!$Y$23=1,$AE108,$AF108) -> 0 | AH108: =VLOOKUP($AD108,$E$4:$O$71,6,FALSE)*IF(Variables!$Y$23=1,$AE108,$AF108) -> 0 | AI108: =VLOOKUP($AD108,$E$4:$O$71,7,FALSE)*IF(Variables!$Y$23=1,$AE108,$AF108) -> 0 | AJ108: =VLOOKUP($AD108,$E$4:$O$71,8,FALSE)*IF(Variables!$Y$23=1,$AE108,$AF108) -> 0 | AK108: =VLOOKUP($AD108,$E$4:$O$71,9,FALSE)*IF(Variables!$Y$23=1,$AE108,$AF108) -> 0 | AL108: =VLOOKUP($AD108,$E$4:$O$71,10,FALSE)*IF(Variables!$Y$23=1,$AE108,$AF108) -> 0 | AT108: =Report!P297 -> 0
C109: =Variables!AE29 -> 2020 PROTOCOL | R109: Mining Plant | S109: P | T109: =Factors!C387 -> 0 | U109: =IF(Variables!$AO$3=12,Factors!H387+Factors!K387,CHOOSE(Variables!AO$3,Factors!D387,Factors!E387,Factors!F387,Factors!G387,Factors!H387,Factors!I387,Factors!J387,Factors!K387,Factors!L387,Factors!M387,Factors!N387)) -> 0 | V109: =VLOOKUP($S109,$E$4:$O$71,5,FALSE)*IF(Variables!$Y$23=1,$T109,$U109) -> 0 | W109: =VLOOKUP($S109,$E$4:$O$71,6,FALSE)*IF(Variables!$Y$23=1,$T109,$U109) -> 0 | X109: =VLOOKUP($S109,$E$4:$O$71,7,FALSE)*IF(Variables!$Y$23=1,$T109,$U109) -> 0 | Y109: =VLOOKUP($S109,$E$4:$O$71,8,FALSE)*IF(Variables!$Y$23=1,$T109,$U109) -> 0 | Z109: =VLOOKUP($S109,$E$4:$O$71,9,FALSE)*IF(Variables!$Y$23=1,$T109,$U109) -> 0 | AA109: =VLOOKUP($S109,$E$4:$O$71,10,FALSE)*IF(Variables!$Y$23=1,$T109,$U109) -> 0 | AC109: Mining Plant | AD109: P | AE109: 0 | AF109: 0 | AG109: =VLOOKUP($AD109,$E$4:$O$71,5,FALSE)*IF(Variables!$Y$23=1,$AE109,$AF109) -> 0 | AH109: =VLOOKUP($AD109,$E$4:$O$71,6,FALSE)*IF(Variables!$Y$23=1,$AE109,$AF109) -> 0 | AI109: =VLOOKUP($AD109,$E$4:$O$71,7,FALSE)*IF(Variables!$Y$23=1,$AE109,$AF109) -> 0 | AJ109: =VLOOKUP($AD109,$E$4:$O$71,8,FALSE)*IF(Variables!$Y$23=1,$AE109,$AF109) -> 0 | AK109: =VLOOKUP($AD109,$E$4:$O$71,9,FALSE)*IF(Variables!$Y$23=1,$AE109,$AF109) -> 0 | AL109: =VLOOKUP($AD109,$E$4:$O$71,10,FALSE)*IF(Variables!$Y$23=1,$AE109,$AF109) -> 0 | AT109: =Report!P298 -> 0
C110: =IF(Variables!Y23=1," ",Variables!AO19) -> 13-Month Average | AT110: =Report!P299 -> 0
C111: RESULTS OF OPERATIONS SUMMARY | R111: Total Pacific Division | T111: =SUM(T105:T109) -> 0 | U111: =SUM(U105:U109) -> 0 | V111: =SUM(V105:V109) -> 0 | W111: 0 | X111: 0 | Y111: 0 | Z111: 0 | AA111: 0 | AC111: Total Pacific Division | AE111: =SUM(AE105:AE109) -> 0 | AF111: 0 | AG111: 0 | AH111: 0 | AI111: 0 | AJ111: 0 | AK111: 0 | AL111: 0 | AT111: =Report!P300 -> 0
AT112: =Report!P301 -> 0
R113: Utah Division | AC113: Utah Division | AT113: =Report!P302 -> 0
H114: =IF(Variables!Y23=1,Variables!X23,Report!N115) -> UTAH | R114: Transmission | S114: T | T114: =Factors!C394 -> 0 | U114: =IF(Variables!$AO$3=12,Factors!H394+Factors!K394,CHOOSE(Variables!AO$3,Factors!D394,Factors!E394,Factors!F394,Factors!G394,Factors!H394,Factors!I394,Factors!J394,Factors!K394,Factors!L394,Factors!M394,Factors!N394)) -> 0 | V114: =VLOOKUP($S114,$E$4:$O$71,5,FALSE)*IF(Variables!$Y$23=1,$T114,$U114) -> 0 | W114: =VLOOKUP($S114,$E$4:$O$71,6,FALSE)*IF(Variables!$Y$23=1,$T114,$U114) -> 0 | X114: =VLOOKUP($S114,$E$4:$O$71,7,FALSE)*IF(Variables!$Y$23=1,$T114,$U114) -> 0 | Y114: =VLOOKUP($S114,$E$4:$O$71,8,FALSE)*IF(Variables!$Y$23=1,$T114,$U114) -> 0 | Z114: =VLOOKUP($S114,$E$4:$O$71,9,FALSE)*IF(Variables!$Y$23=1,$T114,$U114) -> 0 | AA114: =VLOOKUP($S114,$E$4:$O$71,10,FALSE)*IF(Variables!$Y$23=1,$T114,$U114) -> 0 | AC114: Transmission | AD114: T | AE114: =T114 -> 0 | AF114: 0 | AG114: =VLOOKUP($AD114,$E$4:$O$71,5,FALSE)*IF(Variables!$Y$23=1,$AE114,$AF114) -> 0 | AH114: =VLOOKUP($AD114,$E$4:$O$71,6,FALSE)*IF(Variables!$Y$23=1,$AE114,$AF114) -> 0 | AI114: =VLOOKUP($AD114,$E$4:$O$71,7,FALSE)*IF(Variables!$Y$23=1,$AE114,$AF114) -> 0 | AJ114: =VLOOKUP($AD114,$E$4:$O$71,8,FALSE)*IF(Variables!$Y$23=1,$AE114,$AF114) -> 0 | AK114: =VLOOKUP($AD114,$E$4:$O$71,9,FALSE)*IF(Variables!$Y$23=1,$AE114,$AF114) -> 0 | AL114: =VLOOKUP($AD114,$E$4:$O$71,10,FALSE)*IF(Variables!$Y$23=1,$AE114,$AF114) -> 0 | AT114: =Report!P303 -> 0
C115: Description of Account Summary: | H115: Normalized | I115: Production | J115: Transmission | K115: Distribution | L115: Distribution | M115: Retail | N115: Misc | R115: Distribution | S115: DPW | T115: =Factors!C395 -> 0 | U115: =IF(Variables!$AO$3=12,Factors!H395+Factors!K395,CHOOSE(Variables!AO$3,Factors!D395,Factors!E395,Factors!F395,Factors!G395,Factors!H395,Factors!I395,Factors!J395,Factors!K395,Factors!L395,Factors!M395,Factors!N395)) -> 0 | V115: =VLOOKUP($S115,$E$4:$O$71,5,FALSE)*IF(Variables!$Y$23=1,$T115,$U115) -> 0 | W115: =VLOOKUP($S115,$E$4:$O$71,6,FALSE)*IF(Variables!$Y$23=1,$T115,$U115) -> 0 | X115: =VLOOKUP($S115,$E$4:$O$71,7,FALSE)*IF(Variables!$Y$23=1,$T115,$U115) -> 0 | Y115: =VLOOKUP($S115,$E$4:$O$71,8,FALSE)*IF(Variables!$Y$23=1,$T115,$U115) -> 0 | Z115: =VLOOKUP($S115,$E$4:$O$71,9,FALSE)*IF(Variables!$Y$23=1,$T115,$U115) -> 0 | AA115: =VLOOKUP($S115,$E$4:$O$71,10,FALSE)*IF(Variables!$Y$23=1,$T115,$U115) -> 0 | AC115: Distribution | AD115: DPW | AE115: 0 | AF115: 0 | AG115: =VLOOKUP($AD115,$E$4:$O$71,5,FALSE)*IF(Variables!$Y$23=1,$AE115,$AF115) -> 0 | AH115: =VLOOKUP($AD115,$E$4:$O$71,6,FALSE)*IF(Variables!$Y$23=1,$AE115,$AF115) -> 0 | AI115: =VLOOKUP($AD115,$E$4:$O$71,7,FALSE)*IF(Variables!$Y$23=1,$AE115,$AF115) -> 0 | AJ115: =VLOOKUP($AD115,$E$4:$O$71,8,FALSE)*IF(Variables!$Y$23=1,$AE115,$AF115) -> 0 | AK115: =VLOOKUP($AD115,$E$4:$O$71,9,FALSE)*IF(Variables!$Y$23=1,$AE115,$AF115) -> 0 | AL115: =VLOOKUP($AD115,$E$4:$O$71,10,FALSE)*IF(Variables!$Y$23=1,$AE115,$AF115) -> 0 | AT115: =Report!P304 -> 0
R116: General | S116: G | T116: =Factors!C396 -> 0 | U116: =IF(Variables!$AO$3=12,Factors!H396+Factors!K396,CHOOSE(Variables!AO$3,Factors!D396,Factors!E396,Factors!F396,Factors!G396,Factors!H396,Factors!I396,Factors!J396,Factors!K396,Factors!L396,Factors!M396,Factors!N396)) -> 0 | V116: =VLOOKUP($S116,$E$4:$O$71,5,FALSE)*IF(Variables!$Y$23=1,$T116,$U116) -> 0 | W116: =VLOOKUP($S116,$E$4:$O$71,6,FALSE)*IF(Variables!$Y$23=1,$T116,$U116) -> 0 | X116: =VLOOKUP($S116,$E$4:$O$71,7,FALSE)*IF(Variables!$Y$23=1,$T116,$U116) -> 0 | Y116: =VLOOKUP($S116,$E$4:$O$71,8,FALSE)*IF(Variables!$Y$23=1,$T116,$U116) -> 0 | Z116: =VLOOKUP($S116,$E$4:$O$71,9,FALSE)*IF(Variables!$Y$23=1,$T116,$U116) -> 0 | AA116: =VLOOKUP($S116,$E$4:$O$71,10,FALSE)*IF(Variables!$Y$23=1,$T116,$U116) -> 0 | AC116: General | AD116: G | AE116: 0 | AF116: 0 | AG116: =VLOOKUP($AD116,$E$4:$O$71,5,FALSE)*IF(Variables!$Y$23=1,$AE116,$AF116) -> 0 | AH116: =VLOOKUP($AD116,$E$4:$O$71,6,FALSE)*IF(Variables!$Y$23=1,$AE116,$AF116) -> 0 | AI116: =VLOOKUP($AD116,$E$4:$O$71,7,FALSE)*IF(Variables!$Y$23=1,$AE116,$AF116) -> 0 | AJ116: =VLOOKUP($AD116,$E$4:$O$71,8,FALSE)*IF(Variables!$Y$23=1,$AE116,$AF116) -> 0 | AK116: =VLOOKUP($AD116,$E$4:$O$71,9,FALSE)*IF(Variables!$Y$23=1,$AE116,$AF116) -> 0 | AL116: =VLOOKUP($AD116,$E$4:$O$71,10,FALSE)*IF(Variables!$Y$23=1,$AE116,$AF116) -> 0 | AT116: =Report!P305 -> 0
A117: 1 | E117: General Business Revenues | H117: =H219-H118-H119 -> 2381581836 | I117: 977172367.9 | J117: 216383210.4 | K117: 380682946.1 | L117: 328900482.9 | M117: 98030572.23 | N117: -46248109.03 | AT117: =Report!P306 -> -18.50410787
A118: 2 | E118: General Business Revenues | H118: =H198+H199 -> 0 | I118: =I198+I199 -> 0 | J118: 0 | K118: 0 | L118: 0 | M118: 0 | N118: 0 | R118: Total Utah Division | T118: =SUM(T114:T116) -> 0 | U118: 0 | V118: 0 | W118: 0 | X118: 0 | Y118: 0 | Z118: 0 | AA118: 0 | AC118: Total Utah Division | AE118: =SUM(AE114:AE116) -> 0 | AF118: 0 | AG118: 0 | AH118: 0 | AI118: 0 | AJ118: 0 | AK118: 0 | AL118: 0 | AT118: =Report!P307 -> -18.50410787
A119: 3 | E119: Interdepartmental | H119: =H217 -> 0 | I119: 0 | J119: 0 | K119: =K217 -> 0 | L119: 0 | M119: 0 | N119: =N217 -> 0 | AT119: =Report!P308 -> 0
A120: 4 | E120: Special Sales | H120: =H233 -> 72197743.51 | I120: 72197743.51 | J120: 0 | K120: =K233 -> 0 | L120: 0 | M120: 0 | N120: =N233 -> 0 | R120: PACIFICORP | AC120: PACIFICORP | AT120: =Report!P309 -> 0
A121: 5 | E121: Other Operating Revenues | H121: =H277+H240 -> 126153334.4 | I121: 63138080.75 | J121: 46095640.89 | K121: 16919612.76 | L121: 5016160.628 | M121: 12480975.94 | N121: -577523.81 | R121: Production | S121: P | T121: =Factors!C403 -> 0 | U121: =IF(Variables!$AO$3=12,Factors!H403+Factors!K403,CHOOSE(Variables!AO$3,Factors!D403,Factors!E403,Factors!F403,Factors!G403,Factors!H403,Factors!I403,Factors!J403,Factors!K403,Factors!L403,Factors!M403,Factors!N403)) -> 0 | V121: =VLOOKUP($S121,$E$4:$O$71,5,FALSE)*IF(Variables!$Y$23=1,$T121,$U121) -> 0 | W121: =VLOOKUP($S121,$E$4:$O$71,6,FALSE)*IF(Variables!$Y$23=1,$T121,$U121) -> 0 | X121: =VLOOKUP($S121,$E$4:$O$71,7,FALSE)*IF(Variables!$Y$23=1,$T121,$U121) -> 0 | Y121: =VLOOKUP($S121,$E$4:$O$71,8,FALSE)*IF(Variables!$Y$23=1,$T121,$U121) -> 0 | Z121: =VLOOKUP($S121,$E$4:$O$71,9,FALSE)*IF(Variables!$Y$23=1,$T121,$U121) -> 0 | AA121: =VLOOKUP($S121,$E$4:$O$71,10,FALSE)*IF(Variables!$Y$23=1,$T121,$U121) -> 0 | AC121: Production | AD121: P | AE121: =T121 -> 0 | AF121: =U121 -> 0 | AG121: =VLOOKUP($AD121,$E$4:$O$71,5,FALSE)*IF(Variables!$Y$23=1,$AE121,$AF121) -> 0 | AH121: =VLOOKUP($AD121,$E$4:$O$71,6,FALSE)*IF(Variables!$Y$23=1,$AE121,$AF121) -> 0 | AI121: =VLOOKUP($AD121,$E$4:$O$71,7,FALSE)*IF(Variables!$Y$23=1,$AE121,$AF121) -> 0 | AJ121: =VLOOKUP($AD121,$E$4:$O$71,8,FALSE)*IF(Variables!$Y$23=1,$AE121,$AF121) -> 0 | AK121: =VLOOKUP($AD121,$E$4:$O$71,9,FALSE)*IF(Variables!$Y$23=1,$AE121,$AF121) -> 0 | AL121: =VLOOKUP($AD121,$E$4:$O$71,10,FALSE)*IF(Variables!$Y$23=1,$AE121,$AF121) -> 0 | AT121: =Report!P310 -> 0
A122: 6 | E122: Total Operating Revenues | H122: =SUM(H117:H121) -> 2579932914 | I122: 1112508192 | J122: 262478851.3 | K122: 397602558.9 | L122: 333916643.6 | M122: 110511548.2 | N122: -46825632.84 | R122: Hydro - P | S122: P | T122: =Factors!C404 -> 0 | U122: =IF(Variables!$AO$3=12,Factors!H404+Factors!K404,CHOOSE(Variables!AO$3,Factors!D404,Factors!E404,Factors!F404,Factors!G404,Factors!H404,Factors!I404,Factors!J404,Factors!K404,Factors!L404,Factors!M404,Factors!N404)) -> 0 | V122: =VLOOKUP($S122,$E$4:$O$71,5,FALSE)*IF(Variables!$Y$23=1,$T122,$U122) -> 0 | W122: =VLOOKUP($S122,$E$4:$O$71,6,FALSE)*IF(Variables!$Y$23=1,$T122,$U122) -> 0 | X122: =VLOOKUP($S122,$E$4:$O$71,7,FALSE)*IF(Variables!$Y$23=1,$T122,$U122) -> 0 | Y122: =VLOOKUP($S122,$E$4:$O$71,8,FALSE)*IF(Variables!$Y$23=1,$T122,$U122) -> 0 | Z122: =VLOOKUP($S122,$E$4:$O$71,9,FALSE)*IF(Variables!$Y$23=1,$T122,$U122) -> 0 | AA122: =VLOOKUP($S122,$E$4:$O$71,10,FALSE)*IF(Variables!$Y$23=1,$T122,$U122) -> 0 | AC122: Hydro - P | AD122: P | AE122: 0 | AF122: 0 | AG122: =VLOOKUP($AD122,$E$4:$O$71,5,FALSE)*IF(Variables!$Y$23=1,$AE122,$AF122) -> 0 | AH122: =VLOOKUP($AD122,$E$4:$O$71,6,FALSE)*IF(Variables!$Y$23=1,$AE122,$AF122) -> 0 | AI122: =VLOOKUP($AD122,$E$4:$O$71,7,FALSE)*IF(Variables!$Y$23=1,$AE122,$AF122) -> 0 | AJ122: =VLOOKUP($AD122,$E$4:$O$71,8,FALSE)*IF(Variables!$Y$23=1,$AE122,$AF122) -> 0 | AK122: =VLOOKUP($AD122,$E$4:$O$71,9,FALSE)*IF(Variables!$Y$23=1,$AE122,$AF122) -> 0 | AL122: =VLOOKUP($AD122,$E$4:$O$71,10,FALSE)*IF(Variables!$Y$23=1,$AE122,$AF122) -> 0 | AT122: =Report!P311 -> 0
A123: 7 | R123: Hydro - U | S123: P | T123: =Factors!C405 -> 0 | U123: =IF(Variables!$AO$3=12,Factors!H405+Factors!K405,CHOOSE(Variables!AO$3,Factors!D405,Factors!E405,Factors!F405,Factors!G405,Factors!H405,Factors!I405,Factors!J405,Factors!K405,Factors!L405,Factors!M405,Factors!N405)) -> 0 | V123: =VLOOKUP($S123,$E$4:$O$71,5,FALSE)*IF(Variables!$Y$23=1,$T123,$U123) -> 0 | W123: =VLOOKUP($S123,$E$4:$O$71,6,FALSE)*IF(Variables!$Y$23=1,$T123,$U123) -> 0 | X123: =VLOOKUP($S123,$E$4:$O$71,7,FALSE)*IF(Variables!$Y$23=1,$T123,$U123) -> 0 | Y123: =VLOOKUP($S123,$E$4:$O$71,8,FALSE)*IF(Variables!$Y$23=1,$T123,$U123) -> 0 | Z123: =VLOOKUP($S123,$E$4:$O$71,9,FALSE)*IF(Variables!$Y$23=1,$T123,$U123) -> 0 | AA123: =VLOOKUP($S123,$E$4:$O$71,10,FALSE)*IF(Variables!$Y$23=1,$T123,$U123) -> 0 | AC123: Hydro - U | AD123: P | AE123: 0 | AF123: 0 | AG123: =VLOOKUP($AD123,$E$4:$O$71,5,FALSE)*IF(Variables!$Y$23=1,$AE123,$AF123) -> 0 | AH123: =VLOOKUP($AD123,$E$4:$O$71,6,FALSE)*IF(Variables!$Y$23=1,$AE123,$AF123) -> 0 | AI123: =VLOOKUP($AD123,$E$4:$O$71,7,FALSE)*IF(Variables!$Y$23=1,$AE123,$AF123) -> 0 | AJ123: =VLOOKUP($AD123,$E$4:$O$71,8,FALSE)*IF(Variables!$Y$23=1,$AE123,$AF123) -> 0 | AK123: =VLOOKUP($AD123,$E$4:$O$71,9,FALSE)*IF(Variables!$Y$23=1,$AE123,$AF123) -> 0 | AL123: =VLOOKUP($AD123,$E$4:$O$71,10,FALSE)*IF(Variables!$Y$23=1,$AE123,$AF123) -> 0 | AT123: =Report!P312 -> 0
A124: 8 | C124: Operating Expenses: | R124: Transmission | S124: T | T124: =Factors!C415 -> 0 | U124: =IF(Variables!$AO$3=12,Factors!H415+Factors!K415,CHOOSE(Variables!AO$3,Factors!D415,Factors!E415,Factors!F415,Factors!G415,Factors!H415,Factors!I415,Factors!J415,Factors!K415,Factors!L415,Factors!M415,Factors!N415)) -> 0 | V124: =VLOOKUP($S124,$E$4:$O$71,5,FALSE)*IF(Variables!$Y$23=1,$T124,$U124) -> 0 | W124: =VLOOKUP($S124,$E$4:$O$71,6,FALSE)*IF(Variables!$Y$23=1,$T124,$U124) -> 0 | X124: =VLOOKUP($S124,$E$4:$O$71,7,FALSE)*IF(Variables!$Y$23=1,$T124,$U124) -> 0 | Y124: =VLOOKUP($S124,$E$4:$O$71,8,FALSE)*IF(Variables!$Y$23=1,$T124,$U124) -> 0 | Z124: =VLOOKUP($S124,$E$4:$O$71,9,FALSE)*IF(Variables!$Y$23=1,$T124,$U124) -> 0 | AA124: =VLOOKUP($S124,$E$4:$O$71,10,FALSE)*IF(Variables!$Y$23=1,$T124,$U124) -> 0 | AC124: Transmission | AD124: T | AE124: 0 | AF124: 0 | AG124: =VLOOKUP($AD124,$E$4:$O$71,5,FALSE)*IF(Variables!$Y$23=1,$AE124,$AF124) -> 0 | AH124: =VLOOKUP($AD124,$E$4:$O$71,6,FALSE)*IF(Variables!$Y$23=1,$AE124,$AF124) -> 0 | AI124: =VLOOKUP($AD124,$E$4:$O$71,7,FALSE)*IF(Variables!$Y$23=1,$AE124,$AF124) -> 0 | AJ124: =VLOOKUP($AD124,$E$4:$O$71,8,FALSE)*IF(Variables!$Y$23=1,$AE124,$AF124) -> 0 | AK124: =VLOOKUP($AD124,$E$4:$O$71,9,FALSE)*IF(Variables!$Y$23=1,$AE124,$AF124) -> 0 | AL124: =VLOOKUP($AD124,$E$4:$O$71,10,FALSE)*IF(Variables!$Y$23=1,$AE124,$AF124) -> 0 | AT124: =Report!P313 -> 0
A125: 9 | D125: Steam Production | H125: =H414 -> 515861410.9 | I125: 515861410.9 | J125: 0 | K125: 0 | L125: 0 | M125: 0 | N125: 0 | R125: Distribution | S125: DPW | T125: =Factors!C416 -> 0 | U125: =IF(Variables!$AO$3=12,Factors!H416+Factors!K416,CHOOSE(Variables!AO$3,Factors!D416,Factors!E416,Factors!F416,Factors!G416,Factors!H416,Factors!I416,Factors!J416,Factors!K416,Factors!L416,Factors!M416,Factors!N416)) -> 0 | V125: =VLOOKUP($S125,$E$4:$O$71,5,FALSE)*IF(Variables!$Y$23=1,$T125,$U125) -> 0 | W125: =VLOOKUP($S125,$E$4:$O$71,6,FALSE)*IF(Variables!$Y$23=1,$T125,$U125) -> 0 | X125: =VLOOKUP($S125,$E$4:$O$71,7,FALSE)*IF(Variables!$Y$23=1,$T125,$U125) -> 0 | Y125: =VLOOKUP($S125,$E$4:$O$71,8,FALSE)*IF(Variables!$Y$23=1,$T125,$U125) -> 0 | Z125: =VLOOKUP($S125,$E$4:$O$71,9,FALSE)*IF(Variables!$Y$23=1,$T125,$U125) -> 0 | AA125: =VLOOKUP($S125,$E$4:$O$71,10,FALSE)*IF(Variables!$Y$23=1,$T125,$U125) -> 0 | AC125: Distribution | AD125: DPW | AE125: 0 | AF125: 0 | AG125: =VLOOKUP($AD125,$E$4:$O$71,5,FALSE)*IF(Variables!$Y$23=1,$AE125,$AF125) -> 0 | AH125: =VLOOKUP($AD125,$E$4:$O$71,6,FALSE)*IF(Variables!$Y$23=1,$AE125,$AF125) -> 0 | AI125: =VLOOKUP($AD125,$E$4:$O$71,7,FALSE)*IF(Variables!$Y$23=1,$AE125,$AF125) -> 0 | AJ125: =VLOOKUP($AD125,$E$4:$O$71,8,FALSE)*IF(Variables!$Y$23=1,$AE125,$AF125) -> 0 | AK125: =VLOOKUP($AD125,$E$4:$O$71,9,FALSE)*IF(Variables!$Y$23=1,$AE125,$AF125) -> 0 | AL125: =VLOOKUP($AD125,$E$4:$O$71,10,FALSE)*IF(Variables!$Y$23=1,$AE125,$AF125) -> 0 | AT125: =Report!P314 -> 0
A126: 10 | D126: Nuclear Production | H126: =H462 -> 0 | I126: 0 | J126: 0 | K126: 0 | L126: 0 | M126: 0 | N126: 0 | R126: General | S126: G | T126: =Factors!C417 -> 0 | U126: =IF(Variables!$AO$3=12,Factors!H417+Factors!K417,CHOOSE(Variables!AO$3,Factors!D417,Factors!E417,Factors!F417,Factors!G417,Factors!H417,Factors!I417,Factors!J417,Factors!K417,Factors!L417,Factors!M417,Factors!N417)) -> 0 | V126: =VLOOKUP($S126,$E$4:$O$71,5,FALSE)*IF(Variables!$Y$23=1,$T126,$U126) -> 0 | W126: =VLOOKUP($S126,$E$4:$O$71,6,FALSE)*IF(Variables!$Y$23=1,$T126,$U126) -> 0 | X126: =VLOOKUP($S126,$E$4:$O$71,7,FALSE)*IF(Variables!$Y$23=1,$T126,$U126) -> 0 | Y126: =VLOOKUP($S126,$E$4:$O$71,8,FALSE)*IF(Variables!$Y$23=1,$T126,$U126) -> 0 | Z126: =VLOOKUP($S126,$E$4:$O$71,9,FALSE)*IF(Variables!$Y$23=1,$T126,$U126) -> 0 | AA126: =VLOOKUP($S126,$E$4:$O$71,10,FALSE)*IF(Variables!$Y$23=1,$T126,$U126) -> 0 | AC126: General | AD126: G | AE126: 0 | AF126: 0 | AG126: =VLOOKUP($AD126,$E$4:$O$71,5,FALSE)*IF(Variables!$Y$23=1,$AE126,$AF126) -> 0 | AH126: =VLOOKUP($AD126,$E$4:$O$71,6,FALSE)*IF(Variables!$Y$23=1,$AE126,$AF126) -> 0 | AI126: =VLOOKUP($AD126,$E$4:$O$71,7,FALSE)*IF(Variables!$Y$23=1,$AE126,$AF126) -> 0 | AJ126: =VLOOKUP($AD126,$E$4:$O$71,8,FALSE)*IF(Variables!$Y$23=1,$AE126,$AF126) -> 0 | AK126: =VLOOKUP($AD126,$E$4:$O$71,9,FALSE)*IF(Variables!$Y$23=1,$AE126,$AF126) -> 0 | AL126: =VLOOKUP($AD126,$E$4:$O$71,10,FALSE)*IF(Variables!$Y$23=1,$AE126,$AF126) -> 0 | AT126: =Report!P315 -> 0
A127: 11 | D127: Hydro Production | H127: =H545 -> 20650402.4 | I127: 20650402.4 | J127: 0 | K127: 0 | L127: 0 | M127: 0 | N127: 0 | R127: Mining Plant | S127: P | T127: =Factors!C418 -> 0 | U127: =IF(Variables!$AO$3=12,Factors!H418+Factors!K418,CHOOSE(Variables!AO$3,Factors!D418,Factors!E418,Factors!F418,Factors!G418,Factors!H418,Factors!I418,Factors!J418,Factors!K418,Factors!L418,Factors!M418,Factors!N418)) -> 0 | V127: =VLOOKUP($S127,$E$4:$O$71,5,FALSE)*IF(Variables!$Y$23=1,$T127,$U127) -> 0 | W127: =VLOOKUP($S127,$E$4:$O$71,6,FALSE)*IF(Variables!$Y$23=1,$T127,$U127) -> 0 | X127: =VLOOKUP($S127,$E$4:$O$71,7,FALSE)*IF(Variables!$Y$23=1,$T127,$U127) -> 0 | Y127: =VLOOKUP($S127,$E$4:$O$71,8,FALSE)*IF(Variables!$Y$23=1,$T127,$U127) -> 0 | Z127: =VLOOKUP($S127,$E$4:$O$71,9,FALSE)*IF(Variables!$Y$23=1,$T127,$U127) -> 0 | AA127: =VLOOKUP($S127,$E$4:$O$71,10,FALSE)*IF(Variables!$Y$23=1,$T127,$U127) -> 0 | AC127: Mining Plant | AD127: P | AE127: 0 | AF127: 0 | AG127: =VLOOKUP($AD127,$E$4:$O$71,5,FALSE)*IF(Variables!$Y$23=1,$AE127,$AF127) -> 0 | AH127: =VLOOKUP($AD127,$E$4:$O$71,6,FALSE)*IF(Variables!$Y$23=1,$AE127,$AF127) -> 0 | AI127: =VLOOKUP($AD127,$E$4:$O$71,7,FALSE)*IF(Variables!$Y$23=1,$AE127,$AF127) -> 0 | AJ127: =VLOOKUP($AD127,$E$4:$O$71,8,FALSE)*IF(Variables!$Y$23=1,$AE127,$AF127) -> 0 | AK127: =VLOOKUP($AD127,$E$4:$O$71,9,FALSE)*IF(Variables!$Y$23=1,$AE127,$AF127) -> 0 | AL127: =VLOOKUP($AD127,$E$4:$O$71,10,FALSE)*IF(Variables!$Y$23=1,$AE127,$AF127) -> 0 | AT127: =Report!P316 -> 0
A128: 12 | D128: Other Power Supply | H128: =H603+H655 -> 787471772.8 | I128: 787471772.8 | J128: 0 | K128: 0 | L128: 0 | M128: 0 | N128: 0 | AT128: =Report!P317 -> 0
A129: 13 | D129: Transmission | H129: =H756 -> 130168586.4 | I129: 0 | J129: 130168586.4 | K129: 0 | L129: 0 | M129: 0 | N129: 0 | R129: Total PC (Post Merger) | T129: =SUM(T121:T127) -> 0 | U129: 0 | V129: 0 | W129: 0 | X129: 0 | Y129: 0 | Z129: 0 | AA129: 0 | AC129: Total PC (Post Merger) | AE129: =SUM(AE121:AE127) -> 0 | AF129: 0 | AG129: 0 | AH129: 0 | AI129: 0 | AJ129: 0 | AK129: 0 | AL129: 0 | AT129: =Report!P318 -> 0
A130: 14 | D130: Distribution | H130: =H857 -> 118438362.8 | I130: 0 | J130: 0 | K130: 118438362.8 | L130: 118438362.8 | M130: 0 | N130: 0 | AT130: =Report!P319 -> 9601.226202
A131: 15 | D131: Customer Accounts | H131: =H892 -> 39462877.66 | I131: 0 | J131: 0 | K131: 39462877.66 | L131: 0 | M131: 39462877.66 | N131: 0 | R131: Total Deferred Taxes | T131: =T111+T118+T129 -> 0 | U131: 0 | V131: 0 | W131: 0 | X131: 0 | Y131: 0 | Z131: 0 | AA131: 0 | AC131: Total Deferred Taxes | AE131: =AE111+AE118+AE129 -> 0 | AF131: 0 | AG131: 0 | AH131: 0 | AI131: 0 | AJ131: 0 | AK131: 0 | AL131: 0 | AT131: =Report!P320 -> 0
A132: 16 | D132: Customer Service | H132: =H923 -> 5875935.465 | I132: 0 | J132: 0 | K132: 5875935.465 | L132: 0 | M132: 5875935.465 | N132: 0 | AT132: =Report!P321 -> 0
A133: 17 | D133: Sales | H133: =H953 -> 0 | I133: 0 | J133: 0 | K133: 0 | L133: 0 | M133: 0 | N133: 0 | R133: DITEXPRL FACTOR | T133: =T131/T131 ->  | U133: =U131/U131 ->  | V133: =V131/IF(Variables!$Y$23=2,$U131,$T131) ->  | W133: =W131/IF(Variables!$Y$23=2,$U131,$T131) ->  | X133: =X131/IF(Variables!$Y$23=2,$U131,$T131) ->  | Y133: =Y131/IF(Variables!$Y$23=2,$U131,$T131) ->  | Z133: =Z131/IF(Variables!$Y$23=2,$U131,$T131) ->  | AA133: =AA131/IF(Variables!$Y$23=2,$U131,$T131) ->  | AC133: DITEXPMA FACTOR | AE133: =AE131/AE131 ->  | AF133: =AF131/AF131 ->  | AG133: =AG131/IF(Variables!$Y$23=2,$AF131,$AE131) ->  | AH133: =AH131/IF(Variables!$Y$23=2,$AF131,$AE131) ->  | AI133: =AI131/IF(Variables!$Y$23=2,$AF131,$AE131) ->  | AJ133: =AJ131/IF(Variables!$Y$23=2,$AF131,$AE131) ->  | AK133: =AK131/IF(Variables!$Y$23=2,$AF131,$AE131) ->  | AL133: =AL131/IF(Variables!$Y$23=2,$AF131,$AE131) ->  | AT133: =Report!P322 -> -483829.5558
A134: 18 | D134: Administrative & General | H134: =H1038 -> 290254925.3 | I134: 114620237.7 | J134: 87413551.57 | K134: 88221136.01 | L134: 79487990.3 | M134: -810766.3586 | N134: 9543912.072 | AT134: =Report!P323 -> -89157.65968
A135: 19 | AT135: =Report!P324 -> -563385.9892
A136: 20 | D136: Total O & M Expenses | H136: =SUM(H125:H134) -> 1908184274 | I136: 1438603824 | J136: 217582138 | K136: 251998311.9 | L136: 197926353.1 | M136: 44528046.76 | N136: 9543912.072 | AT136: =Report!P325 -> 0
A137: 21 | AT137: =Report!P326 -> -563404.4934
A138: 22 | D138: Depreciation | H138: =H1128 -> 500251589.4 | I138: 290796224.1 | J138: 90112274.38 | K138: 119343090.9 | L138: 116955413.7 | M138: 2387677.217 | N138: 0 | AT138: =Report!P327 -> 0
A139: 23 | D139: Amortization Expense | H139: =H1208 -> 81466808.88 | I139: 9444440.693 | J139: 3541039.887 | K139: 68481328.3 | L139: 65454057.54 | M139: 3027270.757 | N139: 0 | AT139: =Report!P328 -> 0
A140: 24 | D140: Taxes Other Than Income | H140: =H1236 -> 80048147.31 | I140: 42118937.14 | J140: 16672353.67 | K140: 21256856.5 | L140: 20761237.91 | M140: 486692.7788 | N140: 8925.81 | AT140: =Report!P329 -> 701452.93
A141: 25 | D141: Income Taxes - Federal | H141: =H1445 -> -175196189.9 | I141: -302513348.6 | J141: -32742330.32 | K141: -9290727.441 | L141: -8965293.024 | M141: 11120213.83 | N141: -11445648.25 | AT141: =Report!P330 -> 701452.93
A142: 26 | D142: Income Taxes - State | H142: =H1412 -> -54669285.58 | I142: -45149318.38 | J142: -7415732.463 | K142: -2104234.745 | L142: -2030527.878 | M142: 2518590.763 | N142: -2592297.63 | AT142: =Report!P331 -> 701452.93
A143: 27 | D143: Income Taxes - Def Net | H143: =H1334 -> 12185766.11 | I143: 28382453.71 | J143: 4728342.786 | K143: -20925030.39 | L143: -21473588.48 | M143: 548558.0866 | N143: 0 | AT143: =Report!P332 -> 0
A144: 28 | D144: Investment Tax Credit Adj. | H144: =H1249 -> -311713.056 | I144: -130449.4885 | J144: -94319.06375 | K144: -86944.50372 | L144: -86944.50372 | M144: 0 | N144: 0 | AT144: =Report!P333 -> 138048.4366
A145: 29 | D145: Misc Revenue & Expense | H145: =H333 -> 138048.4366 | I145: -291655.0682 | J145: -136797.3601 | K145: 566500.8649 | L145: -134952.0651 | M145: 701452.93 | N145: 0 | AT145: =Report!P334 -> 0
A146: 30 | AT146: =Report!P335 -> 0
A147: 31 | D147: Total Operating Expenses | H147: =SUM(H136:H145) -> 2352097445 | I147: 1461261108 | J147: 292246969.5 | K147: 429239151.4 | L147: 368405756.3 | M147: 65318503.13 | N147: -4485107.997 | AT147: =Report!P336 -> 19569585.77
A148: 32 | AT148: =Report!P337 -> 0
A149: 33 | C149: Operating Revenue for Return | H149: =H122-H147 -> 227835468.7 | I149: -348752915.7 | J149: -29768118.22 | K149: -31636592.49 | L149: -34489112.7 | M149: 45193045.05 | N149: -42340524.84 | AT149: =Report!P338 -> 19569585.77
A150: 34 | AT150: =Report!P339 -> 0
A151: 35 | C151: Rate Base: | AT151: =Report!P340 -> 0
A152: 36 | D152: Electric Plant in Service | H152: =H2073 -> 1.622847294e+10 | I152: 6718051575 | J152: 4856947044 | K152: 4653474318 | L152: 4530040165 | M152: 123434152.8 | N152: 0 | AT152: =Report!P341 -> 0
A153: 37 | D153: Plant Held for Future Use | H153: =H2096 -> 5960190.395 | I153: 57133.14294 | J153: 619936.5912 | K153: 5283120.661 | L153: 5276690.392 | M153: 6430.268811 | N153: 0 | AT153: =Report!P342 -> 9959934.077
A154: 38 | D154: Misc Deferred Debits | H154: =H2204+H2215 -> 179774392.1 | I154: 107467189.2 | J154: 27798328.92 | K154: 44508874.04 | L154: 11338925.92 | M154: 2360881.913 | N154: 30809066.2 | AT154: =Report!P343 -> 0
A155: 39 | D155: Elec Plant Acq Adj | H155: =H2102+H2108 -> 9971866.905 | I155: 9971866.905 | J155: 0 | K155: 0 | L155: 0 | M155: 0 | N155: 0 | AT155: =Report!P344 -> 0
A156: 40 | D156: Nuclear Fuel | H156: =H2112 -> 1.716801219e-07 | I156: 7.332956661e-08 | J156: 1.176877419e-08 | K156: 8.658178112e-08 | L156: 6.100450916e-08 | M156: 2.557727196e-08 | N156: 0 | AT156: =Report!P345 -> 0
A157: 41 | D157: Prepayments | H157: =H2194 -> 97895907.68 | I157: 34888263.58 | J157: 31244156.03 | K157: 31763488.07 | L157: 27890959.23 | M157: 25526.61102 | N157: 3847002.221 | AT157: =Report!P346 -> 9959934.077
A158: 42 | D158: Fuel Stock | H158: =H2159 -> 114712176.1 | I158: 114712176.1 | J158: 0 | K158: 0 | L158: 0 | M158: 0 | N158: 0 | AT158: =Report!P347 -> 0
A159: 43 | D159: Material & Supplies | H159: =H2186 -> 224799291.4 | I159: 189527275.6 | J159: 1457689.613 | K159: 33814326.2 | L159: 33814326.2 | M159: 0 | N159: 0 | AT159: =Report!P348 -> 0
A160: 44 | D160: Working Capital | H160: =H2242 -> 92914646.57 | I160: 52384120.92 | J160: 16341496.58 | K160: 24189029.07 | L160: 22470188.97 | M160: 1825522.373 | N160: -106682.2737 | AT160: =Report!P349 -> 0
A161: 45 | D161: Weatherization Loans | H161: =H2134 -> 0.12 | I161: 0 | J161: 0 | K161: 0.12 | L161: 0 | M161: 0 | N161: 0.12 | AT161: =Report!P350 -> 355181606.1
A162: 46 | D162: Miscellaneous Rate Base | H162: =H2262 -> 0 | I162: 0 | J162: 0 | K162: 0 | L162: 0 | M162: 0 | N162: 0 | AT162: =Report!P351 -> 0
A163: 47 | AT163: =Report!P352 -> 0
A164: 48 | D164: Total Electric Plant | H164: =SUM(H152:H163) -> 1.695450141e+10 | I164: 7227059600 | J164: 4934408651 | K164: 4793033156 | L164: 4630831256 | M164: 127652513.9 | N164: 34549386.27 | AT164: =Report!P353 -> 0
A165: 49 | AT165: =Report!P354 -> 355181606.1
A166: 50 | C166: Rate Base Deductions: | AT166: =Report!P355 -> 0
A167: 51 | D167: Accum Prov For Depr | H167: =H2565 -> -5218477915 | I167: -2609566372 | J167: -1203223981 | K167: -1405687563 | L167: -1353890024 | M167: -51797538.57 | N167: 0 | AT167: =Report!P356 -> 365141540.2
A168: 52 | D168: Accum Prov For Amort | H168: =H2614 -> -225221939.1 | I168: -102875326.9 | J168: -39997662.71 | K168: -82348949.45 | L168: -27544479.5 | M168: -54804469.95 | N168: 0 | AT168: =Report!P357 -> 0
A169: 53 | D169: Accum Def Income Taxes | H169: =H2362 -> -1288259101 | AT169: =Report!P358 -> 0
A170: 54 | D170: Unamortized ITC | H170: =H2372 -> -1927533.881 | I170: -806657.931 | J170: -583238.9356 | K170: -537637.0141 | L170: -537637.0141 | M170: 0 | N170: 0 | AT170: =Report!P359 -> 30994354.05
A171: 55 | D171: Customer Adv for Const | H171: =H2295 -> -153555663.3 | I171: 0 | J171: -118013118.3 | K171: -35542545.05 | L171: -35542545.05 | M171: 0 | N171: 0 | AT171: =Report!P360 -> 0
A172: 56 | D172: Customer Service Deposits | H172: =H2268 -> -13298302.82 | I172: =I2268 -> 0 | J172: 0 | K172: -13298302.82 | L172: 0 | M172: -13298302.82 | N172: 0 | AT172: =Report!P361 -> 30994354.05
A173: 57 | D173: Misc. Rate Base Deductions | H173: =H2276+H2281+H2287+H2306+H2299 -> -732365227.2 | I173: =I2276+I2281+I2287+I2306+I2299 -> -696572118.3 | J173: -17018408.63 | K173: -18774700.29 | L173: -17732159.85 | M173: -1042540.443 | N173: 0 | AT173: =Report!P362 -> 0
A174: 58 | AT174: =Report!P363 -> 0
A175: 59 | D175: Total Rate Base Deductions | H175: =SUM(H167:H173) -> -7633105683 | AT175: =Report!P364 -> 0
A176: 60 | P176: Functional Retail Revenue Spread | AT176: =Report!P365 -> 0
A177: 61 | C177: Total Rate Base | H177: =H164+H175 -> 9321395724 | Q177: =$I$115 -> Production | R177: =$J$115 -> Transmission | S177: =$K$115 -> Distribution | T177: =$L$115 -> Distribution | U177: Customer | V177: =$N$115 -> Misc | AT177: =Report!P366 -> 0
A178: 62 | P178: California | AT178: =Report!P367 -> 0
A179: 63 | C179: Return on Rate Base | H179: =H149/H177 -> 0.02444220538 | P179: Washington | AT179: =Report!P368 -> 2454942.31
A180: 64 | P180: Montana | AT180: =Report!P369 -> 2454942.31
A181: 65 | C181: Return on Equity | H181: =(+H179-Variables!$AT$3-Variables!$AT$4)/Variables!$AT$5 -> -0.01235261131 | I181: =(+I179-Variables!$AT$3-Variables!$AT$4)/Variables!$AT$5 ->  | J181: =(+J179-Variables!$AT$3-Variables!$AT$4)/Variables!$AT$5 ->  | K181: =(+K179-Variables!$AT$3-Variables!$AT$4)/Variables!$AT$5 ->  | L181: =(+L179-Variables!$AT$3-Variables!$AT$4)/Variables!$AT$5 ->  | M181: =(+M179-Variables!$AT$3-Variables!$AT$4)/Variables!$AT$5 ->  | N181: =(+N179-Variables!$AT$3-Variables!$AT$4)/Variables!$AT$5 ->  | P181: Wyoming - East | Q181: 127802829 | R181: 31696874 | S181: 50094096.44 | T181: 46928984 | U181: 1555189 | V181: 1610923.44 | AT181: =Report!P370 -> 0
A182: 66 | P182: Utah | Q182: 366003980 | R182: 104207074 | S182: 215005203.7 | T182: 197478510 | U182: 11984031 | V182: 5542662.72 | AT182: =Report!P371 -> 0
A183: 67 | C183: 100 Basis Points in Equity: | H183: =(H177*(Variables!$AT5*(H181+0.01)+Variables!$AT3+Variables!$AT4))-H149 -> 39709145.78 | I183: =(I177*(Variables!AT5*(I181+0.01)+Variables!AT3+Variables!AT4))-I149 ->  | J183: =(J177*(Variables!AU5*(J181+0.01)+Variables!AU3+Variables!AU4))-J149 ->  | K183: =(K177*(Variables!$AV5*(K181+0.01)+Variables!$AV3+Variables!$AV4))-K149 ->  | L183: =(L177*(Variables!$AV5*(L181+0.01)+Variables!$AV3+Variables!$AV4))-L149 ->  | M183: =(M177*(Variables!$AV5*(M181+0.01)+Variables!$AV3+Variables!$AV4))-M149 ->  | N183: =(N177*(Variables!$AV5*(N181+0.01)+Variables!$AV3+Variables!$AV4))-N149 ->  | P183: Idaho | Q183: 55561275 | R183: 14318016 | S183: 30397767.02 | T183: 27273473 | U183: 2038247 | V183: 1086047.02 | AT183: =Report!P372 -> 515135.7209
A184: 68 | D184: Revenue Requirement Impact | H184: =H183*(1/(1-(INDEX(Variables!$F$15:$Q$15,1,Variables!$AO$3)))) -> 52655291.75 | I184: =I183*(1/(1-(INDEX(Variables!$F$15:$Q$15,1,Variables!$AO$3)))) ->  | J184: =J183*(1/(1-(INDEX(Variables!$F$15:$Q$15,1,Variables!$AO$3)))) ->  | K184: =K183*(1/(1-(INDEX(Variables!$F$15:$Q$15,1,Variables!$AO$3)))) ->  | L184: =L183*(1/(1-(INDEX(Variables!$F$15:$Q$15,1,Variables!$AO$3)))) ->  | M184: =M183*(1/(1-(INDEX(Variables!$F$15:$Q$15,1,Variables!$AO$3)))) ->  | N184: =N183*(1/(1-(INDEX(Variables!$F$15:$Q$15,1,Variables!$AO$3)))) ->  | P184: Wyoming - West | Q184: 19756255.66 | R184: 5006765.992 | S184: 9963427.118 | T184: 8733400.13 | U184: 996768.2125 | V184: 233258.5417 | AT184: =Report!P373 -> 0
A185: 69 | D185: Rate Base Decrease | H185: =(H149/(Variables!$AT5*(H181+0.01)+UTCR!$J7+UTCR!$J12))-H177 -> -1383487619 | I185: =(I149/(Variables!$AT5*(I181+0.01)+UTCR!$J7+UTCR!$J12))-I177 ->  | J185: =(J149/(Variables!$AU5*(J181+0.01)+UTCR!$J7+UTCR!$J12))-J177 ->  | K185: =(K149/(Variables!$AV5*(K181+0.01)+UTCR!$J7+UTCR!$J12))-K177 ->  | L185: =(L149/(Variables!$AV5*(L181+0.01)+UTCR!$J7+UTCR!$J12))-L177 ->  | M185: =(M149/(Variables!$AV5*(M181+0.01)+UTCR!$J7+UTCR!$J12))-M177 ->  | N185: =(N149/(Variables!$AV5*(N181+0.01)+UTCR!$J7+UTCR!$J12))-N177 ->  | O185: Check | P185: Total Company | Q185: 1110556694 | R185: 308995072.2 | S185: 611877930.3 | T185: 566002564.9 | U185: 14881002.1 | V185: 30994363.59 | AT185: =Report!P374 -> 515135.7209
C186: =$C$109 -> 2020 PROTOCOL | W186: Check Total | AT186: =Report!P375 -> 0
C187: =$C$110 -> 13-Month Average | Q187: =($H179-I179)*I177*(1/(1-Variables!$F$15)) ->  | R187: =($H179-J179)*J177*(1/(1-Variables!$F$15)) ->  | S187: =($H179-K179)*K177*(1/(1-Variables!$F$15)) ->  | T187: =($H179-L179)*L177*(1/(1-Variables!$F$15)) ->  | U187: =($H179-M179)*M177*(1/(1-Variables!$F$15)) ->  | V187: =($H179-N179)*N177*(1/(1-Variables!$F$15)) ->  | W187: =ABS(SUM(Q187:V187)) ->  | AT187: =Report!P376 -> 0
C188: FERC | F188: BUSINESS | G188: PITA | H188: =$H$114 -> UTAH | Q188: =Q187+I192 ->  | W188: =SUM(Q188:V188,-S188) ->  | AT188: =Report!P377 -> 22976612.25
C189: ACCT | E189: DESCRIPTION | F189: FUNCTION | G189: FACTOR | H189: =$H$115 -> Normalized | I189: =$I$115 -> Production | J189: =$J$115 -> Transmission | K189: =$K$115 -> Distribution | L189: =$L$115 -> Distribution | M189: =$M$115 -> Retail | N189: =$N$115 -> Misc | O189: Check | Q189: =$I$115 -> Production | R189: =$J$115 -> Transmission | S189: =$K$115 -> Distribution | T189: =$L$115 -> Distribution | U189: Customer | V189: =$N$115 -> Misc | AT189: =Report!P378 -> 591157.9426
A190: 70 | C190: Sales to Ultimate Customers | O190: Figure | AT190: =Report!P379 -> 0
A191: 71 | C191: 440 | D191: Residential Sales | I191: =($H179-I179)*I177*(1/(1-Variables!$F$15)) ->  | J191: =($H179-J179)*J177*(1/(1-Variables!$F$15)) ->  | K191: =($H179-K179)*K177*(1/(1-Variables!$F$15)) ->  | L191: =($H179-L179)*L177*(1/(1-Variables!$F$15)) ->  | M191: =($H179-M179)*M177*(1/(1-Variables!$F$15)) ->  | N191: =($H179-N179)*N177*(1/(1-Variables!$F$15)) ->  | O191: =H117 -> 2381581836 | AT191: =Report!P380 -> 23567770.19
A192: 72 | G192: =UTCR!H192 -> S | H192: =IF(Variables!$Y$23=2,Report!P192,NRO!I192) -> 977656998.8 | I192: 977172367.9 | J192: 216383210.4 | K192: 380682946.1 | L192: 328900482.9 | M192: 98030572.23 | N192: -46248109.03 | O192: =SUM(L192:N192)+J192+I192 -> 1574238524 | P192: =+O192-O191 -> -807343311.6 | Q192: =IF($F192=0,0,INDEX($I192:$N192,1,1)) -> 0 | R192: =IF($F192=0,0,INDEX($I192:$N192,1,2)) -> 0 | S192: =IF($F192=0,0,INDEX($I192:$N192,1,3)) -> 0 | T192: =IF($F192=0,0,INDEX($I192:$N192,1,4)) -> 0 | U192: =IF($F192=0,0,INDEX($I192:$N192,1,5)) -> 0 | V192: =IF($F192=0,0,INDEX($I192:$N192,1,6)) -> 0 | AT192: =Report!P381 -> 0
A193: 73 | Q193: 0 | R193: 0 | S193: 0 | T193: 0 | U193: 0 | V193: 0 | AT193: =Report!P382 -> 0
A194: 74 | H194: =SUBTOTAL(9,H192:H193) -> 977656998.8 | I194: 977172367.9 | J194: 216383210.4 | K194: 380682946.1 | L194: 328900482.9 | M194: 98030572.23 | N194: -46248109.03 | Q194: 0 | R194: 0 | S194: 0 | T194: 0 | U194: 0 | V194: 0 | AT194: =Report!P383 -> 242078.9978
A195: 75 | Q195: 0 | R195: 0 | S195: 0 | T195: 0 | U195: 0 | V195: 0 | AT195: =Report!P384 -> 0
A196: 76 | C196: 442 | D196: Commercial & Industrial Sales | Q196: 0 | R196: 0 | S196: 0 | T196: 0 | U196: 0 | V196: 0 | AT196: =Report!P385 -> 242078.9978
A197: 77 | G197: =UTCR!H197 -> S | H197: =IF(Variables!$Y$23=2,Report!P197,NRO!I197) -> 1397952874 | Q197: 0 | R197: 0 | S197: 0 | T197: 0 | U197: 0 | V197: 0 | AT197: =Report!P386 -> 0
A198: 78 | F198: P | G198: =UTCR!H198 -> SE | H198: =IF(Variables!$Y$23=2,Report!P198,NRO!I198) -> 0 | I198: =IF(F198=(VLOOKUP(F198,$E$4:$N$71,1)),VLOOKUP(F198,$E$4:$N$71,5),"#N/A")*H198 -> 0 | J198: =IF(F198=(VLOOKUP(F198,$E$4:$N$71,1)),VLOOKUP(F198,$E$4:$N$71,6),"#N/A")*H198 -> 0 | K198: =IF(F198=(VLOOKUP(F198,$E$4:$N$71,1)),VLOOKUP(F198,$E$4:$N$71,7),"#N/A")*H198 -> 0 | L198: =IF(F198=(VLOOKUP(F198,$E$4:$N$71,1)),VLOOKUP(F198,$E$4:$N$71,8),"#N/A")*H198 -> 0 | M198: =IF(F198=(VLOOKUP(F198,$E$4:$N$71,1)),VLOOKUP(F198,$E$4:$N$71,9),"#N/A")*H198 -> 0 | N198: =IF(F198=(VLOOKUP(F198,$E$4:$N$71,1)),VLOOKUP(F198,$E$4:$N$71,10),"#N/A")*H198 -> 0 | Q198: 0 | R198: 0 | S198: 0 | T198: 0 | U198: 0 | V198: 0 | AT198: =Report!P387 -> 0
A199: 79 | F199: PT | G199: =UTCR!H199 -> SG | H199: =IF(Variables!$Y$23=2,Report!P199,NRO!I199) -> 0 | I199: =(IF(F199=(VLOOKUP(F199,$E$4:$N$71,1)),VLOOKUP(F199,$E$4:$N$71,5),"#N/A")*H199)+0 -> 0 | J199: =(IF(F199=(VLOOKUP(F199,$E$4:$N$71,1)),VLOOKUP(F199,$E$4:$N$71,6),"#N/A")*H199)+0 -> 0 | K199: =(IF(F199=(VLOOKUP(F199,$E$4:$N$71,1)),VLOOKUP(F199,$E$4:$N$71,7),"#N/A")*H199)+0 -> 0 | L199: =(IF(F199=(VLOOKUP(F199,$E$4:$N$71,1)),VLOOKUP(F199,$E$4:$N$71,8),"#N/A")*H199)+0 -> 0 | M199: =(IF(F199=(VLOOKUP(F199,$E$4:$N$71,1)),VLOOKUP(F199,$E$4:$N$71,9),"#N/A")*H199)+0 -> 0 | N199: =(IF(F199=(VLOOKUP(F199,$E$4:$N$71,1)),VLOOKUP(F199,$E$4:$N$71,10),"#N/A")*H199)+0 -> 0 | Q199: 0 | R199: 0 | S199: 0 | T199: 0 | U199: 0 | V199: 0 | AT199: =Report!P388 -> 4793720.036
A200: 80 | Q200: 0 | R200: 0 | S200: 0 | T200: 0 | U200: 0 | V200: 0 | AT200: =Report!P389 -> 0
... 2047 more rows

Sheet Function1149 (hidden)
E1: =H114 -> UTAH | F1: =C111 -> RESULTS OF OPERATIONS SUMMARY | T1: UNADJUSTED RESULTS OF OPERATIONS
T2: =Variables!AE27 -> 2020 PROTOCOL
E3: Function | F3: Description | I3: Production | J3: Transmission | K3: Distribution | L3: Ancillary | M3: C_Billing | N3: C_Metering | O3: C_Service | P3: DSM | Q3: Total | T3: =Variables!AE28 -> 
F5: Internal Factors | W5: PACIFICORP | X5: PACIFICORP
E6: ACCMDIT | F6: Deferred Income Tax - Balance | I6: =X73 ->  | Q6: =SUM(I6:P6) ->  | T6: FERC | U6: DESCRIPTION | W6: LABOR | X6: O&M
E7: CWC | F7: Cash Working Capital | I7: =IF(ISERROR(X$70/$W$70),1,X$70/$W$70) -> 0.6161722786 | J7: 0.127126794 | K7: 0.1860933448 | L7: -1.625813428e-05 | M7: 0.02441192114 | N7: 0.02309963479 | O7: 0.02311228488 | P7: 0 | Q7: =SUM(I7:P7) -> 1 | T7: ACCT | W7: ONLY | X7: TOTAL | Y7: =Variables!X24 -> UTAH
E8: D_SPLIT | F8: Distribution Slit between Functions | I8: 0 | J8: 0 | K8: =Y62 -> 0.9651918423 | L8: 0 | M8: 0 | N8: =Y63 -> 0.03480815766 | O8: 0 | P8: 0 | Q8: 1
E9: DITEXP | F9: Deferred Income Tax - Expense | I9: =X74 -> 
E10: FIT | F10: Federal Income Taxes | I10: =I$1434/$H$1434 -> 1.781777123 | J10: =IF(ISERROR(J$1434/$H$1434),1,J$1434/$H$1434) -> 0.5056180445 | K10: 0.4403048047 | L10: 0.006762983696 | M10: 0.006428393227 | N10: 0.02647531914 | O10: 0.04120116842 | P10: -7.582598782e-308 | Q10: 2.808567836 | T10: Production | W10: 90698845 | X10: =URO!I657 -> 3224443723 | Y10: =IF(Variables!AO3=12,URO!N657+URO!Q657,CHOOSE(Variables!AO3,URO!J657,URO!K657,URO!L657,URO!M657,URO!N657,URO!O657,URO!P657,URO!Q657,URO!R657,URO!S657,URO!T657)) -> 1323983586 | AA10: Meter O&M Split
E11: GP | F11: Gross Plant | I11: =(I$152)/($H$152) -> 0.3511857567 | J11: =(J$152)/($H$152) -> 0.3169528326 | K11: 0.3109307831 | L11: 0 | M11: 0.004128255227 | N11: 0.01383572159 | O11: 0.002966650861 | P11: 0 | Q11: 1 | T11: Transmission | W11: 10748429 | X11: =URO!I757 -> 289030035.7 | Y11: =IF(Variables!AO3=12,URO!N757+URO!Q757,CHOOSE(Variables!AO3,URO!J757,URO!K757,URO!L757,URO!M757,URO!N757,URO!O757,URO!P757,URO!Q757,URO!R757,URO!S757,URO!T757)) -> 130168586.4 | AB11: 1998 | AC11: 1997 | AD11: Total | AE11: Percent
E12: IBT | F12: Income Before Taxes | I12: =I$1419/$H$1419 -> -10.64814394 | J12: =IF(ISERROR(J$1419/$H$1419),1,J$1419/$H$1419) -> -4.652230822 | K12: -4.05127864 | L12: -0.06222673725 | M12: -0.0591481444 | N12: -0.2436014638 | O12: -0.3790951445 | P12: 6.976807919e-307 | Q12: -20.09572489 | T12: Distribution | W12: =W17 -> 41944504.6 | X12: 349232541.1 | Y12: 116938562.9 | AA12: Account 586 597 | AB12: =7716052+814586 -> 8530638 | AC12: =5317324+1141217 -> 6458541 | AD12: =AB12+AC12 -> 14989179 | AE12: =AD12/$AD$13 -> 0.0801081302
E13: NP | F13: Net Plant | I13: =(I$152+I$167+I$168)/($H$152+$H$167+$H$168) -> 0.2466694897 | J13: =(J$152+J$167+J$168)/($H$152+$H$167+$H$168) -> 0.3919711718 | K13: 0.3525564095 | L13: 0 | M13: -0.002628297414 | N13: 0.01142618829 | O13: 5.038113134e-06 | P13: 0 | Q13: 1 | T13: Customer Billing | W13: 35215299.05 | X13: 323883835.1 | Y13: 42192900.17 | AA13: TTL Dist Exp | AB13: 97117213 | AC13: 89994619 | AD13: =AB13+AC13 -> 187111832 | AE13: =AD13/$AD$13 -> 1
E14: PT | F14: Production / Transmission | I14: =IF(Variables!$Y$23=1,Function1149!X$51,Function1149!Y$51) -> 0.5803725085 | J14: =IF(Variables!$Y$23=1,Function1149!X$52,Function1149!Y$52) -> 0.4196274915 | K14: 0 | L14: 0 | M14: 0 | N14: 0 | O14: 0 | P14: 0 | Q14: 1 | T14: Customer Metering | W14: 15369458.98 | X14: 13898480 | Y14: 4645712.892
E15: PTD | F15: Prod, Trans, Dist Plant | I15: =IF(Variables!$Y$23=1,Function1149!X$44,Function1149!Y$44) -> 0.418492219 | J15: =IF(Variables!$Y$23=1,Function1149!X$45,Function1149!Y$45) -> 0.3025829748 | K15: =IF(Variables!$Y$23=1,Function1149!X$46,Function1149!Y$46) -> 0.2692159476 | L15: 0 | M15: 0 | N15: =IF(Variables!$Y$23=1,Function1149!X$47,Function1149!Y$47) -> 0.00970885863 | O15: 0 | P15: 0 | Q15: 1 | T15: TOTAL | W15: =SUM(W10:W14) -> 193976536.6 | X15: =SUM(X10:X14) -> 4200488615 | Y15: =SUM(Y10:Y14) -> 1617929348 | AA15: Meter Reading Labor Split
E16: REVREQ | F16: Revenue Requirement | I16: =IF(ISERROR(I$122/$H$122),1,I$122/$H$122) -> 0.2965917853 | J16: =IF(ISERROR(J$122/$H$122),1,J$122/$H$122) -> 0.04761124178 | K16: 0.07726864583 | L16: -0.001637533238 | M16: 0.01264225042 | N16: 0.009728392859 | O16: 0.002648792438 | P16: 0 | Q16: =SUM(I16:P16) -> 0.4448535754 | AB16: 1998 | AC16: 1997 | AD16: Total | AE16: Percent
E17: T_SPLIT | F17: Transmission Split | I17: =I$1752/$H$1752 -> 0.02393913895 | J17: =J$1752/$H$1752 -> 0.9760608611 | K17: 0 | L17: 0 | M17: 0 | N17: 0 | O17: 0 | P17: 0 | Q17: 1 | T17: Poles & Wires | W17: =45597212*(1-AE12) -> 41944504.6 | X17: =URO!I859-URO!I852-URO!I797 -> 349232541.1 | Y17: =INDEX(URO!$J$859:$R$859,,Variables!$AO$3)-INDEX(URO!$J$852:$R$852,,Variables!$AO$3)-INDEX(URO!$J$797:$R$797,,Variables!$AO$3) -> 116938562.9 | AA17: Account 902 | AB17: 17740463 | AC17: 17582340 | AD17: =AB17+AC17 -> 35322803 | AE17: =AD17/$AD$18 -> 0.243929702
E18: TD | F18: Transmission / Distribution | I18: 0 | J18: =IF(Variables!$Y$23=1,Function1149!$X$56,Function1149!$Y$56) -> 0.5203420912 | K18: =IF(Variables!$Y$23=1,Function1149!$X$57,Function1149!$Y$57) -> 0.4629619007 | L18: 0 | M18: 0 | N18: =IF(Variables!$Y$23=1,Function1149!$X$58,Function1149!$Y$58) -> 0.01669600811 | O18: 0 | P18: 0 | Q18: =SUM(I18:P18) -> 1 | T18: Customer Billing | W18: =(38485186+6117793)-(38485186*$AE$17) -> 35215299.05 | X18: =URO!I894+URO!I963-URO!I876 -> 323883835.1 | Y18: =INDEX(URO!$J$894:$R$894,,Variables!$AO$3)+INDEX(URO!$J$963:$R$963,,Variables!$AO$3)-INDEX(URO!$J$876:$R$876,,Variables!$AO$3) -> 42192900.17 | AA18: Ttl Cust Service | AB18: 72030470 | AC18: 72776836 | AD18: =AB18+AC18 -> 144807306 | AE18: =AD18/$AD$18 -> 1
T19: Customer Metering | W19: =38485186*$AE$17+(74671310*AE12) -> 15369458.98 | X19: =URO!I852+URO!I797+URO!I876 -> 13898480 | Y19: =INDEX(URO!$J$852:$R$852,,Variables!$AO$3)+INDEX(URO!$J$797:$R$797,,Variables!$AO$3)+INDEX(URO!$J$876:$R$876,,Variables!$AO$3) -> 4645712.892
F20: External Factors | T20: Misc | AA20: Source: FERC FORM 1 Page 322
E21: ANC | F21: Ancillary Function | I21: 0 | J21: 0 | K21: 0 | L21: 1 | M21: 0 | N21: 0 | O21: 0 | P21: 0 | Q21: =SUM(I21:P21) -> 1 | T21: TOTAL DISTRIBUTION | W21: =SUM(W17:W20) -> 92529262.63 | X21: =SUM(X17:X20) -> 687014856.2 | Y21: =SUM(Y17:Y20) -> 163777175.9
E22: B_CENTER | F22: Business Centers | I22: 0 | J22: 0 | K22: 0 | L22: 0 | M22: 0.7453435853 | N22: 0 | O22: 0.2546564147 | P22: 0 | Q22: =SUM(I22:P22) -> 1
E23: BOOKDEPR | F23: Book Depreciation | I23: 0.4845650437 | J23: 0.1558154864 | K23: 0.3420665007 | L23: 0 | M23: 0.00362896348 | N23: 0.01392400566 | O23: 0 | P23: 0 | Q23: 1 | T23: Labor/O&M
E24: C_METER | F24: Customer Metering | I24: 0 | J24: 0 | K24: 0 | L24: 0 | M24: 0 | N24: 1 | O24: 0 | P24: 0 | Q24: 1 | T24: Production | W24: =W10/W$15 -> 0.4675763707 | X24: 0.7676353917 | Y24: 0.8183197786
E25: C_SERVICE | F25: Customer Other | I25: 0 | J25: 0 | K25: 0 | L25: 0 | M25: 0 | N25: 0 | O25: 1 | P25: 0 | Q25: 1 | T25: Transmission | W25: 0.05541097489 | X25: 0.06880867018 | Y25: 0.08045381371
E26: COM_EQ | F26: Communication Equipment Acct 397 | I26: 0.159434 | J26: 0.393847 | K26: 0.432754 | L26: 0 | M26: 0 | N26: 0 | O26: 0.013965 | P26: 0 | Q26: 1 | T26: Distribution | W26: 0.2162349392 | X26: 0.08314093265 | Y26: 0.07227668067
E27: CSS_SYS | F27: CSS System | I27: 0 | J27: 0 | K27: 0 | L27: 0 | M27: 0.55 | N27: 0.18 | O27: 0.27 | P27: 0 | Q27: 1 | T27: Customer Billing | W27: 0.1815441169 | X27: 0.07710622854 | Y27: 0.02607833291
E28: CUST | F28: Customer Billing | I28: 0 | J28: 0 | K28: 0 | L28: 0 | M28: 1 | N28: 0 | O28: 0 | P28: 0 | Q28: 1 | T28: Customer Metering | W28: 0.07923359827 | X28: 0.003308776972 | Y28: 0.002871394166
E29: CUST901 | F29: Supervision | I29: 0 | J29: 0 | K29: 0 | L29: 0 | M29: 0.6345753273 | N29: -0.06989238368 | O29: 0.4353170564 | P29: 0 | Q29: 1 | T29: TOTAL | W29: =SUM(W24:W28) -> 1 | X29: =SUM(X24:X28) -> 1 | Y29: =SUM(Y24:Y28) -> 1
E30: CUST903 | F30: Cust. Records & Coll. Exp. | I30: 0 | J30: 0 | K30: 0 | L30: 0 | M30: 0.5961416623 | N30: 0 | O30: 0.4038583377 | P30: 0 | Q30: 1
E31: CUST905 | F31: Misc. Customer Acct. Exp. | I31: 0 | J31: 0 | K31: 0 | L31: 0 | M31: 0.08871429249 | N31: 0.07696437586 | O31: 0.8343213317 | P31: 0 | Q31: 1 | T31: Distribution | W31: =W17/W$21 -> 0.4533106978 | X31: 0.5083333176 | Y31: 0.7140101312
E32: D | F32: Distribution Only | I32: 0 | J32: 0 | K32: 1 | L32: 0 | M32: 0 | N32: 0 | O32: 0 | P32: 0 | Q32: 1 | T32: Customer Billing | W32: 0.3805855364 | X32: 0.4714364358 | Y32: 0.2576238107
E33: DDS2 | F33: Deferred Debits - Situs | I33: 0.5072219508 | J33: 0.1845855021 | K33: 0.2834051309 | L33: 0 | M33: 0.01256905969 | N33: 0.01221835658 | O33: 0 | P33: 0 | Q33: 1 | T33: Customer Metering | W33: 0.1661037659 | X33: 0.02023024666 | Y33: 0.02836605813
E34: DDS6 | F34: Deferred Debits - Situs | I34: 0 | J34: 1 | K34: 0 | L34: 0 | M34: 0 | N34: 0 | O34: 0 | P34: 0 | Q34: 1 | T34: Total Distribution | W34: =SUM(W31:W33) -> 1 | X34: =SUM(X31:X33) -> 1 | Y34: =SUM(Y31:Y33) -> 1
E35: DDSO2 | F35: Deferred Debits - System Overhead | I35: 0.4171842688 | J35: 0.06670748689 | K35: 0.512731016 | L35: 0 | M35: 0 | N35: 0.003377228292 | O35: 0 | P35: 0 | Q35: 1
E36: DDSO6 | F36: Deferred Debits - System Overhead | I36: 0 | J36: 0 | K36: 1 | L36: 0 | M36: 0 | N36: 0 | O36: 0 | P36: 0 | Q36: 1
E37: DEFSG | F37: Deferred Debit - System Generation | I37: 0.2424591015 | J37: 0.7575408985 | K37: 0 | L37: 0 | M37: 0 | N37: 0 | O37: 0 | P37: 0 | Q37: 1 | T37: Total Production Plant | X37: =URO!I1711 -> 1.40598177e+10 | Y37: =IF(Variables!AO3=12,URO!N1711+URO!Q1711,CHOOSE(Variables!AO3,URO!J1711,URO!K1711,URO!L1711,URO!M1711,URO!N1711,URO!O1711,URO!P1711,URO!Q1711,URO!R1711,URO!S1711,URO!T1711)) -> 6333290204
E38: DSM | F38: Demand Side Management | I38: 0 | J38: 0 | K38: 1 | L38: 0 | M38: 0 | N38: 0 | O38: 0 | P38: 0 | Q38: 1 | T38: Total Transmission Plant | X38: =URO!I1775 -> 1.016565925e+10 | Y38: =IF(Variables!AO3=12,URO!N1775+URO!Q1775,CHOOSE(Variables!AO3,URO!J1775,URO!K1775,URO!L1775,URO!M1775,URO!N1775,URO!O1775,URO!P1775,URO!Q1775,URO!R1775,URO!S1775,URO!T1775)) -> 4579167074
E39: DPW | F39: Distribution Poles & Wires | I39: 0 | J39: 0 | K39: 0.9608865815 | L39: 0 | M39: 0 | N39: 0.03911341851 | O39: 0 | P39: 0 | Q39: =SUM(I39:P39) -> 1 | T39: Total Distribution Plant | X39: =URO!I1849 -> 9851950094 | Y39: =IF(Variables!AO3=12,URO!N1849+URO!Q1849,CHOOSE(Variables!AO3,URO!J1849,URO!K1849,URO!L1849,URO!M1849,URO!N1849,URO!O1849,URO!P1849,URO!Q1849,URO!R1849,URO!S1849,URO!T1849)) -> 4221134020
E40: ESD | F40: Environmental Services Department | I40: 0.3 | J40: 0.1 | K40: 0.6 | L40: 0 | M40: 0 | N40: 0 | O40: 0 | P40: 0 | Q40: 1 | T40: Total Account 370 | X40: =URO!I1825 -> 323690139.4 | Y40: =H1802 -> 146929898.5
E41: FERC | F41: FERC Fees | I41: 0.514717736 | J41: 0.485282264 | K41: 0 | L41: 0 | M41: 0 | N41: 0 | O41: 0 | P41: 0 | Q41: 1 | T41: TOTAL | X41: =SUM(X37:X40) -> 3.440111719e+10 | Y41: =SUM(Y37:Y40) -> 1.52805212e+10
E42: G | F42: General Plant | I42: 0.2569188767 | J42: 0.2193639593 | K42: 0.4775233865 | L42: 0 | M42: 0.02675592464 | N42: 0.01943785294 | O42: 0 | P42: 0 | Q42: 1
E43: G-DGP | F43: General Plant - DGP Factor | I43: 0.6855986064 | J43: 0.3144013936 | K43: 0 | O43: 0 | P43: 0 | Q43: 1 | T43: PTD
E44: G-DGU | F44: General Plant - DGU Factor | I44: 0.6855986064 | J44: 0.3144013936 | K44: 0 | O44: 0 | P44: 0 | Q44: 1 | T44: Total Production Plant | X44: =X37/SUM(X$37:X$39) -> 0.4125844853 | Y44: =Y37/SUM(Y$37:Y$39) -> 0.418492219
E45: G-SG | F45: General Plant - SG Factor | I45: 0.6863049829 | J45: 0.3070705956 | K45: 0.006365317742 | L45: 0 | M45: 0 | N45: 0.000259103771 | O45: 0 | P45: 0 | Q45: 1 | T45: Total Transmission Plant | X45: =X38/SUM(X$37:X$39) -> 0.2983106453 | Y45: =Y38/SUM(Y$37:Y$39) -> 0.3025829748
E46: G-SITUS | F46: General Plant - SITUS Factor | I46: 0.0001467575033 | J46: 0.209679849 | K46: 0.7592670109 | L46: 0 | M46: 0 | N46: 0.03090638263 | O46: 0 | P46: 0 | Q46: 1 | T46: Total Distribution Plant | X46: =(X39-X40)/SUM(X$37:X$39) -> 0.2796062021 | Y46: =(Y39-Y40)/SUM(Y$37:Y$39) -> 0.2692159476
E47: I | F47: Intangible Plant | I47: 0.4702230682 | J47: 0.1465189551 | K47: 0.1997512069 | L47: 0 | M47: 0.09641524389 | N47: 0.0397376888 | O47: 0.0473538371 | P47: 0 | Q47: 1 | T47: Total Account 370 | X47: =(X40)/SUM(X$37:X$39) -> 0.009498667226 | Y47: =(Y40)/SUM(Y$37:Y$39) -> 0.00970885863
E48: I-DGP | F48: Intangible Plant - DGP Factor | I48: 1 | J48: 0 | K48: 0 | L48: 0 | M48: 0 | N48: 0 | O48: 0 | P48: 0 | Q48: 1 | T48: TOTAL | X48: =SUM(X44:X47) -> 1 | Y48: =SUM(Y44:Y47) -> 1
E49: I-DGU | F49: Intangible Plant - DGU Factor | I49: 1 | J49: 0 | K49: 0 | L49: 0 | M49: 0 | N49: 0 | O49: 0 | P49: 0 | Q49: 1
E50: I-SG | F50: Intangible Plant - SG Factor | I50: 0.8952466433 | J50: 0.1044295446 | K50: 0.0003111467083 | L50: 0 | M50: 0 | N50: 1.266539845e-05 | O50: 0 | P50: 0 | Q50: 1 | T50: PT
E51: I-SITUS | F51: Intangible Plant - SITUS Factor | I51: 0 | J51: 0.3714231392 | K51: 0.603991071 | L51: 0 | M51: 0 | N51: 0.02458578982 | O51: 0 | P51: 0 | Q51: 1 | T51: Total Production Plant | X51: =X37/(X$37+X$38) -> 0.5803732049 | Y51: =Y37/(Y$37+Y$38) -> 0.5803725085
E52: LABOR | F52: Direct Labor Expense | I52: 0.4042442542 | J52: 0.04812701706 | K52: 0.3400063721 | L52: 0 | M52: 0.05441429262 | N52: 0.09789744243 | O52: 0.05531062156 | P52: 0 | Q52: 1 | T52: Total Transmission Plant | X52: =X38/(X$37+X$38) -> 0.4196267951 | Y52: =Y38/(Y$37+Y$38) -> 0.4196274915
E53: MSS | F53: Materials & Supplies | I53: 0.8033119538 | J53: 0.06755266468 | K53: 0.1247572377 | L53: 0 | M53: 0 | N53: 0.004378143827 | O53: 0 | P53: 0 | Q53: 1 | T53: TOTAL | X53: =SUM(X51:X52) -> 1 | Y53: =SUM(Y51:Y52) -> 1
E54: NONE | F54: Not Functionalized | I54: 0 | J54: 0 | K54: 0 | L54: 0 | M54: 0 | N54: 0 | O54: 0 | P54: 0 | Q54: 0
E55: NUTIL | F55: Non-Utility | I55: 0 | J55: 0 | K55: 0 | L55: 0 | M55: 0 | N55: 0 | O55: 0 | P55: 0 | Q55: 0 | T55: TD
E56: OTHDGP | F56: Other Revenues - DGP Factor | I56: 0.4625870645 | J56: 0.5374129355 | K56: 0 | L56: 0 | M56: 0 | N56: 0 | O56: 0 | P56: 0 | Q56: 1 | T56: Total Transmission Plant | X56: =X38/SUM(X$38:X$39) -> 0.5078358298 | Y56: =Y38/SUM(Y$38:Y$39) -> 0.5203420912
E57: OTHDGU | F57: Other Revenues - DGU Factor | I57: 0.4625870645 | J57: 0.5374129355 | K57: 0 | L57: 0 | M57: 0 | N57: 0 | O57: 0 | P57: 0 | Q57: 1 | T57: Total Distribution Plant | X57: =(X39-X40)/SUM(X$38:X$39) -> 0.4759939007 | Y57: =(Y39-Y40)/SUM(Y$38:Y$39) -> 0.4629619007
E58: OTHSE | F58: Other Revenues - SE Factor | I58: 0.0001727378942 | J58: 0.9998272621 | K58: 0 | L58: 0 | M58: 0 | N58: 0 | O58: 0 | P58: 0 | Q58: 1 | T58: Total Account 370 | X58: =X40/SUM(X$38:X$39) -> 0.01617026958 | Y58: =Y40/SUM(Y$38:Y$39) -> 0.01669600811
E59: OTHSG | F59: Other Revenues - SG Factor | I59: 0.4625870645 | J59: 0.5374129355 | K59: 0 | L59: 0 | M59: 0 | N59: 0 | O59: 0 | P59: 0 | Q59: 1 | T59: TOTAL | X59: =SUM(X56:X58) -> 1 | Y59: =SUM(Y56:Y58) -> 1
E60: OTHSGR | F60: Other Revenues - Rolled-In SG Factor | I60: 0.4625870645 | J60: 0.5374129355 | K60: 0 | L60: 0 | M60: 0 | N60: 0 | O60: 0 | P60: 0 | Q60: 1
E61: OTHSITUS | F61: Other Revenues - SITUS | I61: 0 | J61: 0 | K61: 1 | L61: 0 | M61: 0 | N61: 0 | O61: 0 | P61: 0 | Q61: 1 | T61: D_Split
E62: OTHSO | F62: Other Revenues - SO Factor | I62: 4.679293728e-05 | J62: 2.06904628e-05 | K62: 0.999931147 | L62: 0 | M62: 0 | N62: 0 | O62: 0 | P62: 0 | Q62: 0.9999986304 | T62: Total Distribution Plant | X62: =(X39-X40)/(X$39) -> 0.9671445616 | Y62: =(Y39-Y40)/(Y$39) -> 0.9651918423
E63: P | F63: Production | I63: 1 | J63: 0 | K63: 0 | L63: 0 | M63: 0 | N63: 0 | O63: 0 | P63: 0 | Q63: 1 | T63: Total Account 370 | X63: =X40/(X$39) -> 0.0328554384 | Y63: =Y40/(Y$39) -> 0.03480815766
E64: RETAIL | F64: Retail Function | I64: 0 | J64: 0 | K64: 0 | L64: 0 | M64: 0 | N64: 0 | O64: 0 | P64: 0 | Q64: 0 | T64: Total | X64: =SUM(X62:X63) -> 1 | Y64: =SUM(Y62:Y63) -> 1
E65: SCHMA | F65: Schedule M Additions | I65: 0.4190865141 | J65: 0.1641232291 | K65: 0.3761491918 | L65: 0 | M65: 0.005477940566 | N65: 0.01951171973 | O65: 0.0156514046 | P65: 0 | Q65: 1
E66: SCHMAF | F66: Schedule M Additions - Flow Through | I66: 1 | J66: 0 | K66: 0 | L66: 0 | M66: 0 | N66: 0 | O66: 0 | P66: 0 | Q66: 1
E67: SCHMAP | F67: Schedule M Additions - Permanent | I67: 0.4160970458 | J67: 0.06253452748 | K67: 0.3350010237 | L67: 0 | M67: 0.04850308641 | N67: 0.08856227243 | O67: 0.04930204415 | P67: 0 | Q67: 1 | X67: =I$3 -> Production | Y67: Transmission | Z67: Distribution | AA67: Ancillary | AB67: C_Billing | AC67: C_Metering | AD67: C_Service | AE67: DSM
E68: SCHMAP-SO | F68: Schedule M Additions - Permanent-SO | I68: 0.4059309643 | J68: 0.05308717123 | K68: 0.3396272537 | L68: 0 | M68: 0.05265863495 | N68: 0.09516993166 | O68: 0.05352604416 | P68: 0 | Q68: 1 | T68: (O&M + Taxes) / 365 | W68: =SUM(X68:AE68) -> 3670683.171 | X68: =((I1037+I1225+I1401+I1434)/365) -> 2261773.213 | Y68: 466642.1831 | Z68: 683089.7089 | AA68: -59.67845991 | AB68: 89608.42808 | AC68: 84791.4407 | AD68: 84837.87514 | AE68: -1.925049214e-304
E69: SCHMAT | F69: Schedule M Additions - Temporary | I69: 0.4191435536 | J69: 0.1660615541 | K69: 0.376934304 | L69: 0 | M69: 0.004657015452 | N69: 0.01819422663 | O69: 0.01500934623 | P69: 0 | Q69: 1 | T69: Net LAG Days | X69: =IF(Variables!$AO$3=12,Variables!$J20,IF(Variables!$Y23=2,CHOOSE(Variables!$AO3,Variables!$F20,Variables!$G20,Variables!$H20,Variables!$I20,Variables!$J20,Variables!$K20,Variables!$L20,Variables!$M20,Variables!$N20),Variables!$O20)) -> 7.718740438 | Y69: =IF(Variables!$AO$3=12,Variables!$J20,IF(Variables!$Y23=2,CHOOSE(Variables!$AO3,Variables!$F20,Variables!$G20,Variables!$H20,Variables!$I20,Variables!$J20,Variables!$K20,Variables!$L20,Variables!$M20,Variables!$N20),Variables!$O20)) -> 7.718740438 | Z69: =IF(Variables!$AO$3=12,Variables!$J20,IF(Variables!$Y23=2,CHOOSE(Variables!$AO3,Variables!$F20,Variables!$G20,Variables!$H20,Variables!$I20,Variables!$J20,Variables!$K20,Variables!$L20,Variables!$M20,Variables!$N20),Variables!$O20)) -> 7.718740438 | AA69: =IF(Variables!$AO$3=12,Variables!$J20,IF(Variables!$Y23=2,CHOOSE(Variables!$AO3,Variables!$F20,Variables!$G20,Variables!$H20,Variables!$I20,Variables!$J20,Variables!$K20,Variables!$L20,Variables!$M20,Variables!$N20),Variables!$O20)) -> 7.718740438 | AB69: =IF(Variables!$AO$3=12,Variables!$J20,IF(Variables!$Y23=2,CHOOSE(Variables!$AO3,Variables!$F20,Variables!$G20,Variables!$H20,Variables!$I20,Variables!$J20,Variables!$K20,Variables!$L20,Variables!$M20,Variables!$N20),Variables!$O20)) -> 7.718740438 | AC69: =IF(Variables!$AO$3=12,Variables!$J20,IF(Variables!$Y23=2,CHOOSE(Variables!$AO3,Variables!$F20,Variables!$G20,Variables!$H20,Variables!$I20,Variables!$J20,Variables!$K20,Variables!$L20,Variables!$M20,Variables!$N20),Variables!$O20)) -> 7.718740438 | AD69: =IF(Variables!$AO$3=12,Variables!$J20,IF(Variables!$Y23=2,CHOOSE(Variables!$AO3,Variables!$F20,Variables!$G20,Variables!$H20,Variables!$I20,Variables!$J20,Variables!$K20,Variables!$L20,Variables!$M20,Variables!$N20),Variables!$O20)) -> 7.718740438 | AE69: =IF(Variables!$AO$3=12,Variables!$J20,IF(Variables!$Y23=2,CHOOSE(Variables!$AO3,Variables!$F20,Variables!$G20,Variables!$H20,Variables!$I20,Variables!$J20,Variables!$K20,Variables!$L20,Variables!$M20,Variables!$N20),Variables!$O20)) -> 7.718740438
E70: SCHMAT-GPS | F70: Schedule M Additions - Temporary-GPS | I70: 0.4565079555 | J70: 0.2009823396 | K70: 0.3277488096 | L70: 0 | M70: 0.0008314080651 | N70: 0.0135501467 | O70: 0.0003793405869 | P70: 0 | Q70: 1 | T70: CWC | W70: =SUM(X70:AE70) -> 28333050.63 | X70: =X68*X69 -> 17458040.36 | Y70: 3601889.889 | Z70: 5272592.159 | AA70: -460.6425418 | AB70: 691664.1974 | AC70: 654483.1221 | AD70: 654841.5375 | AE70: -1.485895521e-303
E71: SCHMAT-SE | F71: Schedule M Additions - Temporary-SE | I71: 0.9842508729 | J71: 0.001272263869 | K71: 0.00898825335 | L71: 0 | M71: 0.001438471417 | N71: 0.002587972129 | O71: 0.00146216636 | P71: 0 | Q71: =SUM(I71:P71) -> 1
E72: SCHMAT-SITUS | F72: Schedule M Additions - Temporary-SITUS | I72: 0.5055376977 | J72: 0.05463690133 | K72: 0.2959301989 | L72: 0 | M72: 0.0370623376 | N72: 0.0691600246 | O72: 0.0376728398 | P72: 0 | Q72: 1
E73: SCHMAT-SNP | F73: Schedule M Additions - Temporary-SNP | I73: 0.4565162898 | J73: 0.2015183426 | K73: 0.3280584593 | L73: 0 | M73: 0.0003239124031 | N73: 0.01343520669 | O73: 0.0001477891859 | P73: 0 | Q73: 1 | T73: ACCUMDIT | V73: =Variables!AE27 -> 2020 PROTOCOL | X73: =IF(Variables!$AD$24=2,Function1149!X110,Function1149!AK110) ->  | Y73: =IF(Variables!$AD$24=2,Function1149!Y110,Function1149!AL110) ->  | Z73: =IF(Variables!$AD$24=2,Function1149!Z110,Function1149!AM110) ->  | AA73: =IF(Variables!$AD$24=2,Function1149!AA110,Function1149!AN110) ->  | AB73: =IF(Variables!$AD$24=2,Function1149!AB110,Function1149!AO110) ->  | AC73: =IF(Variables!$AD$24=2,Function1149!AC110,Function1149!AP110) ->  | AD73: =IF(Variables!$AD$24=2,Function1149!AD110,Function1149!AQ110) ->  | AE73: =IF(Variables!$AD$24=2,Function1149!AE110,Function1149!AR110) -> 
E74: SCHMAT-SO | F74: Schedule M Additions - Temporary-SO | I74: 0.4186955507 | J74: 0.154156412 | K74: 0.3574530733 | L74: 0 | M74: 0.01129494904 | N74: 0.02910680568 | O74: 0.02929320916 | P74: 0 | Q74: 1 | T74: DITEXP | V74: =Variables!AE27 -> 2020 PROTOCOL | X74: =IF(Variables!$AD$24=2,Function1149!X143,Function1149!AK143) ->  | Y74: =IF(Variables!$AD$24=2,Function1149!Y143,Function1149!AL143) ->  | Z74: =IF(Variables!$AD$24=2,Function1149!Z143,Function1149!AM143) ->  | AA74: =IF(Variables!$AD$24=2,Function1149!AA143,Function1149!AN143) ->  | AB74: =IF(Variables!$AD$24=2,Function1149!AB143,Function1149!AO143) ->  | AC74: =IF(Variables!$AD$24=2,Function1149!AC143,Function1149!AP143) ->  | AD74: =IF(Variables!$AD$24=2,Function1149!AD143,Function1149!AQ143) ->  | AE74: =IF(Variables!$AD$24=2,Function1149!AE143,Function1149!AR143) -> 
E75: SCHMD | F75: Schedule M Deductions | I75: 0.5227884621 | J75: 0.1552876126 | K75: 0.3019214664 | L75: 0 | M75: 0.003191548108 | N75: 0.008795786426 | O75: 0.008015124335 | P75: 0 | Q75: 1
E76: SCHMDF | F76: Schedule M Deductions - Flow Through | I76: 1 | J76: 0 | K76: 0 | L76: 0 | M76: 0 | N76: 0 | O76: 0 | P76: 0 | Q76: 1
E77: SCHMDP | F77: Schedule M Deductions - Permanent | I77: 0.4990425753 | J77: 0.04223817146 | K77: 0.2861061775 | L77: 0 | M77: 0.04519973017 | N77: 0.08146907158 | O77: 0.045944274 | P77: 0 | Q77: 1 | T77: DITBALRL | AG77: DITBALMA
E78: SCHMDP-SO | F78: Schedule M Deductions - Permanent- SO | I78: 0.4042442012 | J78: 0.04812686127 | K78: 0.340006384 | L78: 0 | M78: 0.05441434776 | N78: 0.0978975281 | O78: 0.05531067761 | P78: 0 | Q78: 1 | T78: Pacific Division | V78: Total | W78: =Variables!X24 -> UTAH | X78: =I$3 -> Production | Y78: Transmission | Z78: Distribution | AA78: Ancillary | AB78: C_Billing | AC78: C_Metering | AD78: C_Service | AE78: DSM | AG78: Pacific Division | AI78: Total | AJ78: =Variables!X24 -> UTAH | AK78: =I$3 -> Production | AL78: Transmission | AM78: Distribution | AN78: Ancillary | AO78: C_Billing | AP78: C_Metering | AQ78: C_Service | AR78: DSM
E79: SCHMDT | F79: Schedule M Deductions - Temporary | I79: 0.5234441071 | J79: 0.1584090078 | K79: 0.3023581405 | L79: 0 | M79: 0.00203166501 | N79: 0.006789212682 | O79: 0.006967866933 | P79: 0 | Q79: 1 | T79: Pacific Division | AG79: Pacific Division
E80: SCHMDT-GPS | F80: Schedule M Deductions - Temporary-GPS | I80: 0.4565216092 | J80: 0.20186045 | K80: 0.3282560953 | L80: 0 | M80: 0 | N80: 0.01336184549 | O80: 0 | P80: 0 | Q80: 1 | T80: Production | U80: P | V80: =Factors!#REF! ->  | W80: =IF(Variables!$AO$3=12,Factors!#REF!+Factors!#REF!,CHOOSE(Variables!AO$3,Factors!#REF!,Factors!#REF!,Factors!#REF!,Factors!#REF!,Factors!#REF!,Factors!#REF!,Factors!#REF!,Factors!#REF!,Factors!#REF!,Factors!#REF!,Factors!#REF!)) ->  | X80: =VLOOKUP($U80,Func_Ftrs,I$90,0)*IF(Variables!$Y$23=1,$V80,$W80) ->  | Y80: =VLOOKUP($U80,Func_Ftrs,J$90,0)*IF(Variables!$Y$23=1,$V80,$W80) ->  | Z80: =VLOOKUP($U80,Func_Ftrs,K$90,0)*IF(Variables!$Y$23=1,$V80,$W80) ->  | AA80: =VLOOKUP($U80,Func_Ftrs,L$90,0)*IF(Variables!$Y$23=1,$V80,$W80) ->  | AB80: =VLOOKUP($U80,Func_Ftrs,M$90,0)*IF(Variables!$Y$23=1,$V80,$W80) ->  | AC80: =VLOOKUP($U80,Func_Ftrs,N$90,0)*IF(Variables!$Y$23=1,$V80,$W80) ->  | AD80: =VLOOKUP($U80,Func_Ftrs,O$90,0)*IF(Variables!$Y$23=1,$V80,$W80) ->  | AE80: =VLOOKUP($U80,Func_Ftrs,P$90,0)*IF(Variables!$Y$23=1,$V80,$W80) ->  | AG80: Production | AH80: P | AI80: =V80 ->  | AK80: =VLOOKUP($AH80,Func_Ftrs,I$90,0)*IF(Variables!$Y$23=1,$AI80,$AJ80) ->  | AL80: =VLOOKUP($AH80,Func_Ftrs,J$90,0)*IF(Variables!$Y$23=1,$AI80,$AJ80) ->  | AM80: =VLOOKUP($AH80,Func_Ftrs,K$90,0)*IF(Variables!$Y$23=1,$AI80,$AJ80) ->  | AN80: =VLOOKUP($AH80,Func_Ftrs,L$90,0)*IF(Variables!$Y$23=1,$AI80,$AJ80) ->  | AO80: =VLOOKUP($AH80,Func_Ftrs,M$90,0)*IF(Variables!$Y$23=1,$AI80,$AJ80) ->  | AP80: =VLOOKUP($AH80,Func_Ftrs,N$90,0)*IF(Variables!$Y$23=1,$AI80,$AJ80) ->  | AQ80: =VLOOKUP($AH80,Func_Ftrs,O$90,0)*IF(Variables!$Y$23=1,$AI80,$AJ80) ->  | AR80: =VLOOKUP($AH80,Func_Ftrs,P$90,0)*IF(Variables!$Y$23=1,$AI80,$AJ80) -> 
E81: SCHMDT-SG | F81: Schedule M Deductions - Temporary-SG | I81: 0.4608190971 | J81: 0.1948405389 | K81: 0.3224945048 | L81: 0 | M81: 0.005105776225 | N81: 0.01441050707 | O81: 0.00232957585 | P81: 0 | Q81: 1 | T81: Transmission | U81: T | V81: =Factors!#REF! ->  | W81: =IF(Variables!$AO$3=12,Factors!#REF!+Factors!#REF!,CHOOSE(Variables!AO$3,Factors!#REF!,Factors!#REF!,Factors!#REF!,Factors!#REF!,Factors!#REF!,Factors!#REF!,Factors!#REF!,Factors!#REF!,Factors!#REF!,Factors!#REF!,Factors!#REF!)) ->  | X81: =VLOOKUP($U81,Func_Ftrs,I$90,0)*IF(Variables!$Y$23=1,$V81,$W81) ->  | Y81: =VLOOKUP($U81,Func_Ftrs,J$90,0)*IF(Variables!$Y$23=1,$V81,$W81) ->  | Z81: =VLOOKUP($U81,Func_Ftrs,K$90,0)*IF(Variables!$Y$23=1,$V81,$W81) ->  | AA81: =VLOOKUP($U81,Func_Ftrs,L$90,0)*IF(Variables!$Y$23=1,$V81,$W81) ->  | AB81: =VLOOKUP($U81,Func_Ftrs,M$90,0)*IF(Variables!$Y$23=1,$V81,$W81) ->  | AC81: =VLOOKUP($U81,Func_Ftrs,N$90,0)*IF(Variables!$Y$23=1,$V81,$W81) ->  | AD81: =VLOOKUP($U81,Func_Ftrs,O$90,0)*IF(Variables!$Y$23=1,$V81,$W81) ->  | AE81: =VLOOKUP($U81,Func_Ftrs,P$90,0)*IF(Variables!$Y$23=1,$V81,$W81) ->  | AG81: Transmission | AH81: T | AK81: =VLOOKUP($AH81,Func_Ftrs,I$90,0)*IF(Variables!$Y$23=1,$AI81,$AJ81) ->  | AL81: =VLOOKUP($AH81,Func_Ftrs,J$90,0)*IF(Variables!$Y$23=1,$AI81,$AJ81) ->  | AM81: =VLOOKUP($AH81,Func_Ftrs,K$90,0)*IF(Variables!$Y$23=1,$AI81,$AJ81) ->  | AN81: =VLOOKUP($AH81,Func_Ftrs,L$90,0)*IF(Variables!$Y$23=1,$AI81,$AJ81) ->  | AO81: =VLOOKUP($AH81,Func_Ftrs,M$90,0)*IF(Variables!$Y$23=1,$AI81,$AJ81) ->  | AP81: =VLOOKUP($AH81,Func_Ftrs,N$90,0)*IF(Variables!$Y$23=1,$AI81,$AJ81) ->  | AQ81: =VLOOKUP($AH81,Func_Ftrs,O$90,0)*IF(Variables!$Y$23=1,$AI81,$AJ81) ->  | AR81: =VLOOKUP($AH81,Func_Ftrs,P$90,0)*IF(Variables!$Y$23=1,$AI81,$AJ81) -> 
E82: SCHMDT-SITUS | F82: Schedule M Deductions - Temporary-SITUS | I82: 0.3410559312 | J82: 0.1427612088 | K82: 0.4141191546 | L82: 0 | M82: 0.006128821526 | N82: 0.02200440681 | O82: 0.07393047712 | P82: 0 | Q82: 1 | T82: Distribution | U82: D_SPLIT | V82: =Factors!#REF! ->  | W82: =IF(Variables!$AO$3=12,Factors!#REF!+Factors!#REF!,CHOOSE(Variables!AO$3,Factors!#REF!,Factors!#REF!,Factors!#REF!,Factors!#REF!,Factors!#REF!,Factors!#REF!,Factors!#REF!,Factors!#REF!,Factors!#REF!,Factors!#REF!,Factors!#REF!)) ->  | X82: =VLOOKUP($U82,Func_Ftrs,I$90,0)*IF(Variables!$Y$23=1,$V82,$W82) ->  | Y82: =VLOOKUP($U82,Func_Ftrs,J$90,0)*IF(Variables!$Y$23=1,$V82,$W82) ->  | Z82: =VLOOKUP($U82,Func_Ftrs,K$90,0)*IF(Variables!$Y$23=1,$V82,$W82) ->  | AA82: =VLOOKUP($U82,Func_Ftrs,L$90,0)*IF(Variables!$Y$23=1,$V82,$W82) ->  | AB82: =VLOOKUP($U82,Func_Ftrs,M$90,0)*IF(Variables!$Y$23=1,$V82,$W82) ->  | AC82: =VLOOKUP($U82,Func_Ftrs,N$90,0)*IF(Variables!$Y$23=1,$V82,$W82) ->  | AD82: =VLOOKUP($U82,Func_Ftrs,O$90,0)*IF(Variables!$Y$23=1,$V82,$W82) ->  | AE82: =VLOOKUP($U82,Func_Ftrs,P$90,0)*IF(Variables!$Y$23=1,$V82,$W82) ->  | AG82: Distribution | AH82: D_SPLIT | AK82: =VLOOKUP($AH82,Func_Ftrs,I$90,0)*IF(Variables!$Y$23=1,$AI82,$AJ82) ->  | AL82: =VLOOKUP($AH82,Func_Ftrs,J$90,0)*IF(Variables!$Y$23=1,$AI82,$AJ82) ->  | AM82: =VLOOKUP($AH82,Func_Ftrs,K$90,0)*IF(Variables!$Y$23=1,$AI82,$AJ82) ->  | AN82: =VLOOKUP($AH82,Func_Ftrs,L$90,0)*IF(Variables!$Y$23=1,$AI82,$AJ82) ->  | AO82: =VLOOKUP($AH82,Func_Ftrs,M$90,0)*IF(Variables!$Y$23=1,$AI82,$AJ82) ->  | AP82: =VLOOKUP($AH82,Func_Ftrs,N$90,0)*IF(Variables!$Y$23=1,$AI82,$AJ82) ->  | AQ82: =VLOOKUP($AH82,Func_Ftrs,O$90,0)*IF(Variables!$Y$23=1,$AI82,$AJ82) ->  | AR82: =VLOOKUP($AH82,Func_Ftrs,P$90,0)*IF(Variables!$Y$23=1,$AI82,$AJ82) -> 
E83: SCHMDT-SNP | F83: Schedule M Deductions - Temporary-SNP | I83: 0.4565216092 | J83: 0.20186045 | K83: 0.3282560953 | L83: 0 | M83: 0 | N83: 0.01336184549 | O83: 0 | P83: 0 | Q83: 1 | T83: General | U83: G | V83: =Factors!#REF! ->  | W83: =IF(Variables!$AO$3=12,Factors!#REF!+Factors!#REF!,CHOOSE(Variables!AO$3,Factors!#REF!,Factors!#REF!,Factors!#REF!,Factors!#REF!,Factors!#REF!,Factors!#REF!,Factors!#REF!,Factors!#REF!,Factors!#REF!,Factors!#REF!,Factors!#REF!)) ->  | X83: =VLOOKUP($U83,Func_Ftrs,I$90,0)*IF(Variables!$Y$23=1,$V83,$W83) ->  | Y83: =VLOOKUP($U83,Func_Ftrs,J$90,0)*IF(Variables!$Y$23=1,$V83,$W83) ->  | Z83: =VLOOKUP($U83,Func_Ftrs,K$90,0)*IF(Variables!$Y$23=1,$V83,$W83) ->  | AA83: =VLOOKUP($U83,Func_Ftrs,L$90,0)*IF(Variables!$Y$23=1,$V83,$W83) ->  | AB83: =VLOOKUP($U83,Func_Ftrs,M$90,0)*IF(Variables!$Y$23=1,$V83,$W83) ->  | AC83: =VLOOKUP($U83,Func_Ftrs,N$90,0)*IF(Variables!$Y$23=1,$V83,$W83) ->  | AD83: =VLOOKUP($U83,Func_Ftrs,O$90,0)*IF(Variables!$Y$23=1,$V83,$W83) ->  | AE83: =VLOOKUP($U83,Func_Ftrs,P$90,0)*IF(Variables!$Y$23=1,$V83,$W83) ->  | AG83: General | AH83: G | AK83: =VLOOKUP($AH83,Func_Ftrs,I$90,0)*IF(Variables!$Y$23=1,$AI83,$AJ83) ->  | AL83: =VLOOKUP($AH83,Func_Ftrs,J$90,0)*IF(Variables!$Y$23=1,$AI83,$AJ83) ->  | AM83: =VLOOKUP($AH83,Func_Ftrs,K$90,0)*IF(Variables!$Y$23=1,$AI83,$AJ83) ->  | AN83: =VLOOKUP($AH83,Func_Ftrs,L$90,0)*IF(Variables!$Y$23=1,$AI83,$AJ83) ->  | AO83: =VLOOKUP($AH83,Func_Ftrs,M$90,0)*IF(Variables!$Y$23=1,$AI83,$AJ83) ->  | AP83: =VLOOKUP($AH83,Func_Ftrs,N$90,0)*IF(Variables!$Y$23=1,$AI83,$AJ83) ->  | AQ83: =VLOOKUP($AH83,Func_Ftrs,O$90,0)*IF(Variables!$Y$23=1,$AI83,$AJ83) ->  | AR83: =VLOOKUP($AH83,Func_Ftrs,P$90,0)*IF(Variables!$Y$23=1,$AI83,$AJ83) -> 
E84: SCHMDT-SO | F84: Schedule M Deductions - Temporary-SO | I84: 0.3991307728 | J84: 0.1406406649 | K84: 0.3597395907 | L84: 0 | M84: 0.0138620858 | N84: 0.02934318126 | O84: 0.05728370445 | P84: 0 | Q84: 1 | T84: Mining Plant | U84: P | V84: =Factors!#REF! ->  | W84: =IF(Variables!$AO$3=12,Factors!#REF!+Factors!#REF!,CHOOSE(Variables!AO$3,Factors!#REF!,Factors!#REF!,Factors!#REF!,Factors!#REF!,Factors!#REF!,Factors!#REF!,Factors!#REF!,Factors!#REF!,Factors!#REF!,Factors!#REF!,Factors!#REF!)) ->  | X84: =VLOOKUP($U84,Func_Ftrs,I$90,0)*IF(Variables!$Y$23=1,$V84,$W84) ->  | Y84: =VLOOKUP($U84,Func_Ftrs,J$90,0)*IF(Variables!$Y$23=1,$V84,$W84) ->  | Z84: =VLOOKUP($U84,Func_Ftrs,K$90,0)*IF(Variables!$Y$23=1,$V84,$W84) ->  | AA84: =VLOOKUP($U84,Func_Ftrs,L$90,0)*IF(Variables!$Y$23=1,$V84,$W84) ->  | AB84: =VLOOKUP($U84,Func_Ftrs,M$90,0)*IF(Variables!$Y$23=1,$V84,$W84) ->  | AC84: =VLOOKUP($U84,Func_Ftrs,N$90,0)*IF(Variables!$Y$23=1,$V84,$W84) ->  | AD84: =VLOOKUP($U84,Func_Ftrs,O$90,0)*IF(Variables!$Y$23=1,$V84,$W84) ->  | AE84: =VLOOKUP($U84,Func_Ftrs,P$90,0)*IF(Variables!$Y$23=1,$V84,$W84) ->  | AG84: Mining Plant | AH84: P | AK84: =VLOOKUP($AH84,Func_Ftrs,I$90,0)*IF(Variables!$Y$23=1,$AI84,$AJ84) ->  | AL84: =VLOOKUP($AH84,Func_Ftrs,J$90,0)*IF(Variables!$Y$23=1,$AI84,$AJ84) ->  | AM84: =VLOOKUP($AH84,Func_Ftrs,K$90,0)*IF(Variables!$Y$23=1,$AI84,$AJ84) ->  | AN84: =VLOOKUP($AH84,Func_Ftrs,L$90,0)*IF(Variables!$Y$23=1,$AI84,$AJ84) ->  | AO84: =VLOOKUP($AH84,Func_Ftrs,M$90,0)*IF(Variables!$Y$23=1,$AI84,$AJ84) ->  | AP84: =VLOOKUP($AH84,Func_Ftrs,N$90,0)*IF(Variables!$Y$23=1,$AI84,$AJ84) ->  | AQ84: =VLOOKUP($AH84,Func_Ftrs,O$90,0)*IF(Variables!$Y$23=1,$AI84,$AJ84) ->  | AR84: =VLOOKUP($AH84,Func_Ftrs,P$90,0)*IF(Variables!$Y$23=1,$AI84,$AJ84) -> 
E85: STEP_UP | F85: Step-up Transformers | I85: 0.08489055306 | J85: 0.9151094469 | K85: 0 | L85: 0 | M85: 0 | N85: 0 | O85: 0 | P85: 0 | Q85: 1
E86: T | F86: Transmission | I86: 0 | J86: 1 | K86: 0 | L86: 0 | M86: 0 | N86: 0 | O86: 0 | P86: 0 | Q86: 1 | T86: Total Pacific Division | V86: =SUM(V80:V85) ->  | X86: =SUM(X80:X85) ->  | Y86: =SUM(Y80:Y85) ->  | Z86: =SUM(Z80:Z85) ->  | AG86: Total Pacific Division | AI86: =SUM(AI80:AI85) -> 
E87: TAXDEPR | F87: Tax Depreciation | I87: 0.538093851 | J87: 0.1599673196 | K87: 0.2956423354 | L87: 0 | M87: 0.001573456926 | N87: 0.003540275144 | O87: 0.001182761924 | P87: 0 | Q87: 1
E88: WSF | F88: Wholesale Sales Firm | I88: 0.795370473 | J88: 0.204629527 | K88: 0 | L88: 0 | M88: 0 | N88: 0 | O88: 0 | P88: 0 | Q88: 1 | T88: Utah Division | AG88: Utah Division
T89: Production | U89: P | V89: =Factors!#REF! ->  | W89: =IF(Variables!$AO$3=12,Factors!#REF!+Factors!#REF!,CHOOSE(Variables!AO$3,Factors!#REF!,Factors!#REF!,Factors!#REF!,Factors!#REF!,Factors!#REF!,Factors!#REF!,Factors!#REF!,Factors!#REF!,Factors!#REF!,Factors!#REF!,Factors!#REF!)) ->  | X89: =VLOOKUP($U89,Func_Ftrs,I$90,0)*IF(Variables!$Y$23=1,$V89,$W89) ->  | Y89: =VLOOKUP($U89,Func_Ftrs,J$90,0)*IF(Variables!$Y$23=1,$V89,$W89) ->  | Z89: =VLOOKUP($U89,Func_Ftrs,K$90,0)*IF(Variables!$Y$23=1,$V89,$W89) ->  | AA89: =VLOOKUP($U89,Func_Ftrs,L$90,0)*IF(Variables!$Y$23=1,$V89,$W89) ->  | AB89: =VLOOKUP($U89,Func_Ftrs,M$90,0)*IF(Variables!$Y$23=1,$V89,$W89) ->  | AC89: =VLOOKUP($U89,Func_Ftrs,N$90,0)*IF(Variables!$Y$23=1,$V89,$W89) ->  | AD89: =VLOOKUP($U89,Func_Ftrs,O$90,0)*IF(Variables!$Y$23=1,$V89,$W89) ->  | AE89: =VLOOKUP($U89,Func_Ftrs,P$90,0)*IF(Variables!$Y$23=1,$V89,$W89) ->  | AG89: Production | AH89: P | AI89: =V89 ->  | AK89: =VLOOKUP($AH89,Func_Ftrs,I$90,0)*IF(Variables!$Y$23=1,$AI89,$AJ89) ->  | AL89: =VLOOKUP($AH89,Func_Ftrs,J$90,0)*IF(Variables!$Y$23=1,$AI89,$AJ89) ->  | AM89: =VLOOKUP($AH89,Func_Ftrs,K$90,0)*IF(Variables!$Y$23=1,$AI89,$AJ89) ->  | AN89: =VLOOKUP($AH89,Func_Ftrs,L$90,0)*IF(Variables!$Y$23=1,$AI89,$AJ89) ->  | AO89: =VLOOKUP($AH89,Func_Ftrs,M$90,0)*IF(Variables!$Y$23=1,$AI89,$AJ89) ->  | AP89: =VLOOKUP($AH89,Func_Ftrs,N$90,0)*IF(Variables!$Y$23=1,$AI89,$AJ89) ->  | AQ89: =VLOOKUP($AH89,Func_Ftrs,O$90,0)*IF(Variables!$Y$23=1,$AI89,$AJ89) ->  | AR89: =VLOOKUP($AH89,Func_Ftrs,P$90,0)*IF(Variables!$Y$23=1,$AI89,$AJ89) -> 
E90: 1 | F90: =E90+1 -> 2 | G90: 3 | H90: 4 | I90: 5 | J90: 6 | K90: 7 | L90: 8 | M90: 9 | N90: 10 | O90: 11 | P90: 12 | Q90: 13 | T90: Transmission | U90: T | V90: =Factors!#REF! ->  | W90: =IF(Variables!$AO$3=12,Factors!#REF!+Factors!#REF!,CHOOSE(Variables!AO$3,Factors!#REF!,Factors!#REF!,Factors!#REF!,Factors!#REF!,Factors!#REF!,Factors!#REF!,Factors!#REF!,Factors!#REF!,Factors!#REF!,Factors!#REF!,Factors!#REF!)) ->  | X90: =VLOOKUP($U90,Func_Ftrs,I$90,0)*IF(Variables!$Y$23=1,$V90,$W90) ->  | Y90: =VLOOKUP($U90,Func_Ftrs,J$90,0)*IF(Variables!$Y$23=1,$V90,$W90) ->  | Z90: =VLOOKUP($U90,Func_Ftrs,K$90,0)*IF(Variables!$Y$23=1,$V90,$W90) ->  | AA90: =VLOOKUP($U90,Func_Ftrs,L$90,0)*IF(Variables!$Y$23=1,$V90,$W90) ->  | AB90: =VLOOKUP($U90,Func_Ftrs,M$90,0)*IF(Variables!$Y$23=1,$V90,$W90) ->  | AC90: =VLOOKUP($U90,Func_Ftrs,N$90,0)*IF(Variables!$Y$23=1,$V90,$W90) ->  | AD90: =VLOOKUP($U90,Func_Ftrs,O$90,0)*IF(Variables!$Y$23=1,$V90,$W90) ->  | AE90: =VLOOKUP($U90,Func_Ftrs,P$90,0)*IF(Variables!$Y$23=1,$V90,$W90) ->  | AG90: Transmission | AH90: T | AK90: =VLOOKUP($AH90,Func_Ftrs,I$90,0)*IF(Variables!$Y$23=1,$AI90,$AJ90) ->  | AL90: =VLOOKUP($AH90,Func_Ftrs,J$90,0)*IF(Variables!$Y$23=1,$AI90,$AJ90) ->  | AM90: =VLOOKUP($AH90,Func_Ftrs,K$90,0)*IF(Variables!$Y$23=1,$AI90,$AJ90) ->  | AN90: =VLOOKUP($AH90,Func_Ftrs,L$90,0)*IF(Variables!$Y$23=1,$AI90,$AJ90) ->  | AO90: =VLOOKUP($AH90,Func_Ftrs,M$90,0)*IF(Variables!$Y$23=1,$AI90,$AJ90) ->  | AP90: =VLOOKUP($AH90,Func_Ftrs,N$90,0)*IF(Variables!$Y$23=1,$AI90,$AJ90) ->  | AQ90: =VLOOKUP($AH90,Func_Ftrs,O$90,0)*IF(Variables!$Y$23=1,$AI90,$AJ90) ->  | AR90: =VLOOKUP($AH90,Func_Ftrs,P$90,0)*IF(Variables!$Y$23=1,$AI90,$AJ90) -> 
T91: Distribution | U91: D_SPLIT | V91: =Factors!#REF! ->  | W91: =IF(Variables!$AO$3=12,Factors!#REF!+Factors!#REF!,CHOOSE(Variables!AO$3,Factors!#REF!,Factors!#REF!,Factors!#REF!,Factors!#REF!,Factors!#REF!,Factors!#REF!,Factors!#REF!,Factors!#REF!,Factors!#REF!,Factors!#REF!,Factors!#REF!)) ->  | X91: =VLOOKUP($U91,Func_Ftrs,I$90,0)*IF(Variables!$Y$23=1,$V91,$W91) ->  | Y91: =VLOOKUP($U91,Func_Ftrs,J$90,0)*IF(Variables!$Y$23=1,$V91,$W91) ->  | Z91: =VLOOKUP($U91,Func_Ftrs,K$90,0)*IF(Variables!$Y$23=1,$V91,$W91) ->  | AA91: =VLOOKUP($U91,Func_Ftrs,L$90,0)*IF(Variables!$Y$23=1,$V91,$W91) ->  | AB91: =VLOOKUP($U91,Func_Ftrs,M$90,0)*IF(Variables!$Y$23=1,$V91,$W91) ->  | AC91: =VLOOKUP($U91,Func_Ftrs,N$90,0)*IF(Variables!$Y$23=1,$V91,$W91) ->  | AD91: =VLOOKUP($U91,Func_Ftrs,O$90,0)*IF(Variables!$Y$23=1,$V91,$W91) ->  | AE91: =VLOOKUP($U91,Func_Ftrs,P$90,0)*IF(Variables!$Y$23=1,$V91,$W91) ->  | AG91: Distribution | AH91: D_SPLIT | AK91: =VLOOKUP($AH91,Func_Ftrs,I$90,0)*IF(Variables!$Y$23=1,$AI91,$AJ91) ->  | AL91: =VLOOKUP($AH91,Func_Ftrs,J$90,0)*IF(Variables!$Y$23=1,$AI91,$AJ91) ->  | AM91: =VLOOKUP($AH91,Func_Ftrs,K$90,0)*IF(Variables!$Y$23=1,$AI91,$AJ91) ->  | AN91: =VLOOKUP($AH91,Func_Ftrs,L$90,0)*IF(Variables!$Y$23=1,$AI91,$AJ91) ->  | AO91: =VLOOKUP($AH91,Func_Ftrs,M$90,0)*IF(Variables!$Y$23=1,$AI91,$AJ91) ->  | AP91: =VLOOKUP($AH91,Func_Ftrs,N$90,0)*IF(Variables!$Y$23=1,$AI91,$AJ91) ->  | AQ91: =VLOOKUP($AH91,Func_Ftrs,O$90,0)*IF(Variables!$Y$23=1,$AI91,$AJ91) ->  | AR91: =VLOOKUP($AH91,Func_Ftrs,P$90,0)*IF(Variables!$Y$23=1,$AI91,$AJ91) -> 
T92: General | U92: G | V92: =Factors!#REF! ->  | W92: =IF(Variables!$AO$3=12,Factors!#REF!+Factors!#REF!,CHOOSE(Variables!AO$3,Factors!#REF!,Factors!#REF!,Factors!#REF!,Factors!#REF!,Factors!#REF!,Factors!#REF!,Factors!#REF!,Factors!#REF!,Factors!#REF!,Factors!#REF!,Factors!#REF!)) ->  | X92: =VLOOKUP($U92,Func_Ftrs,I$90,0)*IF(Variables!$Y$23=1,$V92,$W92) ->  | Y92: =VLOOKUP($U92,Func_Ftrs,J$90,0)*IF(Variables!$Y$23=1,$V92,$W92) ->  | Z92: =VLOOKUP($U92,Func_Ftrs,K$90,0)*IF(Variables!$Y$23=1,$V92,$W92) ->  | AA92: =VLOOKUP($U92,Func_Ftrs,L$90,0)*IF(Variables!$Y$23=1,$V92,$W92) ->  | AB92: =VLOOKUP($U92,Func_Ftrs,M$90,0)*IF(Variables!$Y$23=1,$V92,$W92) ->  | AC92: =VLOOKUP($U92,Func_Ftrs,N$90,0)*IF(Variables!$Y$23=1,$V92,$W92) ->  | AD92: =VLOOKUP($U92,Func_Ftrs,O$90,0)*IF(Variables!$Y$23=1,$V92,$W92) ->  | AE92: =VLOOKUP($U92,Func_Ftrs,P$90,0)*IF(Variables!$Y$23=1,$V92,$W92) ->  | AG92: General | AH92: G | AK92: =VLOOKUP($AH92,Func_Ftrs,I$90,0)*IF(Variables!$Y$23=1,$AI92,$AJ92) ->  | AL92: =VLOOKUP($AH92,Func_Ftrs,J$90,0)*IF(Variables!$Y$23=1,$AI92,$AJ92) ->  | AM92: =VLOOKUP($AH92,Func_Ftrs,K$90,0)*IF(Variables!$Y$23=1,$AI92,$AJ92) ->  | AN92: =VLOOKUP($AH92,Func_Ftrs,L$90,0)*IF(Variables!$Y$23=1,$AI92,$AJ92) ->  | AO92: =VLOOKUP($AH92,Func_Ftrs,M$90,0)*IF(Variables!$Y$23=1,$AI92,$AJ92) ->  | AP92: =VLOOKUP($AH92,Func_Ftrs,N$90,0)*IF(Variables!$Y$23=1,$AI92,$AJ92) ->  | AQ92: =VLOOKUP($AH92,Func_Ftrs,O$90,0)*IF(Variables!$Y$23=1,$AI92,$AJ92) ->  | AR92: =VLOOKUP($AH92,Func_Ftrs,P$90,0)*IF(Variables!$Y$23=1,$AI92,$AJ92) -> 
T93: Mining Plant | U93: P | V93: =Factors!#REF! ->  | W93: =IF(Variables!$AO$3=12,Factors!#REF!+Factors!#REF!,CHOOSE(Variables!AO$3,Factors!#REF!,Factors!#REF!,Factors!#REF!,Factors!#REF!,Factors!#REF!,Factors!#REF!,Factors!#REF!,Factors!#REF!,Factors!#REF!,Factors!#REF!,Factors!#REF!)) ->  | X93: =VLOOKUP($U93,Func_Ftrs,I$90,0)*IF(Variables!$Y$23=1,$V93,$W93) ->  | Y93: =VLOOKUP($U93,Func_Ftrs,J$90,0)*IF(Variables!$Y$23=1,$V93,$W93) ->  | Z93: =VLOOKUP($U93,Func_Ftrs,K$90,0)*IF(Variables!$Y$23=1,$V93,$W93) ->  | AA93: =VLOOKUP($U93,Func_Ftrs,L$90,0)*IF(Variables!$Y$23=1,$V93,$W93) ->  | AB93: =VLOOKUP($U93,Func_Ftrs,M$90,0)*IF(Variables!$Y$23=1,$V93,$W93) ->  | AC93: =VLOOKUP($U93,Func_Ftrs,N$90,0)*IF(Variables!$Y$23=1,$V93,$W93) ->  | AD93: =VLOOKUP($U93,Func_Ftrs,O$90,0)*IF(Variables!$Y$23=1,$V93,$W93) ->  | AE93: =VLOOKUP($U93,Func_Ftrs,P$90,0)*IF(Variables!$Y$23=1,$V93,$W93) ->  | AG93: Mining Plant | AH93: P | AK93: =VLOOKUP($AH93,Func_Ftrs,I$90,0)*IF(Variables!$Y$23=1,$AI93,$AJ93) ->  | AL93: =VLOOKUP($AH93,Func_Ftrs,J$90,0)*IF(Variables!$Y$23=1,$AI93,$AJ93) ->  | AM93: =VLOOKUP($AH93,Func_Ftrs,K$90,0)*IF(Variables!$Y$23=1,$AI93,$AJ93) ->  | AN93: =VLOOKUP($AH93,Func_Ftrs,L$90,0)*IF(Variables!$Y$23=1,$AI93,$AJ93) ->  | AO93: =VLOOKUP($AH93,Func_Ftrs,M$90,0)*IF(Variables!$Y$23=1,$AI93,$AJ93) ->  | AP93: =VLOOKUP($AH93,Func_Ftrs,N$90,0)*IF(Variables!$Y$23=1,$AI93,$AJ93) ->  | AQ93: =VLOOKUP($AH93,Func_Ftrs,O$90,0)*IF(Variables!$Y$23=1,$AI93,$AJ93) ->  | AR93: =VLOOKUP($AH93,Func_Ftrs,P$90,0)*IF(Variables!$Y$23=1,$AI93,$AJ93) -> 
T95: Total Utah Division | V95: =SUM(V89:V94) ->  | X95: =SUM(X89:X94) ->  | AG95: Total Utah Division | AI95: =SUM(AI89:AI94) -> 
T97: PACIFICORP | AG97: PACIFICORP
T98: Production | U98: P | V98: =Factors!#REF! ->  | W98: =IF(Variables!$AO$3=12,Factors!#REF!+Factors!#REF!,CHOOSE(Variables!AO$3,Factors!#REF!,Factors!#REF!,Factors!#REF!,Factors!#REF!,Factors!#REF!,Factors!#REF!,Factors!#REF!,Factors!#REF!,Factors!#REF!,Factors!#REF!,Factors!#REF!)) ->  | X98: =VLOOKUP($U98,Func_Ftrs,I$90,0)*IF(Variables!$Y$23=1,$V98,$W98) ->  | Y98: =VLOOKUP($U98,Func_Ftrs,J$90,0)*IF(Variables!$Y$23=1,$V98,$W98) ->  | Z98: =VLOOKUP($U98,Func_Ftrs,K$90,0)*IF(Variables!$Y$23=1,$V98,$W98) ->  | AA98: =VLOOKUP($U98,Func_Ftrs,L$90,0)*IF(Variables!$Y$23=1,$V98,$W98) ->  | AB98: =VLOOKUP($U98,Func_Ftrs,M$90,0)*IF(Variables!$Y$23=1,$V98,$W98) ->  | AC98: =VLOOKUP($U98,Func_Ftrs,N$90,0)*IF(Variables!$Y$23=1,$V98,$W98) ->  | AD98: =VLOOKUP($U98,Func_Ftrs,O$90,0)*IF(Variables!$Y$23=1,$V98,$W98) ->  | AE98: =VLOOKUP($U98,Func_Ftrs,P$90,0)*IF(Variables!$Y$23=1,$V98,$W98) ->  | AG98: Production | AH98: P | AI98: =V98 ->  | AJ98: =W98 ->  | AK98: =VLOOKUP($AH98,Func_Ftrs,I$90,0)*IF(Variables!$Y$23=1,$AI98,$AJ98) ->  | AL98: =VLOOKUP($AH98,Func_Ftrs,J$90,0)*IF(Variables!$Y$23=1,$AI98,$AJ98) ->  | AM98: =VLOOKUP($AH98,Func_Ftrs,K$90,0)*IF(Variables!$Y$23=1,$AI98,$AJ98) ->  | AN98: =VLOOKUP($AH98,Func_Ftrs,L$90,0)*IF(Variables!$Y$23=1,$AI98,$AJ98) ->  | AO98: =VLOOKUP($AH98,Func_Ftrs,M$90,0)*IF(Variables!$Y$23=1,$AI98,$AJ98) ->  | AP98: =VLOOKUP($AH98,Func_Ftrs,N$90,0)*IF(Variables!$Y$23=1,$AI98,$AJ98) ->  | AQ98: =VLOOKUP($AH98,Func_Ftrs,O$90,0)*IF(Variables!$Y$23=1,$AI98,$AJ98) ->  | AR98: =VLOOKUP($AH98,Func_Ftrs,P$90,0)*IF(Variables!$Y$23=1,$AI98,$AJ98) -> 
T99: Hydro - P | U99: P | V99: =Factors!#REF! ->  | W99: =IF(Variables!$AO$3=12,Factors!#REF!+Factors!#REF!,CHOOSE(Variables!AO$3,Factors!#REF!,Factors!#REF!,Factors!#REF!,Factors!#REF!,Factors!#REF!,Factors!#REF!,Factors!#REF!,Factors!#REF!,Factors!#REF!,Factors!#REF!,Factors!#REF!)) ->  | X99: =VLOOKUP($U99,Func_Ftrs,I$90,0)*IF(Variables!$Y$23=1,$V99,$W99) ->  | Y99: =VLOOKUP($U99,Func_Ftrs,J$90,0)*IF(Variables!$Y$23=1,$V99,$W99) ->  | Z99: =VLOOKUP($U99,Func_Ftrs,K$90,0)*IF(Variables!$Y$23=1,$V99,$W99) ->  | AA99: =VLOOKUP($U99,Func_Ftrs,L$90,0)*IF(Variables!$Y$23=1,$V99,$W99) ->  | AB99: =VLOOKUP($U99,Func_Ftrs,M$90,0)*IF(Variables!$Y$23=1,$V99,$W99) ->  | AC99: =VLOOKUP($U99,Func_Ftrs,N$90,0)*IF(Variables!$Y$23=1,$V99,$W99) ->  | AD99: =VLOOKUP($U99,Func_Ftrs,O$90,0)*IF(Variables!$Y$23=1,$V99,$W99) ->  | AE99: =VLOOKUP($U99,Func_Ftrs,P$90,0)*IF(Variables!$Y$23=1,$V99,$W99) ->  | AG99: Hydro - P | AH99: P | AK99: =VLOOKUP($AH99,Func_Ftrs,I$90,0)*IF(Variables!$Y$23=1,$AI99,$AJ99) ->  | AL99: =VLOOKUP($AH99,Func_Ftrs,J$90,0)*IF(Variables!$Y$23=1,$AI99,$AJ99) ->  | AM99: =VLOOKUP($AH99,Func_Ftrs,K$90,0)*IF(Variables!$Y$23=1,$AI99,$AJ99) ->  | AN99: =VLOOKUP($AH99,Func_Ftrs,L$90,0)*IF(Variables!$Y$23=1,$AI99,$AJ99) ->  | AO99: =VLOOKUP($AH99,Func_Ftrs,M$90,0)*IF(Variables!$Y$23=1,$AI99,$AJ99) ->  | AP99: =VLOOKUP($AH99,Func_Ftrs,N$90,0)*IF(Variables!$Y$23=1,$AI99,$AJ99) ->  | AQ99: =VLOOKUP($AH99,Func_Ftrs,O$90,0)*IF(Variables!$Y$23=1,$AI99,$AJ99) ->  | AR99: =VLOOKUP($AH99,Func_Ftrs,P$90,0)*IF(Variables!$Y$23=1,$AI99,$AJ99) -> 
T100: Hydro - U | U100: P | V100: =Factors!#REF! ->  | W100: =IF(Variables!$AO$3=12,Factors!#REF!+Factors!#REF!,CHOOSE(Variables!AO$3,Factors!#REF!,Factors!#REF!,Factors!#REF!,Factors!#REF!,Factors!#REF!,Factors!#REF!,Factors!#REF!,Factors!#REF!,Factors!#REF!,Factors!#REF!,Factors!#REF!)) ->  | X100: =VLOOKUP($U100,Func_Ftrs,I$90,0)*IF(Variables!$Y$23=1,$V100,$W100) ->  | Y100: =VLOOKUP($U100,Func_Ftrs,J$90,0)*IF(Variables!$Y$23=1,$V100,$W100) ->  | Z100: =VLOOKUP($U100,Func_Ftrs,K$90,0)*IF(Variables!$Y$23=1,$V100,$W100) ->  | AA100: =VLOOKUP($U100,Func_Ftrs,L$90,0)*IF(Variables!$Y$23=1,$V100,$W100) ->  | AB100: =VLOOKUP($U100,Func_Ftrs,M$90,0)*IF(Variables!$Y$23=1,$V100,$W100) ->  | AC100: =VLOOKUP($U100,Func_Ftrs,N$90,0)*IF(Variables!$Y$23=1,$V100,$W100) ->  | AD100: =VLOOKUP($U100,Func_Ftrs,O$90,0)*IF(Variables!$Y$23=1,$V100,$W100) ->  | AE100: =VLOOKUP($U100,Func_Ftrs,P$90,0)*IF(Variables!$Y$23=1,$V100,$W100) ->  | AG100: Hydro - U | AH100: P | AK100: =VLOOKUP($AH100,Func_Ftrs,I$90,0)*IF(Variables!$Y$23=1,$AI100,$AJ100) ->  | AL100: =VLOOKUP($AH100,Func_Ftrs,J$90,0)*IF(Variables!$Y$23=1,$AI100,$AJ100) ->  | AM100: =VLOOKUP($AH100,Func_Ftrs,K$90,0)*IF(Variables!$Y$23=1,$AI100,$AJ100) ->  | AN100: =VLOOKUP($AH100,Func_Ftrs,L$90,0)*IF(Variables!$Y$23=1,$AI100,$AJ100) ->  | AO100: =VLOOKUP($AH100,Func_Ftrs,M$90,0)*IF(Variables!$Y$23=1,$AI100,$AJ100) ->  | AP100: =VLOOKUP($AH100,Func_Ftrs,N$90,0)*IF(Variables!$Y$23=1,$AI100,$AJ100) ->  | AQ100: =VLOOKUP($AH100,Func_Ftrs,O$90,0)*IF(Variables!$Y$23=1,$AI100,$AJ100) ->  | AR100: =VLOOKUP($AH100,Func_Ftrs,P$90,0)*IF(Variables!$Y$23=1,$AI100,$AJ100) -> 
T101: Transmission | U101: T | V101: =Factors!C453 -> 1933598787 | W101: =IF(Variables!$AO$3=12,Factors!H453+Factors!K453,CHOOSE(Variables!AO$3,Factors!D453,Factors!E453,Factors!F453,Factors!G453,Factors!H453,Factors!I453,Factors!J453,Factors!K453,Factors!L453,Factors!M453,Factors!N453)) -> 857022517.1 | X101: =VLOOKUP($U101,Func_Ftrs,I$90,0)*IF(Variables!$Y$23=1,$V101,$W101) -> 0 | Y101: =VLOOKUP($U101,Func_Ftrs,J$90,0)*IF(Variables!$Y$23=1,$V101,$W101) -> 857022517.1 | Z101: =VLOOKUP($U101,Func_Ftrs,K$90,0)*IF(Variables!$Y$23=1,$V101,$W101) -> 0 | AA101: =VLOOKUP($U101,Func_Ftrs,L$90,0)*IF(Variables!$Y$23=1,$V101,$W101) -> 0 | AB101: =VLOOKUP($U101,Func_Ftrs,M$90,0)*IF(Variables!$Y$23=1,$V101,$W101) -> 0 | AC101: =VLOOKUP($U101,Func_Ftrs,N$90,0)*IF(Variables!$Y$23=1,$V101,$W101) -> 0 | AD101: =VLOOKUP($U101,Func_Ftrs,O$90,0)*IF(Variables!$Y$23=1,$V101,$W101) -> 0 | AE101: =VLOOKUP($U101,Func_Ftrs,P$90,0)*IF(Variables!$Y$23=1,$V101,$W101) -> 0 | AG101: Transmission | AH101: T | AI101: 1933598787 | AJ101: 857022517.1 | AK101: =VLOOKUP($AH101,Func_Ftrs,I$90,0)*IF(Variables!$Y$23=1,$AI101,$AJ101) -> 0 | AL101: =VLOOKUP($AH101,Func_Ftrs,J$90,0)*IF(Variables!$Y$23=1,$AI101,$AJ101) -> 857022517.1 | AM101: =VLOOKUP($AH101,Func_Ftrs,K$90,0)*IF(Variables!$Y$23=1,$AI101,$AJ101) -> 0 | AN101: =VLOOKUP($AH101,Func_Ftrs,L$90,0)*IF(Variables!$Y$23=1,$AI101,$AJ101) -> 0 | AO101: =VLOOKUP($AH101,Func_Ftrs,M$90,0)*IF(Variables!$Y$23=1,$AI101,$AJ101) -> 0 | AP101: =VLOOKUP($AH101,Func_Ftrs,N$90,0)*IF(Variables!$Y$23=1,$AI101,$AJ101) -> 0 | AQ101: =VLOOKUP($AH101,Func_Ftrs,O$90,0)*IF(Variables!$Y$23=1,$AI101,$AJ101) -> 0 | AR101: =VLOOKUP($AH101,Func_Ftrs,P$90,0)*IF(Variables!$Y$23=1,$AI101,$AJ101) -> 0
T102: Distribution | U102: D_SPLIT | V102: =Factors!C454 -> 516416349.6 | W102: =IF(Variables!$AO$3=12,Factors!H454+Factors!K454,CHOOSE(Variables!AO$3,Factors!D454,Factors!E454,Factors!F454,Factors!G454,Factors!H454,Factors!I454,Factors!J454,Factors!K454,Factors!L454,Factors!M454,Factors!N454)) -> 228889489.8 | X102: =VLOOKUP($U102,Func_Ftrs,I$90,0)*IF(Variables!$Y$23=1,$V102,$W102) -> 0 | Y102: =VLOOKUP($U102,Func_Ftrs,J$90,0)*IF(Variables!$Y$23=1,$V102,$W102) -> 0 | Z102: =VLOOKUP($U102,Func_Ftrs,K$90,0)*IF(Variables!$Y$23=1,$V102,$W102) -> 220922268.3 | AA102: =VLOOKUP($U102,Func_Ftrs,L$90,0)*IF(Variables!$Y$23=1,$V102,$W102) -> 0 | AB102: =VLOOKUP($U102,Func_Ftrs,M$90,0)*IF(Variables!$Y$23=1,$V102,$W102) -> 0 | AC102: =VLOOKUP($U102,Func_Ftrs,N$90,0)*IF(Variables!$Y$23=1,$V102,$W102) -> 7967221.447 | AD102: =VLOOKUP($U102,Func_Ftrs,O$90,0)*IF(Variables!$Y$23=1,$V102,$W102) -> 0 | AE102: =VLOOKUP($U102,Func_Ftrs,P$90,0)*IF(Variables!$Y$23=1,$V102,$W102) -> 0 | AG102: Distribution | AH102: D_SPLIT | AI102: 516416349.6 | AJ102: 228889489.8 | AK102: =VLOOKUP($AH102,Func_Ftrs,I$90,0)*IF(Variables!$Y$23=1,$AI102,$AJ102) -> 0 | AL102: =VLOOKUP($AH102,Func_Ftrs,J$90,0)*IF(Variables!$Y$23=1,$AI102,$AJ102) -> 0 | AM102: =VLOOKUP($AH102,Func_Ftrs,K$90,0)*IF(Variables!$Y$23=1,$AI102,$AJ102) -> 220922268.3 | AN102: =VLOOKUP($AH102,Func_Ftrs,L$90,0)*IF(Variables!$Y$23=1,$AI102,$AJ102) -> 0 | AO102: =VLOOKUP($AH102,Func_Ftrs,M$90,0)*IF(Variables!$Y$23=1,$AI102,$AJ102) -> 0 | AP102: =VLOOKUP($AH102,Func_Ftrs,N$90,0)*IF(Variables!$Y$23=1,$AI102,$AJ102) -> 7967221.447 | AQ102: =VLOOKUP($AH102,Func_Ftrs,O$90,0)*IF(Variables!$Y$23=1,$AI102,$AJ102) -> 0 | AR102: =VLOOKUP($AH102,Func_Ftrs,P$90,0)*IF(Variables!$Y$23=1,$AI102,$AJ102) -> 0
T103: General | U103: G | V103: =Factors!C455 -> 156800171.5 | W103: =IF(Variables!$AO$3=12,Factors!H455+Factors!K455,CHOOSE(Variables!AO$3,Factors!D455,Factors!E455,Factors!F455,Factors!G455,Factors!H455,Factors!I455,Factors!J455,Factors!K455,Factors!L455,Factors!M455,Factors!N455)) -> 69498015.06 | X103: =VLOOKUP($U103,Func_Ftrs,I$90,0)*IF(Variables!$Y$23=1,$V103,$W103) -> 17855351.96 | Y103: =VLOOKUP($U103,Func_Ftrs,J$90,0)*IF(Variables!$Y$23=1,$V103,$W103) -> 15245359.75 | Z103: =VLOOKUP($U103,Func_Ftrs,K$90,0)*IF(Variables!$Y$23=1,$V103,$W103) -> 33186927.51 | AA103: =VLOOKUP($U103,Func_Ftrs,L$90,0)*IF(Variables!$Y$23=1,$V103,$W103) -> 0 | AB103: =VLOOKUP($U103,Func_Ftrs,M$90,0)*IF(Variables!$Y$23=1,$V103,$W103) -> 1859483.654 | AC103: =VLOOKUP($U103,Func_Ftrs,N$90,0)*IF(Variables!$Y$23=1,$V103,$W103) -> 1350892.196 | AD103: =VLOOKUP($U103,Func_Ftrs,O$90,0)*IF(Variables!$Y$23=1,$V103,$W103) -> 0 | AE103: =VLOOKUP($U103,Func_Ftrs,P$90,0)*IF(Variables!$Y$23=1,$V103,$W103) -> 0 | AG103: General | AH103: G | AI103: 156800171.5 | AJ103: 69498015.06 | AK103: =VLOOKUP($AH103,Func_Ftrs,I$90,0)*IF(Variables!$Y$23=1,$AI103,$AJ103) -> 17855351.96 | AL103: =VLOOKUP($AH103,Func_Ftrs,J$90,0)*IF(Variables!$Y$23=1,$AI103,$AJ103) -> 15245359.75 | AM103: =VLOOKUP($AH103,Func_Ftrs,K$90,0)*IF(Variables!$Y$23=1,$AI103,$AJ103) -> 33186927.51 | AN103: =VLOOKUP($AH103,Func_Ftrs,L$90,0)*IF(Variables!$Y$23=1,$AI103,$AJ103) -> 0 | AO103: =VLOOKUP($AH103,Func_Ftrs,M$90,0)*IF(Variables!$Y$23=1,$AI103,$AJ103) -> 1859483.654 | AP103: =VLOOKUP($AH103,Func_Ftrs,N$90,0)*IF(Variables!$Y$23=1,$AI103,$AJ103) -> 1350892.196 | AQ103: =VLOOKUP($AH103,Func_Ftrs,O$90,0)*IF(Variables!$Y$23=1,$AI103,$AJ103) -> 0 | AR103: =VLOOKUP($AH103,Func_Ftrs,P$90,0)*IF(Variables!$Y$23=1,$AI103,$AJ103) -> 0
T104: Mining Plant | U104: P | V104: =Factors!C456 -> 164591163.1 | W104: =IF(Variables!$AO$3=12,Factors!H456+Factors!K456,CHOOSE(Variables!AO$3,Factors!D456,Factors!E456,Factors!F456,Factors!G456,Factors!H456,Factors!I456,Factors!J456,Factors!K456,Factors!L456,Factors!M456,Factors!N456)) -> 71986897.46 | X104: =VLOOKUP($U104,Func_Ftrs,I$90,0)*IF(Variables!$Y$23=1,$V104,$W104) -> 71986897.46 | Y104: =VLOOKUP($U104,Func_Ftrs,J$90,0)*IF(Variables!$Y$23=1,$V104,$W104) -> 0 | Z104: =VLOOKUP($U104,Func_Ftrs,K$90,0)*IF(Variables!$Y$23=1,$V104,$W104) -> 0 | AA104: =VLOOKUP($U104,Func_Ftrs,L$90,0)*IF(Variables!$Y$23=1,$V104,$W104) -> 0 | AB104: =VLOOKUP($U104,Func_Ftrs,M$90,0)*IF(Variables!$Y$23=1,$V104,$W104) -> 0 | AC104: =VLOOKUP($U104,Func_Ftrs,N$90,0)*IF(Variables!$Y$23=1,$V104,$W104) -> 0 | AD104: =VLOOKUP($U104,Func_Ftrs,O$90,0)*IF(Variables!$Y$23=1,$V104,$W104) -> 0 | AE104: =VLOOKUP($U104,Func_Ftrs,P$90,0)*IF(Variables!$Y$23=1,$V104,$W104) -> 0 | AG104: Mining Plant | AH104: P | AI104: 164591163.1 | AJ104: 71986897.46 | AK104: =VLOOKUP($AH104,Func_Ftrs,I$90,0)*IF(Variables!$Y$23=1,$AI104,$AJ104) -> 71986897.46 | AL104: =VLOOKUP($AH104,Func_Ftrs,J$90,0)*IF(Variables!$Y$23=1,$AI104,$AJ104) -> 0 | AM104: =VLOOKUP($AH104,Func_Ftrs,K$90,0)*IF(Variables!$Y$23=1,$AI104,$AJ104) -> 0 | AN104: =VLOOKUP($AH104,Func_Ftrs,L$90,0)*IF(Variables!$Y$23=1,$AI104,$AJ104) -> 0 | AO104: =VLOOKUP($AH104,Func_Ftrs,M$90,0)*IF(Variables!$Y$23=1,$AI104,$AJ104) -> 0 | AP104: =VLOOKUP($AH104,Func_Ftrs,N$90,0)*IF(Variables!$Y$23=1,$AI104,$AJ104) -> 0 | AQ104: =VLOOKUP($AH104,Func_Ftrs,O$90,0)*IF(Variables!$Y$23=1,$AI104,$AJ104) -> 0 | AR104: =VLOOKUP($AH104,Func_Ftrs,P$90,0)*IF(Variables!$Y$23=1,$AI104,$AJ104) -> 0
T106: Total PC (Post Merger) | V106: =SUM(V98:V105) ->  | AG106: Total PC (Post Merger) | AI106: =SUM(AI98:AI105) -> 
T108: Total Deferred Taxes | V108: =V86+V95+V106 ->  | AG108: Total Deferred Taxes | AI108: =AI86+AI95+AI106 -> 
C109: =Variables!AE27 -> 2020 PROTOCOL
C110: =IF(Variables!Y21=1," ",Variables!AO17) -> Year End | T110: ACCMDITRL FACTOR | V110: =V108/$V108 ->  | W110: =W108/$W108 ->  | X110: =X108/IF(Variables!$Y$23=2,$W108,$V108) ->  | Y110: =Y108/IF(Variables!$Y$23=2,$W108,$V108) ->  | Z110: =Z108/IF(Variables!$Y$23=2,$W108,$V108) ->  | AA110: =AA108/IF(Variables!$Y$23=2,$W108,$V108) ->  | AB110: =AB108/IF(Variables!$Y$23=2,$W108,$V108) ->  | AC110: =AC108/IF(Variables!$Y$23=2,$W108,$V108) ->  | AD110: =AD108/IF(Variables!$Y$23=2,$W108,$V108) ->  | AE110: =AE108/IF(Variables!$Y$23=2,$W108,$V108) ->  | AG110: ACCMDITMA FACTOR | AI110: =AI108/$AI108 ->  | AJ110: =AJ108/$AJ108 ->  | AK110: =AK108/IF(Variables!$Y23=2,$AJ108,$AI108) ->  | AL110: =AL108/IF(Variables!$Y23=2,$AJ108,$AI108) ->  | AM110: =AM108/IF(Variables!$Y23=2,$AJ108,$AI108) ->  | AN110: =AN108/IF(Variables!$Y23=2,$AJ108,$AI108) ->  | AO110: =AO108/IF(Variables!$Y23=2,$AJ108,$AI108) ->  | AP110: =AP108/IF(Variables!$Y23=2,$AJ108,$AI108) ->  | AQ110: =AQ108/IF(Variables!$Y23=2,$AJ108,$AI108) ->  | AR110: =AR108/IF(Variables!$Y23=2,$AJ108,$AI108) -> 
C111: RESULTS OF OPERATIONS SUMMARY
T112: DITEXPRL | AG112: DITEXPMA
T113: Pacific Division | V113: Total | W113: =Variables!X24 -> UTAH | X113: =I$3 -> Production | Y113: Transmission | Z113: Distribution | AA113: Ancillary | AB113: C_Billing | AC113: C_Metering | AD113: C_Service | AE113: DSM | AG113: Pacific Division | AI113: Total | AJ113: =Variables!X24 -> UTAH | AK113: =I$3 -> Production | AL113: Transmission | AM113: Distribution | AN113: Ancillary | AO113: C_Billing | AP113: C_Metering | AQ113: C_Service | AR113: DSM
C114: =+Variables!AE29 -> 2020 PROTOCOL | H114: =IF(Variables!Y23=1,Variables!X23,Report!N115) -> UTAH | T114: Production | U114: P | V114: =Factors!C383 -> 0 | W114: =IF(Variables!$AO$3=12,Factors!H383+Factors!K383,CHOOSE(Variables!AO$3,Factors!D383,Factors!E383,Factors!F383,Factors!G383,Factors!H383,Factors!I383,Factors!J383,Factors!K383,Factors!L383,Factors!M383,Factors!N383)) -> 0 | X114: =VLOOKUP($U114,Func_Ftrs,I$90,0)*IF(Variables!$Y$23=1,$V114,$W114) -> 0 | Y114: =VLOOKUP($U114,Func_Ftrs,J$90,0)*IF(Variables!$Y$23=1,$V114,$W114) -> 0 | Z114: =VLOOKUP($U114,Func_Ftrs,K$90,0)*IF(Variables!$Y$23=1,$V114,$W114) -> 0 | AA114: =VLOOKUP($U114,Func_Ftrs,L$90,0)*IF(Variables!$Y$23=1,$V114,$W114) -> 0 | AB114: =VLOOKUP($U114,Func_Ftrs,M$90,0)*IF(Variables!$Y$23=1,$V114,$W114) -> 0 | AC114: =VLOOKUP($U114,Func_Ftrs,N$90,0)*IF(Variables!$Y$23=1,$V114,$W114) -> 0 | AD114: =VLOOKUP($U114,Func_Ftrs,O$90,0)*IF(Variables!$Y$23=1,$V114,$W114) -> 0 | AE114: =VLOOKUP($U114,Func_Ftrs,P$90,0)*IF(Variables!$Y$23=1,$V114,$W114) -> 0 | AG114: Production | AH114: P | AI114: =V114 -> 0 | AJ114: 0 | AK114: =VLOOKUP($AH114,Func_Ftrs,I$90,0)*IF(Variables!$Y$23=1,$AI114,$AJ114) -> 0 | AL114: =VLOOKUP($AH114,Func_Ftrs,J$90,0)*IF(Variables!$Y$23=1,$AI114,$AJ114) -> 0 | AM114: =VLOOKUP($AH114,Func_Ftrs,K$90,0)*IF(Variables!$Y$23=1,$AI114,$AJ114) -> 0 | AN114: =VLOOKUP($AH114,Func_Ftrs,L$90,0)*IF(Variables!$Y$23=1,$AI114,$AJ114) -> 0 | AO114: =VLOOKUP($AH114,Func_Ftrs,M$90,0)*IF(Variables!$Y$23=1,$AI114,$AJ114) -> 0 | AP114: =VLOOKUP($AH114,Func_Ftrs,N$90,0)*IF(Variables!$Y$23=1,$AI114,$AJ114) -> 0 | AQ114: =VLOOKUP($AH114,Func_Ftrs,O$90,0)*IF(Variables!$Y$23=1,$AI114,$AJ114) -> 0 | AR114: =VLOOKUP($AH114,Func_Ftrs,P$90,0)*IF(Variables!$Y$23=1,$AI114,$AJ114) -> 0
C115: Description of Account Summary: | H115: Normalized | I115: =I3 -> Production | J115: Transmission | K115: Distribution | L115: Ancillary | M115: C_Billing | N115: C_Metering | O115: C_Service | P115: DSM | T115: Transmission | U115: T | V115: =Factors!C384 -> 0 | W115: =IF(Variables!$AO$3=12,Factors!H384+Factors!K384,CHOOSE(Variables!AO$3,Factors!D384,Factors!E384,Factors!F384,Factors!G384,Factors!H384,Factors!I384,Factors!J384,Factors!K384,Factors!L384,Factors!M384,Factors!N384)) -> 0 | X115: =VLOOKUP($U115,Func_Ftrs,I$90,0)*IF(Variables!$Y$23=1,$V115,$W115) -> 0 | Y115: =VLOOKUP($U115,Func_Ftrs,J$90,0)*IF(Variables!$Y$23=1,$V115,$W115) -> 0 | Z115: =VLOOKUP($U115,Func_Ftrs,K$90,0)*IF(Variables!$Y$23=1,$V115,$W115) -> 0 | AA115: =VLOOKUP($U115,Func_Ftrs,L$90,0)*IF(Variables!$Y$23=1,$V115,$W115) -> 0 | AB115: =VLOOKUP($U115,Func_Ftrs,M$90,0)*IF(Variables!$Y$23=1,$V115,$W115) -> 0 | AC115: =VLOOKUP($U115,Func_Ftrs,N$90,0)*IF(Variables!$Y$23=1,$V115,$W115) -> 0 | AD115: =VLOOKUP($U115,Func_Ftrs,O$90,0)*IF(Variables!$Y$23=1,$V115,$W115) -> 0 | AE115: =VLOOKUP($U115,Func_Ftrs,P$90,0)*IF(Variables!$Y$23=1,$V115,$W115) -> 0 | AG115: Transmission | AH115: T | AI115: 0 | AJ115: 0 | AK115: =VLOOKUP($AH115,Func_Ftrs,I$90,0)*IF(Variables!$Y$23=1,$AI115,$AJ115) -> 0 | AL115: =VLOOKUP($AH115,Func_Ftrs,J$90,0)*IF(Variables!$Y$23=1,$AI115,$AJ115) -> 0 | AM115: =VLOOKUP($AH115,Func_Ftrs,K$90,0)*IF(Variables!$Y$23=1,$AI115,$AJ115) -> 0 | AN115: =VLOOKUP($AH115,Func_Ftrs,L$90,0)*IF(Variables!$Y$23=1,$AI115,$AJ115) -> 0 | AO115: =VLOOKUP($AH115,Func_Ftrs,M$90,0)*IF(Variables!$Y$23=1,$AI115,$AJ115) -> 0 | AP115: =VLOOKUP($AH115,Func_Ftrs,N$90,0)*IF(Variables!$Y$23=1,$AI115,$AJ115) -> 0 | AQ115: =VLOOKUP($AH115,Func_Ftrs,O$90,0)*IF(Variables!$Y$23=1,$AI115,$AJ115) -> 0 | AR115: =VLOOKUP($AH115,Func_Ftrs,P$90,0)*IF(Variables!$Y$23=1,$AI115,$AJ115) -> 0
T116: Distribution | U116: D_SPLIT | V116: =Factors!C385 -> 0 | W116: =IF(Variables!$AO$3=12,Factors!H385+Factors!K385,CHOOSE(Variables!AO$3,Factors!D385,Factors!E385,Factors!F385,Factors!G385,Factors!H385,Factors!I385,Factors!J385,Factors!K385,Factors!L385,Factors!M385,Factors!N385)) -> 0 | X116: =VLOOKUP($U116,Func_Ftrs,I$90,0)*IF(Variables!$Y$23=1,$V116,$W116) -> 0 | Y116: =VLOOKUP($U116,Func_Ftrs,J$90,0)*IF(Variables!$Y$23=1,$V116,$W116) -> 0 | Z116: =VLOOKUP($U116,Func_Ftrs,K$90,0)*IF(Variables!$Y$23=1,$V116,$W116) -> 0 | AA116: =VLOOKUP($U116,Func_Ftrs,L$90,0)*IF(Variables!$Y$23=1,$V116,$W116) -> 0 | AB116: =VLOOKUP($U116,Func_Ftrs,M$90,0)*IF(Variables!$Y$23=1,$V116,$W116) -> 0 | AC116: =VLOOKUP($U116,Func_Ftrs,N$90,0)*IF(Variables!$Y$23=1,$V116,$W116) -> 0 | AD116: =VLOOKUP($U116,Func_Ftrs,O$90,0)*IF(Variables!$Y$23=1,$V116,$W116) -> 0 | AE116: =VLOOKUP($U116,Func_Ftrs,P$90,0)*IF(Variables!$Y$23=1,$V116,$W116) -> 0 | AG116: Distribution | AH116: D_SPLIT | AI116: 0 | AJ116: 0 | AK116: =VLOOKUP($AH116,Func_Ftrs,I$90,0)*IF(Variables!$Y$23=1,$AI116,$AJ116) -> 0 | AL116: =VLOOKUP($AH116,Func_Ftrs,J$90,0)*IF(Variables!$Y$23=1,$AI116,$AJ116) -> 0 | AM116: =VLOOKUP($AH116,Func_Ftrs,K$90,0)*IF(Variables!$Y$23=1,$AI116,$AJ116) -> 0 | AN116: =VLOOKUP($AH116,Func_Ftrs,L$90,0)*IF(Variables!$Y$23=1,$AI116,$AJ116) -> 0 | AO116: =VLOOKUP($AH116,Func_Ftrs,M$90,0)*IF(Variables!$Y$23=1,$AI116,$AJ116) -> 0 | AP116: =VLOOKUP($AH116,Func_Ftrs,N$90,0)*IF(Variables!$Y$23=1,$AI116,$AJ116) -> 0 | AQ116: =VLOOKUP($AH116,Func_Ftrs,O$90,0)*IF(Variables!$Y$23=1,$AI116,$AJ116) -> 0 | AR116: =VLOOKUP($AH116,Func_Ftrs,P$90,0)*IF(Variables!$Y$23=1,$AI116,$AJ116) -> 0
A117: 1 | E117: General Business Revenues | H117: =H219-H118-H119 -> 2381581836 | I117: 652206238.2 | J117: 43324568.75 | K117: 194817363.5 | L117: 6949653.101 | M117: 20138960.93 | N117: 25075718.33 | O117: 6828800.312 | P117: 4.705277175e-299 | T117: Mining Plant | U117: P | V117: =Factors!C387 -> 0 | W117: =IF(Variables!$AO$3=12,Factors!H387+Factors!K387,CHOOSE(Variables!AO$3,Factors!D387,Factors!E387,Factors!F387,Factors!G387,Factors!H387,Factors!I387,Factors!J387,Factors!K387,Factors!L387,Factors!M387,Factors!N387)) -> 0 | X117: =VLOOKUP($U117,Func_Ftrs,I$90,0)*IF(Variables!$Y$23=1,$V117,$W117) -> 0 | Y117: =VLOOKUP($U117,Func_Ftrs,J$90,0)*IF(Variables!$Y$23=1,$V117,$W117) -> 0 | Z117: =VLOOKUP($U117,Func_Ftrs,K$90,0)*IF(Variables!$Y$23=1,$V117,$W117) -> 0 | AA117: =VLOOKUP($U117,Func_Ftrs,L$90,0)*IF(Variables!$Y$23=1,$V117,$W117) -> 0 | AB117: =VLOOKUP($U117,Func_Ftrs,M$90,0)*IF(Variables!$Y$23=1,$V117,$W117) -> 0 | AC117: =VLOOKUP($U117,Func_Ftrs,N$90,0)*IF(Variables!$Y$23=1,$V117,$W117) -> 0 | AD117: =VLOOKUP($U117,Func_Ftrs,O$90,0)*IF(Variables!$Y$23=1,$V117,$W117) -> 0 | AE117: =VLOOKUP($U117,Func_Ftrs,P$90,0)*IF(Variables!$Y$23=1,$V117,$W117) -> 0 | AG117: Mining Plant | AH117: P | AI117: 0 | AJ117: 0 | AK117: =VLOOKUP($AH117,Func_Ftrs,I$90,0)*IF(Variables!$Y$23=1,$AI117,$AJ117) -> 0 | AL117: =VLOOKUP($AH117,Func_Ftrs,J$90,0)*IF(Variables!$Y$23=1,$AI117,$AJ117) -> 0 | AM117: =VLOOKUP($AH117,Func_Ftrs,K$90,0)*IF(Variables!$Y$23=1,$AI117,$AJ117) -> 0 | AN117: =VLOOKUP($AH117,Func_Ftrs,L$90,0)*IF(Variables!$Y$23=1,$AI117,$AJ117) -> 0 | AO117: =VLOOKUP($AH117,Func_Ftrs,M$90,0)*IF(Variables!$Y$23=1,$AI117,$AJ117) -> 0 | AP117: =VLOOKUP($AH117,Func_Ftrs,N$90,0)*IF(Variables!$Y$23=1,$AI117,$AJ117) -> 0 | AQ117: =VLOOKUP($AH117,Func_Ftrs,O$90,0)*IF(Variables!$Y$23=1,$AI117,$AJ117) -> 0 | AR117: =VLOOKUP($AH117,Func_Ftrs,P$90,0)*IF(Variables!$Y$23=1,$AI117,$AJ117) -> 0
A118: 2 | E118: General Business Revenues | H118: =H198+H199 -> 0 | I118: 0 | J118: 0 | K118: 0 | L118: 0 | M118: 0 | N118: =N198+N199 -> 0 | O118: =O198+O199 -> 0 | P118: =P198+P199 -> 0
A119: 3 | E119: Interdepartmental | H119: =H217 -> 0 | I119: 0 | J119: 0 | K119: =K217 -> 0 | L119: 0 | M119: 0 | N119: =N217 -> 0 | O119: =O217 -> 0 | P119: =P217 -> 0 | T119: Total Pacific Division | V119: =SUM(V114:V117) -> 0 | W119: 0 | X119: 0 | Y119: 0 | Z119: 0 | AA119: 0 | AB119: 0 | AC119: 0 | AD119: 0 | AE119: 0 | AG119: Total Pacific Division | AI119: =SUM(AI114:AI117) -> 0 | AJ119: 0 | AK119: 0 | AL119: 0 | AM119: 0 | AN119: 0 | AO119: 0 | AP119: 0 | AQ119: 0 | AR119: 0
A120: 4 | E120: Special Sales | H120: =H233 -> 72197743.51 | I120: 57423953.4 | J120: 14773790.11 | K120: =K233 -> 0 | L120: 0 | M120: 0 | N120: =N233 -> 0 | O120: =O233 -> 0 | P120: =P233 -> 0
A121: 5 | E121: Other Operating Revenues | H121: =H276+H240 -> 126153334.4 | I121: 55556717.29 | J121: 64735450.87 | K121: 4530559.113 | L121: -11174379 | M121: 12477197.02 | N121: 22882.60766 | O121: 4906.481188 | P121: 0 | T121: Utah Division | AG121: Utah Division
A122: 6 | E122: Total Operating Revenues | H122: =SUM(H117:H121) -> 2579932914 | I122: 765186908.9 | J122: 122833809.7 | K122: 199347922.6 | L122: -4224725.899 | M122: 32616157.95 | N122: =SUM(N117:N121) -> 25098600.94 | O122: =SUM(O117:O121) -> 6833706.793 | P122: =SUM(P117:P121) -> 4.705277175e-299 | T122: Production | U122: P | V122: =Factors!C393 -> 0 | W122: =IF(Variables!$AO$3=12,Factors!H393+Factors!K393,CHOOSE(Variables!AO$3,Factors!D393,Factors!E393,Factors!F393,Factors!G393,Factors!H393,Factors!I393,Factors!J393,Factors!K393,Factors!L393,Factors!M393,Factors!N393)) -> 0 | X122: =VLOOKUP($U122,Func_Ftrs,I$90,0)*IF(Variables!$Y$23=1,$V122,$W122) -> 0 | Y122: =VLOOKUP($U122,Func_Ftrs,J$90,0)*IF(Variables!$Y$23=1,$V122,$W122) -> 0 | Z122: =VLOOKUP($U122,Func_Ftrs,K$90,0)*IF(Variables!$Y$23=1,$V122,$W122) -> 0 | AA122: =VLOOKUP($U122,Func_Ftrs,L$90,0)*IF(Variables!$Y$23=1,$V122,$W122) -> 0 | AB122: =VLOOKUP($U122,Func_Ftrs,M$90,0)*IF(Variables!$Y$23=1,$V122,$W122) -> 0 | AC122: =VLOOKUP($U122,Func_Ftrs,N$90,0)*IF(Variables!$Y$23=1,$V122,$W122) -> 0 | AD122: =VLOOKUP($U122,Func_Ftrs,O$90,0)*IF(Variables!$Y$23=1,$V122,$W122) -> 0 | AE122: =VLOOKUP($U122,Func_Ftrs,P$90,0)*IF(Variables!$Y$23=1,$V122,$W122) -> 0 | AG122: Production | AH122: P | AI122: =V122 -> 0 | AJ122: 0 | AK122: =VLOOKUP($AH122,Func_Ftrs,I$90,0)*IF(Variables!$Y$23=1,$AI122,$AJ122) -> 0 | AL122: =VLOOKUP($AH122,Func_Ftrs,J$90,0)*IF(Variables!$Y$23=1,$AI122,$AJ122) -> 0 | AM122: =VLOOKUP($AH122,Func_Ftrs,K$90,0)*IF(Variables!$Y$23=1,$AI122,$AJ122) -> 0 | AN122: =VLOOKUP($AH122,Func_Ftrs,L$90,0)*IF(Variables!$Y$23=1,$AI122,$AJ122) -> 0 | AO122: =VLOOKUP($AH122,Func_Ftrs,M$90,0)*IF(Variables!$Y$23=1,$AI122,$AJ122) -> 0 | AP122: =VLOOKUP($AH122,Func_Ftrs,N$90,0)*IF(Variables!$Y$23=1,$AI122,$AJ122) -> 0 | AQ122: =VLOOKUP($AH122,Func_Ftrs,O$90,0)*IF(Variables!$Y$23=1,$AI122,$AJ122) -> 0 | AR122: =VLOOKUP($AH122,Func_Ftrs,P$90,0)*IF(Variables!$Y$23=1,$AI122,$AJ122) -> 0
A123: 7 | T123: Transmission | U123: T | V123: =Factors!C394 -> 0 | W123: =IF(Variables!$AO$3=12,Factors!H394+Factors!K394,CHOOSE(Variables!AO$3,Factors!D394,Factors!E394,Factors!F394,Factors!G394,Factors!H394,Factors!I394,Factors!J394,Factors!K394,Factors!L394,Factors!M394,Factors!N394)) -> 0 | X123: =VLOOKUP($U123,Func_Ftrs,I$90,0)*IF(Variables!$Y$23=1,$V123,$W123) -> 0 | Y123: =VLOOKUP($U123,Func_Ftrs,J$90,0)*IF(Variables!$Y$23=1,$V123,$W123) -> 0 | Z123: =VLOOKUP($U123,Func_Ftrs,K$90,0)*IF(Variables!$Y$23=1,$V123,$W123) -> 0 | AA123: =VLOOKUP($U123,Func_Ftrs,L$90,0)*IF(Variables!$Y$23=1,$V123,$W123) -> 0 | AB123: =VLOOKUP($U123,Func_Ftrs,M$90,0)*IF(Variables!$Y$23=1,$V123,$W123) -> 0 | AC123: =VLOOKUP($U123,Func_Ftrs,N$90,0)*IF(Variables!$Y$23=1,$V123,$W123) -> 0 | AD123: =VLOOKUP($U123,Func_Ftrs,O$90,0)*IF(Variables!$Y$23=1,$V123,$W123) -> 0 | AE123: =VLOOKUP($U123,Func_Ftrs,P$90,0)*IF(Variables!$Y$23=1,$V123,$W123) -> 0 | AG123: Transmission | AH123: T | AI123: 0 | AJ123: 0 | AK123: =VLOOKUP($AH123,Func_Ftrs,I$90,0)*IF(Variables!$Y$23=1,$AI123,$AJ123) -> 0 | AL123: =VLOOKUP($AH123,Func_Ftrs,J$90,0)*IF(Variables!$Y$23=1,$AI123,$AJ123) -> 0 | AM123: =VLOOKUP($AH123,Func_Ftrs,K$90,0)*IF(Variables!$Y$23=1,$AI123,$AJ123) -> 0 | AN123: =VLOOKUP($AH123,Func_Ftrs,L$90,0)*IF(Variables!$Y$23=1,$AI123,$AJ123) -> 0 | AO123: =VLOOKUP($AH123,Func_Ftrs,M$90,0)*IF(Variables!$Y$23=1,$AI123,$AJ123) -> 0 | AP123: =VLOOKUP($AH123,Func_Ftrs,N$90,0)*IF(Variables!$Y$23=1,$AI123,$AJ123) -> 0 | AQ123: =VLOOKUP($AH123,Func_Ftrs,O$90,0)*IF(Variables!$Y$23=1,$AI123,$AJ123) -> 0 | AR123: =VLOOKUP($AH123,Func_Ftrs,P$90,0)*IF(Variables!$Y$23=1,$AI123,$AJ123) -> 0
A124: 8 | C124: Operating Expenses: | T124: Distribution | U124: D_SPLIT | V124: =Factors!C395 -> 0 | W124: =IF(Variables!$AO$3=12,Factors!H395+Factors!K395,CHOOSE(Variables!AO$3,Factors!D395,Factors!E395,Factors!F395,Factors!G395,Factors!H395,Factors!I395,Factors!J395,Factors!K395,Factors!L395,Factors!M395,Factors!N395)) -> 0 | X124: =VLOOKUP($U124,Func_Ftrs,I$90,0)*IF(Variables!$Y$23=1,$V124,$W124) -> 0 | Y124: =VLOOKUP($U124,Func_Ftrs,J$90,0)*IF(Variables!$Y$23=1,$V124,$W124) -> 0 | Z124: =VLOOKUP($U124,Func_Ftrs,K$90,0)*IF(Variables!$Y$23=1,$V124,$W124) -> 0 | AA124: =VLOOKUP($U124,Func_Ftrs,L$90,0)*IF(Variables!$Y$23=1,$V124,$W124) -> 0 | AB124: =VLOOKUP($U124,Func_Ftrs,M$90,0)*IF(Variables!$Y$23=1,$V124,$W124) -> 0 | AC124: =VLOOKUP($U124,Func_Ftrs,N$90,0)*IF(Variables!$Y$23=1,$V124,$W124) -> 0 | AD124: =VLOOKUP($U124,Func_Ftrs,O$90,0)*IF(Variables!$Y$23=1,$V124,$W124) -> 0 | AE124: =VLOOKUP($U124,Func_Ftrs,P$90,0)*IF(Variables!$Y$23=1,$V124,$W124) -> 0 | AG124: Distribution | AH124: D_SPLIT | AI124: 0 | AJ124: 0 | AK124: =VLOOKUP($AH124,Func_Ftrs,I$90,0)*IF(Variables!$Y$23=1,$AI124,$AJ124) -> 0 | AL124: =VLOOKUP($AH124,Func_Ftrs,J$90,0)*IF(Variables!$Y$23=1,$AI124,$AJ124) -> 0 | AM124: =VLOOKUP($AH124,Func_Ftrs,K$90,0)*IF(Variables!$Y$23=1,$AI124,$AJ124) -> 0 | AN124: =VLOOKUP($AH124,Func_Ftrs,L$90,0)*IF(Variables!$Y$23=1,$AI124,$AJ124) -> 0 | AO124: =VLOOKUP($AH124,Func_Ftrs,M$90,0)*IF(Variables!$Y$23=1,$AI124,$AJ124) -> 0 | AP124: =VLOOKUP($AH124,Func_Ftrs,N$90,0)*IF(Variables!$Y$23=1,$AI124,$AJ124) -> 0 | AQ124: =VLOOKUP($AH124,Func_Ftrs,O$90,0)*IF(Variables!$Y$23=1,$AI124,$AJ124) -> 0 | AR124: =VLOOKUP($AH124,Func_Ftrs,P$90,0)*IF(Variables!$Y$23=1,$AI124,$AJ124) -> 0
A125: 9 | D125: Steam Production | H125: =H413 -> 515861410.9 | I125: 515861410.9 | J125: 0 | K125: 0 | L125: 0 | M125: 0 | N125: =N413 -> 0 | O125: =O413 -> 0 | P125: =P413 -> 0 | T125: General | U125: G | V125: =Factors!C396 -> 0 | W125: =IF(Variables!$AO$3=12,Factors!H396+Factors!K396,CHOOSE(Variables!AO$3,Factors!D396,Factors!E396,Factors!F396,Factors!G396,Factors!H396,Factors!I396,Factors!J396,Factors!K396,Factors!L396,Factors!M396,Factors!N396)) -> 0 | X125: =VLOOKUP($U125,Func_Ftrs,I$90,0)*IF(Variables!$Y$23=1,$V125,$W125) -> 0 | Y125: =VLOOKUP($U125,Func_Ftrs,J$90,0)*IF(Variables!$Y$23=1,$V125,$W125) -> 0 | Z125: =VLOOKUP($U125,Func_Ftrs,K$90,0)*IF(Variables!$Y$23=1,$V125,$W125) -> 0 | AA125: =VLOOKUP($U125,Func_Ftrs,L$90,0)*IF(Variables!$Y$23=1,$V125,$W125) -> 0 | AB125: =VLOOKUP($U125,Func_Ftrs,M$90,0)*IF(Variables!$Y$23=1,$V125,$W125) -> 0 | AC125: =VLOOKUP($U125,Func_Ftrs,N$90,0)*IF(Variables!$Y$23=1,$V125,$W125) -> 0 | AD125: =VLOOKUP($U125,Func_Ftrs,O$90,0)*IF(Variables!$Y$23=1,$V125,$W125) -> 0 | AE125: =VLOOKUP($U125,Func_Ftrs,P$90,0)*IF(Variables!$Y$23=1,$V125,$W125) -> 0 | AG125: General | AH125: G | AI125: 0 | AJ125: 0 | AK125: =VLOOKUP($AH125,Func_Ftrs,I$90,0)*IF(Variables!$Y$23=1,$AI125,$AJ125) -> 0 | AL125: =VLOOKUP($AH125,Func_Ftrs,J$90,0)*IF(Variables!$Y$23=1,$AI125,$AJ125) -> 0 | AM125: =VLOOKUP($AH125,Func_Ftrs,K$90,0)*IF(Variables!$Y$23=1,$AI125,$AJ125) -> 0 | AN125: =VLOOKUP($AH125,Func_Ftrs,L$90,0)*IF(Variables!$Y$23=1,$AI125,$AJ125) -> 0 | AO125: =VLOOKUP($AH125,Func_Ftrs,M$90,0)*IF(Variables!$Y$23=1,$AI125,$AJ125) -> 0 | AP125: =VLOOKUP($AH125,Func_Ftrs,N$90,0)*IF(Variables!$Y$23=1,$AI125,$AJ125) -> 0 | AQ125: =VLOOKUP($AH125,Func_Ftrs,O$90,0)*IF(Variables!$Y$23=1,$AI125,$AJ125) -> 0 | AR125: =VLOOKUP($AH125,Func_Ftrs,P$90,0)*IF(Variables!$Y$23=1,$AI125,$AJ125) -> 0
A126: 10 | D126: Nuclear Production | H126: =H461 -> 0 | I126: 0 | J126: 0 | K126: 0 | L126: 0 | M126: 0 | N126: =N461 -> 0 | O126: =O461 -> 0 | P126: =P461 -> 0 | T126: Mining Plant | U126: P | V126: =Factors!C397 -> 0 | W126: =IF(Variables!$AO$3=12,Factors!H397+Factors!K397,CHOOSE(Variables!AO$3,Factors!D397,Factors!E397,Factors!F397,Factors!G397,Factors!H397,Factors!I397,Factors!J397,Factors!K397,Factors!L397,Factors!M397,Factors!N397)) -> 0 | X126: =VLOOKUP($U126,Func_Ftrs,I$90,0)*IF(Variables!$Y$23=1,$V126,$W126) -> 0 | Y126: =VLOOKUP($U126,Func_Ftrs,J$90,0)*IF(Variables!$Y$23=1,$V126,$W126) -> 0 | Z126: =VLOOKUP($U126,Func_Ftrs,K$90,0)*IF(Variables!$Y$23=1,$V126,$W126) -> 0 | AA126: =VLOOKUP($U126,Func_Ftrs,L$90,0)*IF(Variables!$Y$23=1,$V126,$W126) -> 0 | AB126: =VLOOKUP($U126,Func_Ftrs,M$90,0)*IF(Variables!$Y$23=1,$V126,$W126) -> 0 | AC126: =VLOOKUP($U126,Func_Ftrs,N$90,0)*IF(Variables!$Y$23=1,$V126,$W126) -> 0 | AD126: =VLOOKUP($U126,Func_Ftrs,O$90,0)*IF(Variables!$Y$23=1,$V126,$W126) -> 0 | AE126: =VLOOKUP($U126,Func_Ftrs,P$90,0)*IF(Variables!$Y$23=1,$V126,$W126) -> 0 | AG126: Mining Plant | AH126: P | AI126: 0 | AJ126: 0 | AK126: =VLOOKUP($AH126,Func_Ftrs,I$90,0)*IF(Variables!$Y$23=1,$AI126,$AJ126) -> 0 | AL126: =VLOOKUP($AH126,Func_Ftrs,J$90,0)*IF(Variables!$Y$23=1,$AI126,$AJ126) -> 0 | AM126: =VLOOKUP($AH126,Func_Ftrs,K$90,0)*IF(Variables!$Y$23=1,$AI126,$AJ126) -> 0 | AN126: =VLOOKUP($AH126,Func_Ftrs,L$90,0)*IF(Variables!$Y$23=1,$AI126,$AJ126) -> 0 | AO126: =VLOOKUP($AH126,Func_Ftrs,M$90,0)*IF(Variables!$Y$23=1,$AI126,$AJ126) -> 0 | AP126: =VLOOKUP($AH126,Func_Ftrs,N$90,0)*IF(Variables!$Y$23=1,$AI126,$AJ126) -> 0 | AQ126: =VLOOKUP($AH126,Func_Ftrs,O$90,0)*IF(Variables!$Y$23=1,$AI126,$AJ126) -> 0 | AR126: =VLOOKUP($AH126,Func_Ftrs,P$90,0)*IF(Variables!$Y$23=1,$AI126,$AJ126) -> 0
A127: 11 | D127: Hydro Production | H127: =H544 -> 20650402.4 | I127: 20650402.4 | J127: 0 | K127: 0 | L127: 0 | M127: 0 | N127: =N544 -> 0 | O127: =O544 -> 0 | P127: =P544 -> 0
A128: 12 | D128: Other Power Supply | H128: =H600+H644 -> 250588198.6 | I128: 250588198.6 | J128: 0 | K128: 0 | L128: 0 | M128: 0 | N128: 0 | O128: 0 | P128: 0 | T128: Total Utah Division | V128: =SUM(V122:V126) -> 0 | W128: 0 | X128: 0 | Y128: 0 | Z128: 0 | AA128: 0 | AB128: 0 | AC128: 0 | AD128: 0 | AE128: 0 | AG128: Total Utah Division | AI128: =SUM(AI122:AI126) -> 0 | AJ128: 0 | AK128: 0 | AL128: 0 | AM128: 0 | AN128: 0 | AO128: 0 | AP128: 0 | AQ128: 0 | AR128: 0
A129: 13 | D129: Transmission | H129: =H748 -> 130168586.4 | I129: 530982.9139 | J129: 129637603.5 | K129: 0 | L129: 0 | M129: 0 | N129: =N748 -> 0 | O129: =O748 -> 0 | P129: =P748 -> 0
A130: 14 | D130: Distribution | H130: =H849 -> 118438362.8 | I130: 0 | J130: 0 | K130: 116660626.8 | L130: 0 | M130: 0 | N130: =N849 -> 1777735.983 | O130: =O849 -> 0 | P130: =P849 -> 0 | T130: PACIFICORP | AG130: PACIFICORP
A131: 15 | D131: Customer Accounts | H131: =H884 -> 39462877.66 | I131: 2185717.015 | J131: 350868.4542 | K131: 569427.0788 | L131: -12067.71205 | M131: 17752028.68 | N131: =N884 -> 2486487.862 | O131: =O884 -> 12039294.92 | P131: =P884 -> 0 | T131: Production | U131: P | V131: =Factors!C403 -> 0 | W131: =IF(Variables!$AO$3=12,Factors!H403+Factors!K403,CHOOSE(Variables!AO$3,Factors!D403,Factors!E403,Factors!F403,Factors!G403,Factors!H403,Factors!I403,Factors!J403,Factors!K403,Factors!L403,Factors!M403,Factors!N403)) -> 0 | X131: =VLOOKUP($U131,Func_Ftrs,I$90,0)*IF(Variables!$Y$23=1,$V131,$W131) -> 0 | Y131: =VLOOKUP($U131,Func_Ftrs,J$90,0)*IF(Variables!$Y$23=1,$V131,$W131) -> 0 | Z131: =VLOOKUP($U131,Func_Ftrs,K$90,0)*IF(Variables!$Y$23=1,$V131,$W131) -> 0 | AA131: =VLOOKUP($U131,Func_Ftrs,L$90,0)*IF(Variables!$Y$23=1,$V131,$W131) -> 0 | AB131: =VLOOKUP($U131,Func_Ftrs,M$90,0)*IF(Variables!$Y$23=1,$V131,$W131) -> 0 | AC131: =VLOOKUP($U131,Func_Ftrs,N$90,0)*IF(Variables!$Y$23=1,$V131,$W131) -> 0 | AD131: =VLOOKUP($U131,Func_Ftrs,O$90,0)*IF(Variables!$Y$23=1,$V131,$W131) -> 0 | AE131: =VLOOKUP($U131,Func_Ftrs,P$90,0)*IF(Variables!$Y$23=1,$V131,$W131) -> 0 | AG131: Production | AH131: P | AI131: =V131 -> 0 | AJ131: =W131 -> 0 | AK131: =VLOOKUP($AH131,Func_Ftrs,I$90,0)*IF(Variables!$Y$23=1,$AI131,$AJ131) -> 0 | AL131: =VLOOKUP($AH131,Func_Ftrs,J$90,0)*IF(Variables!$Y$23=1,$AI131,$AJ131) -> 0 | AM131: =VLOOKUP($AH131,Func_Ftrs,K$90,0)*IF(Variables!$Y$23=1,$AI131,$AJ131) -> 0 | AN131: =VLOOKUP($AH131,Func_Ftrs,L$90,0)*IF(Variables!$Y$23=1,$AI131,$AJ131) -> 0 | AO131: =VLOOKUP($AH131,Func_Ftrs,M$90,0)*IF(Variables!$Y$23=1,$AI131,$AJ131) -> 0 | AP131: =VLOOKUP($AH131,Func_Ftrs,N$90,0)*IF(Variables!$Y$23=1,$AI131,$AJ131) -> 0 | AQ131: =VLOOKUP($AH131,Func_Ftrs,O$90,0)*IF(Variables!$Y$23=1,$AI131,$AJ131) -> 0 | AR131: =VLOOKUP($AH131,Func_Ftrs,P$90,0)*IF(Variables!$Y$23=1,$AI131,$AJ131) -> 0
A132: 16 | D132: Customer Service | H132: =H915 -> 5875935.465 | I132: 0 | J132: 0 | K132: 1496516.39 | L132: 0 | M132: 0 | N132: =N915 -> 0 | O132: =O915 -> 4379419.075 | P132: =P915 -> 0 | T132: Hydro - P | U132: P | V132: =Factors!C404 -> 0 | W132: =IF(Variables!$AO$3=12,Factors!H404+Factors!K404,CHOOSE(Variables!AO$3,Factors!D404,Factors!E404,Factors!F404,Factors!G404,Factors!H404,Factors!I404,Factors!J404,Factors!K404,Factors!L404,Factors!M404,Factors!N404)) -> 0 | X132: =VLOOKUP($U132,Func_Ftrs,I$90,0)*IF(Variables!$Y$23=1,$V132,$W132) -> 0 | Y132: =VLOOKUP($U132,Func_Ftrs,J$90,0)*IF(Variables!$Y$23=1,$V132,$W132) -> 0 | Z132: =VLOOKUP($U132,Func_Ftrs,K$90,0)*IF(Variables!$Y$23=1,$V132,$W132) -> 0 | AA132: =VLOOKUP($U132,Func_Ftrs,L$90,0)*IF(Variables!$Y$23=1,$V132,$W132) -> 0 | AB132: =VLOOKUP($U132,Func_Ftrs,M$90,0)*IF(Variables!$Y$23=1,$V132,$W132) -> 0 | AC132: =VLOOKUP($U132,Func_Ftrs,N$90,0)*IF(Variables!$Y$23=1,$V132,$W132) -> 0 | AD132: =VLOOKUP($U132,Func_Ftrs,O$90,0)*IF(Variables!$Y$23=1,$V132,$W132) -> 0 | AE132: =VLOOKUP($U132,Func_Ftrs,P$90,0)*IF(Variables!$Y$23=1,$V132,$W132) -> 0 | AG132: Hydro - P | AH132: P | AI132: 0 | AJ132: 0 | AK132: =VLOOKUP($AH132,Func_Ftrs,I$90,0)*IF(Variables!$Y$23=1,$AI132,$AJ132) -> 0 | AL132: =VLOOKUP($AH132,Func_Ftrs,J$90,0)*IF(Variables!$Y$23=1,$AI132,$AJ132) -> 0 | AM132: =VLOOKUP($AH132,Func_Ftrs,K$90,0)*IF(Variables!$Y$23=1,$AI132,$AJ132) -> 0 | AN132: =VLOOKUP($AH132,Func_Ftrs,L$90,0)*IF(Variables!$Y$23=1,$AI132,$AJ132) -> 0 | AO132: =VLOOKUP($AH132,Func_Ftrs,M$90,0)*IF(Variables!$Y$23=1,$AI132,$AJ132) -> 0 | AP132: =VLOOKUP($AH132,Func_Ftrs,N$90,0)*IF(Variables!$Y$23=1,$AI132,$AJ132) -> 0 | AQ132: =VLOOKUP($AH132,Func_Ftrs,O$90,0)*IF(Variables!$Y$23=1,$AI132,$AJ132) -> 0 | AR132: =VLOOKUP($AH132,Func_Ftrs,P$90,0)*IF(Variables!$Y$23=1,$AI132,$AJ132) -> 0
A133: 17 | D133: Sales | H133: =H945 -> 0 | I133: 0 | J133: 0 | K133: 0 | L133: 0 | M133: 0 | N133: =N945 -> 0 | O133: =O945 -> 0 | P133: =P945 -> 0 | T133: Hydro - U | U133: P | V133: =Factors!C405 -> 0 | W133: =IF(Variables!$AO$3=12,Factors!H405+Factors!K405,CHOOSE(Variables!AO$3,Factors!D405,Factors!E405,Factors!F405,Factors!G405,Factors!H405,Factors!I405,Factors!J405,Factors!K405,Factors!L405,Factors!M405,Factors!N405)) -> 0 | X133: =VLOOKUP($U133,Func_Ftrs,I$90,0)*IF(Variables!$Y$23=1,$V133,$W133) -> 0 | Y133: =VLOOKUP($U133,Func_Ftrs,J$90,0)*IF(Variables!$Y$23=1,$V133,$W133) -> 0 | Z133: =VLOOKUP($U133,Func_Ftrs,K$90,0)*IF(Variables!$Y$23=1,$V133,$W133) -> 0 | AA133: =VLOOKUP($U133,Func_Ftrs,L$90,0)*IF(Variables!$Y$23=1,$V133,$W133) -> 0 | AB133: =VLOOKUP($U133,Func_Ftrs,M$90,0)*IF(Variables!$Y$23=1,$V133,$W133) -> 0 | AC133: =VLOOKUP($U133,Func_Ftrs,N$90,0)*IF(Variables!$Y$23=1,$V133,$W133) -> 0 | AD133: =VLOOKUP($U133,Func_Ftrs,O$90,0)*IF(Variables!$Y$23=1,$V133,$W133) -> 0 | AE133: =VLOOKUP($U133,Func_Ftrs,P$90,0)*IF(Variables!$Y$23=1,$V133,$W133) -> 0 | AG133: Hydro - U | AH133: P | AI133: 0 | AJ133: 0 | AK133: =VLOOKUP($AH133,Func_Ftrs,I$90,0)*IF(Variables!$Y$23=1,$AI133,$AJ133) -> 0 | AL133: =VLOOKUP($AH133,Func_Ftrs,J$90,0)*IF(Variables!$Y$23=1,$AI133,$AJ133) -> 0 | AM133: =VLOOKUP($AH133,Func_Ftrs,K$90,0)*IF(Variables!$Y$23=1,$AI133,$AJ133) -> 0 | AN133: =VLOOKUP($AH133,Func_Ftrs,L$90,0)*IF(Variables!$Y$23=1,$AI133,$AJ133) -> 0 | AO133: =VLOOKUP($AH133,Func_Ftrs,M$90,0)*IF(Variables!$Y$23=1,$AI133,$AJ133) -> 0 | AP133: =VLOOKUP($AH133,Func_Ftrs,N$90,0)*IF(Variables!$Y$23=1,$AI133,$AJ133) -> 0 | AQ133: =VLOOKUP($AH133,Func_Ftrs,O$90,0)*IF(Variables!$Y$23=1,$AI133,$AJ133) -> 0 | AR133: =VLOOKUP($AH133,Func_Ftrs,P$90,0)*IF(Variables!$Y$23=1,$AI133,$AJ133) -> 0
A134: 18 | D134: Administrative & General | H134: =H1028 -> 289358476.6 | I134: 110700386.7 | J134: 18004302.91 | K134: 106192917.2 | L134: 0 | M134: 14546995.27 | N134: =N1028 -> 25631082 | O134: =O1028 -> 14282792.5 | P134: =P1028 -> 0 | T134: Transmission | U134: T | V134: =Factors!C415 -> 0 | W134: =IF(Variables!$AO$3=12,Factors!H415+Factors!K415,CHOOSE(Variables!AO$3,Factors!D415,Factors!E415,Factors!F415,Factors!G415,Factors!H415,Factors!I415,Factors!J415,Factors!K415,Factors!L415,Factors!M415,Factors!N415)) -> 0 | X134: =VLOOKUP($U134,Func_Ftrs,I$90,0)*IF(Variables!$Y$23=1,$V134,$W134) -> 0 | Y134: =VLOOKUP($U134,Func_Ftrs,J$90,0)*IF(Variables!$Y$23=1,$V134,$W134) -> 0 | Z134: =VLOOKUP($U134,Func_Ftrs,K$90,0)*IF(Variables!$Y$23=1,$V134,$W134) -> 0 | AA134: =VLOOKUP($U134,Func_Ftrs,L$90,0)*IF(Variables!$Y$23=1,$V134,$W134) -> 0 | AB134: =VLOOKUP($U134,Func_Ftrs,M$90,0)*IF(Variables!$Y$23=1,$V134,$W134) -> 0 | AC134: =VLOOKUP($U134,Func_Ftrs,N$90,0)*IF(Variables!$Y$23=1,$V134,$W134) -> 0 | AD134: =VLOOKUP($U134,Func_Ftrs,O$90,0)*IF(Variables!$Y$23=1,$V134,$W134) -> 0 | AE134: =VLOOKUP($U134,Func_Ftrs,P$90,0)*IF(Variables!$Y$23=1,$V134,$W134) -> 0 | AG134: Transmission | AH134: T | AI134: 0 | AJ134: 0 | AK134: =VLOOKUP($AH134,Func_Ftrs,I$90,0)*IF(Variables!$Y$23=1,$AI134,$AJ134) -> 0 | AL134: =VLOOKUP($AH134,Func_Ftrs,J$90,0)*IF(Variables!$Y$23=1,$AI134,$AJ134) -> 0 | AM134: =VLOOKUP($AH134,Func_Ftrs,K$90,0)*IF(Variables!$Y$23=1,$AI134,$AJ134) -> 0 | AN134: =VLOOKUP($AH134,Func_Ftrs,L$90,0)*IF(Variables!$Y$23=1,$AI134,$AJ134) -> 0 | AO134: =VLOOKUP($AH134,Func_Ftrs,M$90,0)*IF(Variables!$Y$23=1,$AI134,$AJ134) -> 0 | AP134: =VLOOKUP($AH134,Func_Ftrs,N$90,0)*IF(Variables!$Y$23=1,$AI134,$AJ134) -> 0 | AQ134: =VLOOKUP($AH134,Func_Ftrs,O$90,0)*IF(Variables!$Y$23=1,$AI134,$AJ134) -> 0 | AR134: =VLOOKUP($AH134,Func_Ftrs,P$90,0)*IF(Variables!$Y$23=1,$AI134,$AJ134) -> 0
A135: 19 | T135: Distribution | U135: D_SPLIT | V135: =Factors!C416 -> 0 | W135: =IF(Variables!$AO$3=12,Factors!H416+Factors!K416,CHOOSE(Variables!AO$3,Factors!D416,Factors!E416,Factors!F416,Factors!G416,Factors!H416,Factors!I416,Factors!J416,Factors!K416,Factors!L416,Factors!M416,Factors!N416)) -> 0 | X135: =VLOOKUP($U135,Func_Ftrs,I$90,0)*IF(Variables!$Y$23=1,$V135,$W135) -> 0 | Y135: =VLOOKUP($U135,Func_Ftrs,J$90,0)*IF(Variables!$Y$23=1,$V135,$W135) -> 0 | Z135: =VLOOKUP($U135,Func_Ftrs,K$90,0)*IF(Variables!$Y$23=1,$V135,$W135) -> 0 | AA135: =VLOOKUP($U135,Func_Ftrs,L$90,0)*IF(Variables!$Y$23=1,$V135,$W135) -> 0 | AB135: =VLOOKUP($U135,Func_Ftrs,M$90,0)*IF(Variables!$Y$23=1,$V135,$W135) -> 0 | AC135: =VLOOKUP($U135,Func_Ftrs,N$90,0)*IF(Variables!$Y$23=1,$V135,$W135) -> 0 | AD135: =VLOOKUP($U135,Func_Ftrs,O$90,0)*IF(Variables!$Y$23=1,$V135,$W135) -> 0 | AE135: =VLOOKUP($U135,Func_Ftrs,P$90,0)*IF(Variables!$Y$23=1,$V135,$W135) -> 0 | AG135: Distribution | AH135: D_SPLIT | AI135: 0 | AJ135: 0 | AK135: =VLOOKUP($AH135,Func_Ftrs,I$90,0)*IF(Variables!$Y$23=1,$AI135,$AJ135) -> 0 | AL135: =VLOOKUP($AH135,Func_Ftrs,J$90,0)*IF(Variables!$Y$23=1,$AI135,$AJ135) -> 0 | AM135: =VLOOKUP($AH135,Func_Ftrs,K$90,0)*IF(Variables!$Y$23=1,$AI135,$AJ135) -> 0 | AN135: =VLOOKUP($AH135,Func_Ftrs,L$90,0)*IF(Variables!$Y$23=1,$AI135,$AJ135) -> 0 | AO135: =VLOOKUP($AH135,Func_Ftrs,M$90,0)*IF(Variables!$Y$23=1,$AI135,$AJ135) -> 0 | AP135: =VLOOKUP($AH135,Func_Ftrs,N$90,0)*IF(Variables!$Y$23=1,$AI135,$AJ135) -> 0 | AQ135: =VLOOKUP($AH135,Func_Ftrs,O$90,0)*IF(Variables!$Y$23=1,$AI135,$AJ135) -> 0 | AR135: =VLOOKUP($AH135,Func_Ftrs,P$90,0)*IF(Variables!$Y$23=1,$AI135,$AJ135) -> 0
A136: 20 | D136: Total O & M Expenses | H136: =SUM(H125:H134) -> 1370404251 | I136: 900517098.4 | J136: 147992774.8 | K136: 224919487.5 | L136: -12067.71205 | M136: 32299023.96 | N136: =SUM(N125:N134) -> 29895305.85 | O136: =SUM(O125:O134) -> 30701506.5 | P136: =SUM(P125:P134) -> 0 | T136: General | U136: G | V136: =Factors!C417 -> 0 | W136: =IF(Variables!$AO$3=12,Factors!H417+Factors!K417,CHOOSE(Variables!AO$3,Factors!D417,Factors!E417,Factors!F417,Factors!G417,Factors!H417,Factors!I417,Factors!J417,Factors!K417,Factors!L417,Factors!M417,Factors!N417)) -> 0 | X136: =VLOOKUP($U136,Func_Ftrs,I$90,0)*IF(Variables!$Y$23=1,$V136,$W136) -> 0 | Y136: =VLOOKUP($U136,Func_Ftrs,J$90,0)*IF(Variables!$Y$23=1,$V136,$W136) -> 0 | Z136: =VLOOKUP($U136,Func_Ftrs,K$90,0)*IF(Variables!$Y$23=1,$V136,$W136) -> 0 | AA136: =VLOOKUP($U136,Func_Ftrs,L$90,0)*IF(Variables!$Y$23=1,$V136,$W136) -> 0 | AB136: =VLOOKUP($U136,Func_Ftrs,M$90,0)*IF(Variables!$Y$23=1,$V136,$W136) -> 0 | AC136: =VLOOKUP($U136,Func_Ftrs,N$90,0)*IF(Variables!$Y$23=1,$V136,$W136) -> 0 | AD136: =VLOOKUP($U136,Func_Ftrs,O$90,0)*IF(Variables!$Y$23=1,$V136,$W136) -> 0 | AE136: =VLOOKUP($U136,Func_Ftrs,P$90,0)*IF(Variables!$Y$23=1,$V136,$W136) -> 0 | AG136: General | AH136: G | AI136: 0 | AJ136: 0 | AK136: =VLOOKUP($AH136,Func_Ftrs,I$90,0)*IF(Variables!$Y$23=1,$AI136,$AJ136) -> 0 | AL136: =VLOOKUP($AH136,Func_Ftrs,J$90,0)*IF(Variables!$Y$23=1,$AI136,$AJ136) -> 0 | AM136: =VLOOKUP($AH136,Func_Ftrs,K$90,0)*IF(Variables!$Y$23=1,$AI136,$AJ136) -> 0 | AN136: =VLOOKUP($AH136,Func_Ftrs,L$90,0)*IF(Variables!$Y$23=1,$AI136,$AJ136) -> 0 | AO136: =VLOOKUP($AH136,Func_Ftrs,M$90,0)*IF(Variables!$Y$23=1,$AI136,$AJ136) -> 0 | AP136: =VLOOKUP($AH136,Func_Ftrs,N$90,0)*IF(Variables!$Y$23=1,$AI136,$AJ136) -> 0 | AQ136: =VLOOKUP($AH136,Func_Ftrs,O$90,0)*IF(Variables!$Y$23=1,$AI136,$AJ136) -> 0 | AR136: =VLOOKUP($AH136,Func_Ftrs,P$90,0)*IF(Variables!$Y$23=1,$AI136,$AJ136) -> 0
A137: 21 | T137: Mining Plant | U137: P | V137: =Factors!C418 -> 0 | W137: =IF(Variables!$AO$3=12,Factors!H418+Factors!K418,CHOOSE(Variables!AO$3,Factors!D418,Factors!E418,Factors!F418,Factors!G418,Factors!H418,Factors!I418,Factors!J418,Factors!K418,Factors!L418,Factors!M418,Factors!N418)) -> 0 | X137: =VLOOKUP($U137,Func_Ftrs,I$90,0)*IF(Variables!$Y$23=1,$V137,$W137) -> 0 | Y137: =VLOOKUP($U137,Func_Ftrs,J$90,0)*IF(Variables!$Y$23=1,$V137,$W137) -> 0 | Z137: =VLOOKUP($U137,Func_Ftrs,K$90,0)*IF(Variables!$Y$23=1,$V137,$W137) -> 0 | AA137: =VLOOKUP($U137,Func_Ftrs,L$90,0)*IF(Variables!$Y$23=1,$V137,$W137) -> 0 | AB137: =VLOOKUP($U137,Func_Ftrs,M$90,0)*IF(Variables!$Y$23=1,$V137,$W137) -> 0 | AC137: =VLOOKUP($U137,Func_Ftrs,N$90,0)*IF(Variables!$Y$23=1,$V137,$W137) -> 0 | AD137: =VLOOKUP($U137,Func_Ftrs,O$90,0)*IF(Variables!$Y$23=1,$V137,$W137) -> 0 | AE137: =VLOOKUP($U137,Func_Ftrs,P$90,0)*IF(Variables!$Y$23=1,$V137,$W137) -> 0 | AG137: Mining Plant | AH137: P | AI137: 0 | AJ137: 0 | AK137: =VLOOKUP($AH137,Func_Ftrs,I$90,0)*IF(Variables!$Y$23=1,$AI137,$AJ137) -> 0 | AL137: =VLOOKUP($AH137,Func_Ftrs,J$90,0)*IF(Variables!$Y$23=1,$AI137,$AJ137) -> 0 | AM137: =VLOOKUP($AH137,Func_Ftrs,K$90,0)*IF(Variables!$Y$23=1,$AI137,$AJ137) -> 0 | AN137: =VLOOKUP($AH137,Func_Ftrs,L$90,0)*IF(Variables!$Y$23=1,$AI137,$AJ137) -> 0 | AO137: =VLOOKUP($AH137,Func_Ftrs,M$90,0)*IF(Variables!$Y$23=1,$AI137,$AJ137) -> 0 | AP137: =VLOOKUP($AH137,Func_Ftrs,N$90,0)*IF(Variables!$Y$23=1,$AI137,$AJ137) -> 0 | AQ137: =VLOOKUP($AH137,Func_Ftrs,O$90,0)*IF(Variables!$Y$23=1,$AI137,$AJ137) -> 0 | AR137: =VLOOKUP($AH137,Func_Ftrs,P$90,0)*IF(Variables!$Y$23=1,$AI137,$AJ137) -> 0
A138: 22 | D138: Depreciation | H138: =H1117 -> 500251589.4 | I138: 293649795.7 | J138: 85264158.91 | K138: 108742745.8 | L138: 0 | M138: 975536.6668 | N138: =N1117 -> 10594402.37 | O138: =O1117 -> 1024949.919 | P138: =P1117 -> 0
A139: 23 | D139: Amortization Expense | H139: =H1197 -> 81466808.88 | I139: 9528967.716 | J139: 1037340.191 | K139: 63812576.7 | L139: 0 | M139: 2155033.54 | N139: =N1197 -> 3617421.002 | O139: =O1197 -> 1315469.729 | P139: =P1197 -> 0 | T139: Total PC (Post Merger) | V139: =SUM(V131:V137) -> 0 | W139: 0 | X139: 0 | Y139: 0 | Z139: 0 | AA139: 0 | AB139: 0 | AC139: 0 | AD139: 0 | AE139: 0 | AG139: Total PC (Post Merger) | AI139: =SUM(AI131:AI137) -> 0 | AJ139: 0 | AK139: 0 | AL139: 0 | AM139: 0 | AN139: 0 | AO139: 0 | AP139: 0 | AQ139: 0 | AR139: 0
A140: 24 | D140: Taxes Other Than Income | H140: =H1225 -> 80048147.31 | I140: 27125450.48 | J140: 21863090.09 | K140: 24000246.96 | L140: -15981.85757 | M140: 402095.4123 | N140: =N1225 -> 1029036.599 | O140: =O1225 -> 226138.7842 | P140: =P1225 -> 0
A141: 25 | D141: Income Taxes - Federal | H141: =H1434 -> -165198990.9 | I141: -294347782.7 | J141: -83527590.72 | K141: -72737909.42 | L141: -1117238.082 | M141: -1061964.074 | N141: =N1434 -> -4373696.005 | O141: =O1434 -> -6806391.446 | P141: =P1434 -> 1.252637667e-299 | T141: Total Deferred Taxes | V141: =V119+V128+V139 -> 0 | W141: 0 | X141: 0 | Y141: 0 | Z141: 0 | AA141: 0 | AB141: 0 | AC141: 0 | AD141: 0 | AE141: 0 | AG141: Total Deferred Taxes | AI141: =AI119+AI128+AI139 -> 0 | AJ141: 0 | AK141: 0 | AL141: 0 | AM141: 0 | AN141: 0 | AO141: 0 | AP141: 0 | AQ141: 0 | AR141: 0
A142: 26 | D142: Income Taxes - State | H142: =H1401 -> 362828724 | I142: 192252456.7 | J142: 83996122.64 | K142: 73145918.71 | L142: 1123505.014 | M142: 1067920.957 | N142: =N1401 -> 4398229.41 | O142: =O1401 -> 6844570.587 | P142: =P1401 -> -1.259664097e-299
A143: 27 | D143: Income Taxes - Def Net | H143: =H1323 -> -4875104.561 | N143: =N1323 ->  | O143: =O1323 ->  | P143: =P1323 ->  | T143: DITEXPRL FACTOR | V143: =V141/V141 ->  | W143: =W141/W141 ->  | X143: =X141/IF(Variables!$Y$23=2,$W141,$V141) ->  | Y143: =Y141/IF(Variables!$Y$23=2,$W141,$V141) ->  | Z143: =Z141/IF(Variables!$Y$23=2,$W141,$V141) ->  | AA143: =AA141/IF(Variables!$Y$23=2,$W141,$V141) ->  | AB143: =AB141/IF(Variables!$Y$23=2,$W141,$V141) ->  | AC143: =AC141/IF(Variables!$Y$23=2,$W141,$V141) ->  | AD143: =AD141/IF(Variables!$Y$23=2,$W141,$V141) ->  | AE143: =AE141/IF(Variables!$Y$23=2,$W141,$V141) ->  | AG143: DITEXPMA FACTOR | AI143: =AI141/AI141 ->  | AJ143: =AJ141/AJ141 ->  | AK143: =AK141/IF(Variables!$Y$23=2,$AJ141,$AI141) ->  | AL143: =AL141/IF(Variables!$Y$23=2,$AJ141,$AI141) ->  | AM143: =AM141/IF(Variables!$Y$23=2,$AJ141,$AI141) ->  | AN143: =AN141/IF(Variables!$Y$23=2,$AJ141,$AI141) ->  | AO143: =AO141/IF(Variables!$Y$23=2,$AJ141,$AI141) ->  | AP143: =AP141/IF(Variables!$Y$23=2,$AJ141,$AI141) ->  | AQ143: =AQ141/IF(Variables!$Y$23=2,$AJ141,$AI141) ->  | AR143: =AR141/IF(Variables!$Y$23=2,$AJ141,$AI141) -> 
A144: 28 | D144: Investment Tax Credit Adj. | H144: =H1238 -> -311713.056 | I144: -130449.4885 | J144: -94319.06375 | K144: -83918.12573 | L144: 0 | M144: 0 | N144: =N1238 -> -3026.377993 | O144: =O1238 -> 0 | P144: =P1238 -> 0
A145: 29 | D145: Misc Revenue & Expense | H145: =H332 -> 138048.4366 | I145: -291655.0682 | J145: -136797.3601 | K145: -130254.6323 | L145: 0 | M145: 701452.93 | N145: =N332 -> -4697.432758 | O145: =O332 -> 0 | P145: =P332 -> 0
A146: 30
A147: 31 | D147: Total Operating Expenses | H147: =SUM(H136:H145) -> 2224751760 | N147: =SUM(N136:N145) ->  | O147: =SUM(O136:O145) ->  | P147: =SUM(P136:P145) -> 
A148: 32
A149: 33 | C149: Operating Revenue for Return | H149: =H122-H147 -> 355181153.7 | N149: =N122-N147 ->  | O149: =O122-O147 ->  | P149: =P122-P147 -> 
A150: 34
A151: 35 | C151: Rate Base:
A152: 36 | D152: Electric Plant in Service | H152: =H2059 -> 1.458086498e+10 | I152: 5120592099 | J152: 4621446456 | K152: 4533639765 | L152: 0 | M152: 60193532.05 | N152: =N2059 -> 201736788.4 | O152: =O2059 -> 43256335.64 | P152: =P2059 -> 0
A153: 37 | D153: Plant Held for Future Use | H153: =H2082 -> 5960190.395 | I153: 63040.83762 | J153: 600391.1261 | K153: 5105526.395 | L153: 0 | M153: 6565.169217 | N153: =N2082 -> 184666.8674 | O153: =O2082 -> 0 | P153: =P2082 -> 0
A154: 38 | D154: Misc Deferred Debits | H154: =H2190+H2201 -> 179774392.1 | I154: 88672976.55 | J154: 58744224.15 | K154: 21563443.33 | L154: 0 | M154: 2926080.946 | N154: 5097930.223 | O154: 2769736.933 | P154: 0
A155: 39 | D155: Elec Plant Acq Adj | H155: =H2088+H2094 -> 9971866.905 | I155: 9971866.905 | J155: 0 | K155: 0 | L155: 0 | M155: 0 | N155: 0 | O155: 0 | P155: 0
A156: 40 | D156: Nuclear Fuel | H156: =H2098 -> 1.716801219e-07 | I156: 1.716801219e-07 | J156: 0 | K156: 0 | L156: 0 | M156: 0 | N156: =N2098 -> 0 | O156: =O2098 -> 0 | P156: =P2098 -> 0
A157: 41 | D157: Prepayments | H157: =H2180 -> 97895907.68 | I157: 34433614.09 | J157: 7388598.982 | K157: 35239585.87 | L157: 0 | M157: 5454764.968 | N157: =N2180 -> 9839709.685 | O157: =O2180 -> 5539634.081 | P157: =P2180 -> 0
A158: 42 | D158: Fuel Stock | H158: =H2145 -> 114712176.1 | I158: 114712176.1 | J158: 0 | K158: 0 | L158: 0 | M158: 0 | N158: =N2145 -> 0 | O158: =O2145 -> 0 | P158: =P2145 -> 0
A159: 43 | D159: Material & Supplies | H159: =H2172 -> 224799291.4 | I159: 180583958 | J159: 15185791.15 | K159: 28045338.64 | L159: 0 | M159: 0 | N159: =N2172 -> 984203.6299 | O159: =O2172 -> 0 | P159: =P2172 -> 0
A160: 44 | D160: Working Capital | H160: =H2228 -> 92914646.57 | I160: 39468964.49 | J160: 7950477.428 | K160: 29256357.16 | L160: -614.4952551 | M160: 4479183.265 | N160: =N2228 -> 7271632.87 | O160: =O2228 -> 4488645.848 | P160: =P2228 -> 0
A161: 45 | D161: Weatherization Loans | H161: =H2120 -> 0.12 | I161: 0 | J161: 0 | K161: 0.12 | L161: 0 | M161: 0 | N161: =N2120 -> 0 | O161: =O2120 -> 0 | P161: =P2120 -> 0
A162: 46 | D162: Miscellaneous Rate Base | H162: =H2248 -> 0 | I162: 0 | J162: 0 | K162: 0 | L162: 0 | M162: 0 | N162: =N2248 -> 0 | O162: =O2248 -> 0 | P162: =P2248 -> 0
A163: 47
A164: 48 | D164: Total Electric Plant | H164: =SUM(H152:H163) -> 1.530689345e+10 | I164: 5588498696 | J164: 4711315938 | K164: 4652850017 | L164: -614.4952551 | M164: 73060126.39 | N164: =SUM(N152:N163) -> 225114931.7 | O164: =SUM(O152:O163) -> 56054352.5 | P164: =SUM(P152:P163) -> 0
A165: 49
A166: 50 | C166: Rate Base Deductions:
A167: 51 | D167: Accum Prov For Depr | H167: =H2548 -> -5402077840 | I167: -2829604246 | J167: -1102377404 | K167: -1328147958 | L167: 0 | M167: -45825335.54 | N167: =N2548 -> -75595046.25 | O167: =O2548 -> -20527851.14 | P167: =P2548 -> 0
A168: 52 | D168: Accum Prov For Amort | H168: =H2597 -> -225221939.1 | I168: -82416495.4 | J168: -9529610.396 | K168: -48855008.75 | L168: 0 | M168: -37900828.75 | N168: =N2597 -> -23836620.38 | O168: =O2597 -> -22683375.43 | P168: =P2597 -> 0
A169: 53 | D169: Accum Def Income Taxes | H169: =H2345 -> -1285630272 | N169: =N2345 ->  | O169: =O2345 ->  | P169: =P2345 -> 
A170: 54 | D170: Unamortized ITC | H170: =H2355 -> -1927533.881 | I170: -779194.496 | J170: -92766.45596 | K170: -655373.8019 | L170: 0 | M170: -104885.3926 | N170: =N2355 -> -188700.6371 | O170: =O2355 -> -106613.097 | P170: =P2355 -> 0
A171: 55 | D171: Customer Adv for Const | H171: =H2280 -> -153555663.3 | I171: 0 | J171: -118013118.3 | K171: -34305374.54 | L171: 0 | M171: 0 | N171: =N2280 -> -1237170.512 | O171: =O2280 -> 0 | P171: =P2280 -> 0
A172: 56 | D172: Customer Service Deposits | H172: =H2254 -> -13298302.82 | I172: 0 | J172: 0 | K172: 0 | L172: 0 | M172: -13298302.82 | N172: =N2254 -> 0 | O172: =O2254 -> 0 | P172: =P2254 -> 0
A173: 57 | D173: Misc. Rate Base Deductions | H173: =H2261+H2266+H2272+H2291+H2284 -> -732365227.2 | I173: =I2261+I2266+I2272+I2291+I2284 -> -694527407.9 | J173: -2967327.936 | K173: -22030799.67 | L173: 0 | M173: -3354977.317 | N173: -6074472.903 | O173: -3410241.534 | P173: 0
A174: 58
A175: 59 | D175: Total Rate Base Deductions | H175: =SUM(H167:H173) -> -7814076779 | N175: =SUM(N167:N173) ->  | O175: =SUM(O167:O173) ->  | P175: =SUM(P167:P173) -> 
A176: 60 | R176: Functional Retail Revenue Spread
A177: 61 | C177: Total Rate Base | H177: =H164+H175 -> 7492816668 | L177: =MAX(L164+L175,1) ->  | N177: =N164+N175 ->  | O177: =O164+O175 ->  | P177: =P164+P175 ->  | S177: =$I$115 -> Production | T177: =$J$115 -> Transmission | U177: =$K$115 -> Distribution | V177: =$L$115 -> Ancillary | W177: =$M$115 -> C_Billing | X177: =$N$115 -> C_Metering | Y177: =$O$115 -> C_Service | Z177: =$P$115 -> DSM
A178: 62 | R178: California
A179: 63 | C179: Return on Rate Base | H179: =H149/H177 -> 0.04740288858 | P179: 0 | R179: Washington
A180: 64 | R180: Montana
A181: 65 | C181: Return on Equity | H181: =(+H179-Variables!$AT$3-Variables!$AT$4)/Variables!$AT$5 -> 0.04154570606 | I181: =(+I179-Variables!$AT$3-Variables!$AT$4)/Variables!$AT$5 ->  | J181: =(+J179-Variables!$AT$3-Variables!$AT$4)/Variables!$AT$5 ->  | K181: =(+K179-Variables!$AT$3-Variables!$AT$4)/Variables!$AT$5 ->  | L181: =(+L179-Variables!$AT$3-Variables!$AT$4)/Variables!$AT$5 ->  | M181: =(+M179-Variables!$AT$3-Variables!$AT$4)/Variables!$AT$5 ->  | N181: =(+N179-Variables!$AT$3-Variables!$AT$4)/Variables!$AT$5 ->  | O181: =(+O179-Variables!$AT$3-Variables!$AT$4)/Variables!$AT$5 ->  | P181: 0 | R181: Wyoming - East | S181: 127802829 | T181: 31696874 | U181: 50094096.44 | V181: 46928984 | W181: 1555189 | X181: 1610923.44
A182: 66 | R182: Utah | S182: 366003980 | T182: 104207074 | U182: 215005203.7 | V182: 197478510 | W182: 11984031 | X182: 5542662.72
A183: 67 | C183: 100 Basis Points in Equity: | H183: =(H177*(Variables!$AT5*(H181+0.01)+Variables!$AT3+Variables!$AT4))-H149 -> 31919399.01 | I183: =(I177*(Variables!AT5*(I181+0.01)+Variables!AT3+Variables!AT4))-I149 ->  | J183: =(J177*(Variables!AU5*(J181+0.01)+Variables!AU3+Variables!AU4))-J149 ->  | K183: =(K177*(Variables!$AV5*(K181+0.01)+Variables!$AV3+Variables!$AV4))-K149 ->  | L183: =(L177*(Variables!$AV5*(L181+0.01)+Variables!$AV3+Variables!$AV4))-L149 ->  | M183: =(M177*(Variables!$AV5*(M181+0.01)+Variables!$AV3+Variables!$AV4))-M149 ->  | N183: =(N177*(Variables!$AV5*(N181+0.01)+Variables!$AV3+Variables!$AV4))-N149 ->  | O183: =(O177*(Variables!$AV5*(O181+0.01)+Variables!$AV3+Variables!$AV4))-O149 ->  | P183: =(P177*(Variables!$AV5*(P181+0.01)+Variables!$AV3+Variables!$AV4))-P149 ->  | R183: Idaho | S183: 55561275 | T183: 14318016 | U183: 30397767.02 | V183: 27273473 | W183: 2038247 | X183: 1086047.02
A184: 68 | D184: Revenue Requirement Impact | H184: =H183*(1/(1-(INDEX(Variables!$F$15:$Q$15,1,Variables!$AO$3)))) -> 42325898.32 | I184: =I183*(1/(1-(INDEX(Variables!$F$15:$Q$15,1,Variables!$AO$3)))) ->  | J184: =J183*(1/(1-(INDEX(Variables!$F$15:$Q$15,1,Variables!$AO$3)))) ->  | K184: =K183*(1/(1-(INDEX(Variables!$F$15:$Q$15,1,Variables!$AO$3)))) ->  | L184: =L183*(1/(1-(INDEX(Variables!$F$15:$Q$15,1,Variables!$AO$3)))) ->  | M184: =M183*(1/(1-(INDEX(Variables!$F$15:$Q$15,1,Variables!$AO$3)))) ->  | N184: =N183*(1/(1-(INDEX(Variables!$F$15:$Q$15,1,Variables!$AO$3)))) ->  | O184: =O183*(1/(1-(INDEX(Variables!$F$15:$Q$15,1,Variables!$AO$3)))) ->  | P184: =P183*(1/(1-(INDEX(Variables!$F$15:$Q$15,1,Variables!$AO$3)))) ->  | R184: Wyoming - West | S184: 19756255.66 | T184: 5006765.992 | U184: 9963427.118 | V184: 8733400.13 | W184: 996768.2125 | X184: 233258.5417
A185: 69 | D185: Rate Base Decrease | H185: =(H149/(Variables!$AT5*(H181+0.01)+UTCR!$J7+UTCR!$J12))-H177 -> -617839998.6 | I185: =(I149/(Variables!$AT5*(I181+0.01)+UTCR!$J7+UTCR!$J12))-I177 ->  | J185: =(J149/(Variables!$AU5*(J181+0.01)+UTCR!$J7+UTCR!$J12))-J177 ->  | K185: =(K149/(Variables!$AV5*(K181+0.01)+UTCR!$J7+UTCR!$J12))-K177 ->  | L185: =(L149/(Variables!$AV5*(L181+0.01)+UTCR!$J7+UTCR!$J12))-L177 ->  | M185: =(M149/(Variables!$AV5*(M181+0.01)+UTCR!$J7+UTCR!$J12))-M177 ->  | N185: =(N149/(Variables!$AV5*(N181+0.01)+UTCR!$J7+UTCR!$J12))-N177 ->  | O185: =(O149/(Variables!$AV5*(O181+0.01)+UTCR!$J7+UTCR!$J12))-O177 ->  | P185: =(P149/(Variables!$AV5*(P181+0.01)+UTCR!$J7+UTCR!$J12))-P177 ->  | R185: Total Company | S185: 1110556694 | T185: 308995072.2 | U185: 611877930.3 | V185: 566002564.9 | W185: 14881002.1 | X185: 30994363.59
C186: =$C$111 -> RESULTS OF OPERATIONS SUMMARY | AA186: Check Total
C187: =+$C$114 -> 2020 PROTOCOL | S187: =($H179-I179)*I177*(1/(1-Variables!$F$15)) ->  | T187: =($H179-J179)*J177*(1/(1-Variables!$F$15)) ->  | U187: =($H179-K179)*K177*(1/(1-Variables!$F$15)) ->  | V187: =($H179-L179)*L177*(1/(1-Variables!$F$15)) ->  | W187: =($H179-M179)*M177*(1/(1-Variables!$F$15)) ->  | X187: =($H179-N179)*N177*(1/(1-Variables!$F$15)) ->  | Y187: =($H179-O179)*O177*(1/(1-Variables!$F$15)) ->  | Z187: =($H179-P179)*P177*(1/(1-Variables!$F$15)) ->  | AA187: =ABS(SUM(S187:Z187)) -> 
C188: FERC | F188: BUSINESS | G188: PITA | H188: =$H$114 -> UTAH | S188: =S187+I192 ->  | AA188: =SUM(S188:Z188) -> 
C189: ACCT | E189: DESCRIPTION | F189: FUNCTION | G189: FACTOR | H189: =$H$115 -> Normalized | I189: =$I$115 -> Production | J189: =$J$115 -> Transmission | K189: =$K$115 -> Distribution | L189: =$L$115 -> Ancillary | M189: =$M$115 -> C_Billing | N189: =$N$115 -> C_Metering | O189: =$O$115 -> C_Service | P189: =$P$115 -> DSM | Q189: Check | S189: =$I$115 -> Production | T189: =$J$115 -> Transmission | U189: =$K$115 -> Distribution | V189: =$L$115 -> Ancillary | W189: Customer | X189: DSM
A190: 70 | C190: Sales to Ultimate Customers | Q190: Figure | R190: Variance
A191: 71 | C191: 440 | D191: Residential Sales | I191: =($H179-I179)*I177*(1/(1-Variables!$F$15)) ->  | J191: =($H179-J179)*J177*(1/(1-Variables!$F$15)) ->  | K191: =($H179-K179)*K177*(1/(1-Variables!$F$15)) ->  | L191: =($H179-L179)*L177*(1/(1-Variables!$F$15)) ->  | M191: =($H179-M179)*M177*(1/(1-Variables!$F$15)) ->  | N191: =($H179-N179)*N177*(1/(1-Variables!$F$15)) ->  | O191: =($H179-O179)*O177*(1/(1-Variables!$F$15)) ->  | P191: =($H179-P179)*P177*(1/(1-Variables!$F$15)) ->  | Q191: =H117 -> 2381581836
A192: 72 | G192: =UTCR!H192 -> S | H192: =IF(Variables!$Y$23=2,Report!P192,NRO!I192) -> 977656998.8 | I192: 652206238.2 | J192: 43324568.75 | K192: 194817363.5 | L192: 6949653.101 | M192: 20138960.93 | N192: 25075718.33 | O192: 6828800.312 | P192: 4.705277175e-299 | Q192: =SUM(I192:P192) -> 949341303.1 | R192: =ROUND(Q191-Q192,0) -> 1432240533 | S192: =IF($F192=0,0,INDEX($I192:$P192,1,1)) -> 0 | T192: =IF($F192=0,0,INDEX($I192:$P192,1,2)) -> 0 | U192: =IF($F192=0,0,INDEX($I192:$P192,1,3)) -> 0 | V192: =IF($F192=0,0,INDEX($I192:$P192,1,4)) -> 0 | W192: =IF($F192=0,0,INDEX($I192:$P192,1,5)) -> 0 | X192: =IF($F192=0,0,INDEX($I192:$P192,1,6)) -> 0
A193: 73 | S193: 0 | T193: 0 | U193: 0 | V193: 0 | W193: 0 | X193: 0
A194: 74 | H194: =SUBTOTAL(9,H192:H193) -> 977656998.8 | S194: 0 | T194: 0 | U194: 0 | V194: 0 | W194: 0 | X194: 0
A195: 75 | S195: 0 | T195: 0 | U195: 0 | V195: 0 | W195: 0 | X195: 0
A196: 76 | C196: 442 | D196: Commercial & Industrial Sales | S196: 0 | T196: 0 | U196: 0 | V196: 0 | W196: 0 | X196: 0
A197: 77 | G197: =UTCR!H197 -> S | H197: =IF(Variables!$Y$23=2,Report!P197,NRO!I197) -> 1397952874 | S197: 0 | T197: 0 | U197: 0 | V197: 0 | W197: 0 | X197: 0
A198: 78 | F198: P | G198: =UTCR!H198 -> SE | H198: =IF(Variables!$Y$23=2,Report!P198,NRO!I198) -> 0 | I198: =IF(F198=(VLOOKUP(F198,Func_Ftrs,1)),VLOOKUP(F198,Func_Ftrs,5),"#N/A")*H198 -> 0 | J198: =IF(F198=(VLOOKUP(F198,Func_Ftrs,1)),VLOOKUP(F198,Func_Ftrs,6),"#N/A")*H198 -> 0 | K198: =IF(F198=(VLOOKUP(F198,Func_Ftrs,1)),VLOOKUP(F198,Func_Ftrs,7),"#N/A")*H198 -> 0 | L198: =IF(F198=(VLOOKUP(F198,Func_Ftrs,1)),VLOOKUP(F198,Func_Ftrs,8),"#N/A")*H198 -> 0 | M198: =IF(F198=(VLOOKUP(F198,Func_Ftrs,1)),VLOOKUP(F198,Func_Ftrs,9),"#N/A")*H198 -> 0 | N198: =IF($F198=(VLOOKUP($F198,Func_Ftrs,1)),VLOOKUP($F198,Func_Ftrs,10),"#N/A")*$H198 -> 0 | O198: =IF($F198=(VLOOKUP($F198,Func_Ftrs,1)),VLOOKUP($F198,Func_Ftrs,11),"#N/A")*$H198 -> 0 | P198: =IF($F198=(VLOOKUP($F198,Func_Ftrs,1)),VLOOKUP($F198,Func_Ftrs,12),"#N/A")*$H198 -> 0 | S198: 0 | T198: 0 | U198: 0 | V198: 0 | W198: 0 | X198: 0
A199: 79 | F199: PT | G199: =UTCR!H199 -> SG | H199: =IF(Variables!$Y$23=2,Report!P199,NRO!I199) -> 0 | I199: =IF(F199=(VLOOKUP(F199,Func_Ftrs,1,0)),VLOOKUP(F199,Func_Ftrs,5,0),"#N/A")*H199 -> 0 | J199: =IF(F199=(VLOOKUP(F199,Func_Ftrs,1,0)),VLOOKUP(F199,Func_Ftrs,6,0),"#N/A")*H199 -> 0 | K199: =IF(F199=(VLOOKUP(F199,Func_Ftrs,1,0)),VLOOKUP(F199,Func_Ftrs,7,0),"#N/A")*H199 -> 0 | L199: =IF(F199=(VLOOKUP(F199,Func_Ftrs,1,0)),VLOOKUP(F199,Func_Ftrs,8,0),"#N/A")*H199 -> 0 | M199: =IF(F199=(VLOOKUP(F199,Func_Ftrs,1,0)),VLOOKUP(F199,Func_Ftrs,9,0),"#N/A")*H199 -> 0 | N199: =IF($F199=(VLOOKUP($F199,Func_Ftrs,1,0)),VLOOKUP($F199,Func_Ftrs,10,0),"#N/A")*$H199 -> 0 | O199: =IF($F199=(VLOOKUP($F199,Func_Ftrs,1,0)),VLOOKUP($F199,Func_Ftrs,11,0),"#N/A")*$H199 -> 0 | P199: =IF($F199=(VLOOKUP($F199,Func_Ftrs,1,0)),VLOOKUP($F199,Func_Ftrs,12,0),"#N/A")*$H199 -> 0 | S199: 0 | T199: 0 | U199: 0 | V199: 0 | W199: 0 | X199: 0
A200: 80 | S200: 0 | T200: 0 | U200: 0 | V200: 0 | W200: 0 | X200: 0
A201: 81 | S201: 0 | T201: 0 | U201: 0 | V201: 0 | W201: 0 | X201: 0
A202: 82 | H202: =SUBTOTAL(9,H197:H200) -> 1397952874 | I202: 0 | J202: 0 | K202: 0 | L202: 0 | M202: 0 | N202: =SUBTOTAL(9,N197:N200) -> 0 | O202: =SUBTOTAL(9,O197:O200) -> 0 | P202: =SUBTOTAL(9,P197:P200) -> 0 | S202: 0 | T202: 0 | U202: 0 | V202: 0 | W202: 0 | X202: 0
A203: 83 | S203: 0 | T203: 0 | U203: 0 | V203: 0 | W203: 0 | X203: 0
A204: 84 | C204: 444 | D204: Public Street & Highway Lighting | S204: 0 | T204: 0 | U204: 0 | V204: 0 | W204: 0 | X204: 0
A205: 85 | G205: =UTCR!H205 -> S | H205: =IF(Variables!$Y$23=2,Report!P205,NRO!I205) -> 5971963.13 | S205: 0 | T205: 0 | U205: 0 | V205: 0 | W205: 0 | X205: 0
... 2399 more rows

Sheet Results
A1: =VLOOKUP(VLOOKUP(Variables!$AO$3,Variables!$AL$3:'Variables'!$AL$14,1,FALSE),Variables!$AL$3:'Variables'!$AP$14,5,FALSE) -> Rocky Mountain Power | G1: Page 1.1
A2: =Report!I56 -> UTAH
A3: ="Normalized Results of Operations - "&Variables!AE27 -> Normalized Results of Operations - 2020 PROTOCOL
A4: =PROPER(Report!I57) -> 12 Months Ended June 2025
A7: (1) | B7: ="Test Period "& PROPER(Variables!AE27)&" Revenue Requirement" -> Test Period 2020 Protocol Revenue Requirement | E7: =E43 -> 2976960803 | F7: Page 1.2
A9: (2) | B9: Normalized General Business Revenues | E9: =C43 -> 2381581836 | F9: Page 1.2
A11: (3) | B11: =PROPER(Variables!AE27)&" Price Change" -> 2020 Protocol Price Change | E11: =D43 -> 595378967.1 | F11: Page 1.2
A34: =VLOOKUP(VLOOKUP(Variables!$AO$3,Variables!$AL$3:'Variables'!$AL$14,1,FALSE),Variables!$AL$3:'Variables'!$AP$14,5,FALSE) -> Rocky Mountain Power | G34: Page 1.2
A35: =Report!I56 -> UTAH
A36: ="Normalized Results of Operations - "&Variables!AE27 -> Normalized Results of Operations - 2020 PROTOCOL
A37: =A4 -> 12 Months Ended June 2025
C39: (1) | D39: (2) | E39: (3)
C40: Total Adjusted | E40: Results with
C41: Results | D41: Price Change | E41: Price Change
A42: 1 | B42: Operating Revenues:
A43: 2 | B43: General Business Revenues | C43: =Report!P118 -> 2381581836 | D43: =-(C74-(C102*Report!J96))*(1/NetToGross) -> 595378967.1 | E43: =SUM(C43:D43) -> 2976960803 | F43: =+'Adj Summary'!D100-D43 -> 0
A44: 3 | B44: Interdepartmental | C44: =Report!P119 -> 0
A45: 4 | B45: Special Sales | C45: =Report!P120 -> 72197743.51
A46: 5 | B46: Other Operating Revenues | C46: =Report!P121 -> 126153334.4
A47: 6 | B47: Total Operating Revenues | C47: =SUM(C43:C46) -> 2579932914
A48: 7
A49: 8 | B49: Operating Expenses:
A50: 9 | B50: Steam Production | C50: =Report!P125 -> 515861410.9
A51: 10 | B51: Nuclear Production | C51: =Report!P126 -> 0
A52: 11 | B52: Hydro Production | C52: =Report!P127 -> 20650402.4
A53: 12 | B53: Other Power Supply | C53: =Report!P128 -> 787471772.8
A54: 13 | B54: Transmission | C54: =Report!P129 -> 130168586.4
A55: 14 | B55: Distribution | C55: =Report!P130 -> 118438362.8
A56: 15 | B56: Customer Accounting | C56: =Report!P131 -> 39462877.66 | D56: =D43*UncollectibleAccounts -> 1843351.882 | E56: =SUM(C56:D56) -> 41306229.54
A57: 16 | B57: Customer Service & Info | C57: =Report!P132 -> 5875935.465
A58: 17 | B58: Sales | C58: =Report!P133 -> 0
A59: 18 | B59: Administrative & General | C59: =Report!P134 -> 290254925.3
A60: 19
A61: 20 | B61: Total O&M Expenses | C61: =Report!P136 -> 1908184274
A62: 21
A63: 22 | B63: Depreciation | C63: =Report!P138 -> 500277235.5
A64: 23 | B64: Amortization | C64: =Report!P139 -> 81466808.88
A65: 24 | B65: Taxes Other Than Income | C65: =Report!P140 -> 80048147.31 | D65: =((D43)*(FranchiseTax+RevenueTax+ResourceSupplier+PUCFees)) -> 1584898.811 | E65: =SUM(C65:D65) -> 81633046.12
A66: 25 | B66: Income Taxes - Federal | C66: =Report!P141 -> -182890571.3 | D66: =(D43-D56-D65-D67)*Report!J78 -> 118665992.3 | E66: =SUM(C66:D66) -> -64224578.93
A67: 26 | B67: Income Taxes - State | C67: =Report!P142 -> -18055020.45 | D67: =(D43-D56-D65)*Report!J79 -> 26874562.53 | E67: =SUM(C67:D67) -> 8819542.075
A68: 27 | B68: Income Taxes - Def Net | C68: =Report!P143 -> 12185766.11
A69: 28 | B69: Investment Tax Credit Adj. | C69: =Report!P144 -> -311713.056
A70: 29 | B70: Misc Revenue & Expense | C70: =Report!P145 -> 138048.4366
A71: 30
A72: 31 | B72: Total Operating Expenses: | C72: =Report!P147 -> 2381042975 | D72: =SUM(D56,D65:D67) -> 148968805.5 | E72: =C72+D72 -> 2530011781
A73: 32
A74: 33 | B74: Operating Rev For Return: | C74: =C47-C72 -> 198889938.8 | D74: =D43-D72 -> 446410161.6 | E74: =(C74+D43-D56-D65-D66-D67) -> 645300100.4
A75: 34
A76: 35 | B76: Rate Base:
A77: 36 | B77: Electric Plant In Service | C77: =Report!P152 -> 1.62285537e+10
A78: 37 | B78: Plant Held for Future Use | C78: =Report!P153 -> 5960190.395
A79: 38 | B79: Misc Deferred Debits | C79: =Report!P154 -> 179774392.1
A80: 39 | B80: Elec Plant Acq Adj | C80: =Report!P155 -> 9971866.905
A81: 40 | B81: Pensions | C81: =Report!P156 -> 1.716801219e-07
A82: 41 | B82: Prepayments | C82: =Report!P157 -> 97895907.68
A83: 42 | B83: Fuel Stock | C83: =Report!P158 -> 114712176.1
A84: 43 | B84: Material & Supplies | C84: =Report!P159 -> 224799291.4
A85: 44 | B85: Working Capital | C85: =Report!P160 -> 92914646.57
A86: 45 | B86: Weatherization Loans | C86: =Report!P161 -> 0.12
A87: 46 | B87: Misc Rate Base | C87: =Report!P162 -> 0
A88: 47
A89: 48 | B89: Total Electric Plant: | C89: =Report!P164 -> 1.695458217e+10 | D89: 0 | E89: =SUM(C89:D89) -> 1.695458217e+10
A90: 49
A91: 50 | B91: Rate Base Deductions:
A92: 51 | B92: Accum Prov For Deprec | C92: =Report!P167 -> -5402077840
A93: 52 | B93: Accum Prov For Amort | C93: =Report!P168 -> -225221939.1
A94: 53 | B94: Accum Def Income Tax | C94: =Report!P169 -> -1288259101
A95: 54 | B95: Unamortized ITC | C95: =Report!P170 -> -1927533.881
A96: 55 | B96: Customer Adv For Const | C96: =Report!P171 -> -153555663.3
A97: 56 | B97: Customer Service Deposits | C97: =Report!P172 -> -13298302.82
A98: 57 | B98: Misc Rate Base Deductions | C98: =Report!P173 -> -732365227.2
A99: 58
A100: 59 | B100: Total Rate Base Deductions | C100: =Report!P175 -> -7816705608 | D100: 0 | E100: =SUM(C100:D100) -> -7816705608
A101: 60
A102: 61 | B102: Total Rate Base: | C102: =SUM(C89,C100) -> 9137876563 | D102: 0 | E102: =SUM(C102:D102) -> 9137876563
A103: 62
A104: 63 | B104: Return on Rate Base | C104: =C74/C102 -> 0.0217654438 | E104: =E74/E102 -> 0.0706181678
A105: 64
A106: 65 | B106: Return on Equity | C106: =(+C104-Report!$J$93-Report!$J$94)/Report!$G$95 -> -0.01863608919 | E106: =(+E104-Report!$J$93-Report!$J$94)/Report!$G$95 -> 0.09604166667
A107: 66
A108: 67 | B108: TAX CALCULATION:
A109: 68 | B109: Operating Revenue | C109: =C47-C61-C63-C64-C65-C70 -> 9818400.148 | D109: =D43-D56-D65 -> 591950716.5 | E109: =SUM(C109:D109) -> 601769116.6
A110: 69 | B110: Other Deductions
A111: 70 | B111: Interest (AFUDC) | C111: =Report!P1296 -> -72676303.74 | D111: 0 | E111: =SUM(C111:D111) -> -72676303.74
A112: 71 | B112: Interest | C112: =Report!P1280 -> 271373322.3 | D112: 0 | E112: =SUM(C112:D112) -> 271373322.3
A113: 72 | B113: Schedule "M" Additions | C113: =Report!P1375 -> 675683486.2 | D113: 0 | E113: =SUM(C113:D113) -> 675683486.2
A114: 73 | B114: Schedule "M" Deductions | C114: =Report!P1406 -> 884492542.9 | D114: 0 | E114: =SUM(C114:D114) -> 884492542.9
A115: 74 | B115: Income Before Tax | C115: =C109-C111-C112+C113-C114 -> -397687675.2 | D115: =D109-D111-D112+D113-D114 -> 591950716.5 | E115: =E109-E111-E112+E113-E114 -> 194263041.3
A116: 75
A117: 76 | B117: State Income Taxes | C117: =C67 -> -18055020.45 | D117: =D67 -> 26874562.53 | E117: =SUM(C117:D117) -> 8819542.075
A118: 77 | B118: Taxable Income | C118: =C115-C117 -> -379632654.7 | D118: =D115-D117 -> 565076153.9 | E118: =E115-E117 -> 185443499.2
A119: 78
A120: 79 | B120: Federal Income Taxes + Other | C120: =C66 -> -182890571.3 | D120: =D66 -> 118665992.3 | E120: =SUM(C120:D120) -> -64224578.93
C122: Ref. Page 2.2
A124: =A34 -> Rocky Mountain Power | G124: Page 1.3
A125: =+A35 -> UTAH
A126: =A36 -> Normalized Results of Operations - 2020 PROTOCOL
A127: =A4 -> 12 Months Ended June 2025
B131: Net Rate Base | D131: =C102 -> 9137876563 | E131: Ref. Page 1.1
B132: Return on Rate Base Requested | D132: =Report!J96 -> 0.0706181678 | E132: Ref. Page 2.1
B134: Revenues Required to Earn Requested Return | D134: =E74 -> 645300100.4
B135: Less Current Operating Revenues | D135: =-C74 -> -198889938.8
B137: Increase to Current Revenues | D137: =D134+D135 -> 446410161.6
B138: Net to Gross Bump-up | D138: =1/NetToGross -> 1.333703886
B140: Price Change Required for Requested Return | D140: =D43 -> 595378967.1
B143: Requested Price Change | D143: =D140 -> 595378967.1
B144: Uncollectible Percent | D144: =UncollectibleAccounts -> 0.003096098424 | E144: Ref. Page 1.3
B145: Increased Uncollectible Expense | D145: =D143*D144 -> 1843351.882
B148: Requested Price Change | D148: =D140 -> 595378967.1
B149: Franchise Tax | D149: =FranchiseTax -> 0 | E149: Ref. Page 1.3
B150: Revenue Tax | D150: =RevenueTax -> 0 | E150: Ref. Page 1.3
B151: Resource Supplier Tax | D151: =ResourceSupplier -> 0 | E151: Ref. Page 1.3
B152: PUC Fees Based on General Business Revenues | D152: =PUCFees -> 0.002662 | E152: Ref. Page 1.3
B153: Increase Taxes Other Than Income | D153: =SUM(D149:D152)*D148 -> 1584898.811
B156: Requested Price Change | D156: =D140 -> 595378967.1
B157: Uncollectible Expense | D157: =-D145 -> -1843351.882
B158: Taxes Other Than Income | D158: =-D153 -> -1584898.811
B159: Income Before Taxes | D159: =SUM(D156:D158) -> 591950716.5
B161: State Effective Tax Rate | D161: =+Report!J79 -> 0.0454 | E161: Ref. Page 2.1
B162: State Income Taxes | D162: =D159*D161 -> 26874562.53
B164: Taxable Income | D164: =D159-D162 -> 565076153.9
B165: Federal Income Tax Rate | D165: =+Report!J78 -> 0.21 | E165: Ref. Page 2.1
B166: Federal Income Taxes | D166: =D164*D165 -> 118665992.3
B169: Operating Income | D169: 1
B170: Net Operating Income | D170: =D200 -> 0.7497916222 | E170: Ref. Page 1.3
B171: Net to Gross Bump-Up | D171: =D169/D170 -> 1.333703886
A176: =A$34 -> Rocky Mountain Power | G176: Page 1.4
A177: =A$35 -> UTAH
A178: =A$36 -> Normalized Results of Operations - 2020 PROTOCOL
A179: =A4 -> 12 Months Ended June 2025
A183: Operating Revenue | D183: 1
A185: Operating Deductions
A186: Uncollectible Accounts | D186: =UncollectibleAccounts -> 0.003096098424 | E186: See Note (1) Below
A187: Taxes Other - Franchise Tax | D187: =FranchiseTax -> 0
A188: Taxes Other - Revenue Tax | D188: =RevenueTax -> 0
A189: Taxes Other - Resource Supplier | D189: =ResourceSupplier -> 0
A190: PUC Fees Based on General Business Revenues | D190: =PUCFees -> 0.002662
A192: Sub-Total | D192: =D183-SUM(D185:D190) -> 0.9942419016
A194: State Income Tax @ 4.54% | D194: =D192*Report!J79 -> 0.04513858233
A196: Sub-Total | D196: =D192-D194 -> 0.9491033192
A198: Federal Income Tax @ 35.00% | D198: =D196*Report!J78 -> 0.199311697
A200: Net Operating Income | D200: =D196-D198 -> 0.7497916222
B203: (1) Uncollectible Accounts = | C203: =Report!N884 -> 7373611.768 | D203: =+"Pg 2.12, "& Report!I56&" Situs from Account 904" -> Pg 2.12, UTAH Situs from Account 904
C204: =Report!N118 -> 2381581836 | D204: Pg. 2.2, General Business Revenues

Sheet Report
C50: =VLOOKUP(VLOOKUP(Variables!$AO$3,Variables!$AL$3:'Variables'!$AL$14,1,FALSE),Variables!$AL$3:'Variables'!$AP$14,5,FALSE) -> Rocky Mountain Power
C51: RESULTS OF OPERATIONS
C54: USER SPECIFIC INFORMATION
F56: STATE: | I56: =VLOOKUP(VLOOKUP(Variables!$AO$3,Variables!$AL$3:'Variables'!$AM$14,1,FALSE),Variables!$AL$3:'Variables'!$AM$14,2,FALSE) -> UTAH
F57: PERIOD: | I57: =UPPER(TEXT(Variables!A5,"MMMM yyyy")) -> 12 MONTHS ENDED JUNE 2025
F59: FILE: | I59: =+Variables!A2 -> UT JAM JUN 2025 ROO
F60: PREPARED BY: | I60: Revenue Requirement Department
F61: DATE: | I61: =NOW() -> 2025-10-29T14:48:58.570
F62: TIME: | I62: =NOW() -> 45959.61734
F64: TYPE OF RATE BASE: | I64: =Variables!AO19 -> 13-Month Average
F65: ALLOCATION METHOD: | I65: =Variables!AE27&"" -> 2020 PROTOCOL
F67: FERC JURISDICTION: | I67: =IF(Variables!AD16=1,Variables!AC16,Variables!AC17) -> Separate Jurisdiction
F69: 8 OR 12 CP: | I69: =IF(Variables!AD20=1,Variables!AC20,Variables!AC21) -> 12 Coincident Peaks
F71: DEMAND % | I71: =VLOOKUP(Variables!Y16,Variables!W16:X20,2) -> 75% Demand
F72: ENERGY % | I72: =VLOOKUP(Variables!Y16,Variables!T16:U20,2) -> 25% Energy
C75: TAX INFORMATION
F77: TAX RATE ASSUMPTIONS: | J77: TAX RATE
F78: FEDERAL RATE | J78: =IF(Variables!AO3=12,INDEX(Variables!F12:N12,5),INDEX(Variables!F12:N12,Variables!$AO$3)) -> 0.21
F79: STATE EFFECTIVE RATE | J79: =IF(Variables!AO3=12,INDEX(Variables!F14:N14,5),INDEX(Variables!F14:N14,Variables!$AO$3)) -> 0.0454
F80: TAX GROSS UP FACTOR | J80: =1/(1-J81) -> 1.326024287
F81: FEDERAL/STATE COMBINED RATE | J81: =IF(Variables!AO3=12,INDEX(Variables!$F15:$N15,5),INDEX(Variables!$F15:$N15,Variables!$AO$3)) -> 0.245866
C85: CAPITAL STRUCTURE INFORMATION
G89: CAPITAL | I89: EMBEDDED | J89: WEIGHTED
G90: STRUCTURE | I90: COST | J90: COST
D93: DEBT | G93: =IF(Variables!AO3=12,INDEX(Variables!F3:N3,5),INDEX(Variables!F3:N3,Variables!$AO$3)) -> 0.5739 | I93: =IF(Variables!AO3=12,INDEX(Variables!F7:N7,5),INDEX(Variables!F7:N7,Variables!$AO$3)) -> 0.05174705513 | J93: =G93*I93 -> 0.02969763494
D94: PREFERRED | G94: =IF(Variables!AO3=12,INDEX(Variables!F4:N4,5),INDEX(Variables!F4:N4,Variables!$AO$3)) -> 0.0001 | I94: =IF(Variables!AO3=12,INDEX(Variables!F8:N8,5),INDEX(Variables!F8:N8,Variables!$AO$3)) -> 0.06782858119 | J94: =G94*I94 -> 6.782858119e-06
D95: COMMON | G95: =IF(Variables!AO3=12,INDEX(Variables!F5:N5,5),INDEX(Variables!F5:N5,Variables!$AO$3)) -> 0.426 | I95: =IF(Variables!AO3=12,INDEX(Variables!F9:N9,5),INDEX(Variables!F9:N9,Variables!$AO$3)) -> 0.09604166667 | J95: =G95*I95 -> 0.04091375
G96: =SUM(G93:G95) -> 1 | J96: =SUM(J93:J95) -> 0.0706181678
C99: OTHER INFORMATION
B109: =Variables!AE29 -> 2020 PROTOCOL
B110: =Variables!AO19 -> 13-Month Average
C111: RESULTS OF OPERATIONS SUMMARY
I113: JUNE 2025 | L113: =I113 -> JUNE 2025
I114: UNADJUSTED RESULTS | L114: NORMALIZED RESULTS | O114: =N115 -> UTAH
C115: Description of Account Summary: | H115: Ref | I115: TOTAL | J115: UTAH | L115: TOTAL | M115: OTHER | N115: =VLOOKUP(Variables!$AO$3,Variables!$AL$3:$AM$14,2) -> UTAH | O115: ADJUSTMENTS | P115: ADJ TOTAL
A117: 1 | C117: Operating Revenues
A118: 2 | D118: General Business Revenues | H118: 2.3 | I118: 6686582827 | J118: 2845301472 | L118: =L219-L217 -> 6222863191 | M118: =M219-M217 -> 3841281355 | N118: =N219-N217 -> 2381581836 | O118: =O219-O217 -> 0 | P118: =P219-P217 -> 2381581836
A119: 3 | D119: Interdepartmental | H119: 2.3 | I119: 0 | J119: 0 | L119: =L217 -> 0 | M119: =M217 -> 0 | N119: =N217 -> 0 | O119: =O217 -> 0 | P119: =P217 -> 0
A120: 4 | D120: Special Sales | H120: 2.3 | I120: 140270177.7 | J120: 56220619.16 | L120: =L233 -> 140270177.7 | M120: =M233 -> 68072434.21 | N120: =N233 -> 72197743.51 | O120: =O233 -> 0 | P120: =P233 -> 72197743.51
A121: 5 | D121: Other Operating Revenues | H121: 2.4 | I121: 300432890.5 | J121: 121738109.5 | L121: =L277+L240 -> 305537947.2 | M121: =M277+M240 -> 179384612.8 | N121: =N277+N240 -> 126153334.4 | O121: =O277+O240 -> 0 | P121: =P277+P240 -> 126153334.4
A122: 6 | E122: Total Operating Revenues | H122: 2.4 | I122: 7127285895 | J122: 3023260201 | L122: =SUM(L118:L121) -> 6668671316 | M122: =SUM(M118:M121) -> 4088738402 | N122: =SUM(N118:N121) -> 2579932914 | O122: =SUM(O118:O121) -> 0 | P122: =SUM(P118:P121) -> 2579932914
A123: 7
A124: 8 | C124: Operating Expenses:
A125: 9 | D125: Steam Production | H125: 2.5 | I125: 1139769280 | J125: 518090074.9 | L125: =L414 -> 1145684991 | M125: =M414 -> 629823579.8 | N125: =N414 -> 515861410.9 | O125: =O414 -> 0 | P125: =P414 -> 515861410.9
A126: 10 | D126: Nuclear Production | H126: 2.6 | I126: 0 | J126: 0 | L126: =L462 -> 0 | M126: =M462 -> 0 | N126: =N462 -> 0 | O126: =O462 -> 0 | P126: =P462 -> 0
A127: 11 | D127: Hydro Production | H127: 2.7 | I127: 50837073.83 | J127: 23183213.85 | L127: =L545 -> 45843480 | M127: =M545 -> 25193077.6 | N127: =N545 -> 20650402.4 | O127: =O545 -> 0 | P127: =P545 -> 20650402.4
A128: 12 | D128: Other Power Supply | H128: 2.8, .9 | I128: 2115129369 | J128: 835914844.3 | L128: =L603+L655 -> 2032915253 | M128: =M603+M655 -> 1245443480 | N128: =N603+N655 -> 787471772.8 | O128: =O603+O655 -> 0 | P128: =P603+P655 -> 787471772.8
A129: 13 | D129: Transmission | H129: 2.1 | I129: 289030035.7 | J129: 131732642.2 | L129: =L757 -> 289030035.7 | M129: =M757 -> 158861449.3 | N129: =N757 -> 130168586.4 | O129: =O757 -> 0 | P129: =P757 -> 130168586.4
A130: 14 | D130: Distribution | H130: 2.12 | I130: 355741130.6 | J130: 120513038.7 | L130: =L859 -> 353945370.9 | M130: =M859 -> 235507008.1 | N130: =N859 -> 118438362.8 | O130: =O859 -> 0 | P130: =P859 -> 118438362.8
A131: 15 | D131: Customer Accounting | H131: 2.12 | I131: 95817304.6 | J131: 39642569.62 | L131: =L894 -> 95498528.12 | M131: =M894 -> 56035650.46 | N131: =N894 -> 39462877.66 | O131: =O894 -> 0 | P131: =P894 -> 39462877.66
A132: 16 | D132: Customer Service & Infor | H132: 2.13 | I132: 237560141.1 | J132: 5994183.488 | L132: =L925 -> 237570957.2 | M132: =M925 -> 231695021.7 | N132: =N925 -> 5875935.465 | O132: =O925 -> 0 | P132: =P925 -> 5875935.465
A133: 17 | D133: Sales | H133: 2.13 | I133: 0 | J133: 0 | L133: =L955 -> 0 | M133: =M955 -> 0 | N133: =N955 -> 0 | O133: =O955 -> 0 | P133: =P955 -> 0
A134: 18 | D134: Administrative & General | H134: 2.14 | I134: 448859751.7 | J134: 185783600.1 | L134: =L1040 -> 688067571.6 | M134: =M1040 -> 397812646.3 | N134: =N1040 -> 290254925.3 | O134: =O1040 -> 0 | P134: =P1040 -> 290254925.3
A135: 19
A136: 20 | E136: Total O & M Expenses | H136: 2.14 | I136: 4732744086 | J136: 1860854167 | L136: =SUM(L125:L134) -> 4888556187 | M136: =SUM(M125:M134) -> 2980371913 | N136: =SUM(N125:N134) -> 1908184274 | O136: =SUM(O125:O134) -> 0 | P136: =SUM(P125:P134) -> 1908184274
A137: 21
A138: 22 | D138: Depreciation | H138: 2.16 | I138: 1194509229 | J138: 504966071.7 | L138: =L1133 -> 1194509229 | M138: =M1133 -> 694231993.4 | N138: =N1133 -> 500277235.5 | O138: =O1133 -> 0 | P138: =P1133 -> 500277235.5
A139: 23 | D139: Amortization | H139: 2.17 | I139: 46386796.68 | J139: 20441575.67 | L139: =L1213 -> 107566723.1 | M139: =M1213 -> 26099914.25 | N139: =N1213 -> 81466808.88 | O139: =O1213 -> 0 | P139: =P1213 -> 81466808.88
A140: 24 | D140: Taxes Other Than Income | H140: 2.17 | I140: 230247481.8 | J140: 80755663.2 | L140: =L1241 -> 230247481.8 | M140: =M1241 -> 150199334.5 | N140: =N1241 -> 80048147.31 | O140: =O1241 -> 0 | P140: =P1241 -> 80048147.31
A141: 25 | D141: Income Taxes - Federal | H141: 2.2 | I141: -294422127.3 | J141: -113411108.6 | L141: =L1450 -> -354861617.7 | M141: =M1450 -> -171971046.4 | N141: =N1450 -> -182890571.3 | O141: =O1450 -> 0 | P141: =P1450 -> -182890571.3
A142: 26 | D142: Income Taxes - State | H142: 2.2 | I142: -14809233.5 | J142: -2030700.235 | L142: =L1417 -> -28497105.07 | M142: =M1417 -> -10442084.62 | N142: =N1417 -> -18055020.45 | O142: =O1417 -> 0 | P142: =P1417 -> -18055020.45
A143: 27 | D143: Income Taxes - Def Net | H143: 2.19 | I143: 80393832.09 | J143: 53083040.42 | L143: =L1339 -> -10364793.65 | M143: =M1339 -> -22550559.76 | N143: =N1339 -> 12185766.11 | O143: =O1339 -> 0 | P143: =P1339 -> 12185766.11
A144: 28 | D144: Investment Tax Credit Adj. | H144: 2.17 | I144: -363488.17 | J144: -312106.9956 | L144: =L1254 -> -363488.17 | M144: =M1254 -> -51775.11404 | N144: =N1254 -> -311713.056 | O144: =O1254 -> 0 | P144: =P1254 -> -311713.056
A145: 29 | D145: Misc Revenue & Expense | H145: 2.4 | I145: -5597257.17 | J145: -2611684.476 | L145: =L333 -> -4895804.24 | M145: =M333 -> -5033852.677 | N145: =N333 -> 138048.4366 | O145: =O333 -> 0 | P145: =P333 -> 138048.4366
A146: 30
A147: 31 | E147: Total Operating Expenses | H147: 2.2 | I147: 5969089320 | J147: 2401734918 | L147: =SUM(L136:L145) -> 6021896812 | M147: =SUM(M136:M145) -> 3640853837 | N147: =SUM(N136:N145) -> 2381042975 | O147: =SUM(O136:O145) -> 0 | P147: =SUM(P136:P145) -> 2381042975
A148: 32
A149: 33 | C149: Operating Revenue for Return | I149: 1158196575 | J149: 621525283 | L149: =L122-L147 -> 646774503.6 | M149: =M122-M147 -> 447884564.8 | N149: =N122-N147 -> 198889938.8 | O149: =O122-O147 -> 0 | P149: =P122-P147 -> 198889938.8
A150: 34
A151: 35 | C151: Rate Base:
A152: 36 | D152: Electric Plant in Service | H152: 2.3 | I152: 3.656690245e+10 | J152: 1.634527753e+10 | L152: =L2082 -> 3.662294498e+10 | M152: =M2082 -> 2.039439128e+10 | N152: =N2082 -> 1.62285537e+10 | O152: =O2082 -> 0 | P152: =P2082 -> 1.62285537e+10
A153: 37 | D153: Plant Held for Future Use | H153: 2.31 | I153: 12734398.89 | J153: 5969991.998 | L153: =L2105 -> 12734398.89 | M153: =M2105 -> 6774208.496 | N153: =N2105 -> 5960190.395 | O153: =O2105 -> 0 | P153: =P2105 -> 5960190.395
A154: 38 | D154: Misc Deferred Debits | H154: 2.33 | I154: 2144032190 | J154: 274297083.5 | L154: =L2213+L2224 -> 1892304139 | M154: =M2213+M2224 -> 1712529747 | N154: =N2213+N2224 -> 179774392.1 | O154: =O2213+O2224 -> 0 | P154: =P2213+P2224 -> 179774392.1
A155: 39 | D155: Elec Plant Acq Adj | H155: 2.31 | I155: 11388689.14 | J155: 9986240.609 | L155: =L2111+L2117 -> 11388689.14 | M155: =M2111+M2117 -> 1416822.237 | N155: =N2111+N2117 -> 9971866.905 | O155: =O2111+O2117 -> 0 | P155: =P2111+P2117 -> 9971866.905
A156: 40 | D156: Pensions | H156: 2.31 | I156: 144167730 | J156: 64442471.19 | L156: =L2121 -> 3.87430191e-07 | M156: =M2121 -> 2.157500691e-07 | N156: =N2121 -> 1.716801219e-07 | O156: =O2121 -> 0 | P156: =P2121 -> 1.716801219e-07
A157: 41 | D157: Prepayments | H157: 2.32 | I157: 273281962.2 | J157: 98731806.39 | L157: =L2203 -> 273281962.2 | M157: =M2203 -> 175386054.5 | N157: =N2203 -> 97895907.68 | O157: =O2203 -> 0 | P157: =P2203 -> 97895907.68
A158: 42 | D158: Fuel Stock | H158: 2.32 | I158: 255224424.9 | J158: 115676453.7 | L158: =L2168 -> 255224424.9 | M158: =M2168 -> 140512248.8 | N158: =N2168 -> 114712176.1 | O158: =O2168 -> 0 | P158: =P2168 -> 114712176.1
A159: 43 | D159: Material & Supplies | H159: 2.32 | I159: 574092352.5 | J159: 225657456 | L159: =L2195 -> 574092352.5 | M159: =M2195 -> 349293061.1 | N159: =N2195 -> 224799291.4 | O159: =O2195 -> 0 | P159: =P2195 -> 224799291.4
A160: 44 | D160: Working Capital | H160: 2.33 | I160: 210208699.3 | J160: 94213364.32 | L160: =L2251 -> 212252041 | M160: =M2251 -> 119337394.5 | N160: =N2251 -> 92914646.57 | O160: =O2251 -> 0 | P160: =P2251 -> 92914646.57
A161: 45 | D161: Weatherization Loans | H161: 2.31 | I161: 277819151.3 | J161: 0.12 | L161: =L2143 -> 277819151.3 | M161: =M2143 -> 277819151.2 | N161: =N2143 -> 0.12 | O161: =O2143 -> 0 | P161: =P2143 -> 0.12
A162: 46 | D162: Miscellaneous Rate Base | H162: 2.34 | I162: 0 | J162: 0 | L162: =L2271 -> 0 | M162: =M2271 -> 0 | N162: =N2271 -> 0 | O162: =O2271 -> 0 | P162: =P2271 -> 0
A163: 47
A164: 48 | E164: Total Electric Plant | I164: 4.046985205e+10 | J164: 1.72342524e+10 | L164: =SUM(L152:L163) -> 4.013204214e+10 | M164: =SUM(M152:M163) -> 2.317745997e+10 | N164: =SUM(N152:N163) -> 1.695458217e+10 | O164: =SUM(O152:O163) -> 0 | P164: =SUM(P152:P163) -> 1.695458217e+10
A165: 49
A166: 50 | C166: Rate Base Deductions:
A167: 51 | D167: Accum Prov For Depr | H167: 2.38 | I167: -1.250656602e+10 | J167: -5333424828 | L167: =L2575 -> -1.262195143e+10 | M167: =M2575 -> -7219873587 | N167: =N2575 -> -5402077840 | O167: =O2575 -> 0 | P167: =P2575 -> -5402077840
A168: 52 | D168: Accum Prov For Amort | H168: 2.39 | I168: -506753647.1 | J168: -226969512.3 | L168: =L2624 -> -506753647.1 | M168: =M2624 -> -281531708 | N168: =N2624 -> -225221939.1 | O168: =O2624 -> 0 | P168: =P2624 -> -225221939.1
A169: 53 | D169: Accum Def Income Taxes | H169: 2.35 | I169: -2931964318 | J169: -1167955450 | L169: =L2372 -> -3195534016 | M169: =M2372 -> -1907274914 | N169: =N2372 -> -1288259101 | O169: =O2372 -> 0 | P169: =P2372 -> -1288259101
A170: 54 | D170: Unamortized ITC | H170: 2.35 | I170: -2024731.28 | J170: -1928382.428 | L170: =L2382 -> -2024731.28 | M170: =M2382 -> -97197.39938 | N170: =N2382 -> -1927533.881 | O170: =O2382 -> 0 | P170: =P2382 -> -1927533.881
A171: 55 | D171: Customer Adv for Const | H171: 2.34 | I171: -307718768.6 | J171: -111324084.2 | L171: =L2305 -> -307718768.6 | M171: =M2305 -> -154163105.3 | N171: =N2305 -> -153555663.3 | O171: =O2305 -> 0 | P171: =P2305 -> -153555663.3
A172: 56 | D172: Customer Service Deposits | H172: 2.34 | I172: 0 | J172: 0 | L172: =L2277 -> -13298302.82 | M172: =M2277 -> 0 | N172: =N2277 -> -13298302.82 | O172: =O2277 -> 0 | P172: =P2277 -> -13298302.82
A173: 57 | D173: Misc. Rate Base Deductions | H173: 2.34 | I173: -2948959178 | J173: -1376244649 | L173: =L2286+L2291+L2297+L2309+L2316 -> -1512356135 | M173: =M2286+M2291+M2297+M2309+M2316 -> -779990908.2 | N173: =N2286+N2291+N2297+N2309+N2316 -> -732365227.2 | O173: =O2286+O2291+O2297+O2309+O2316 -> 0 | P173: =P2286+P2291+P2297+P2309+P2316 -> -732365227.2
A174: 58
A175: 59 | E175: Total Rate Base Deductions | I175: -1.920398666e+10 | J175: -8217846905 | L175: =SUM(L167:L173) -> -1.815963703e+10 | M175: =SUM(M167:M173) -> -1.034293142e+10 | N175: =SUM(N167:N173) -> -7816705608 | O175: =SUM(O167:O173) -> 0 | P175: =SUM(P167:P173) -> -7816705608
A176: 60
A177: 61 | C177: Total Rate Base | I177: 2.126586539e+10 | J177: 9016405497 | L177: =L164+L175 -> 2.197240512e+10 | M177: =M164+M175 -> 1.283452855e+10 | N177: =N164+N175 -> 9137876563 | O177: =O164+O175 -> 0 | P177: =P164+P175 -> 9137876563
A178: 62
A179: 63 | C179: Return on Rate Base | I179: 0.05446270603 | J179: 0.06893271195 | L179: =L149/L177 -> 0.02943576273 | N179: =N149/N177 -> 0.0217654438 | P179: =P149/P177 -> 0.0217654438
A180: 64
A181: 65 | C181: Return on Equity | I181: 0.0581180475 | J181: 0.09208519755 | L181: =(+L179-Report!$J$93-Report!$J$94)/Report!$G$95 -> -0.0006306456964 | N181: =(+N179-Report!$J$93-Report!$J$94)/Report!$G$95 -> -0.01863608919 | P181: =(+P179-Report!$J$93-Report!$J$94)/Report!$G$95 -> -0.01863608919
A182: 66 | C182: Net Power Costs | I182: 2516868867 | J182: 1155329025 | L182: =-L231+L354+L369+L560+L616+L712 -> 2437966261 | N182: =-N231+N354+N369+N560+N616+N712 -> 1105924007 | P182: =-P231+P354+P369+P560+P616+P712 -> 1105924007
A183: 67 | C183: 100 Basis Points in Equity: | I183: 90592585.85 | J183: 38407998.94 | L183: =(L177*(Report!$G$95*(L181+0.01)+Report!$J$93+Report!$J$94))-L149 -> 93602445.79 | N183: =(N177*(Report!$G$95*(N181+0.01)+Report!$J$93+Report!$J$94))-N149 -> 38927354.16 | P183: =(P177*(Report!$G$95*(P181+0.01)+Report!$J$93+Report!$J$94))-P149 -> 38927354.16
A184: 68 | D184: Revenue Requirement Impact | I184: 120127969.1 | J184: 50929939.43 | L184: =L183*(1/(1-(INDEX(Variables!$F$15:$N$15,1,IF(Variables!$AO$3=12,5,Variables!$AO$3))))) -> 124119116.5 | N184: =N183*(1/(1-(INDEX(Variables!$F$15:$N$15,1,IF(Variables!$AO$3=12,5,Variables!$AO$3))))) -> 51618617.06 | P184: =P183*(1/(1-(INDEX(Variables!$F$15:$N$15,1,IF(Variables!$AO$3=12,5,Variables!$AO$3))))) -> 51618617.06
A185: 69 | D185: Rate Base Decrease | I185: -1542718163 | J185: -524607898.6 | L185: =(L149/(Report!$G$95*(L181+0.01)+Report!$J$93+Report!$J$94))-L177 -> -2777869922 | N185: =(N149/(Report!$G$95*(N181+0.01)+(Report!$I$93*Report!$G$93)+(Report!$I$94*Report!$G$94)))-N177 -> -1495742184 | P185: =(P149/(Report!$G$95*(P181+0.01)+(Report!I$93*Report!$G$93)+(Report!$I$94*Report!$G$94)))-P177 -> -1495742184
C186: =$B$109 -> 2020 PROTOCOL
C187: =$B$110 -> 13-Month Average | I187: JUNE 2025 | L187: =I187 -> JUNE 2025
C188: FERC | F188: BUS | I188: UNADJUSTED RESULTS | L188: =+L114 -> NORMALIZED RESULTS | O188: =$N$115 -> UTAH
C189: ACCT | D189: DESCRIP | F189: FUNC | G189: FACTOR | H189: Ref | I189: TOTAL | J189: UTAH | L189: TOTAL | M189: OTHER | N189: =$N$115 -> UTAH | O189: ADJUSTMENT | P189: ADJ TOTAL
A190: 70 | C190: Sales to Ultimate Customers
A191: 71 | C191: 440 | D191: Residential Sales
A192: 72 | F192: =+Function!F192 -> 0 | G192: =UTCR!H192 -> S | I192: 2655240766 | J192: 1133589305 | L192: =IF(VLOOKUP(Variables!$AO$3,Variables!$AL$3:$AN$14,3)=2,UTCR!J192,UTCR!AF192) -> 2499308459 | M192: =L192-N192 -> 1521651461 | N192: =IF(Variables!$AO$3=12,IF(VLOOKUP(Variables!$AO$3,Variables!$AL$3:$AN$14,3)=2,INDEX(UTCR!K192:U192,1,5)+INDEX(UTCR!K192:U192,1,8),INDEX(UTCR!AG192:AQ192,1,5)+INDEX(UTCR!AG192:AQ192,1,8)),IF(VLOOKUP(Variables!$AO$3,Variables!$AL$3:$AN$14,3)=2,INDEX(UTCR!K192:U192,1,Variables!$AO$3),INDEX(UTCR!AG192:AQ192,1,Variables!$AO$3))) -> 977656998.8 | O192: =P192-N192 -> 0 | P192: =IF(Variables!$AO$3=12,INDEX(NRO!J192:T192,1,5)+INDEX(NRO!J192:T192,1,8),INDEX(NRO!J192:T192,1,Variables!$AO$3)) -> 977656998.8
A193: 73
A194: 74 | H194: B1 | I194: 2655240766 | J194: 1133589305 | L194: =SUBTOTAL(9,L192:L193) -> 2499308459 | M194: =SUBTOTAL(9,M192:M193) -> 1521651461 | N194: =SUBTOTAL(9,N192:N193) -> 977656998.8 | O194: =SUBTOTAL(9,O192:O193) -> 0 | P194: =SUBTOTAL(9,P192:P193) -> 977656998.8
A195: 75
A196: 76 | C196: 442 | D196: Commercial & Industrial Sales
A197: 77 | F197: =+Function!F197 -> 0 | G197: =UTCR!H197 -> S | I197: 4014684187 | J197: 1704802224 | L197: =IF(VLOOKUP(Variables!$AO$3,Variables!$AL$3:$AN$14,3)=2,UTCR!J197,UTCR!AF197) -> 3707834836 | M197: =L197-N197 -> 2309881962 | N197: =IF(Variables!$AO$3=12,IF(VLOOKUP(Variables!$AO$3,Variables!$AL$3:$AN$14,3)=2,INDEX(UTCR!K197:U197,1,5)+INDEX(UTCR!K197:U197,1,8),INDEX(UTCR!AG197:AQ197,1,5)+INDEX(UTCR!AG197:AQ197,1,8)),IF(VLOOKUP(Variables!$AO$3,Variables!$AL$3:$AN$14,3)=2,INDEX(UTCR!K197:U197,1,Variables!$AO$3),INDEX(UTCR!AG197:AQ197,1,Variables!$AO$3))) -> 1397952874 | O197: =P197-N197 -> 0 | P197: =IF(Variables!$AO$3=12,INDEX(NRO!J197:T197,1,5)+INDEX(NRO!J197:T197,1,8),INDEX(NRO!J197:T197,1,Variables!$AO$3)) -> 1397952874
A198: 78 | F198: =+Function!F198 -> P | G198: =UTCR!H198 -> SE | I198: 0 | J198: 0 | L198: =IF(VLOOKUP(Variables!$AO$3,Variables!$AL$3:$AN$14,3)=2,UTCR!J198,UTCR!AF198) -> 0 | M198: =L198-N198 -> 0 | N198: =IF(Variables!$AO$3=12,IF(VLOOKUP(Variables!$AO$3,Variables!$AL$3:$AN$14,3)=2,INDEX(UTCR!K198:U198,1,5)+INDEX(UTCR!K198:U198,1,8),INDEX(UTCR!AG198:AQ198,1,5)+INDEX(UTCR!AG198:AQ198,1,8)),IF(VLOOKUP(Variables!$AO$3,Variables!$AL$3:$AN$14,3)=2,INDEX(UTCR!K198:U198,1,Variables!$AO$3),INDEX(UTCR!AG198:AQ198,1,Variables!$AO$3))) -> 0 | O198: =P198-N198 -> 0 | P198: =IF(Variables!$AO$3=12,INDEX(NRO!J198:T198,1,5)+INDEX(NRO!J198:T198,1,8),INDEX(NRO!J198:T198,1,Variables!$AO$3)) -> 0
A199: 79 | F199: =+Function!F199 -> PT | G199: =UTCR!H199 -> SG | I199: 0 | J199: 0 | L199: =IF(VLOOKUP(Variables!$AO$3,Variables!$AL$3:$AN$14,3)=2,UTCR!J199,UTCR!AF199) -> 0 | M199: =L199-N199 -> 0 | N199: =IF(Variables!$AO$3=12,IF(VLOOKUP(Variables!$AO$3,Variables!$AL$3:$AN$14,3)=2,INDEX(UTCR!K199:U199,1,5)+INDEX(UTCR!K199:U199,1,8),INDEX(UTCR!AG199:AQ199,1,5)+INDEX(UTCR!AG199:AQ199,1,8)),IF(VLOOKUP(Variables!$AO$3,Variables!$AL$3:$AN$14,3)=2,INDEX(UTCR!K199:U199,1,Variables!$AO$3),INDEX(UTCR!AG199:AQ199,1,Variables!$AO$3))) -> 0 | O199: =P199-N199 -> 0 | P199: =IF(Variables!$AO$3=12,INDEX(NRO!J199:T199,1,5)+INDEX(NRO!J199:T199,1,8),INDEX(NRO!J199:T199,1,Variables!$AO$3)) -> 0
A200: 80
A201: 81
A202: 82 | H202: B1 | I202: 4014684187 | J202: 1704802224 | L202: =SUBTOTAL(9,L197:L201) -> 3707834836 | M202: =SUBTOTAL(9,M197:M201) -> 2309881962 | N202: =SUBTOTAL(9,N197:N201) -> 1397952874 | O202: =SUBTOTAL(9,O197:O201) -> 0 | P202: =SUBTOTAL(9,P197:P201) -> 1397952874
A203: 83
A204: 84 | C204: 444 | D204: Public Street & Highway Lighting
A205: 85 | F205: =+Function!F205 -> 0 | G205: =UTCR!H205 -> S | I205: 16657874.31 | J205: 6909942.41 | L205: =IF(VLOOKUP(Variables!$AO$3,Variables!$AL$3:$AN$14,3)=2,UTCR!J205,UTCR!AF205) -> 15719895.03 | M205: =L205-N205 -> 9747931.9 | N205: =IF(Variables!$AO$3=12,IF(VLOOKUP(Variables!$AO$3,Variables!$AL$3:$AN$14,3)=2,INDEX(UTCR!K205:U205,1,5)+INDEX(UTCR!K205:U205,1,8),INDEX(UTCR!AG205:AQ205,1,5)+INDEX(UTCR!AG205:AQ205,1,8)),IF(VLOOKUP(Variables!$AO$3,Variables!$AL$3:$AN$14,3)=2,INDEX(UTCR!K205:U205,1,Variables!$AO$3),INDEX(UTCR!AG205:AQ205,1,Variables!$AO$3))) -> 5971963.13 | O205: =P205-N205 -> 0 | P205: =IF(Variables!$AO$3=12,INDEX(NRO!J205:T205,1,5)+INDEX(NRO!J205:T205,1,8),INDEX(NRO!J205:T205,1,Variables!$AO$3)) -> 5971963.13
A206: 86 | F206: =+Function!F206 -> 0 | G206: =UTCR!H206 -> SO | I206: 0 | J206: 0 | L206: =IF(VLOOKUP(Variables!$AO$3,Variables!$AL$3:$AN$14,3)=2,UTCR!J206,UTCR!AF206) -> 0 | M206: =L206-N206 -> 0 | N206: =IF(Variables!$AO$3=12,IF(VLOOKUP(Variables!$AO$3,Variables!$AL$3:$AN$14,3)=2,INDEX(UTCR!K206:U206,1,5)+INDEX(UTCR!K206:U206,1,8),INDEX(UTCR!AG206:AQ206,1,5)+INDEX(UTCR!AG206:AQ206,1,8)),IF(VLOOKUP(Variables!$AO$3,Variables!$AL$3:$AN$14,3)=2,INDEX(UTCR!K206:U206,1,Variables!$AO$3),INDEX(UTCR!AG206:AQ206,1,Variables!$AO$3))) -> 0 | O206: =P206-N206 -> 0 | P206: =IF(Variables!$AO$3=12,INDEX(NRO!J206:T206,1,5)+INDEX(NRO!J206:T206,1,8),INDEX(NRO!J206:T206,1,Variables!$AO$3)) -> 0
A207: 87 | H207: B1 | I207: 16657874.31 | J207: 6909942.41 | L207: =SUBTOTAL(9,L205:L206) -> 15719895.03 | M207: =SUBTOTAL(9,M205:M206) -> 9747931.9 | N207: =SUBTOTAL(9,N205:N206) -> 5971963.13 | O207: =SUBTOTAL(9,O205:O206) -> 0 | P207: =SUBTOTAL(9,P205:P206) -> 5971963.13
A208: 88
A209: 89 | C209: 445 | D209: Other Sales to Public Authority
A210: 90 | F210: =+Function!F210 -> 0 | G210: =UTCR!H210 -> S | I210: 0 | J210: 0 | L210: =IF(VLOOKUP(Variables!$AO$3,Variables!$AL$3:$AN$14,3)=2,UTCR!J210,UTCR!AF210) -> 0 | M210: =L210-N210 -> 0 | N210: =IF(Variables!$AO$3=12,IF(VLOOKUP(Variables!$AO$3,Variables!$AL$3:$AN$14,3)=2,INDEX(UTCR!K210:U210,1,5)+INDEX(UTCR!K210:U210,1,8),INDEX(UTCR!AG210:AQ210,1,5)+INDEX(UTCR!AG210:AQ210,1,8)),IF(VLOOKUP(Variables!$AO$3,Variables!$AL$3:$AN$14,3)=2,INDEX(UTCR!K210:U210,1,Variables!$AO$3),INDEX(UTCR!AG210:AQ210,1,Variables!$AO$3))) -> 0 | O210: =P210-N210 -> 0 | P210: =IF(Variables!$AO$3=12,INDEX(NRO!J210:T210,1,5)+INDEX(NRO!J210:T210,1,8),INDEX(NRO!J210:T210,1,Variables!$AO$3)) -> 0
A211: 91
A212: 92 | H212: B1 | I212: 0 | J212: 0 | L212: =SUBTOTAL(9,L210:L211) -> 0 | M212: =SUBTOTAL(9,M210:M211) -> 0 | N212: =SUBTOTAL(9,N210:N211) -> 0 | O212: =SUBTOTAL(9,O210:O211) -> 0 | P212: =SUBTOTAL(9,P210:P211) -> 0
A213: 93
A214: 94 | C214: 448 | D214: Interdepartmental
A215: 95 | F215: =+Function!F215 -> DPW | G215: =UTCR!H215 -> S | I215: 0 | J215: 0 | L215: =IF(VLOOKUP(Variables!$AO$3,Variables!$AL$3:$AN$14,3)=2,UTCR!J215,UTCR!AF215) -> 0 | M215: =L215-N215 -> 0 | N215: =IF(Variables!$AO$3=12,IF(VLOOKUP(Variables!$AO$3,Variables!$AL$3:$AN$14,3)=2,INDEX(UTCR!K215:U215,1,5)+INDEX(UTCR!K215:U215,1,8),INDEX(UTCR!AG215:AQ215,1,5)+INDEX(UTCR!AG215:AQ215,1,8)),IF(VLOOKUP(Variables!$AO$3,Variables!$AL$3:$AN$14,3)=2,INDEX(UTCR!K215:U215,1,Variables!$AO$3),INDEX(UTCR!AG215:AQ215,1,Variables!$AO$3))) -> 0 | O215: =P215-N215 -> 0 | P215: =IF(Variables!$AO$3=12,INDEX(NRO!J215:T215,1,5)+INDEX(NRO!J215:T215,1,8),INDEX(NRO!J215:T215,1,Variables!$AO$3)) -> 0
A216: 96 | F216: =+Function!F216 -> GP | G216: =UTCR!H216 -> SO | I216: 0 | J216: 0 | L216: =IF(VLOOKUP(Variables!$AO$3,Variables!$AL$3:$AN$14,3)=2,UTCR!J216,UTCR!AF216) -> 0 | M216: =L216-N216 -> 0 | N216: =IF(Variables!$AO$3=12,IF(VLOOKUP(Variables!$AO$3,Variables!$AL$3:$AN$14,3)=2,INDEX(UTCR!K216:U216,1,5)+INDEX(UTCR!K216:U216,1,8),INDEX(UTCR!AG216:AQ216,1,5)+INDEX(UTCR!AG216:AQ216,1,8)),IF(VLOOKUP(Variables!$AO$3,Variables!$AL$3:$AN$14,3)=2,INDEX(UTCR!K216:U216,1,Variables!$AO$3),INDEX(UTCR!AG216:AQ216,1,Variables!$AO$3))) -> 0 | O216: =P216-N216 -> 0 | P216: =IF(Variables!$AO$3=12,INDEX(NRO!J216:T216,1,5)+INDEX(NRO!J216:T216,1,8),INDEX(NRO!J216:T216,1,Variables!$AO$3)) -> 0
A217: 97 | H217: B1 | I217: 0 | J217: 0 | L217: =SUBTOTAL(9,L215:L216) -> 0 | M217: =SUBTOTAL(9,M215:M216) -> 0 | N217: =SUBTOTAL(9,N215:N216) -> 0 | O217: =SUBTOTAL(9,O215:O216) -> 0 | P217: =SUBTOTAL(9,P215:P216) -> 0
A218: 98
A219: 99 | C219: Total Sales to Ultimate Customers | H219: B1 | I219: 6686582827 | J219: 2845301472 | L219: =SUBTOTAL(9,L192:L217) -> 6222863191 | M219: =SUBTOTAL(9,M192:M217) -> 3841281355 | N219: =SUBTOTAL(9,N192:N217) -> 2381581836 | O219: 0 | P219: 2381581836
A220: 100
A221: 101
A222: 102
A223: 103 | C223: 447 | D223: Sales for Resale-Non NPC
A224: 104 | F224: =+Function!F224 -> P | G224: =UTCR!H224 -> S | I224: 16892671.71 | J224: -47396.42 | L224: =IF(VLOOKUP(Variables!$AO$3,Variables!$AL$3:$AN$14,3)=2,UTCR!J224,UTCR!AF224) -> 16892671.71 | M224: =L224-N224 -> 272386.99 | N224: =IF(Variables!$AO$3=12,IF(VLOOKUP(Variables!$AO$3,Variables!$AL$3:$AN$14,3)=2,INDEX(UTCR!K224:U224,1,5)+INDEX(UTCR!K224:U224,1,8),INDEX(UTCR!AG224:AQ224,1,5)+INDEX(UTCR!AG224:AQ224,1,8)),IF(VLOOKUP(Variables!$AO$3,Variables!$AL$3:$AN$14,3)=2,INDEX(UTCR!K224:U224,1,Variables!$AO$3),INDEX(UTCR!AG224:AQ224,1,Variables!$AO$3))) -> 16620284.72 | O224: =P224-N224 -> 0 | P224: =IF(Variables!$AO$3=12,INDEX(NRO!J224:T224,1,5)+INDEX(NRO!J224:T224,1,8),INDEX(NRO!J224:T224,1,Variables!$AO$3)) -> 16620284.72
A225: 105 | H225: B1 | I225: 16892671.71 | J225: -47396.42 | L225: =SUBTOTAL(9,L224:L224) -> 16892671.71 | M225: =SUBTOTAL(9,M224:M224) -> 272386.99 | N225: =SUBTOTAL(9,N224:N224) -> 16620284.72 | O225: =SUBTOTAL(9,O224:O224) -> 0 | P225: =SUBTOTAL(9,P224:P224) -> 16620284.72
A226: 106
A227: 107 | C227: 447NPC | D227: Sales for Resale-NPC
A228: 108 | F228: =+Function!F228 -> P | G228: =UTCR!H228 -> SG | I228: 124884480.8 | J228: 56951028.18 | L228: =IF(VLOOKUP(Variables!$AO$3,Variables!$AL$3:$AN$14,3)=2,UTCR!J228,UTCR!AF228) -> 124884480.8 | M228: =L228-N228 -> 68629702.99 | N228: =IF(Variables!$AO$3=12,IF(VLOOKUP(Variables!$AO$3,Variables!$AL$3:$AN$14,3)=2,INDEX(UTCR!K228:U228,1,5)+INDEX(UTCR!K228:U228,1,8),INDEX(UTCR!AG228:AQ228,1,5)+INDEX(UTCR!AG228:AQ228,1,8)),IF(VLOOKUP(Variables!$AO$3,Variables!$AL$3:$AN$14,3)=2,INDEX(UTCR!K228:U228,1,Variables!$AO$3),INDEX(UTCR!AG228:AQ228,1,Variables!$AO$3))) -> 56254777.81 | O228: =P228-N228 -> 0 | P228: =IF(Variables!$AO$3=12,INDEX(NRO!J228:T228,1,5)+INDEX(NRO!J228:T228,1,8),INDEX(NRO!J228:T228,1,Variables!$AO$3)) -> 56254777.81
A229: 109 | F229: =+Function!F229 -> P | G229: =UTCR!H229 -> SE | I229: -1506974.79 | J229: -683012.6062 | L229: =IF(VLOOKUP(Variables!$AO$3,Variables!$AL$3:$AN$14,3)=2,UTCR!J229,UTCR!AF229) -> -1506974.79 | M229: =L229-N229 -> -829655.7696 | N229: =IF(Variables!$AO$3=12,IF(VLOOKUP(Variables!$AO$3,Variables!$AL$3:$AN$14,3)=2,INDEX(UTCR!K229:U229,1,5)+INDEX(UTCR!K229:U229,1,8),INDEX(UTCR!AG229:AQ229,1,5)+INDEX(UTCR!AG229:AQ229,1,8)),IF(VLOOKUP(Variables!$AO$3,Variables!$AL$3:$AN$14,3)=2,INDEX(UTCR!K229:U229,1,Variables!$AO$3),INDEX(UTCR!AG229:AQ229,1,Variables!$AO$3))) -> -677319.0204 | O229: =P229-N229 -> 0 | P229: =IF(Variables!$AO$3=12,INDEX(NRO!J229:T229,1,5)+INDEX(NRO!J229:T229,1,8),INDEX(NRO!J229:T229,1,Variables!$AO$3)) -> -677319.0204
A230: 110 | F230: =+Function!F230 -> P | G230: =UTCR!H230 -> SG | I230: 0 | J230: 0 | L230: =IF(VLOOKUP(Variables!$AO$3,Variables!$AL$3:$AN$14,3)=2,UTCR!J230,UTCR!AF230) -> 0 | M230: =L230-N230 -> 0 | N230: =IF(Variables!$AO$3=12,IF(VLOOKUP(Variables!$AO$3,Variables!$AL$3:$AN$14,3)=2,INDEX(UTCR!K230:U230,1,5)+INDEX(UTCR!K230:U230,1,8),INDEX(UTCR!AG230:AQ230,1,5)+INDEX(UTCR!AG230:AQ230,1,8)),IF(VLOOKUP(Variables!$AO$3,Variables!$AL$3:$AN$14,3)=2,INDEX(UTCR!K230:U230,1,Variables!$AO$3),INDEX(UTCR!AG230:AQ230,1,Variables!$AO$3))) -> 0 | O230: =P230-N230 -> 0 | P230: =IF(Variables!$AO$3=12,INDEX(NRO!J230:T230,1,5)+INDEX(NRO!J230:T230,1,8),INDEX(NRO!J230:T230,1,Variables!$AO$3)) -> 0
A231: 111 | H231: B1 | I231: 123377506 | J231: 56268015.58 | L231: =SUBTOTAL(9,L228:L230) -> 123377506 | M231: =SUBTOTAL(9,M228:M230) -> 67800047.22 | N231: =SUBTOTAL(9,N228:N230) -> 55577458.79 | O231: =SUBTOTAL(9,O228:O230) -> 0 | P231: =SUBTOTAL(9,P228:P230) -> 55577458.79
A232: 112
A233: 113 | D233: Total Sales for Resale | H233: B1 | I233: 140270177.7 | J233: 56220619.16 | L233: =SUBTOTAL(9,L224:L230) -> 140270177.7 | M233: =SUBTOTAL(9,M224:M230) -> 68072434.21 | N233: =SUBTOTAL(9,N224:N230) -> 72197743.51 | O233: =SUBTOTAL(9,O224:O231) -> 0 | P233: =SUBTOTAL(9,P224:P231) -> 72197743.51
A234: 114
A235: 115 | C235: 449 | D235: Provision for Rate Refund
A236: 116 | F236: =+Function!F236 -> P | G236: =UTCR!H236 -> S | I236: 0 | J236: 0 | L236: =IF(VLOOKUP(Variables!$AO$3,Variables!$AL$3:$AN$14,3)=2,UTCR!J236,UTCR!AF236) -> 0 | M236: =L236-N236 -> 0 | N236: =IF(Variables!$AO$3=12,IF(VLOOKUP(Variables!$AO$3,Variables!$AL$3:$AN$14,3)=2,INDEX(UTCR!K236:U236,1,5)+INDEX(UTCR!K236:U236,1,8),INDEX(UTCR!AG236:AQ236,1,5)+INDEX(UTCR!AG236:AQ236,1,8)),IF(VLOOKUP(Variables!$AO$3,Variables!$AL$3:$AN$14,3)=2,INDEX(UTCR!K236:U236,1,Variables!$AO$3),INDEX(UTCR!AG236:AQ236,1,Variables!$AO$3))) -> 0 | O236: =P236-N236 -> 0 | P236: =IF(Variables!$AO$3=12,INDEX(NRO!J236:T236,1,5)+INDEX(NRO!J236:T236,1,8),INDEX(NRO!J236:T236,1,Variables!$AO$3)) -> 0
A237: 117 | F237: =+Function!F237 -> P | G237: =UTCR!H237 -> SG | I237: 0 | J237: 0 | L237: =IF(VLOOKUP(Variables!$AO$3,Variables!$AL$3:$AN$14,3)=2,UTCR!J237,UTCR!AF237) -> 0 | M237: =L237-N237 -> 0 | N237: =IF(Variables!$AO$3=12,IF(VLOOKUP(Variables!$AO$3,Variables!$AL$3:$AN$14,3)=2,INDEX(UTCR!K237:U237,1,5)+INDEX(UTCR!K237:U237,1,8),INDEX(UTCR!AG237:AQ237,1,5)+INDEX(UTCR!AG237:AQ237,1,8)),IF(VLOOKUP(Variables!$AO$3,Variables!$AL$3:$AN$14,3)=2,INDEX(UTCR!K237:U237,1,Variables!$AO$3),INDEX(UTCR!AG237:AQ237,1,Variables!$AO$3))) -> 0 | O237: =P237-N237 -> 0 | P237: =IF(Variables!$AO$3=12,INDEX(NRO!J237:T237,1,5)+INDEX(NRO!J237:T237,1,8),INDEX(NRO!J237:T237,1,Variables!$AO$3)) -> 0
A238: 118
A239: 119
A240: 120 | H240: B1 | I240: 0 | J240: 0 | L240: =SUBTOTAL(9,L236:L239) -> 0 | M240: =SUBTOTAL(9,M236:M239) -> 0 | N240: 0 | O240: 0 | P240: 0
A241: 121
A242: 122 | C242: Total Sales from Electricity | H242: B1 | I242: 6826853005 | J242: 2901522091 | L242: =SUBTOTAL(9,L224:L240)+L219 -> 6363133368 | M242: =SUBTOTAL(9,M224:M240)+M219 -> 3909353789 | N242: 2453779579 | O242: 0 | P242: 2453779579
A243: 123 | C243: 450 | D243: Forfeited Discounts & Interest
A244: 124 | F244: =+Function!F244 -> CUST | G244: =UTCR!H244 -> S | I244: 14121025.92 | J244: 5024398.55 | L244: =IF(VLOOKUP(Variables!$AO$3,Variables!$AL$3:$AN$14,3)=2,UTCR!J244,UTCR!AF244) -> 14121025.92 | M244: =L244-N244 -> 9096627.37 | N244: =IF(Variables!$AO$3=12,IF(VLOOKUP(Variables!$AO$3,Variables!$AL$3:$AN$14,3)=2,INDEX(UTCR!K244:U244,1,5)+INDEX(UTCR!K244:U244,1,8),INDEX(UTCR!AG244:AQ244,1,5)+INDEX(UTCR!AG244:AQ244,1,8)),IF(VLOOKUP(Variables!$AO$3,Variables!$AL$3:$AN$14,3)=2,INDEX(UTCR!K244:U244,1,Variables!$AO$3),INDEX(UTCR!AG244:AQ244,1,Variables!$AO$3))) -> 5024398.55 | O244: =P244-N244 -> 0 | P244: =IF(Variables!$AO$3=12,INDEX(NRO!J244:T244,1,5)+INDEX(NRO!J244:T244,1,8),INDEX(NRO!J244:T244,1,Variables!$AO$3)) -> 5024398.55
A245: 125 | F245: =+Function!F245 -> CUST | G245: =UTCR!H245 -> SO | I245: 0 | J245: 0 | L245: =IF(VLOOKUP(Variables!$AO$3,Variables!$AL$3:$AN$14,3)=2,UTCR!J245,UTCR!AF245) -> 0 | M245: =L245-N245 -> 0 | N245: =IF(Variables!$AO$3=12,IF(VLOOKUP(Variables!$AO$3,Variables!$AL$3:$AN$14,3)=2,INDEX(UTCR!K245:U245,1,5)+INDEX(UTCR!K245:U245,1,8),INDEX(UTCR!AG245:AQ245,1,5)+INDEX(UTCR!AG245:AQ245,1,8)),IF(VLOOKUP(Variables!$AO$3,Variables!$AL$3:$AN$14,3)=2,INDEX(UTCR!K245:U245,1,Variables!$AO$3),INDEX(UTCR!AG245:AQ245,1,Variables!$AO$3))) -> 0 | O245: =P245-N245 -> 0 | P245: =IF(Variables!$AO$3=12,INDEX(NRO!J245:T245,1,5)+INDEX(NRO!J245:T245,1,8),INDEX(NRO!J245:T245,1,Variables!$AO$3)) -> 0
A246: 126 | H246: B1 | I246: 14121025.92 | J246: 5024398.55 | L246: =SUBTOTAL(9,L244:L245) -> 14121025.92 | M246: =SUBTOTAL(9,M244:M245) -> 9096627.37 | N246: =SUBTOTAL(9,N244:N245) -> 5024398.55 | O246: =SUBTOTAL(9,O244:O245) -> 0 | P246: =SUBTOTAL(9,P244:P245) -> 5024398.55
A247: 127
A248: 128 | C248: 451 | D248: Misc Electric Revenue
A249: 129 | F249: =+Function!F249 -> CUST | G249: =UTCR!H249 -> S | I249: 9187867.11 | J249: 7445970.84 | L249: =IF(VLOOKUP(Variables!$AO$3,Variables!$AL$3:$AN$14,3)=2,UTCR!J249,UTCR!AF249) -> 9187867.11 | M249: =L249-N249 -> 1741896.27 | N249: =IF(Variables!$AO$3=12,IF(VLOOKUP(Variables!$AO$3,Variables!$AL$3:$AN$14,3)=2,INDEX(UTCR!K249:U249,1,5)+INDEX(UTCR!K249:U249,1,8),INDEX(UTCR!AG249:AQ249,1,5)+INDEX(UTCR!AG249:AQ249,1,8)),IF(VLOOKUP(Variables!$AO$3,Variables!$AL$3:$AN$14,3)=2,INDEX(UTCR!K249:U249,1,Variables!$AO$3),INDEX(UTCR!AG249:AQ249,1,Variables!$AO$3))) -> 7445970.84 | O249: =P249-N249 -> 0 | P249: =IF(Variables!$AO$3=12,INDEX(NRO!J249:T249,1,5)+INDEX(NRO!J249:T249,1,8),INDEX(NRO!J249:T249,1,Variables!$AO$3)) -> 7445970.84
A250: 130 | F250: =+Function!F250 -> GP | G250: =UTCR!H250 -> SG | I250: 0 | J250: 0 | L250: =IF(VLOOKUP(Variables!$AO$3,Variables!$AL$3:$AN$14,3)=2,UTCR!J250,UTCR!AF250) -> 0 | M250: =L250-N250 -> 0 | N250: =IF(Variables!$AO$3=12,IF(VLOOKUP(Variables!$AO$3,Variables!$AL$3:$AN$14,3)=2,INDEX(UTCR!K250:U250,1,5)+INDEX(UTCR!K250:U250,1,8),INDEX(UTCR!AG250:AQ250,1,5)+INDEX(UTCR!AG250:AQ250,1,8)),IF(VLOOKUP(Variables!$AO$3,Variables!$AL$3:$AN$14,3)=2,INDEX(UTCR!K250:U250,1,Variables!$AO$3),INDEX(UTCR!AG250:AQ250,1,Variables!$AO$3))) -> 0 | O250: =P250-N250 -> 0 | P250: =IF(Variables!$AO$3=12,INDEX(NRO!J250:T250,1,5)+INDEX(NRO!J250:T250,1,8),INDEX(NRO!J250:T250,1,Variables!$AO$3)) -> 0
A251: 131 | F251: =+Function!F251 -> GP | G251: =UTCR!H251 -> SO | I251: 68000.87 | J251: 30396.15111 | L251: =IF(VLOOKUP(Variables!$AO$3,Variables!$AL$3:$AN$14,3)=2,UTCR!J251,UTCR!AF251) -> 68000.87 | M251: =L251-N251 -> 37867.96368 | N251: =IF(Variables!$AO$3=12,IF(VLOOKUP(Variables!$AO$3,Variables!$AL$3:$AN$14,3)=2,INDEX(UTCR!K251:U251,1,5)+INDEX(UTCR!K251:U251,1,8),INDEX(UTCR!AG251:AQ251,1,5)+INDEX(UTCR!AG251:AQ251,1,8)),IF(VLOOKUP(Variables!$AO$3,Variables!$AL$3:$AN$14,3)=2,INDEX(UTCR!K251:U251,1,Variables!$AO$3),INDEX(UTCR!AG251:AQ251,1,Variables!$AO$3))) -> 30132.90632 | O251: =P251-N251 -> 0 | P251: =IF(Variables!$AO$3=12,INDEX(NRO!J251:T251,1,5)+INDEX(NRO!J251:T251,1,8),INDEX(NRO!J251:T251,1,Variables!$AO$3)) -> 30132.90632
A252: 132 | H252: B1 | I252: 9255867.98 | J252: 7476366.991 | L252: =SUBTOTAL(9,L249:L251) -> 9255867.98 | M252: =SUBTOTAL(9,M249:M251) -> 1779764.234 | N252: =SUBTOTAL(9,N249:N251) -> 7476103.746 | O252: =SUBTOTAL(9,O249:O251) -> 0 | P252: =SUBTOTAL(9,P249:P251) -> 7476103.746
A253: 133
A254: 134 | C254: 453 | D254: Water Sales
A255: 135 | F255: =+Function!F255 -> P | G255: =UTCR!H255 -> SG | I255: 5895 | J255: 2688.294887 | L255: =IF(VLOOKUP(Variables!$AO$3,Variables!$AL$3:$AN$14,3)=2,UTCR!J255,UTCR!AF255) -> 5895 | M255: =L255-N255 -> 3239.570654 | N255: =IF(Variables!$AO$3=12,IF(VLOOKUP(Variables!$AO$3,Variables!$AL$3:$AN$14,3)=2,INDEX(UTCR!K255:U255,1,5)+INDEX(UTCR!K255:U255,1,8),INDEX(UTCR!AG255:AQ255,1,5)+INDEX(UTCR!AG255:AQ255,1,8)),IF(VLOOKUP(Variables!$AO$3,Variables!$AL$3:$AN$14,3)=2,INDEX(UTCR!K255:U255,1,Variables!$AO$3),INDEX(UTCR!AG255:AQ255,1,Variables!$AO$3))) -> 2655.429346 | O255: =P255-N255 -> 0 | P255: =IF(Variables!$AO$3=12,INDEX(NRO!J255:T255,1,5)+INDEX(NRO!J255:T255,1,8),INDEX(NRO!J255:T255,1,Variables!$AO$3)) -> 2655.429346
A256: 136 | H256: B1 | I256: 5895 | J256: 2688.294887 | L256: =SUBTOTAL(9,L255) -> 5895 | M256: =SUBTOTAL(9,M255) -> 3239.570654 | N256: =SUBTOTAL(9,N255) -> 2655.429346 | O256: =SUBTOTAL(9,O255) -> 0 | P256: =SUBTOTAL(9,P255) -> 2655.429346
A257: 137
A258: 138 | C258: 454 | D258: Rent of Electric Property
A259: 139 | F259: =+Function!F259 -> DPW | G259: =UTCR!H259 -> S | I259: 14124582.56 | J259: 4563708.61 | L259: =IF(VLOOKUP(Variables!$AO$3,Variables!$AL$3:$AN$14,3)=2,UTCR!J259,UTCR!AF259) -> 14124582.56 | M259: =L259-N259 -> 9560873.95 | N259: =IF(Variables!$AO$3=12,IF(VLOOKUP(Variables!$AO$3,Variables!$AL$3:$AN$14,3)=2,INDEX(UTCR!K259:U259,1,5)+INDEX(UTCR!K259:U259,1,8),INDEX(UTCR!AG259:AQ259,1,5)+INDEX(UTCR!AG259:AQ259,1,8)),IF(VLOOKUP(Variables!$AO$3,Variables!$AL$3:$AN$14,3)=2,INDEX(UTCR!K259:U259,1,Variables!$AO$3),INDEX(UTCR!AG259:AQ259,1,Variables!$AO$3))) -> 4563708.61 | O259: =P259-N259 -> 0 | P259: =IF(Variables!$AO$3=12,INDEX(NRO!J259:T259,1,5)+INDEX(NRO!J259:T259,1,8),INDEX(NRO!J259:T259,1,Variables!$AO$3)) -> 4563708.61
A260: 140 | F260: =+Function!F260 -> T | G260: =UTCR!H260 -> SG | I260: 2219479.02 | J260: 1012148.278 | L260: =IF(VLOOKUP(Variables!$AO$3,Variables!$AL$3:$AN$14,3)=2,UTCR!J260,UTCR!AF260) -> 2219479.02 | M260: =L260-N260 -> 1219704.682 | N260: =IF(Variables!$AO$3=12,IF(VLOOKUP(Variables!$AO$3,Variables!$AL$3:$AN$14,3)=2,INDEX(UTCR!K260:U260,1,5)+INDEX(UTCR!K260:U260,1,8),INDEX(UTCR!AG260:AQ260,1,5)+INDEX(UTCR!AG260:AQ260,1,8)),IF(VLOOKUP(Variables!$AO$3,Variables!$AL$3:$AN$14,3)=2,INDEX(UTCR!K260:U260,1,Variables!$AO$3),INDEX(UTCR!AG260:AQ260,1,Variables!$AO$3))) -> 999774.3381 | O260: =P260-N260 -> 0 | P260: =IF(Variables!$AO$3=12,INDEX(NRO!J260:T260,1,5)+INDEX(NRO!J260:T260,1,8),INDEX(NRO!J260:T260,1,Variables!$AO$3)) -> 999774.3381
A261: 141 | F261: =+Function!F261 -> T | G261: =UTCR!H261 -> SG | I261: 0 | J261: 0 | L261: =IF(VLOOKUP(Variables!$AO$3,Variables!$AL$3:$AN$14,3)=2,UTCR!J261,UTCR!AF261) -> 0 | M261: =L261-N261 -> 0 | N261: =IF(Variables!$AO$3=12,IF(VLOOKUP(Variables!$AO$3,Variables!$AL$3:$AN$14,3)=2,INDEX(UTCR!K261:U261,1,5)+INDEX(UTCR!K261:U261,1,8),INDEX(UTCR!AG261:AQ261,1,5)+INDEX(UTCR!AG261:AQ261,1,8)),IF(VLOOKUP(Variables!$AO$3,Variables!$AL$3:$AN$14,3)=2,INDEX(UTCR!K261:U261,1,Variables!$AO$3),INDEX(UTCR!AG261:AQ261,1,Variables!$AO$3))) -> 0 | O261: =P261-N261 -> 0 | P261: =IF(Variables!$AO$3=12,INDEX(NRO!J261:T261,1,5)+INDEX(NRO!J261:T261,1,8),INDEX(NRO!J261:T261,1,Variables!$AO$3)) -> 0
A262: 142 | F262: =+Function!F262 -> GP | G262: =UTCR!H262 -> SO | I262: 3732305.18 | J262: 1668327.365 | L262: =IF(VLOOKUP(Variables!$AO$3,Variables!$AL$3:$AN$14,3)=2,UTCR!J262,UTCR!AF262) -> 3732305.18 | M262: =L262-N262 -> 2078426.305 | N262: =IF(Variables!$AO$3=12,IF(VLOOKUP(Variables!$AO$3,Variables!$AL$3:$AN$14,3)=2,INDEX(UTCR!K262:U262,1,5)+INDEX(UTCR!K262:U262,1,8),INDEX(UTCR!AG262:AQ262,1,5)+INDEX(UTCR!AG262:AQ262,1,8)),IF(VLOOKUP(Variables!$AO$3,Variables!$AL$3:$AN$14,3)=2,INDEX(UTCR!K262:U262,1,Variables!$AO$3),INDEX(UTCR!AG262:AQ262,1,Variables!$AO$3))) -> 1653878.875 | O262: =P262-N262 -> 0 | P262: =IF(Variables!$AO$3=12,INDEX(NRO!J262:T262,1,5)+INDEX(NRO!J262:T262,1,8),INDEX(NRO!J262:T262,1,Variables!$AO$3)) -> 1653878.875
A263: 143 | H263: B1 | I263: 20076366.76 | J263: 7244184.253 | L263: =SUBTOTAL(9,L259:L262) -> 20076366.76 | M263: =SUBTOTAL(9,M259:M262) -> 12859004.94 | N263: =SUBTOTAL(9,N259:N262) -> 7217361.823 | O263: =SUBTOTAL(9,O259:O262) -> 0 | P263: =SUBTOTAL(9,P259:P262) -> 7217361.823
A264: 144
A265: 145
A266: 146
A267: 147 | C267: 456 | D267: Other Electric Revenue
A268: 148 | F268: =+Function!F268 -> DMSC | G268: =UTCR!H268 -> S | I268: 33213016.56 | J268: 25778.09 | L268: =IF(VLOOKUP(Variables!$AO$3,Variables!$AL$3:$AN$14,3)=2,UTCR!J268,UTCR!AF268) -> 24442528.88 | M268: =L268-N268 -> 25026538.36 | N268: =IF(Variables!$AO$3=12,IF(VLOOKUP(Variables!$AO$3,Variables!$AL$3:$AN$14,3)=2,INDEX(UTCR!K268:U268,1,5)+INDEX(UTCR!K268:U268,1,8),INDEX(UTCR!AG268:AQ268,1,5)+INDEX(UTCR!AG268:AQ268,1,8)),IF(VLOOKUP(Variables!$AO$3,Variables!$AL$3:$AN$14,3)=2,INDEX(UTCR!K268:U268,1,Variables!$AO$3),INDEX(UTCR!AG268:AQ268,1,Variables!$AO$3))) -> -584009.4762 | O268: =P268-N268 -> 0 | P268: =IF(Variables!$AO$3=12,INDEX(NRO!J268:T268,1,5)+INDEX(NRO!J268:T268,1,8),INDEX(NRO!J268:T268,1,Variables!$AO$3)) -> -584009.4762
A269: 149 | F269: =+Function!F269 -> CUST | G269: =UTCR!H269 -> CN | I269: 0 | J269: 0 | L269: =IF(VLOOKUP(Variables!$AO$3,Variables!$AL$3:$AN$14,3)=2,UTCR!J269,UTCR!AF269) -> 0 | M269: =L269-N269 -> 0 | N269: =IF(Variables!$AO$3=12,IF(VLOOKUP(Variables!$AO$3,Variables!$AL$3:$AN$14,3)=2,INDEX(UTCR!K269:U269,1,5)+INDEX(UTCR!K269:U269,1,8),INDEX(UTCR!AG269:AQ269,1,5)+INDEX(UTCR!AG269:AQ269,1,8)),IF(VLOOKUP(Variables!$AO$3,Variables!$AL$3:$AN$14,3)=2,INDEX(UTCR!K269:U269,1,Variables!$AO$3),INDEX(UTCR!AG269:AQ269,1,Variables!$AO$3))) -> 0 | O269: =P269-N269 -> 0 | P269: =IF(Variables!$AO$3=12,INDEX(NRO!J269:T269,1,5)+INDEX(NRO!J269:T269,1,8),INDEX(NRO!J269:T269,1,Variables!$AO$3)) -> 0
A270: 150 | F270: =+Function!F270 -> OTHSE | G270: =UTCR!H270 -> SE | I270: 27437983.87 | J270: 12435834.36 | L270: =IF(VLOOKUP(Variables!$AO$3,Variables!$AL$3:$AN$14,3)=2,UTCR!J270,UTCR!AF270) -> 27438767.09 | M270: =L270-N270 -> 15106245.69 | N270: =IF(Variables!$AO$3=12,IF(VLOOKUP(Variables!$AO$3,Variables!$AL$3:$AN$14,3)=2,INDEX(UTCR!K270:U270,1,5)+INDEX(UTCR!K270:U270,1,8),INDEX(UTCR!AG270:AQ270,1,5)+INDEX(UTCR!AG270:AQ270,1,8)),IF(VLOOKUP(Variables!$AO$3,Variables!$AL$3:$AN$14,3)=2,INDEX(UTCR!K270:U270,1,Variables!$AO$3),INDEX(UTCR!AG270:AQ270,1,Variables!$AO$3))) -> 12332521.4 | O270: =P270-N270 -> 0 | P270: =IF(Variables!$AO$3=12,INDEX(NRO!J270:T270,1,5)+INDEX(NRO!J270:T270,1,8),INDEX(NRO!J270:T270,1,Variables!$AO$3)) -> 12332521.4
A271: 151 | F271: =+Function!F271 -> OTHSO | G271: =UTCR!H271 -> SO | I271: 14636.19 | J271: 6542.325752 | L271: =IF(VLOOKUP(Variables!$AO$3,Variables!$AL$3:$AN$14,3)=2,UTCR!J271,UTCR!AF271) -> 14636.19 | M271: =L271-N271 -> 8150.523829 | N271: =IF(Variables!$AO$3=12,IF(VLOOKUP(Variables!$AO$3,Variables!$AL$3:$AN$14,3)=2,INDEX(UTCR!K271:U271,1,5)+INDEX(UTCR!K271:U271,1,8),INDEX(UTCR!AG271:AQ271,1,5)+INDEX(UTCR!AG271:AQ271,1,8)),IF(VLOOKUP(Variables!$AO$3,Variables!$AL$3:$AN$14,3)=2,INDEX(UTCR!K271:U271,1,Variables!$AO$3),INDEX(UTCR!AG271:AQ271,1,Variables!$AO$3))) -> 6485.666171 | O271: =P271-N271 -> 0 | P271: =IF(Variables!$AO$3=12,INDEX(NRO!J271:T271,1,5)+INDEX(NRO!J271:T271,1,8),INDEX(NRO!J271:T271,1,Variables!$AO$3)) -> 6485.666171
A272: 152 | F272: =+Function!F272 -> OTHSGR | G272: =UTCR!H272 -> SG | I272: 196308098.2 | J272: 89522316.64 | L272: =IF(VLOOKUP(Variables!$AO$3,Variables!$AL$3:$AN$14,3)=2,UTCR!J272,UTCR!AF272) -> 210182859.3 | M272: =L272-N272 -> 115505042.1 | N272: =IF(Variables!$AO$3=12,IF(VLOOKUP(Variables!$AO$3,Variables!$AL$3:$AN$14,3)=2,INDEX(UTCR!K272:U272,1,5)+INDEX(UTCR!K272:U272,1,8),INDEX(UTCR!AG272:AQ272,1,5)+INDEX(UTCR!AG272:AQ272,1,8)),IF(VLOOKUP(Variables!$AO$3,Variables!$AL$3:$AN$14,3)=2,INDEX(UTCR!K272:U272,1,Variables!$AO$3),INDEX(UTCR!AG272:AQ272,1,Variables!$AO$3))) -> 94677817.26 | O272: =P272-N272 -> 0 | P272: =IF(Variables!$AO$3=12,INDEX(NRO!J272:T272,1,5)+INDEX(NRO!J272:T272,1,8),INDEX(NRO!J272:T272,1,Variables!$AO$3)) -> 94677817.26
A273: 153
A274: 154
A275: 155 | H275: B1 | I275: 256973734.8 | J275: 101990471.4 | L275: =SUBTOTAL(9,L268:L274) -> 262078791.5 | M275: =SUBTOTAL(9,M268:M274) -> 155645976.7 | N275: =SUBTOTAL(9,N268:N274) -> 106432814.9 | O275: =SUBTOTAL(9,O268:O274) -> 0 | P275: =SUBTOTAL(9,P268:P274) -> 106432814.9
A276: 156
A277: 157 | C277: Total Other Electric Revenues | H277: B1 | I277: 300432890.5 | J277: 121738109.5 | L277: =SUBTOTAL(9,L244:L275) -> 305537947.2 | M277: =SUBTOTAL(9,M244:M275) -> 179384612.8 | N277: 126153334.4 | O277: 0 | P277: 126153334.4
A278: 158
A279: 159 | C279: Total Electric Operating Revenues | H279: B1 | I279: 7127285895 | J279: 3023260201 | L279: =L277+L242 -> 6668671316 | M279: =M277+M242 -> 4088738402 | N279: =N277+N242 -> 2579932914 | O279: =O277+O242 -> 0 | P279: =P277+P242 -> 2579932914
A280: 160
A281: 161 | C281: Summary of Revenues by Factor
... 2360 more rows

Sheet UTCR
E1: =VLOOKUP(VLOOKUP(Variables!$AO$3,Variables!$AL$3:'Variables'!$AL$14,1,FALSE),Variables!$AL$3:'Variables'!$AP$14,5,FALSE) -> Rocky Mountain Power | AA1: =+E1 -> Rocky Mountain Power | AS1: PITA ALLOCATION STEPS | BH1: INTERNAL CHECKS | CF1: INTERNAL CHECKS
E2: JURISDICTIONAL CAPITAL STRUCTURE | AA2: JURISDICTIONAL CAPITAL STRUCTURE | BH2: YEAR END BALANCES | CF2: BEGINNING / ENDING AVERAGE BALANCES
E4: Description | J4: TOTAL | K4: California | L4: Oregon | M4: Washington | N4: Montana | O4: Wyo-PPL | P4: Utah | Q4: Idaho | R4: Wyo-UPL | S4: FERC | T4: OTHER | U4: NON-REGULATED | AA4: Description | AF4: TOTAL | AG4: California | AH4: Oregon | AI4: Washington | AJ4: Montana | AK4: Wyo-PPL | AL4: Utah | AM4: Idaho | AN4: Wyo-UPL | AO4: FERC | AP4: OTHER | AQ4: NON-REGULATED | BH4: Download Total | BK4: =Checksumend -> 3.848911386e+10 | BM4: Account Comparison | CF4: Download Total | CG4: =Checksumavg -> 3.848911386e+10 | CI4: Account Comparison
E5: Debt | J5: =Variables!$E3 -> 0.5739 | K5: =Variables!$F3 -> 0.5739 | L5: =Variables!$G3 -> 0.5739 | M5: =Variables!$H3 -> 0.5739 | N5: =Variables!$I3 -> 0.5739 | O5: =Variables!$J3 -> 0.5739 | P5: =Variables!$K3 -> 0.5739 | Q5: =Variables!$L3 -> 0.5739 | R5: =Variables!$M3 -> 0.5739 | S5: =Variables!$N3 -> 0.5739 | AA5: Debt | AF5: =Variables!$E3 -> 0.5739 | AG5: =Variables!$F3 -> 0.5739 | AH5: =Variables!$G3 -> 0.5739 | AI5: =Variables!$H3 -> 0.5739 | AJ5: =Variables!$I3 -> 0.5739 | AK5: =Variables!$J3 -> 0.5739 | AL5: =Variables!$K3 -> 0.5739 | AM5: =Variables!$L3 -> 0.5739 | AN5: =Variables!$M3 -> 0.5739 | AO5: =Variables!$N3 -> 0.5739
E6: Embedded Cost | J6: =Variables!$E7 -> 0.05174705513 | K6: =Variables!$F7 -> 0.05174705513 | L6: =Variables!$G7 -> 0.05174705513 | M6: =Variables!$H7 -> 0.05174705513 | N6: =Variables!$I7 -> 0.05174705513 | O6: =Variables!$J7 -> 0.05174705513 | P6: =Variables!$K7 -> 0.05174705513 | Q6: =Variables!$L7 -> 0.05174705513 | R6: =Variables!$M7 -> 0.05174705513 | S6: =Variables!N7 -> 0.05174705513 | AA6: Embedded Cost | AF6: =Variables!$E7 -> 0.05174705513 | AG6: =Variables!$F7 -> 0.05174705513 | AH6: =Variables!$G7 -> 0.05174705513 | AI6: =Variables!$H7 -> 0.05174705513 | AJ6: =Variables!$I7 -> 0.05174705513 | AK6: =Variables!$J7 -> 0.05174705513 | AL6: =Variables!$K7 -> 0.05174705513 | AM6: =Variables!$L7 -> 0.05174705513 | AN6: =Variables!$M7 -> 0.05174705513 | AO6: =Variables!N7 -> 0.05174705513 | BH6: Revenues Summary | BK6: =-J279 -> -6668671316 | BM6: 440 | BN6: =SUMIF(Inputs!$B$3:$B$2193,BM6,Inputs!$D$3:$D$2193)-J194 -> 0 | BO6: 524 | BP6: =SUMIF(Inputs!$B$3:$B$2193,BO6,Inputs!$D$3:$D$2193)-J440 -> 0 | BQ6: 568 | BR6: =SUMIF(Inputs!$B$3:$B$2193,BQ6,Inputs!$D$3:$D$2193)-J730 -> 0 | BS6: 913 | BT6: =SUMIF(Inputs!$B$3:$B$2193,BS6,Inputs!$D$3:$D$2193)-J948 -> 0 | BU6: 404IP | BV6: =SUMIF(Inputs!$B$3:$B$2193,BU6,Inputs!$D$3:$D$2193)-J1172 -> 0 | BW6: 321 | BX6: =SUMIF(Inputs!$B$3:$B$2193,BW6,Inputs!$D$3:$D$2193)-J1526 -> 0 | BY6: 365 | BZ6: =SUMIF(Inputs!$B$3:$B$2193,BY6,Inputs!$D$3:$D$2193)-J1803 -> 0 | CA6: 151 | CB6: =SUMIF(Inputs!$B$3:$B$2193,CA6,Inputs!$D$3:$D$2193)-J2150 -> 0 | CC6: 108SP | CD6: =SUMIF(Inputs!$B$3:$B$2193,CC6,Inputs!$D$3:$D$2193)-J2395 -> 0 | CF6: Revenues Summary | CG6: =-AF279 -> -6668671316 | CI6: 440 | CJ6: =SUMIF(Inputs!$G$3:$G$2193,CI6,Inputs!$I$3:$I$2193)-AF194 -> 0 | CK6: 524 | CL6: =SUMIF(Inputs!$G$3:$G$2193,CK6,Inputs!$I$3:$I$2193)-AF440 -> 0 | CM6: 568 | CN6: =SUMIF(Inputs!$G$3:$G$2193,CM6,Inputs!$I$3:$I$2193)-AF730 -> 0 | CO6: 913 | CP6: =SUMIF(Inputs!$G$3:$G$2193,CO6,Inputs!$I$3:$I$2193)-AF948 -> 0 | CQ6: 404IP | CR6: =SUMIF(Inputs!$G$3:$G$2193,CQ6,Inputs!$I$3:$I$2193)-AF1172 -> 0 | CS6: 321 | CT6: =SUMIF(Inputs!$G$3:$G$2193,CS6,Inputs!$I$3:$I$2193)-AF1526 -> 0 | CU6: 365 | CV6: =SUMIF(Inputs!$G$3:$G$2193,CU6,Inputs!$I$3:$I$2193)-AF1803 -> 0 | CW6: 151 | CX6: =SUMIF(Inputs!$G$3:$G$2193,CW6,Inputs!$I$3:$I$2193)-AF2150 -> 0 | CY6: 108SP | CZ6: =SUMIF(Inputs!$G$3:$G$2193,CY6,Inputs!$I$3:$I$2193)-AF2395 -> 0
E7: Debt Weighted Cost | J7: =J5*J6 -> 0.02969763494 | K7: 0.02969763494 | L7: 0.02969763494 | M7: 0.02969763494 | N7: 0.02969763494 | O7: =O5*O6 -> 0.02969763494 | P7: 0.02969763494 | Q7: 0.02969763494 | R7: 0.02969763494 | S7: =S5*S6 -> 0.02969763494 | AA7: Debt Weighted Cost | AF7: =AF5*AF6 -> 0.02969763494 | AG7: =AG5*AG6 -> 0.02969763494 | AH7: 0.02969763494 | AI7: 0.02969763494 | AJ7: 0.02969763494 | AK7: 0.02969763494 | AL7: 0.02969763494 | AM7: 0.02969763494 | AN7: 0.02969763494 | AO7: =AO5*AO6 -> 0.02969763494 | BM7: 442 | BN7: =SUMIF(Inputs!$B$3:$B$2193,BM7,Inputs!$D$3:$D$2193)-J202 -> 0 | BO7: 528 | BP7: =SUMIF(Inputs!$B$3:$B$2193,BO7,Inputs!$D$3:$D$2193)-J444 -> 0 | BQ7: 569 | BR7: =SUMIF(Inputs!$B$3:$B$2193,BQ7,Inputs!$D$3:$D$2193)-J735 -> 0 | BS7: 916 | BT7: =SUMIF(Inputs!$B$3:$B$2193,BS7,Inputs!$D$3:$D$2193)-J953 -> 0 | BU7: 404MP | BV7: =SUMIF(Inputs!$B$3:$B$2193,BU7,Inputs!$D$3:$D$2193)-J1176 -> 0 | BW7: 322 | BX7: =SUMIF(Inputs!$B$3:$B$2193,BW7,Inputs!$D$3:$D$2193)-J1531 -> 0 | BY7: 366 | BZ7: =SUMIF(Inputs!$B$3:$B$2193,BY7,Inputs!$D$3:$D$2193)-J1807 -> 0 | CA7: 152 | CB7: =SUMIF(Inputs!$B$3:$B$2193,CA7,Inputs!$D$3:$D$2193)-J2154 -> 0 | CC7: 108NP | CD7: =SUMIF(Inputs!$B$3:$B$2193,CC7,Inputs!$D$3:$D$2193)-J2401 -> 0 | CI7: 442 | CJ7: =SUMIF(Inputs!$G$3:$G$2193,CI7,Inputs!$I$3:$I$2193)-AF202 -> 0 | CK7: 528 | CL7: =SUMIF(Inputs!$G$3:$G$2193,CK7,Inputs!$I$3:$I$2193)-AF444 -> 0 | CM7: 569 | CN7: =SUMIF(Inputs!$G$3:$G$2193,CM7,Inputs!$I$3:$I$2193)-AF735 -> 0 | CO7: 916 | CP7: =SUMIF(Inputs!$G$3:$G$2193,CO7,Inputs!$I$3:$I$2193)-AF953 -> 0 | CQ7: 404MP | CR7: =SUMIF(Inputs!$G$3:$G$2193,CQ7,Inputs!$I$3:$I$2193)-AF1176 -> 0 | CS7: 322 | CT7: =SUMIF(Inputs!$G$3:$G$2193,CS7,Inputs!$I$3:$I$2193)-AF1531 -> 0 | CU7: 366 | CV7: =SUMIF(Inputs!$G$3:$G$2193,CU7,Inputs!$I$3:$I$2193)-AF1807 -> 0 | CW7: 152 | CX7: =SUMIF(Inputs!$G$3:$G$2193,CW7,Inputs!$I$3:$I$2193)-AF2154 -> 0 | CY7: 108NP | CZ7: =SUMIF(Inputs!$G$3:$G$2193,CY7,Inputs!$I$3:$I$2193)-AF2401 -> 0
BH8: Steam O&M | BK8: =-J414 -> -1145684991 | BM8: 444 | BN8: =SUMIF(Inputs!$B$3:$B$2193,BM8,Inputs!$D$3:$D$2193)-J207 -> 0 | BO8: 529 | BP8: =SUMIF(Inputs!$B$3:$B$2193,BO8,Inputs!$D$3:$D$2193)-J448 -> 0 | BQ8: 570 | BR8: =SUMIF(Inputs!$B$3:$B$2193,BQ8,Inputs!$D$3:$D$2193)-J740 -> 0 | BS8: 920 | BT8: =SUMIF(Inputs!$B$3:$B$2193,BS8,Inputs!$D$3:$D$2193)-J968 -> 0 | BU8: 404OP | BV8: =SUMIF(Inputs!$B$3:$B$2193,BU8,Inputs!$D$3:$D$2193)-J1180 -> 0 | BW8: 323 | BX8: =SUMIF(Inputs!$B$3:$B$2193,BW8,Inputs!$D$3:$D$2193)-J1536 -> 0 | BY8: 367 | BZ8: =SUMIF(Inputs!$B$3:$B$2193,BY8,Inputs!$D$3:$D$2193)-J1814 -> 0 | CA8: 25316 | CB8: =SUMIF(Inputs!$B$3:$B$2193,CA8,Inputs!$D$3:$D$2193)-J2158 -> 0 | CC8: 108HP | CD8: =SUMIF(Inputs!$B$3:$B$2193,CC8,Inputs!$D$3:$D$2193)-J2410 -> 0 | CF8: Steam O&M | CG8: =-AF414 -> -1145684991 | CI8: 444 | CJ8: =SUMIF(Inputs!$G$3:$G$2193,CI8,Inputs!$I$3:$I$2193)-AF207 -> 0 | CK8: 529 | CL8: =SUMIF(Inputs!$G$3:$G$2193,CK8,Inputs!$I$3:$I$2193)-AF448 -> 0 | CM8: 570 | CN8: =SUMIF(Inputs!$G$3:$G$2193,CM8,Inputs!$I$3:$I$2193)-AF740 -> 0 | CO8: 920 | CP8: =SUMIF(Inputs!$G$3:$G$2193,CO8,Inputs!$I$3:$I$2193)-AF968 -> 0 | CQ8: 404OP | CR8: =SUMIF(Inputs!$G$3:$G$2193,CQ8,Inputs!$I$3:$I$2193)-AF1180 -> 0 | CS8: 323 | CT8: =SUMIF(Inputs!$G$3:$G$2193,CS8,Inputs!$I$3:$I$2193)-AF1536 -> 0 | CU8: 367 | CV8: =SUMIF(Inputs!$G$3:$G$2193,CU8,Inputs!$I$3:$I$2193)-AF1814 -> 0 | CW8: 25316 | CX8: =SUMIF(Inputs!$G$3:$G$2193,CW8,Inputs!$I$3:$I$2193)-AF2158 -> 0 | CY8: 108HP | CZ8: =SUMIF(Inputs!$G$3:$G$2193,CY8,Inputs!$I$3:$I$2193)-AF2410 -> 0
BH9: Nuclear O&M | BK9: =-J462 -> 0 | BM9: 445 | BN9: =SUMIF(Inputs!$B$3:$B$2193,BM9,Inputs!$D$3:$D$2193)-J212 -> 0 | BO9: 530 | BP9: =SUMIF(Inputs!$B$3:$B$2193,BO9,Inputs!$D$3:$D$2193)-J452 -> 0 | BQ9: 571 | BR9: =SUMIF(Inputs!$B$3:$B$2193,BQ9,Inputs!$D$3:$D$2193)-J745 -> 0 | BS9: 921 | BT9: =SUMIF(Inputs!$B$3:$B$2193,BS9,Inputs!$D$3:$D$2193)-J974 -> 0 | BU9: 404HP | BV9: =SUMIF(Inputs!$B$3:$B$2193,BU9,Inputs!$D$3:$D$2193)-J1187 -> 0 | BW9: 324 | BX9: =SUMIF(Inputs!$B$3:$B$2193,BW9,Inputs!$D$3:$D$2193)-J1541 -> 0 | BY9: 368 | BZ9: =SUMIF(Inputs!$B$3:$B$2193,BY9,Inputs!$D$3:$D$2193)-J1818 -> 0 | CA9: 25317 | CB9: =SUMIF(Inputs!$B$3:$B$2193,CA9,Inputs!$D$3:$D$2193)-J2162 -> 0 | CC9: 108OP | CD9: =SUMIF(Inputs!$B$3:$B$2193,CC9,Inputs!$D$3:$D$2193)-J2418 -> 0 | CF9: Nuclear O&M | CG9: =-AF462 -> 0 | CI9: 445 | CJ9: =SUMIF(Inputs!$G$3:$G$2193,CI9,Inputs!$I$3:$I$2193)-AF212 -> 0 | CK9: 530 | CL9: =SUMIF(Inputs!$G$3:$G$2193,CK9,Inputs!$I$3:$I$2193)-AF452 -> 0 | CM9: 571 | CN9: =SUMIF(Inputs!$G$3:$G$2193,CM9,Inputs!$I$3:$I$2193)-AF745 -> 0 | CO9: 921 | CP9: =SUMIF(Inputs!$G$3:$G$2193,CO9,Inputs!$I$3:$I$2193)-AF974 -> 0 | CQ9: 404HP | CR9: =SUMIF(Inputs!$G$3:$G$2193,CQ9,Inputs!$I$3:$I$2193)-AF1187 -> 0 | CS9: 324 | CT9: =SUMIF(Inputs!$G$3:$G$2193,CS9,Inputs!$I$3:$I$2193)-AF1541 -> 0 | CU9: 368 | CV9: =SUMIF(Inputs!$G$3:$G$2193,CU9,Inputs!$I$3:$I$2193)-AF1818 -> 0 | CW9: 25317 | CX9: =SUMIF(Inputs!$G$3:$G$2193,CW9,Inputs!$I$3:$I$2193)-AF2162 -> 0 | CY9: 108OP | CZ9: =SUMIF(Inputs!$G$3:$G$2193,CY9,Inputs!$I$3:$I$2193)-AF2418 -> 0
E10: Preferred | J10: =Variables!$E4 -> 0.0001 | K10: =Variables!$F4 -> 0.0001 | L10: =Variables!$G4 -> 0.0001 | M10: =Variables!$H4 -> 0.0001 | N10: =Variables!$I4 -> 0.0001 | O10: =Variables!$J4 -> 0.0001 | P10: =Variables!$K4 -> 0.0001 | Q10: =Variables!$L4 -> 0.0001 | R10: =Variables!$M4 -> 0.0001 | S10: =Variables!$N4 -> 0.0001 | AA10: Preferred | AF10: =Variables!$E4 -> 0.0001 | AG10: =Variables!$F4 -> 0.0001 | AH10: =Variables!$G4 -> 0.0001 | AI10: =Variables!$H4 -> 0.0001 | AJ10: =Variables!$I4 -> 0.0001 | AK10: =Variables!$J4 -> 0.0001 | AL10: =Variables!$K4 -> 0.0001 | AM10: =Variables!$L4 -> 0.0001 | AN10: =Variables!$M4 -> 0.0001 | AO10: =Variables!$N4 -> 0.0001 | BH10: Hydro O&M | BK10: =-J545 -> -45843480 | BM10: 447 | BN10: =SUMIF(Inputs!$B$3:$B$2193,BM10,Inputs!$D$3:$D$2193)-J225 -> 0 | BO10: 531 | BP10: =SUMIF(Inputs!$B$3:$B$2193,BO10,Inputs!$D$3:$D$2193)-J456 -> 0 | BQ10: 572 | BR10: =SUMIF(Inputs!$B$3:$B$2193,BQ10,Inputs!$D$3:$D$2193)-J750 -> 0 | BS10: 922 | BT10: =SUMIF(Inputs!$B$3:$B$2193,BS10,Inputs!$D$3:$D$2193)-J980 -> 0 | BU10: 405 | BV10: =SUMIF(Inputs!$B$3:$B$2193,BU10,Inputs!$D$3:$D$2193)-J1195 -> 0 | BW10: 325 | BX10: =SUMIF(Inputs!$B$3:$B$2193,BW10,Inputs!$D$3:$D$2193)-J1546 -> 0 | BY10: 369 | BZ10: =SUMIF(Inputs!$B$3:$B$2193,BY10,Inputs!$D$3:$D$2193)-J1822 -> 0 | CA10: 25319 | CB10: =SUMIF(Inputs!$B$3:$B$2193,CA10,Inputs!$D$3:$D$2193)-J2166 -> 0 | CC10: 108EP | CD10: =SUMIF(Inputs!$B$3:$B$2193,CC10,Inputs!$D$3:$D$2193)-J2423 -> 0 | CF10: Hydro O&M | CG10: =-AF545 -> -45843480 | CI10: 447 | CJ10: =SUMIF(Inputs!$G$3:$G$2193,CI10,Inputs!$I$3:$I$2193)-AF225 -> 0 | CK10: 531 | CL10: =SUMIF(Inputs!$G$3:$G$2193,CK10,Inputs!$I$3:$I$2193)-AF456 -> 0 | CM10: 572 | CN10: =SUMIF(Inputs!$G$3:$G$2193,CM10,Inputs!$I$3:$I$2193)-AF750 -> 0 | CO10: 922 | CP10: =SUMIF(Inputs!$G$3:$G$2193,CO10,Inputs!$I$3:$I$2193)-AF980 -> 0 | CQ10: 405 | CR10: =SUMIF(Inputs!$G$3:$G$2193,CQ10,Inputs!$I$3:$I$2193)-AF1195 -> 0 | CS10: 325 | CT10: =SUMIF(Inputs!$G$3:$G$2193,CS10,Inputs!$I$3:$I$2193)-AF1546 -> 0 | CU10: 369 | CV10: =SUMIF(Inputs!$G$3:$G$2193,CU10,Inputs!$I$3:$I$2193)-AF1822 -> 0 | CW10: 25319 | CX10: =SUMIF(Inputs!$G$3:$G$2193,CW10,Inputs!$I$3:$I$2193)-AF2166 -> 0 | CY10: 108EP | CZ10: =SUMIF(Inputs!$G$3:$G$2193,CY10,Inputs!$I$3:$I$2193)-AF2423 -> 0
E11: Embedded Cost | J11: =Variables!$E8 -> 0.06782858119 | K11: =Variables!$F8 -> 0.06782858119 | L11: =Variables!$G8 -> 0.06782858119 | M11: =Variables!$H8 -> 0.06782858119 | N11: =Variables!$I8 -> 0.06782858119 | O11: =Variables!$J8 -> 0.06782858119 | P11: =Variables!$K8 -> 0.06782858119 | Q11: =Variables!$L8 -> 0.06782858119 | R11: =Variables!$M8 -> 0.06782858119 | S11: =Variables!$N8 -> 0.06782858119 | AA11: Embedded Cost | AF11: =Variables!$E8 -> 0.06782858119 | AG11: =Variables!$F8 -> 0.06782858119 | AH11: =Variables!$G8 -> 0.06782858119 | AI11: =Variables!$H8 -> 0.06782858119 | AJ11: =Variables!$I8 -> 0.06782858119 | AK11: =Variables!$J8 -> 0.06782858119 | AL11: =Variables!$K8 -> 0.06782858119 | AM11: =Variables!$L8 -> 0.06782858119 | AN11: =Variables!$M8 -> 0.06782858119 | AO11: =Variables!$N8 -> 0.06782858119 | BH11: Other Prod O&M | BK11: =-J603 -> -494368921.9 | BM11: 447NPC | BN11: =SUMIF(Inputs!$B$3:$B$2193,BM11,Inputs!$D$3:$D$2193)-J231 -> 0 | BO11: 532 | BP11: =SUMIF(Inputs!$B$3:$B$2193,BO11,Inputs!$D$3:$D$2193)-J460 -> 0 | BQ11: 573 | BR11: =SUMIF(Inputs!$B$3:$B$2193,BQ11,Inputs!$D$3:$D$2193)-J755 -> 0 | BS11: 923 | BT11: =SUMIF(Inputs!$B$3:$B$2193,BS11,Inputs!$D$3:$D$2193)-J986 -> 0 | BU11: 406 | BV11: =SUMIF(Inputs!$B$3:$B$2193,BU11,Inputs!$D$3:$D$2193)-J1203 -> 0 | BW11: NP | BX11: =SUMIF(Inputs!$B$3:$B$2193,BW11,Inputs!$D$3:$D$2193)-J1551 -> 0 | BY11: 370 | BZ11: =SUMIF(Inputs!$B$3:$B$2193,BY11,Inputs!$D$3:$D$2193)-J1826 -> 0 | CA11: 154 | CB11: =SUMIF(Inputs!$B$3:$B$2193,CA11,Inputs!$D$3:$D$2193)-J2183 -> 0 | CC11: 108TP | CD11: =SUMIF(Inputs!$B$3:$B$2193,CC11,Inputs!$D$3:$D$2193)-J2441 -> 0 | CF11: Other Prod O&M | CG11: =-AF603 -> -494368921.9 | CI11: 447NPC | CJ11: =SUMIF(Inputs!$G$3:$G$2193,CI11,Inputs!$I$3:$I$2193)-AF231 -> 0 | CK11: 532 | CL11: =SUMIF(Inputs!$G$3:$G$2193,CK11,Inputs!$I$3:$I$2193)-AF460 -> 0 | CM11: 573 | CN11: =SUMIF(Inputs!$G$3:$G$2193,CM11,Inputs!$I$3:$I$2193)-AF755 -> 0 | CO11: 923 | CP11: =SUMIF(Inputs!$G$3:$G$2193,CO11,Inputs!$I$3:$I$2193)-AF986 -> 0 | CQ11: 406 | CR11: =SUMIF(Inputs!$G$3:$G$2193,CQ11,Inputs!$I$3:$I$2193)-AF1203 -> 0 | CS11: NP | CT11: =SUMIF(Inputs!$G$3:$G$2193,CS11,Inputs!$I$3:$I$2193)-AF1551 -> 0 | CU11: 370 | CV11: =SUMIF(Inputs!$G$3:$G$2193,CU11,Inputs!$I$3:$I$2193)-AF1826 -> 0 | CW11: 154 | CX11: =SUMIF(Inputs!$G$3:$G$2193,CW11,Inputs!$I$3:$I$2193)-AF2183 -> 0 | CY11: 108TP | CZ11: =SUMIF(Inputs!$G$3:$G$2193,CY11,Inputs!$I$3:$I$2193)-AF2441 -> 0
E12: Preferred Weighted Cost | J12: =J10*J11 -> 6.782858119e-06 | K12: =K10*K11 -> 6.782858119e-06 | L12: 6.782858119e-06 | M12: 6.782858119e-06 | N12: 6.782858119e-06 | O12: 6.782858119e-06 | P12: 6.782858119e-06 | Q12: 6.782858119e-06 | R12: 6.782858119e-06 | S12: =S10*S11 -> 6.782858119e-06 | AA12: Preferred Weighted Cost | AF12: =AF10*AF11 -> 6.782858119e-06 | AG12: =AG10*AG11 -> 6.782858119e-06 | AH12: 6.782858119e-06 | AI12: 6.782858119e-06 | AJ12: 6.782858119e-06 | AK12: 6.782858119e-06 | AL12: 6.782858119e-06 | AM12: 6.782858119e-06 | AN12: 6.782858119e-06 | AO12: =AO10*AO11 -> 6.782858119e-06 | BH12: Power Supply | BK12: =-J655 -> -1538546331 | BM12: 448 | BN12: =SUMIF(Inputs!$B$3:$B$2193,BM12,Inputs!$D$3:$D$2193)-J217 -> 0 | BO12: 535 | BP12: =SUMIF(Inputs!$B$3:$B$2193,BO12,Inputs!$D$3:$D$2193)-J469 -> 0 | BQ12: 580 | BR12: =SUMIF(Inputs!$B$3:$B$2193,BQ12,Inputs!$D$3:$D$2193)-J767 -> 0 | BS12: 924 | BT12: =SUMIF(Inputs!$B$3:$B$2193,BS12,Inputs!$D$3:$D$2193)-J992 -> 0 | BU12: 407 | BV12: =SUMIF(Inputs!$B$3:$B$2193,BU12,Inputs!$D$3:$D$2193)-J1211 -> 0 | BW12: 330 | BX12: =SUMIF(Inputs!$B$3:$B$2193,BW12,Inputs!$D$3:$D$2193)-J1570 -> 0 | BY12: 371 | BZ12: =SUMIF(Inputs!$B$3:$B$2193,BY12,Inputs!$D$3:$D$2193)-J1830 -> 0 | CA12: 158 | CB12: =SUMIF(Inputs!$B$3:$B$2193,CA12,Inputs!$D$3:$D$2193)-J2188 -> 0 | CC12: 108360 | CD12: =SUMIF(Inputs!$B$3:$B$2193,CC12,Inputs!$D$3:$D$2193)-J2444 -> 0 | CF12: Power Supply | CG12: =-AF655 -> -1538546331 | CI12: 448 | CJ12: =SUMIF(Inputs!$G$3:$G$2193,CI12,Inputs!$I$3:$I$2193)-AF217 -> 0 | CK12: 535 | CL12: =SUMIF(Inputs!$G$3:$G$2193,CK12,Inputs!$I$3:$I$2193)-AF469 -> 0 | CM12: 580 | CN12: =SUMIF(Inputs!$G$3:$G$2193,CM12,Inputs!$I$3:$I$2193)-AF767 -> 0 | CO12: 924 | CP12: =SUMIF(Inputs!$G$3:$G$2193,CO12,Inputs!$I$3:$I$2193)-AF992 -> 0 | CQ12: 407 | CR12: =SUMIF(Inputs!$G$3:$G$2193,CQ12,Inputs!$I$3:$I$2193)-AF1211 -> 0 | CS12: 330 | CT12: =SUMIF(Inputs!$G$3:$G$2193,CS12,Inputs!$I$3:$I$2193)-AF1570 -> 0 | CU12: 371 | CV12: =SUMIF(Inputs!$G$3:$G$2193,CU12,Inputs!$I$3:$I$2193)-AF1830 -> 0 | CW12: 158 | CX12: =SUMIF(Inputs!$G$3:$G$2193,CW12,Inputs!$I$3:$I$2193)-AF2188 -> 0 | CY12: 108360 | CZ12: =SUMIF(Inputs!$G$3:$G$2193,CY12,Inputs!$I$3:$I$2193)-AF2444 -> 0
BH13: Trans O&M | BK13: =-J757 -> -289030035.7 | BM13: 449 | BN13: =SUMIF(Inputs!$B$3:$B$2193,BM13,Inputs!$D$3:$D$2193)-J240 -> 0 | BO13: 536 | BP13: =SUMIF(Inputs!$B$3:$B$2193,BO13,Inputs!$D$3:$D$2193)-J476 -> 0 | BQ13: 581 | BR13: =SUMIF(Inputs!$B$3:$B$2193,BQ13,Inputs!$D$3:$D$2193)-J772 -> 0 | BS13: 925 | BT13: =SUMIF(Inputs!$B$3:$B$2193,BS13,Inputs!$D$3:$D$2193)-J997 -> 0 | BU13: 408 | BV13: =SUMIF(Inputs!$B$3:$B$2193,BU13,Inputs!$D$3:$D$2193)-J1241 -> 0 | BW13: 331 | BX13: =SUMIF(Inputs!$B$3:$B$2193,BW13,Inputs!$D$3:$D$2193)-J1577 -> 0 | BY13: 372 | BZ13: =SUMIF(Inputs!$B$3:$B$2193,BY13,Inputs!$D$3:$D$2193)-J1834 -> 0 | CA13: 25318 | CB13: =SUMIF(Inputs!$B$3:$B$2193,CA13,Inputs!$D$3:$D$2193)-J2193 -> 0 | CC13: 108361 | CD13: =SUMIF(Inputs!$B$3:$B$2193,CC13,Inputs!$D$3:$D$2193)-J2448 -> 0 | CF13: Trans O&M | CG13: =-AF757 -> -289030035.7 | CI13: 449 | CJ13: =SUMIF(Inputs!$G$3:$G$2193,CI13,Inputs!$I$3:$I$2193)-AF240 -> 0 | CK13: 536 | CL13: =SUMIF(Inputs!$G$3:$G$2193,CK13,Inputs!$I$3:$I$2193)-AF476 -> 0 | CM13: 581 | CN13: =SUMIF(Inputs!$G$3:$G$2193,CM13,Inputs!$I$3:$I$2193)-AF772 -> 0 | CO13: 925 | CP13: =SUMIF(Inputs!$G$3:$G$2193,CO13,Inputs!$I$3:$I$2193)-AF997 -> 0 | CQ13: 408 | CR13: =SUMIF(Inputs!$G$3:$G$2193,CQ13,Inputs!$I$3:$I$2193)-AF1241 -> 0 | CS13: 331 | CT13: =SUMIF(Inputs!$G$3:$G$2193,CS13,Inputs!$I$3:$I$2193)-AF1577 -> 0 | CU13: 372 | CV13: =SUMIF(Inputs!$G$3:$G$2193,CU13,Inputs!$I$3:$I$2193)-AF1834 -> 0 | CW13: 25318 | CX13: =SUMIF(Inputs!$G$3:$G$2193,CW13,Inputs!$I$3:$I$2193)-AF2193 -> 0 | CY13: 108361 | CZ13: =SUMIF(Inputs!$G$3:$G$2193,CY13,Inputs!$I$3:$I$2193)-AF2448 -> 0
BH14: Dist O&M | BK14: =-J859 -> -353945370.9 | BM14: 450 | BN14: =SUMIF(Inputs!$B$3:$B$2193,BM14,Inputs!$D$3:$D$2193)-J246 -> 0 | BO14: 537 | BP14: =SUMIF(Inputs!$B$3:$B$2193,BO14,Inputs!$D$3:$D$2193)-J483 -> 0 | BQ14: 582 | BR14: =SUMIF(Inputs!$B$3:$B$2193,BQ14,Inputs!$D$3:$D$2193)-J777 -> 0 | BS14: 926 | BT14: =SUMIF(Inputs!$B$3:$B$2193,BS14,Inputs!$D$3:$D$2193)-J1003 -> 0 | BU14: 41140 | BV14: =SUMIF(Inputs!$B$3:$B$2193,BU14,Inputs!$D$3:$D$2193)-J1247 -> 0 | BW14: 332 | BX14: =SUMIF(Inputs!$B$3:$B$2193,BW14,Inputs!$D$3:$D$2193)-J1584 -> 0 | BY14: 373 | BZ14: =SUMIF(Inputs!$B$3:$B$2193,BY14,Inputs!$D$3:$D$2193)-J1838 -> 0 | CA14: 165 | CB14: =SUMIF(Inputs!$B$3:$B$2193,CA14,Inputs!$D$3:$D$2193)-J2203 -> 0 | CC14: 108362 | CD14: =SUMIF(Inputs!$B$3:$B$2193,CC14,Inputs!$D$3:$D$2193)-J2452 -> 0 | CF14: Dist O&M | CG14: =-AF859 -> -353945370.9 | CI14: 450 | CJ14: =SUMIF(Inputs!$G$3:$G$2193,CI14,Inputs!$I$3:$I$2193)-AF246 -> 0 | CK14: 537 | CL14: =SUMIF(Inputs!$G$3:$G$2193,CK14,Inputs!$I$3:$I$2193)-AF483 -> 0 | CM14: 582 | CN14: =SUMIF(Inputs!$G$3:$G$2193,CM14,Inputs!$I$3:$I$2193)-AF777 -> 0 | CO14: 926 | CP14: =SUMIF(Inputs!$G$3:$G$2193,CO14,Inputs!$I$3:$I$2193)-AF1003 -> 0 | CQ14: 41140 | CR14: =SUMIF(Inputs!$G$3:$G$2193,CQ14,Inputs!$I$3:$I$2193)-AF1247 -> 0 | CS14: 332 | CT14: =SUMIF(Inputs!$G$3:$G$2193,CS14,Inputs!$I$3:$I$2193)-AF1584 -> 0 | CU14: 373 | CV14: =SUMIF(Inputs!$G$3:$G$2193,CU14,Inputs!$I$3:$I$2193)-AF1838 -> 0 | CW14: 165 | CX14: =SUMIF(Inputs!$G$3:$G$2193,CW14,Inputs!$I$3:$I$2193)-AF2203 -> 0 | CY14: 108362 | CZ14: =SUMIF(Inputs!$G$3:$G$2193,CY14,Inputs!$I$3:$I$2193)-AF2452 -> 0
E15: Common | J15: =Variables!$E5 -> 0.426 | K15: =Variables!$F5 -> 0.426 | L15: =Variables!$G5 -> 0.426 | M15: =Variables!$H5 -> 0.426 | N15: =Variables!$I5 -> 0.426 | O15: =Variables!$J5 -> 0.426 | P15: =Variables!$K5 -> 0.426 | Q15: =Variables!$L5 -> 0.426 | R15: =Variables!$M5 -> 0.426 | S15: =Variables!$N5 -> 0.426 | AA15: Common | AF15: =Variables!$E5 -> 0.426 | AG15: =Variables!$F5 -> 0.426 | AH15: =Variables!$G5 -> 0.426 | AI15: =Variables!$H5 -> 0.426 | AJ15: =Variables!$I5 -> 0.426 | AK15: =Variables!$J5 -> 0.426 | AL15: =Variables!$K5 -> 0.426 | AM15: =Variables!$L5 -> 0.426 | AN15: =Variables!$M5 -> 0.426 | AO15: =Variables!$N5 -> 0.426 | BH15: Customer Accts | BK15: =-J894-J963 -> -333069485.3 | BM15: 451 | BN15: =SUMIF(Inputs!$B$3:$B$2193,BM15,Inputs!$D$3:$D$2193)-J252 -> 0 | BO15: 538 | BP15: =SUMIF(Inputs!$B$3:$B$2193,BO15,Inputs!$D$3:$D$2193)-J490 -> 0 | BQ15: 583 | BR15: =SUMIF(Inputs!$B$3:$B$2193,BQ15,Inputs!$D$3:$D$2193)-J782 -> 0 | BS15: 927 | BT15: =SUMIF(Inputs!$B$3:$B$2193,BS15,Inputs!$D$3:$D$2193)-J1008 -> 0 | BU15: 41141 | BV15: =SUMIF(Inputs!$B$3:$B$2193,BU15,Inputs!$D$3:$D$2193)-J1252 -> 0 | BW15: 333 | BX15: =SUMIF(Inputs!$B$3:$B$2193,BW15,Inputs!$D$3:$D$2193)-J1591 -> 0 | BY15: DP | BZ15: =SUMIF(Inputs!$B$3:$B$2193,BY15,Inputs!$D$3:$D$2193)-J1842 -> 0 | CA15: 182M | CB15: =SUMIF(Inputs!$B$3:$B$2193,CA15,Inputs!$D$3:$D$2193)-J2213 -> 0 | CC15: 108363 | CD15: =SUMIF(Inputs!$B$3:$B$2193,CC15,Inputs!$D$3:$D$2193)-J2456 -> 0 | CF15: Customer Accts | CG15: =-AF894-AF963 -> -333069485.3 | CI15: 451 | CJ15: =SUMIF(Inputs!$G$3:$G$2193,CI15,Inputs!$I$3:$I$2193)-AF252 -> 0 | CK15: 538 | CL15: =SUMIF(Inputs!$G$3:$G$2193,CK15,Inputs!$I$3:$I$2193)-AF490 -> 0 | CM15: 583 | CN15: =SUMIF(Inputs!$G$3:$G$2193,CM15,Inputs!$I$3:$I$2193)-AF782 -> 0 | CO15: 927 | CP15: =SUMIF(Inputs!$G$3:$G$2193,CO15,Inputs!$I$3:$I$2193)-AF1008 -> 0 | CQ15: 41141 | CR15: =SUMIF(Inputs!$G$3:$G$2193,CQ15,Inputs!$I$3:$I$2193)-AF1252 -> 0 | CS15: 333 | CT15: =SUMIF(Inputs!$G$3:$G$2193,CS15,Inputs!$I$3:$I$2193)-AF1591 -> 0 | CU15: DP | CV15: =SUMIF(Inputs!$G$3:$G$2193,CU15,Inputs!$I$3:$I$2193)-AF1842 -> 0 | CW15: 182M | CX15: =SUMIF(Inputs!$G$3:$G$2193,CW15,Inputs!$I$3:$I$2193)-AF2213 -> 0 | CY15: 108363 | CZ15: =SUMIF(Inputs!$G$3:$G$2193,CY15,Inputs!$I$3:$I$2193)-AF2456 -> 0
E16: Embedded Cost | J16: =Variables!$E9 -> 0.09604166667 | K16: =Variables!$F9 -> 0.09604166667 | L16: =Variables!$G9 -> 0.09604166667 | M16: =Variables!$H9 -> 0.09604166667 | N16: =Variables!$I9 -> 0.09604166667 | O16: =Variables!$J9 -> 0.09604166667 | P16: =Variables!$K9 -> 0.09604166667 | Q16: =Variables!$L9 -> 0.09604166667 | R16: =Variables!$M9 -> 0.09604166667 | S16: =Variables!$N9 -> 0.09604166667 | AA16: Embedded Cost | AF16: =Variables!$E9 -> 0.09604166667 | AG16: =Variables!$F9 -> 0.09604166667 | AH16: =Variables!$G9 -> 0.09604166667 | AI16: =Variables!$H9 -> 0.09604166667 | AJ16: =Variables!$I9 -> 0.09604166667 | AK16: =Variables!$J9 -> 0.09604166667 | AL16: =Variables!$K9 -> 0.09604166667 | AM16: =Variables!$L9 -> 0.09604166667 | AN16: =Variables!$M9 -> 0.09604166667 | AO16: =Variables!$N9 -> 0.09604166667 | BH16: A&G | BK16: =-J1040 -> -688067571.6 | BM16: 453 | BN16: =SUMIF(Inputs!$B$3:$B$2193,BM16,Inputs!$D$3:$D$2193)-J256 -> 0 | BO16: 539 | BP16: =SUMIF(Inputs!$B$3:$B$2193,BO16,Inputs!$D$3:$D$2193)-J498 -> 0 | BQ16: 584 | BR16: =SUMIF(Inputs!$B$3:$B$2193,BQ16,Inputs!$D$3:$D$2193)-J787 -> 0 | BS16: 928 | BT16: =SUMIF(Inputs!$B$3:$B$2193,BS16,Inputs!$D$3:$D$2193)-J1015 -> 0 | BU16: 427 | BV16: =SUMIF(Inputs!$B$3:$B$2193,BU16,Inputs!$D$3:$D$2193)-J1260-J1283 -> 56427001.17 | BW16: 334 | BX16: =SUMIF(Inputs!$B$3:$B$2193,BW16,Inputs!$D$3:$D$2193)-J1598 -> 0 | BY16: DSO | BZ16: =SUMIF(Inputs!$B$3:$B$2193,BY16,Inputs!$D$3:$D$2193)-J1846 -> 0 | CA16: 186M | CB16: =SUMIF(Inputs!$B$3:$B$2193,CA16,Inputs!$D$3:$D$2193)-J2224 -> 0 | CC16: 108364 | CD16: =SUMIF(Inputs!$B$3:$B$2193,CC16,Inputs!$D$3:$D$2193)-J2460 -> 0 | CF16: A&G | CG16: =-AF1040 -> -688067571.6 | CI16: 453 | CJ16: =SUMIF(Inputs!$G$3:$G$2193,CI16,Inputs!$I$3:$I$2193)-AF256 -> 0 | CK16: 539 | CL16: =SUMIF(Inputs!$G$3:$G$2193,CK16,Inputs!$I$3:$I$2193)-AF498 -> 0 | CM16: 584 | CN16: =SUMIF(Inputs!$G$3:$G$2193,CM16,Inputs!$I$3:$I$2193)-AF787 -> 0 | CO16: 928 | CP16: =SUMIF(Inputs!$G$3:$G$2193,CO16,Inputs!$I$3:$I$2193)-AF1015 -> 0 | CQ16: 427 | CR16: =SUMIF(Inputs!$G$3:$G$2193,CQ16,Inputs!$I$3:$I$2193)-AF1260-AF1283 -> 56426378.96 | CS16: 334 | CT16: =SUMIF(Inputs!$G$3:$G$2193,CS16,Inputs!$I$3:$I$2193)-AF1598 -> 0 | CU16: DSO | CV16: =SUMIF(Inputs!$G$3:$G$2193,CU16,Inputs!$I$3:$I$2193)-AF1846 -> 0 | CW16: 186M | CX16: =SUMIF(Inputs!$G$3:$G$2193,CW16,Inputs!$I$3:$I$2193)-AF2224 -> 0 | CY16: 108364 | CZ16: =SUMIF(Inputs!$G$3:$G$2193,CY16,Inputs!$I$3:$I$2193)-AF2460 -> 0
E17: Common Weighted Cost | J17: =J15*J16 -> 0.04091375 | K17: =K15*K16 -> 0.04091375 | L17: 0.04091375 | M17: 0.04091375 | N17: 0.04091375 | O17: 0.04091375 | P17: 0.04091375 | Q17: 0.04091375 | R17: 0.04091375 | S17: =S15*S16 -> 0.04091375 | AA17: Common Weighted Cost | AF17: =AF15*AF16 -> 0.04091375 | AG17: =AG15*AG16 -> 0.04091375 | AH17: 0.04091375 | AI17: 0.04091375 | AJ17: 0.04091375 | AK17: 0.04091375 | AL17: 0.04091375 | AM17: 0.04091375 | AN17: 0.04091375 | AO17: =AO15*AO16 -> 0.04091375 | BH17: Total O&M Expense | BK17: =SUM(BK7:BK16) -> -4888556187 | BM17: 454 | BN17: =SUMIF(Inputs!$B$3:$B$2193,BM17,Inputs!$D$3:$D$2193)-J263 -> 0 | BO17: 540 | BP17: =SUMIF(Inputs!$B$3:$B$2193,BO17,Inputs!$D$3:$D$2193)-J505 -> 0 | BQ17: 585 | BR17: =SUMIF(Inputs!$B$3:$B$2193,BQ17,Inputs!$D$3:$D$2193)-J792 -> 0 | BS17: 929 | BT17: =SUMIF(Inputs!$B$3:$B$2193,BS17,Inputs!$D$3:$D$2193)-J1020 -> 0 | BU17: 428 | BV17: =SUMIF(Inputs!$B$3:$B$2193,BU17,Inputs!$D$3:$D$2193)-J1264-J1284 -> 7525245.55 | BW17: 335 | BX17: =SUMIF(Inputs!$B$3:$B$2193,BW17,Inputs!$D$3:$D$2193)-J1607 -> 0 | BY17: 389 | BZ17: =SUMIF(Inputs!$B$3:$B$2193,BY17,Inputs!$D$3:$D$2193)-J1861 -> 0 | CA17: CWC | CB17: =SUMIF(Inputs!$B$3:$B$2193,CA17,Inputs!$D$3:$D$2193) -> 0 | CC17: 108365 | CD17: =SUMIF(Inputs!$B$3:$B$2193,CC17,Inputs!$D$3:$D$2193)-J2464 -> 0 | CF17: Total O&M Expense | CG17: =SUM(CG7:CG16) -> -4888556187 | CI17: 454 | CJ17: =SUMIF(Inputs!$G$3:$G$2193,CI17,Inputs!$I$3:$I$2193)-AF263 -> 0 | CK17: 540 | CL17: =SUMIF(Inputs!$G$3:$G$2193,CK17,Inputs!$I$3:$I$2193)-AF505 -> 0 | CM17: 585 | CN17: =SUMIF(Inputs!$G$3:$G$2193,CM17,Inputs!$I$3:$I$2193)-AF792 -> 0 | CO17: 929 | CP17: =SUMIF(Inputs!$G$3:$G$2193,CO17,Inputs!$I$3:$I$2193)-AF1020 -> 0 | CQ17: 428 | CR17: =SUMIF(Inputs!$G$3:$G$2193,CQ17,Inputs!$I$3:$I$2193)-AF1264-AF1284 -> 7525245.55 | CS17: 335 | CT17: =SUMIF(Inputs!$G$3:$G$2193,CS17,Inputs!$I$3:$I$2193)-AF1607 -> 0 | CU17: 389 | CV17: =SUMIF(Inputs!$G$3:$G$2193,CU17,Inputs!$I$3:$I$2193)-AF1861 -> 0 | CW17: CWC | CX17: =SUMIF(Inputs!$G$3:$G$2193,CW17,Inputs!$I$3:$I$2193) -> 0 | CY17: 108365 | CZ17: =SUMIF(Inputs!$G$3:$G$2193,CY17,Inputs!$I$3:$I$2193)-AF2464 -> 0
BM18: 456 | BN18: =SUMIF(Inputs!$B$3:$B$2193,BM18,Inputs!$D$3:$D$2193)-J275 -> 0 | BO18: 541 | BP18: =SUMIF(Inputs!$B$3:$B$2193,BO18,Inputs!$D$3:$D$2193)-J512 -> 0 | BQ18: 586 | BR18: =SUMIF(Inputs!$B$3:$B$2193,BQ18,Inputs!$D$3:$D$2193)-J797 -> 0 | BS18: 930 | BT18: =SUMIF(Inputs!$B$3:$B$2193,BS18,Inputs!$D$3:$D$2193)-J1027 -> 0 | BU18: 429 | BV18: =SUMIF(Inputs!$B$3:$B$2193,BU18,Inputs!$D$3:$D$2193)-J1268-J1285 -> 0 | BW18: 336 | BX18: =SUMIF(Inputs!$B$3:$B$2193,BW18,Inputs!$D$3:$D$2193)-J1614 -> 0 | BY18: 390 | BZ18: =SUMIF(Inputs!$B$3:$B$2193,BY18,Inputs!$D$3:$D$2193)-J1871 -> 0 | CA18: 131 | CB18: =SUMIF(Inputs!$B$3:$B$2193,CA18,Inputs!$D$3:$D$2193)-J2234 -> 0 | CC18: 108366 | CD18: =SUMIF(Inputs!$B$3:$B$2193,CC18,Inputs!$D$3:$D$2193)-J2468 -> 0 | CI18: 456 | CJ18: =SUMIF(Inputs!$G$3:$G$2193,CI18,Inputs!$I$3:$I$2193)-AF275 -> 0 | CK18: 541 | CL18: =SUMIF(Inputs!$G$3:$G$2193,CK18,Inputs!$I$3:$I$2193)-AF512 -> 0 | CM18: 586 | CN18: =SUMIF(Inputs!$G$3:$G$2193,CM18,Inputs!$I$3:$I$2193)-AF797 -> 0 | CO18: 930 | CP18: =SUMIF(Inputs!$G$3:$G$2193,CO18,Inputs!$I$3:$I$2193)-AF1027 -> 0 | CQ18: 429 | CR18: =SUMIF(Inputs!$G$3:$G$2193,CQ18,Inputs!$I$3:$I$2193)-AF1268-AF1285 -> 0 | CS18: 336 | CT18: =SUMIF(Inputs!$G$3:$G$2193,CS18,Inputs!$I$3:$I$2193)-AF1614 -> 0 | CU18: 390 | CV18: =SUMIF(Inputs!$G$3:$G$2193,CU18,Inputs!$I$3:$I$2193)-AF1871 -> 0 | CW18: 131 | CX18: =SUMIF(Inputs!$G$3:$G$2193,CW18,Inputs!$I$3:$I$2193)-AF2234 -> 0 | CY18: 108366 | CZ18: =SUMIF(Inputs!$G$3:$G$2193,CY18,Inputs!$I$3:$I$2193)-AF2468 -> 0
BH19: Depreciation Exp | BK19: =-J1133 -> -1194509229 | BM19: 41160 | BN19: =SUMIF(Inputs!$B$3:$B$2193,BM19,Inputs!$D$3:$D$2193)-J297 -> 0 | BO19: 542 | BP19: =SUMIF(Inputs!$B$3:$B$2193,BO19,Inputs!$D$3:$D$2193)-J519 -> 0 | BQ19: 587 | BR19: =SUMIF(Inputs!$B$3:$B$2193,BQ19,Inputs!$D$3:$D$2193)-J802 -> 0 | BS19: 931 | BT19: =SUMIF(Inputs!$B$3:$B$2193,BS19,Inputs!$D$3:$D$2193)-J1032 -> 0 | BU19: 431 | BV19: =SUMIF(Inputs!$B$3:$B$2193,BU19,Inputs!$D$3:$D$2193)-J1274-J1286 -> 48749095.62 | BW19: 337 | BX19: =SUMIF(Inputs!$B$3:$B$2193,BW19,Inputs!$D$3:$D$2193)-J1625 -> 0 | BY19: 391 | BZ19: =SUMIF(Inputs!$B$3:$B$2193,BY19,Inputs!$D$3:$D$2193)-J1883 -> 0 | CA19: 135 | CB19: =SUMIF(Inputs!$B$3:$B$2193,CA19,Inputs!$D$3:$D$2193)-J2235 -> 0 | CC19: 108367 | CD19: =SUMIF(Inputs!$B$3:$B$2193,CC19,Inputs!$D$3:$D$2193)-J2472 -> 0 | CF19: Depreciation Exp | CG19: =-AF1133 -> -1194509229 | CI19: 41160 | CJ19: =SUMIF(Inputs!$G$3:$G$2193,CI19,Inputs!$I$3:$I$2193)-AF297 -> 0 | CK19: 542 | CL19: =SUMIF(Inputs!$G$3:$G$2193,CK19,Inputs!$I$3:$I$2193)-AF519 -> 0 | CM19: 587 | CN19: =SUMIF(Inputs!$G$3:$G$2193,CM19,Inputs!$I$3:$I$2193)-AF802 -> 0 | CO19: 931 | CP19: =SUMIF(Inputs!$G$3:$G$2193,CO19,Inputs!$I$3:$I$2193)-AF1032 -> 0 | CQ19: 431 | CR19: =SUMIF(Inputs!$G$3:$G$2193,CQ19,Inputs!$I$3:$I$2193)-AF1274-AF1286 -> 48749095.62 | CS19: 337 | CT19: =SUMIF(Inputs!$G$3:$G$2193,CS19,Inputs!$I$3:$I$2193)-AF1625 -> 0 | CU19: 391 | CV19: =SUMIF(Inputs!$G$3:$G$2193,CU19,Inputs!$I$3:$I$2193)-AF1883 -> 0 | CW19: 135 | CX19: =SUMIF(Inputs!$G$3:$G$2193,CW19,Inputs!$I$3:$I$2193)-AF2235 -> 0 | CY19: 108367 | CZ19: =SUMIF(Inputs!$G$3:$G$2193,CY19,Inputs!$I$3:$I$2193)-AF2472 -> 0
E20: =PROPER(Variables!AE29&" "&"Year End Factors") -> 2020 Protocol Year End Factors | AA20: =PROPER(Variables!AE29&" "&Variables!AO16&" Factors") -> 2020 Protocol 13-Month Average Factors | BH20: Amortization Exp | BK20: =-J1213 -> -107566723.1 | BM20: 41170 | BN20: =SUMIF(Inputs!$B$3:$B$2193,BM20,Inputs!$D$3:$D$2193)-J302 -> 0 | BO20: 543 | BP20: =SUMIF(Inputs!$B$3:$B$2193,BO20,Inputs!$D$3:$D$2193)-J529 -> 0 | BQ20: 588 | BR20: =SUMIF(Inputs!$B$3:$B$2193,BQ20,Inputs!$D$3:$D$2193)-J807 -> 0 | BS20: 935 | BT20: =SUMIF(Inputs!$B$3:$B$2193,BS20,Inputs!$D$3:$D$2193)-J1038 -> 0 | BU20: 432 | BV20: =SUMIF(Inputs!$B$3:$B$2193,BU20,Inputs!$D$3:$D$2193)-J1278 -> -107026207.7 | BW20: HP | BX20: =SUMIF(Inputs!$B$3:$B$2193,BW20,Inputs!$D$3:$D$2193)-J1625 -> 0 | BY20: 392 | BZ20: =SUMIF(Inputs!$B$3:$B$2193,BY20,Inputs!$D$3:$D$2193)-J1895 -> 0 | CA20: 141 | CB20: =SUMIF(Inputs!$B$3:$B$2193,CA20,Inputs!$D$3:$D$2193)-J2236 -> 0 | CC20: 108368 | CD20: =SUMIF(Inputs!$B$3:$B$2193,CC20,Inputs!$D$3:$D$2193)-J2476 -> 0 | CF20: Amortization Exp | CG20: =-AF1213 -> -107566723.1 | CI20: 41170 | CJ20: =SUMIF(Inputs!$G$3:$G$2193,CI20,Inputs!$I$3:$I$2193)-AF302 -> 0 | CK20: 543 | CL20: =SUMIF(Inputs!$G$3:$G$2193,CK20,Inputs!$I$3:$I$2193)-AF529 -> 0 | CM20: 588 | CN20: =SUMIF(Inputs!$G$3:$G$2193,CM20,Inputs!$I$3:$I$2193)-AF807 -> 0 | CO20: 935 | CP20: =SUMIF(Inputs!$G$3:$G$2193,CO20,Inputs!$I$3:$I$2193)-AF1038 -> 0 | CQ20: 432 | CR20: =SUMIF(Inputs!$G$3:$G$2193,CQ20,Inputs!$I$3:$I$2193)-AF1278 -> -107026207.7 | CS20: HP | CT20: =SUMIF(Inputs!$G$3:$G$2193,CS20,Inputs!$I$3:$I$2193)-AF1625 -> 0 | CU20: 392 | CV20: =SUMIF(Inputs!$G$3:$G$2193,CU20,Inputs!$I$3:$I$2193)-AF1895 -> 0 | CW20: 141 | CX20: =SUMIF(Inputs!$G$3:$G$2193,CW20,Inputs!$I$3:$I$2193)-AF2236 -> 0 | CY20: 108368 | CZ20: =SUMIF(Inputs!$G$3:$G$2193,CY20,Inputs!$I$3:$I$2193)-AF2476 -> 0
BH21: Taxes Other | BK21: =-J1241 -> -230247481.8 | BM21: 4118 | BN21: =SUMIF(Inputs!$B$3:$B$2193,BM21,Inputs!$D$3:$D$2193)-J307 -> 0 | BO21: 544 | BP21: =SUMIF(Inputs!$B$3:$B$2193,BO21,Inputs!$D$3:$D$2193)-J536 -> 0 | BQ21: 589 | BR21: =SUMIF(Inputs!$B$3:$B$2193,BQ21,Inputs!$D$3:$D$2193)-J812 -> 0 | BS21: 403SP | BT21: =SUMIF(Inputs!$B$3:$B$2193,BS21,Inputs!$D$3:$D$2193)-J1057 -> 0 | BU21: 419 | BV21: =SUMIF(Inputs!$B$3:$B$2193,BU21,Inputs!$D$3:$D$2193)-J1296 -> 0 | BW21: 340 | BX21: =SUMIF(Inputs!$B$3:$B$2193,BW21,Inputs!$D$3:$D$2193)-J1641 -> 0 | BY21: 393 | BZ21: =SUMIF(Inputs!$B$3:$B$2193,BY21,Inputs!$D$3:$D$2193)-J1904 -> 0 | CA21: 143 | CB21: =SUMIF(Inputs!$B$3:$B$2193,CA21,Inputs!$D$3:$D$2193)-J2237 -> 0 | CC21: 108369 | CD21: =SUMIF(Inputs!$B$3:$B$2193,CC21,Inputs!$D$3:$D$2193)-J2480 -> 0 | CF21: Taxes Other | CG21: =-AF1241 -> -230247481.8 | CI21: 4118 | CJ21: =SUMIF(Inputs!$G$3:$G$2193,CI21,Inputs!$I$3:$I$2193)-AF307 -> 0 | CK21: 544 | CL21: =SUMIF(Inputs!$G$3:$G$2193,CK21,Inputs!$I$3:$I$2193)-AF536 -> 0 | CM21: 589 | CN21: =SUMIF(Inputs!$G$3:$G$2193,CM21,Inputs!$I$3:$I$2193)-AF812 -> 0 | CO21: 403SP | CP21: =SUMIF(Inputs!$G$3:$G$2193,CO21,Inputs!$I$3:$I$2193)-AF1057 -> 0 | CQ21: 419 | CR21: =SUMIF(Inputs!$G$3:$G$2193,CQ21,Inputs!$I$3:$I$2193)-AF1296 -> 0 | CS21: 340 | CT21: =SUMIF(Inputs!$G$3:$G$2193,CS21,Inputs!$I$3:$I$2193)-AF1641 -> 0 | CU21: 393 | CV21: =SUMIF(Inputs!$G$3:$G$2193,CU21,Inputs!$I$3:$I$2193)-AF1904 -> 0 | CW21: 143 | CX21: =SUMIF(Inputs!$G$3:$G$2193,CW21,Inputs!$I$3:$I$2193)-AF2237 -> 0 | CY21: 108369 | CZ21: =SUMIF(Inputs!$G$3:$G$2193,CY21,Inputs!$I$3:$I$2193)-AF2480 -> 0
E22: DESCRIPTION | G22: FACTOR | J22: TOTAL | K22: CALIFORNIA | L22: OREGON | M22: WASHINGTON | N22: MONTANA | O22: WYOMING-PPL | P22: UTAH | Q22: IDAHO | R22: WY-UP&L | S22: FERC | T22: OTHER | U22: NON-REGULATED | AA22: DESCRIPTION | AC22: FACTOR | AF22: TOTAL | AG22: CALIFORNIA | AH22: OREGON | AI22: WASHINGTON | AJ22: MONTANA | AK22: WYOMING-PPL | AL22: UTAH | AM22: IDAHO | AN22: WY-UP&L | AO22: FERC | AP22: OTHER | AQ22: NON-REGULATED | BH22: Federal Income Taxes | BK22: =-J1450 -> 354861492.9 | BM22: 41181 | BN22: =SUMIF(Inputs!$B$3:$B$2193,BM22,Inputs!$D$3:$D$2193)-J311 -> 0 | BO22: 545 | BP22: =SUMIF(Inputs!$B$3:$B$2193,BO22,Inputs!$D$3:$D$2193)-J543 -> 0 | BQ22: 590 | BR22: =SUMIF(Inputs!$B$3:$B$2193,BQ22,Inputs!$D$3:$D$2193)-J818 -> 0 | BS22: 403NP | BT22: =SUMIF(Inputs!$B$3:$B$2193,BS22,Inputs!$D$3:$D$2193)-J1061 -> 0 | BU22: 41010 | BV22: =SUMIF(Inputs!$B$3:$B$2193,BU22,Inputs!$D$3:$D$2193)-J1316 -> 0 | BW22: 341 | BX22: =SUMIF(Inputs!$B$3:$B$2193,BW22,Inputs!$D$3:$D$2193)-J1649 -> 0 | BY22: 394 | BZ22: =SUMIF(Inputs!$B$3:$B$2193,BY22,Inputs!$D$3:$D$2193)-J1915 -> 0 | CA22: 232 | CB22: =SUMIF(Inputs!$B$3:$B$2193,CA22,Inputs!$D$3:$D$2193)-J2238-J2239-J2240-J2241 -> 0 | CC22: 108370 | CD22: =SUMIF(Inputs!$B$3:$B$2193,CC22,Inputs!$D$3:$D$2193)-J2484 -> 0 | CF22: Federal Income Taxes | CG22: =-AF1450 -> 354861617.7 | CI22: 41181 | CJ22: =SUMIF(Inputs!$G$3:$G$2193,CI22,Inputs!$I$3:$I$2193)-AF311 -> 0 | CK22: 545 | CL22: =SUMIF(Inputs!$G$3:$G$2193,CK22,Inputs!$I$3:$I$2193)-AF543 -> 0 | CM22: 590 | CN22: =SUMIF(Inputs!$G$3:$G$2193,CM22,Inputs!$I$3:$I$2193)-AF818 -> 0 | CO22: 403NP | CP22: =SUMIF(Inputs!$G$3:$G$2193,CO22,Inputs!$I$3:$I$2193)-AF1061 -> 0 | CQ22: 41010 | CR22: =SUMIF(Inputs!$G$3:$G$2193,CQ22,Inputs!$I$3:$I$2193)-AF1316 -> 0 | CS22: 341 | CT22: =SUMIF(Inputs!$G$3:$G$2193,CS22,Inputs!$I$3:$I$2193)-AF1649 -> 0 | CU22: 394 | CV22: =SUMIF(Inputs!$G$3:$G$2193,CU22,Inputs!$I$3:$I$2193)-AF1915 -> 0 | CW22: 232 | CX22: =SUMIF(Inputs!$G$3:$G$2193,CW22,Inputs!$I$3:$I$2193)-AF2238-AF2239-AF2240-AF2241 -> 0 | CY22: 108370 | CZ22: =SUMIF(Inputs!$G$3:$G$2193,CY22,Inputs!$I$3:$I$2193)-AF2484 -> 0
E23: Situs | G23: S | K23: 1 | L23: 1 | M23: 1 | N23: 1 | O23: 1 | P23: 1 | Q23: 1 | R23: 1 | S23: 1 | T23: 1 | AA23: Situs | AC23: S | AG23: 1 | AH23: 1 | AI23: 1 | AJ23: 1 | AK23: 1 | AL23: 1 | AM23: 1 | AN23: 1 | AO23: 1 | AP23: 1 | BH23: State Income Tax | BK23: =-J1417 -> 28497076.82 | BM23: 4194 | BN23: =SUMIF(Inputs!$B$3:$B$2193,BM23,Inputs!$D$3:$D$2193)-J315 -> 0 | BO23: 546 | BP23: =SUMIF(Inputs!$B$3:$B$2193,BO23,Inputs!$D$3:$D$2193)-J550 -> 0 | BQ23: 591 | BR23: =SUMIF(Inputs!$B$3:$B$2193,BQ23,Inputs!$D$3:$D$2193)-J823 -> 0 | BS23: 403HP | BT23: =SUMIF(Inputs!$B$3:$B$2193,BS23,Inputs!$D$3:$D$2193)-J1068 -> 0 | BW23: 342 | BX23: =SUMIF(Inputs!$B$3:$B$2193,BW23,Inputs!$D$3:$D$2193)-J1655 -> 0 | BY23: 395 | BZ23: =SUMIF(Inputs!$B$3:$B$2193,BY23,Inputs!$D$3:$D$2193)-J1926 -> 0 | CA23: 2533 | CB23: =SUMIF(Inputs!$B$3:$B$2193,CA23,Inputs!$D$3:$D$2193)-J2242-J2243-J2248 -> 0 | CC23: 108371 | CD23: =SUMIF(Inputs!$B$3:$B$2193,CC23,Inputs!$D$3:$D$2193)-J2490 -> 0 | CF23: State Income Tax | CG23: =-AF1417 -> 28497105.07 | CI23: 4194 | CJ23: =SUMIF(Inputs!$G$3:$G$2193,CI23,Inputs!$I$3:$I$2193)-AF315 -> 0 | CK23: 546 | CL23: =SUMIF(Inputs!$G$3:$G$2193,CK23,Inputs!$I$3:$I$2193)-AF550 -> 0 | CM23: 591 | CN23: =SUMIF(Inputs!$G$3:$G$2193,CM23,Inputs!$I$3:$I$2193)-AF823 -> 0 | CO23: 403HP | CP23: =SUMIF(Inputs!$G$3:$G$2193,CO23,Inputs!$I$3:$I$2193)-AF1068 -> 0 | CS23: 342 | CT23: =SUMIF(Inputs!$G$3:$G$2193,CS23,Inputs!$I$3:$I$2193)-AF1655 -> 0 | CU23: 395 | CV23: =SUMIF(Inputs!$G$3:$G$2193,CU23,Inputs!$I$3:$I$2193)-AF1926 -> 0 | CW23: 2533 | CX23: =SUMIF(Inputs!$G$3:$G$2193,CW23,Inputs!$I$3:$I$2193)-AF2242-AF2243-AF2248 -> 0 | CY23: 108371 | CZ23: =SUMIF(Inputs!$G$3:$G$2193,CY23,Inputs!$I$3:$I$2193)-AF2490 -> 0
E24: System Generation | G24: SG | J24: =SUM(K24:U24) -> 1 | K24: 0.01324932489 | L24: 0.268600521 | M24: 0.07482264063 | N24: 0 | O24: 0.1180531209 | P24: 0.4504545116 | Q24: 0.0589877739 | R24: 0.01562214615 | S24: 0.0002099608047 | AA24: System Generation | AC24: SG | AF24: =SUM(AG24:AQ24) -> 1 | AG24: 0.01324932489 | AH24: 0.268600521 | AI24: 0.07482264063 | AJ24: 0 | AK24: 0.1180531209 | AL24: 0.4504545116 | AM24: 0.0589877739 | AN24: 0.01562214615 | AO24: 0.0002099608047 | BH24: D.I.T. | BK24: =-J1339 -> 10364793.65 | BM24: 421 | BN24: =SUMIF(Inputs!$B$3:$B$2193,BM24,Inputs!$D$3:$D$2193)-J324 -> 0 | BO24: 547 | BP24: =SUMIF(Inputs!$B$3:$B$2193,BO24,Inputs!$D$3:$D$2193)-J555 -> 0 | BQ24: 592 | BR24: =SUMIF(Inputs!$B$3:$B$2193,BQ24,Inputs!$D$3:$D$2193)-J828 -> 0 | BS24: 403OP | BT24: =SUMIF(Inputs!$B$3:$B$2193,BS24,Inputs!$D$3:$D$2193)-J1076 -> 0 | BU24: 41110 | BV24: =SUMIF(Inputs!$B$3:$B$2193,BU24,Inputs!$D$3:$D$2193)-J1337 -> 0 | BW24: 343 | BX24: =SUMIF(Inputs!$B$3:$B$2193,BW24,Inputs!$D$3:$D$2193)-J1663 -> 0 | BY24: 396 | BZ24: =SUMIF(Inputs!$B$3:$B$2193,BY24,Inputs!$D$3:$D$2193)-J1937 -> 0 | CA24: 230 | CB24: =SUMIF(Inputs!$B$3:$B$2193,CA24,Inputs!$D$3:$D$2193)-J2244-J2245-J2294 -> 0 | CC24: 108372 | CD24: =SUMIF(Inputs!$B$3:$B$2193,CC24,Inputs!$D$3:$D$2193)-J2494 -> 0 | CF24: D.I.T. | CG24: =-AF1339 -> 10364793.65 | CI24: 421 | CJ24: =SUMIF(Inputs!$G$3:$G$2193,CI24,Inputs!$I$3:$I$2193)-AF324 -> 0 | CK24: 547 | CL24: =SUMIF(Inputs!$G$3:$G$2193,CK24,Inputs!$I$3:$I$2193)-AF555 -> 0 | CM24: 592 | CN24: =SUMIF(Inputs!$G$3:$G$2193,CM24,Inputs!$I$3:$I$2193)-AF828 -> 0 | CO24: 403OP | CP24: =SUMIF(Inputs!$G$3:$G$2193,CO24,Inputs!$I$3:$I$2193)-AF1076 -> 0 | CQ24: 41110 | CR24: =SUMIF(Inputs!$G$3:$G$2193,CQ24,Inputs!$I$3:$I$2193)-AF1337 -> 0 | CS24: 343 | CT24: =SUMIF(Inputs!$G$3:$G$2193,CS24,Inputs!$I$3:$I$2193)-AF1663 -> 0 | CU24: 396 | CV24: =SUMIF(Inputs!$G$3:$G$2193,CU24,Inputs!$I$3:$I$2193)-AF1937 -> 0 | CW24: 230 | CX24: =SUMIF(Inputs!$G$3:$G$2193,CW24,Inputs!$I$3:$I$2193)-AF2244-AF2245-AF2294 -> 0 | CY24: 108372 | CZ24: =SUMIF(Inputs!$G$3:$G$2193,CY24,Inputs!$I$3:$I$2193)-AF2494 -> 0
E25: System Generation (Pac Costs on SG) | G25: SG-P | J25: =SUM(K25:U25) -> 1 | K25: 0.01324932489 | L25: 0.268600521 | M25: 0.07482264063 | N25: 0 | O25: 0.1180531209 | P25: 0.4504545116 | Q25: 0.0589877739 | R25: 0.01562214615 | S25: 0.0002099608047 | AA25: System Generation (Pac Costs on SG) | AC25: SG-P | AF25: 1 | AG25: 0.01324932489 | AH25: 0.268600521 | AI25: 0.07482264063 | AJ25: 0 | AK25: 0.1180531209 | AL25: 0.4504545116 | AM25: 0.0589877739 | AN25: 0.01562214615 | AO25: 0.0002099608047 | BH25: ITC | BK25: =-J1254 -> 363488.17 | BM25: 4311 | BN25: =SUMIF(Inputs!$B$3:$B$2193,BM25,Inputs!$D$3:$D$2193)-J330 -> 0 | BO25: 547NPC | BP25: =SUMIF(Inputs!$B$3:$B$2193,BO25,Inputs!$D$3:$D$2193)-J560 -> 0 | BQ25: 593 | BR25: =SUMIF(Inputs!$B$3:$B$2193,BQ25,Inputs!$D$3:$D$2193)-J832 -> 0 | BS25: 403TP | BT25: =SUMIF(Inputs!$B$3:$B$2193,BS25,Inputs!$D$3:$D$2193)-J1083 -> 0 | BW25: 344 | BX25: =SUMIF(Inputs!$B$3:$B$2193,BW25,Inputs!$D$3:$D$2193)-J1670 -> 0 | BY25: 397 | BZ25: =SUMIF(Inputs!$B$3:$B$2193,BY25,Inputs!$D$3:$D$2193)-J1948 -> 0 | CA25: 254105 | CB25: =SUMIF(Inputs!$B$3:$B$2193,CA25,Inputs!$D$3:$D$2193)-J2246-J2247-J2293-J2295 -> 0 | CC25: 108373 | CD25: =SUMIF(Inputs!$B$3:$B$2193,CC25,Inputs!$D$3:$D$2193)-J2498 -> 0 | CF25: ITC | CG25: =-AF1254 -> 363488.17 | CI25: 4311 | CJ25: =SUMIF(Inputs!$G$3:$G$2193,CI25,Inputs!$I$3:$I$2193)-AF330 -> 0 | CK25: 547NPC | CL25: =SUMIF(Inputs!$G$3:$G$2193,CK25,Inputs!$I$3:$I$2193)-AF560 -> 0 | CM25: 593 | CN25: =SUMIF(Inputs!$G$3:$G$2193,CM25,Inputs!$I$3:$I$2193)-AF832 -> 0 | CO25: 403TP | CP25: =SUMIF(Inputs!$G$3:$G$2193,CO25,Inputs!$I$3:$I$2193)-AF1083 -> 0 | CS25: 344 | CT25: =SUMIF(Inputs!$G$3:$G$2193,CS25,Inputs!$I$3:$I$2193)-AF1670 -> 0 | CU25: 397 | CV25: =SUMIF(Inputs!$G$3:$G$2193,CU25,Inputs!$I$3:$I$2193)-AF1948 -> 0 | CW25: 254105 | CX25: =SUMIF(Inputs!$G$3:$G$2193,CW25,Inputs!$I$3:$I$2193)-AF2246-AF2247-AF2293-AF2295 -> 0 | CY25: 108373 | CZ25: =SUMIF(Inputs!$G$3:$G$2193,CY25,Inputs!$I$3:$I$2193)-AF2498 -> 0
E26: System Generation (Ut Costs on SG) | G26: SG-U | J26: 1 | K26: 0.01324932489 | L26: 0.268600521 | M26: 0.07482264063 | N26: 0 | O26: 0.1180531209 | P26: 0.4504545116 | Q26: 0.0589877739 | R26: 0.01562214615 | S26: 0.0002099608047 | AA26: System Generation (Ut Costs on SG) | AC26: SG-U | AF26: 1 | AG26: 0.01324932489 | AH26: 0.268600521 | AI26: 0.07482264063 | AJ26: 0 | AK26: 0.1180531209 | AL26: 0.4504545116 | AM26: 0.0589877739 | AN26: 0.01562214615 | AO26: 0.0002099608047 | BH26: Misc Revenue | BK26: =-J333 -> 4895804.24 | BM26: 500 | BN26: =SUMIF(Inputs!$B$3:$B$2193,BM26,Inputs!$D$3:$D$2193)-J338 -> 0 | BO26: 548 | BP26: =SUMIF(Inputs!$B$3:$B$2193,BO26,Inputs!$D$3:$D$2193)-J565 -> 0 | BQ26: 594 | BR26: =SUMIF(Inputs!$B$3:$B$2193,BQ26,Inputs!$D$3:$D$2193)-J837 -> 0 | BS26: 403360 | BT26: =SUMIF(Inputs!$B$3:$B$2193,BS26,Inputs!$D$3:$D$2193)-J1088 -> 0 | BU26: SCHMAF | BV26: =SUMIF(Inputs!$B$3:$B$2193,BU26,Inputs!$D$3:$D$2193)-J1347 -> 0 | BW26: 345 | BX26: =SUMIF(Inputs!$B$3:$B$2193,BW26,Inputs!$D$3:$D$2193)-J1678 -> 0 | BY26: 398 | BZ26: =SUMIF(Inputs!$B$3:$B$2193,BY26,Inputs!$D$3:$D$2193)-J1959 -> 0 | CA26: 18221 | CB26: =SUMIF(Inputs!$B$3:$B$2193,CA26,Inputs!$D$3:$D$2193)-J2256 -> 0 | CC26: 108D00 | CD26: =SUMIF(Inputs!$B$3:$B$2193,CC26,Inputs!$D$3:$D$2193)-J2502 -> 0 | CF26: Misc Revenue | CG26: =-AF333 -> 4895804.24 | CI26: 500 | CJ26: =SUMIF(Inputs!$G$3:$G$2193,CI26,Inputs!$I$3:$I$2193)-AF338 -> 0 | CK26: 548 | CL26: =SUMIF(Inputs!$G$3:$G$2193,CK26,Inputs!$I$3:$I$2193)-AF565 -> 0 | CM26: 594 | CN26: =SUMIF(Inputs!$G$3:$G$2193,CM26,Inputs!$I$3:$I$2193)-AF837 -> 0 | CO26: 403360 | CP26: =SUMIF(Inputs!$G$3:$G$2193,CO26,Inputs!$I$3:$I$2193)-AF1088 -> 0 | CQ26: SCHMAF | CR26: =SUMIF(Inputs!$G$3:$G$2193,CQ26,Inputs!$I$3:$I$2193)-AF1347 -> 0 | CS26: 345 | CT26: =SUMIF(Inputs!$G$3:$G$2193,CS26,Inputs!$I$3:$I$2193)-AF1678 -> 0 | CU26: 398 | CV26: =SUMIF(Inputs!$G$3:$G$2193,CU26,Inputs!$I$3:$I$2193)-AF1959 -> 0 | CW26: 18221 | CX26: =SUMIF(Inputs!$G$3:$G$2193,CW26,Inputs!$I$3:$I$2193)-AF2256 -> 0 | CY26: 108D00 | CZ26: =SUMIF(Inputs!$G$3:$G$2193,CY26,Inputs!$I$3:$I$2193)-AF2502 -> 0
E27: Divisional Generation - Pacific | G27: DGP | J27: 1 | K27: 0.02790943795 | L27: 0.5658016269 | M27: 0.1576123964 | N27: 0 | O27: 0.2486765388 | P27: 0 | Q27: 0 | R27: 0 | S27: 0 | AA27: Divisional Generation - Pacific | AC27: DGP | AF27: 1 | AG27: 0.02790943795 | AH27: 0.5658016269 | AI27: 0.1576123964 | AJ27: 0 | AK27: 0.2486765388 | AL27: 0 | AM27: 0 | AN27: 0 | AO27: 0 | BH27: Total Operating Expense | BK27: =SUM(BK17:BK26) -> -6021896965 | BM27: 501 | BN27: =SUMIF(Inputs!$B$3:$B$2193,BM27,Inputs!$D$3:$D$2193)-J346 -> 0 | BO27: 549 | BP27: =SUMIF(Inputs!$B$3:$B$2193,BO27,Inputs!$D$3:$D$2193)-J571 -> 0 | BQ27: 595 | BR27: =SUMIF(Inputs!$B$3:$B$2193,BQ27,Inputs!$D$3:$D$2193)-J842 -> 0 | BS27: 403361 | BT27: =SUMIF(Inputs!$B$3:$B$2193,BS27,Inputs!$D$3:$D$2193)-J1089 -> 0 | BU27: SCHMAP | BV27: =SUMIF(Inputs!$B$3:$B$2193,BU27,Inputs!$D$3:$D$2193)-J1356 -> 0 | BW27: 346 | BX27: =SUMIF(Inputs!$B$3:$B$2193,BW27,Inputs!$D$3:$D$2193)-J1686 -> 0 | BY27: 399 | BZ27: =SUMIF(Inputs!$B$3:$B$2193,BY27,Inputs!$D$3:$D$2193)-J1962 -> 0 | CA27: 18222 | CB27: =SUMIF(Inputs!$B$3:$B$2193,CA27,Inputs!$D$3:$D$2193)-J2262 -> 0 | CC27: 108DS | CD27: =SUMIF(Inputs!$B$3:$B$2193,CC27,Inputs!$D$3:$D$2193)-J2506 -> 0 | CF27: Total Operating Expense | CG27: =SUM(CG17:CG26) -> -6021896812 | CI27: 501 | CJ27: =SUMIF(Inputs!$G$3:$G$2193,CI27,Inputs!$I$3:$I$2193)-AF346 -> 0 | CK27: 549 | CL27: =SUMIF(Inputs!$G$3:$G$2193,CK27,Inputs!$I$3:$I$2193)-AF571 -> 0 | CM27: 595 | CN27: =SUMIF(Inputs!$G$3:$G$2193,CM27,Inputs!$I$3:$I$2193)-AF842 -> 0 | CO27: 403361 | CP27: =SUMIF(Inputs!$G$3:$G$2193,CO27,Inputs!$I$3:$I$2193)-AF1089 -> 0 | CQ27: SCHMAP | CR27: =SUMIF(Inputs!$G$3:$G$2193,CQ27,Inputs!$I$3:$I$2193)-AF1356 -> 0 | CS27: 346 | CT27: =SUMIF(Inputs!$G$3:$G$2193,CS27,Inputs!$I$3:$I$2193)-AF1686 -> 0 | CU27: 399 | CV27: =SUMIF(Inputs!$G$3:$G$2193,CU27,Inputs!$I$3:$I$2193)-AF1962 -> 0 | CW27: 18222 | CX27: =SUMIF(Inputs!$G$3:$G$2193,CW27,Inputs!$I$3:$I$2193)-AF2262 -> 0 | CY27: 108DS | CZ27: =SUMIF(Inputs!$G$3:$G$2193,CY27,Inputs!$I$3:$I$2193)-AF2506 -> 0
E28: Divisional Generation - Utah | G28: DGU | J28: 1 | K28: 0 | L28: 0 | M28: 0 | N28: 0 | O28: 0 | P28: 0.8575603876 | Q28: 0.1122989712 | R28: 0.02974092469 | S28: 0.0003997164296 | AA28: Divisional Generation - Utah | AC28: DGU | AF28: 1 | AG28: 0 | AH28: 0 | AI28: 0 | AJ28: 0 | AK28: 0 | AL28: 0.8575603876 | AM28: 0.1122989712 | AN28: 0.02974092469 | AO28: 0.0003997164296 | BM28: 501NPC | BN28: =SUMIF(Inputs!$B$3:$B$2193,BM28,Inputs!$D$3:$D$2193)-J354 -> 0 | BO28: 550 | BP28: =SUMIF(Inputs!$B$3:$B$2193,BO28,Inputs!$D$3:$D$2193)-J580 -> 0 | BQ28: 596 | BR28: =SUMIF(Inputs!$B$3:$B$2193,BQ28,Inputs!$D$3:$D$2193)-J847 -> 0 | BS28: 403362 | BT28: =SUMIF(Inputs!$B$3:$B$2193,BS28,Inputs!$D$3:$D$2193)-J1090 -> 0 | BU28: SCHMAT | BV28: =SUMIF(Inputs!$B$3:$B$2193,BU28,Inputs!$D$3:$D$2193)-J1373 -> 0 | BW28: 347 | BX28: =SUMIF(Inputs!$B$3:$B$2193,BW28,Inputs!$D$3:$D$2193)-J1690 -> 0 | BY28: MP | BZ28: =SUMIF(Inputs!$B$3:$B$2193,BY28,Inputs!$D$3:$D$2193)-J1963 -> 0 | CA28: 1869 | CB28: =SUMIF(Inputs!$B$3:$B$2193,CA28,Inputs!$D$3:$D$2193)-J2269 -> 0 | CC28: 108DP | CD28: =SUMIF(Inputs!$B$3:$B$2193,CC28,Inputs!$D$3:$D$2193)-J2510 -> 0 | CI28: 501NPC | CJ28: =SUMIF(Inputs!$G$3:$G$2193,CI28,Inputs!$I$3:$I$2193)-AF354 -> 0 | CK28: 550 | CL28: =SUMIF(Inputs!$G$3:$G$2193,CK28,Inputs!$I$3:$I$2193)-AF580 -> 0 | CM28: 596 | CN28: =SUMIF(Inputs!$G$3:$G$2193,CM28,Inputs!$I$3:$I$2193)-AF847 -> 0 | CO28: 403362 | CP28: =SUMIF(Inputs!$G$3:$G$2193,CO28,Inputs!$I$3:$I$2193)-AF1090 -> 0 | CQ28: SCHMAT | CR28: =SUMIF(Inputs!$G$3:$G$2193,CQ28,Inputs!$I$3:$I$2193)-AF1373 -> 0 | CS28: 347 | CT28: =SUMIF(Inputs!$G$3:$G$2193,CS28,Inputs!$I$3:$I$2193)-AF1690 -> 0 | CU28: MP | CV28: =SUMIF(Inputs!$G$3:$G$2193,CU28,Inputs!$I$3:$I$2193)-AF1963 -> 0 | CW28: 1869 | CX28: =SUMIF(Inputs!$G$3:$G$2193,CW28,Inputs!$I$3:$I$2193)-AF2269 -> 0 | CY28: 108DP | CZ28: =SUMIF(Inputs!$G$3:$G$2193,CY28,Inputs!$I$3:$I$2193)-AF2510 -> 0
